Workbook

Sheet Impressum (hidden)
C1: Impressum
C9: PLANUNGSTOOL
C10: &
C11: TRAININGSTAGEBUCH
E14: Conception / réalisation
F16: Original von Louis Heyer angepasst durch Johannes Nowotny/ Swiss Volley
F17: Bundesamt für Sport / Trainingswissenschaft
F18: louis.heyer@baspo.admin.ch
F19: 032 327 64 99 / 079 507 58 25

Sheet Explications
B2: Explications TTB 2018
B4: Poids | D4: Toujours avant le petit-déjeuner, au min. 1x/semaine
B6: Régénération | D6: Est-ce que j'ai l'impression d'avoir récupéré en me levant le matin?
C7: 1 | D7: … j'ai pas du tout récupéré
C8: 2 | D8: … J'ai un peu récupéré
C9: 3 | D9: … j'ai récupéré
C10: 4 | D10: … je me sens en forme
C11: 5 | D11: … je suis en bonne forme
B13: Qualité du sommeil | D13: Ici tu dois évaluer la qualité de ton sommeil. Sous "lundi", tu notes la qualité de ton sommeil de la nuit du dimanche au lundi.
C15: 1 | D15: … catastrophique, pas du tout dormi
C16: 2 | D16: … j'ai mal dormi, je me suis souvent réveillé
C17: 3 | D17: … j'ai dormir, mais pas profondément
C18: 4 | D18: … j'ai bien dormi
C19: 5 | D19: … j'ai très bien dormi
B21: Qualité du sommeil | D21: Nombre d'heures que tu as dormi.
B23: Blessure/maladie | D23: Si tu ne peux pas effectuer l'entraînement normalement à cause d'une blessure ou parce que tu es malade, inscris les nombres suivants.
C26: pas de limitation
C27: 0 | D27: je peux m'entrainer normalement
C29: limitation à cause des douleurs
C30: 1 | D30: Doigt
C31: 2 | D31: Épaule
C32: 3 | D32: Dos
C33: 4 | D33: Genou
C34: 5 | D34: Cheville
C35: 6 | D35: Autre
C37: Absence à cause d'une blessure
C38: 11 | D38: Doigt
C39: 12 | D39: Épaule
C40: 13 | D40: Dos
C41: 14 | D41: Genou
C42: 15 | D42: Cheville
C43: 16 | D43: Autre
C45: Absence à cause d'une maladie
C46: 21 | D46: Maladie
B48: Description de l'entrainement | D48: Tu dois inscrire ici le contenu de l'entrainement (p.ex. Service/réception ou entrainement avec haltères)
B51: Durée | D51: Tu dois inscrire ici la durée de l'entrainement/compétition en minutes. L'échauffement et le retour au calme font partie de l'entrainement
B54: RPE | D54: RPE = Rate of Perceived Exertion
D56: Procédé de l'évaluation de l'entrainement avec l'échelle de Foster:
D57: Évalue ton entrainement si possible 15-30 minutes après chaque entrainement.
D59: Décris l'intensité et la charge de l'ensemble de l'entrainement ou de la compétition
D60: en fonction de cette citation:
D62: Quand tu repenses à l'entrainement, à quel point était-il fatiguant?
D65: Inscris le nombre correspondant sur ton protocolle.
D67: Si tu fais plusieurs entrainements ou compétitions par jour, remplis une évaluation pour chaque session et inscris-la sous entrainement 1, entrainement 2, etc.
E71: Échelle de Foster
E73: "Quand tu repenses à l'entrainement, à quel point était-il fatiguant?"
J76: RPE
E77: Repos | J77: 0
E78: Très facile | J78: 1
E79: Facile | J79: 2
J80: 3
E81: Assez dur | J81: 4
E82: Dur | J82: 5
J83: 6
E84: Très dur | J84: 7
J85: 8
E86: Extrèmement dur | J86: 9
E87: Le plus dur jamais réalisé | J87: 10
B89: Réflexion | D89: Tu dois ici faire une réflexion sur ton entrainement/compétition - Qu'est-ce que je veux retenir pour mon prochain entrainement/ma prochaine compétition?
B92: Nombre de matchs | D92: Inscris le nombre de matchs joués ce jour-là. Utilise les nombre ci-dessous
C94: 1 | D94: … 3 sets et plus
C95: 0.5 | D95: … moins de 3 sets
B97: Nombre de sets | D97: Inscris le nombre de sets joués ce jour-là. Utilise les nombre ci-dessous
C99: 1 | D99: … depuis le début et durant tout le set
C100: 0.5 | D100: … rentré/sorti en cours, beaucoup joué
C101: 0.1 | D101: … rentré/sorti en cours, peu joué
B103: Satisfaction J | D103: Es-tu content de la qualité de ton entrainement? As-tu atteint tes objectifs?
C105: 1 | D105: … pas content
C106: 2 | D106: … plutôt pas content
C107: 3 | D107: … moyen
C108: 4 | D108: … content
C109: 5 | D109: … très content!
B111: Mesure de régénération | D111: Quelles mesures de régénération as-tu appliqué après ton entrainement?

Sheet Aperçu de la charge
E1: Overview
C2: Prénom Nom: | D2: Prénom Nom | M2: Année : | N2: 2018/2019 | AA2: Début de l'année d'entrainement : | AB2: 2018-07-30
D3: Gewicht-Motiv-Schlaf
B4: Athlète: | C4: =D2 -> Prénom Nom | N4: Année : | O4: =N2 -> 2018/2019 | AB4: Analyse souhaitée : | AC4: Depuis la semaine d'entrainement : | AF4: 1 | AG4: Jusqu'à la semaine d'entrainement: | AK4: 52
B6: Semaine | C6: Semaine | H6: b1 | I6: b2 | J6: b3 | K6: b4 | L6: b5 | M6: b6 | N6: b7 | O6: b8 | P6: b9 | Q6: b10 | R6: b11 | S6: b12 | T6: b13 | U6: b14
B7: =CONCATENATE(">","=",AF4) -> >=1 | C7: =CONCATENATE("<","=",AK4) -> <=52 | H7: b1 | I7: b2 | J7: b3 | K7: b4 | L7: b5 | M7: b6 | N7: b7 | O7: b8 | P7: b9 | Q7: b10 | R7: b11 | S7: b12 | T7: b13 | U7: b14
B9: Semaine d'entrain-ement | C9: Semaine | H9: ='31'!$AI32 -> Jours d'entrainement | I9: ='31'!$AI33 -> Entrainements | J9: ='31'!$AI34 -> Heures d'entrainement | K9: ='31'!$AI35 -> Charge de l'entrainement | L9: ='31'!$AI36 -> Monotonie | M9: ='31'!$AI37 -> Efforts à l'entrainement | N9: ='31'!$AI40 -> Matchs de volleyball | O9: ='31'!$AI41 -> Sets de volleyball | P9: ='31'!AI42 -> Matchs de beach volley | Q9: ='31'!AI43 -> Sets de beach volley | R9: ='31'!AI46 -> Satisfaction de l'entrainement/match J | S9: ='31'!AI49 -> Limitation pour cause de douleurs | T9: ='31'!AI50 -> Absence pour cause de blessure | U9: ='31'!AI51 -> Absence pour cause de maladie | AC9: Total | AD9: MW/semaine
AB11: =B73 -> Jours d'entrainement | AC11: =H69 -> 0 | AD11: =AC11/$H$70 -> 
AB12: Entrainements | AC12: =I69 -> 0 | AD12: =AC12/$I$70 -> 
AB13: Heures d'entrainement | AC13: =J69 -> 0 | AD13: =AC13/$J$70 -> 
AB14: Charge de l'entrainement | AC14: =K69 -> 0 | AD14: =AC14/$K$70 -> 
AB15: Monotonie | AC15: =L69 -> 0 | AD15: =AC15/$L$70 -> 
AB16: Efforts à l'entrainement | AC16: =M69 -> 0 | AD16: =AC16/$M$70 -> 
B17: 1 | C17: =AB2 -> 2018-07-30 | D17: - | E17: =C17+6 -> 2018-08-05 | F17: =INT(MOD(INT((C17-2)/7)+0.6,52+5/28))+1 -> 31 | H17: =TRANSPOSE(D73:BC86) ->  | L17: 0 | S17: 0 | T17: 0 | U17: 0 | V17: =H17-(SUM(S17:U17)) -> 
B18: 2 | C18: =C17+7 -> 2018-08-06 | D18: - | E18: =C18+6 -> 2018-08-12 | F18: =INT(MOD(INT((C18-2)/7)+0.6,52+5/28))+1 -> 32 | L18: 0 | S18: 0 | T18: 0 | U18: 0 | V18: =H18-(SUM(S18:U18)) ->  | AB18: =B79 -> Matchs de volleyball | AC18: =N69 -> 0 | AD18: =AC18/$N$70 -> 
B19: 3 | C19: =C18+7 -> 2018-08-13 | D19: - | E19: 2018-08-19 | F19: 33 | L19: 0 | S19: 0 | T19: 0 | U19: 0 | AB19: =B80 -> Sets de volleyball | AC19: =O69 -> 0 | AD19: =AC19/$O$70 -> 
B20: 4 | C20: 2018-08-20 | D20: - | E20: 2018-08-26 | F20: 34 | L20: 0 | S20: 0 | T20: 0 | U20: 0 | AB20: Matchs de beach volley | AC20: =P69 -> 0 | AD20: =AC20/P70 -> 
B21: 5 | C21: 2018-08-27 | D21: - | E21: 2018-09-02 | F21: 35 | L21: 0 | S21: 0 | T21: 0 | U21: 0 | AB21: Sets de beach volley | AC21: =Q69 -> 0 | AD21: =AC21/Q70 -> 
B22: 6 | C22: 2018-09-03 | D22: - | E22: 2018-09-09 | F22: 36 | L22: 0 | S22: 0 | T22: 0 | U22: 0
B23: 7 | C23: 2018-09-10 | D23: - | E23: 2018-09-16 | F23: 37 | L23: 0 | S23: 0 | T23: 0 | U23: 0 | AB23: =B83 -> Satisfaction avec l'entrainement/la compétition | AC23: =R69 -> 0 | AD23: =AC23/R70 -> 
B24: 8 | C24: 2018-09-17 | D24: - | E24: 2018-09-23 | F24: 38 | L24: 0 | S24: 0 | T24: 0 | U24: 0 | AB24: =B84 -> Limitation pour cause de douleurs | AC24: =S69 -> 0 | AD24: =AC24/$S$70 -> 
B25: 9 | C25: 2018-09-24 | D25: - | E25: 2018-09-30 | F25: 39 | L25: 0 | S25: 0 | T25: 0 | U25: 0 | AB25: Absence pour cause de blessure | AC25: =T69 -> 0 | AD25: =AC25/$T$70 -> 
B26: 10 | C26: 2018-10-01 | D26: - | E26: 2018-10-07 | F26: 40 | L26: 0 | S26: 0 | T26: 0 | U26: 0 | AB26: Absence pour cause de maladie | AC26: =U69 -> 0 | AD26: =AC26/$U$70 -> 
B27: 11 | C27: 2018-10-08 | D27: - | E27: 2018-10-14 | F27: 41 | L27: 0 | S27: 0 | T27: 0 | U27: 0
B28: 12 | C28: 2018-10-15 | D28: - | E28: 2018-10-21 | F28: 42 | L28: 0 | S28: 0 | T28: 0 | U28: 0
B29: 13 | C29: 2018-10-22 | D29: - | E29: 2018-10-28 | F29: 43 | L29: 0 | S29: 0 | T29: 0 | U29: 0
B30: 14 | C30: 2018-10-29 | D30: - | E30: 2018-11-04 | F30: 44 | L30: 0 | S30: 0 | T30: 0 | U30: 0
B31: 15 | C31: 2018-11-05 | D31: - | E31: 2018-11-11 | F31: 45 | L31: 0 | S31: 0 | T31: 0 | U31: 0
B32: 16 | C32: 2018-11-12 | D32: - | E32: 2018-11-18 | F32: 46 | L32: 0 | S32: 0 | T32: 0 | U32: 0
B33: 17 | C33: 2018-11-19 | D33: - | E33: 2018-11-25 | F33: 47 | L33: 0 | S33: 0 | T33: 0 | U33: 0
B34: 18 | C34: 2018-11-26 | D34: - | E34: 2018-12-02 | F34: 48 | L34: 0 | S34: 0 | T34: 0 | U34: 0
B35: 19 | C35: 2018-12-03 | D35: - | E35: 2018-12-09 | F35: 49 | L35: 0 | S35: 0 | T35: 0 | U35: 0
B36: 20 | C36: 2018-12-10 | D36: - | E36: 2018-12-16 | F36: 50 | L36: 0 | S36: 0 | T36: 0 | U36: 0
B37: 21 | C37: 2018-12-17 | D37: - | E37: 2018-12-23 | F37: 51 | L37: 0 | S37: 0 | T37: 0 | U37: 0
B38: 22 | C38: 2018-12-24 | D38: - | E38: 2018-12-30 | F38: 52 | L38: 0 | S38: 0 | T38: 0 | U38: 0
B39: 23 | C39: 2018-12-31 | D39: - | E39: 2019-01-06 | F39: 1 | L39: 0 | S39: 0 | T39: 0 | U39: 0
B40: 24 | C40: 2019-01-07 | D40: - | E40: 2019-01-13 | F40: 2 | L40: 0 | S40: 0 | T40: 0 | U40: 0
B41: 25 | C41: 2019-01-14 | D41: - | E41: 2019-01-20 | F41: 3 | L41: 0 | S41: 0 | T41: 0 | U41: 0
B42: 26 | C42: 2019-01-21 | D42: - | E42: 2019-01-27 | F42: 4 | L42: 0 | S42: 0 | T42: 0 | U42: 0
B43: 27 | C43: 2019-01-28 | D43: - | E43: 2019-02-03 | F43: 5 | L43: 0 | S43: 0 | T43: 0 | U43: 0
B44: 28 | C44: 2019-02-04 | D44: - | E44: 2019-02-10 | F44: 6 | L44: 0 | S44: 0 | T44: 0 | U44: 0
B45: 29 | C45: 2019-02-11 | D45: - | E45: 2019-02-17 | F45: 7 | L45: 0 | S45: 0 | T45: 0 | U45: 0
B46: 30 | C46: 2019-02-18 | D46: - | E46: 2019-02-24 | F46: 8 | L46: 0 | S46: 0 | T46: 0 | U46: 0
B47: 31 | C47: 2019-02-25 | D47: - | E47: 2019-03-03 | F47: 9 | L47: 0 | S47: 0 | T47: 0 | U47: 0
B48: 32 | C48: 2019-03-04 | D48: - | E48: 2019-03-10 | F48: 10 | L48: 0 | S48: 0 | T48: 0 | U48: 0
B49: 33 | C49: 2019-03-11 | D49: - | E49: 2019-03-17 | F49: 11 | L49: 0 | S49: 0 | T49: 0 | U49: 0
B50: 34 | C50: 2019-03-18 | D50: - | E50: 2019-03-24 | F50: 12 | L50: 0 | S50: 0 | T50: 0 | U50: 0
B51: 35 | C51: 2019-03-25 | D51: - | E51: 2019-03-31 | F51: 13 | L51: 0 | S51: 0 | T51: 0 | U51: 0
B52: 36 | C52: 2019-04-01 | D52: - | E52: 2019-04-07 | F52: 14 | L52: 0 | S52: 0 | T52: 0 | U52: 0
B53: 37 | C53: 2019-04-08 | D53: - | E53: 2019-04-14 | F53: 15 | L53: 0 | S53: 0 | T53: 0 | U53: 0
B54: 38 | C54: 2019-04-15 | D54: - | E54: 2019-04-21 | F54: 16 | L54: 0 | S54: 0 | T54: 0 | U54: 0
B55: 39 | C55: 2019-04-22 | D55: - | E55: 2019-04-28 | F55: 17 | L55: 0 | S55: 0 | T55: 0 | U55: 0
B56: 40 | C56: 2019-04-29 | D56: - | E56: 2019-05-05 | F56: 18 | L56: 0 | S56: 0 | T56: 0 | U56: 0
B57: 41 | C57: 2019-05-06 | D57: - | E57: 2019-05-12 | F57: 19 | L57: 0 | S57: 0 | T57: 0 | U57: 0
B58: 42 | C58: 2019-05-13 | D58: - | E58: 2019-05-19 | F58: 20 | L58: 0 | S58: 0 | T58: 0 | U58: 0
B59: 43 | C59: 2019-05-20 | D59: - | E59: 2019-05-26 | F59: 21 | L59: 0 | S59: 0 | T59: 0 | U59: 0
B60: 44 | C60: 2019-05-27 | D60: - | E60: 2019-06-02 | F60: 22 | L60: 0 | S60: 0 | T60: 0 | U60: 0
B61: 45 | C61: 2019-06-03 | D61: - | E61: 2019-06-09 | F61: 23 | L61: 0 | S61: 0 | T61: 0 | U61: 0
B62: 46 | C62: 2019-06-10 | D62: - | E62: 2019-06-16 | F62: 24 | L62: 0 | S62: 0 | T62: 0 | U62: 0
B63: 47 | C63: 2019-06-17 | D63: - | E63: 2019-06-23 | F63: 25 | L63: 0 | S63: 0 | T63: 0 | U63: 0
B64: 48 | C64: 2019-06-24 | D64: - | E64: 2019-06-30 | F64: 26 | L64: 0 | S64: 0 | T64: 0 | U64: 0
B65: 49 | C65: 2019-07-01 | D65: - | E65: 2019-07-07 | F65: 27 | L65: 0 | S65: 0 | T65: 0 | U65: 0
B66: 50 | C66: 2019-07-08 | D66: - | E66: 2019-07-14 | F66: 28 | L66: 0 | S66: 0 | T66: 0 | U66: 0
B67: 51 | C67: 2019-07-15 | D67: - | E67: 2019-07-21 | F67: 29 | L67: 0 | S67: 0 | T67: 0 | U67: 0
B68: 52 | C68: 2019-07-22 | D68: - | E68: 2019-07-28 | F68: 30 | L68: 0 | S68: 0 | T68: 0 | U68: 0
H69: =SUM(H17:H68) -> 0 | I69: =SUM(I17:I68) -> 0 | J69: 0 | K69: 0 | L69: 0 | M69: 0 | N69: 0 | O69: 0 | P69: 0 | Q69: 0 | R69: 0 | S69: 0 | T69: 0 | U69: 0
H70: =COUNT(H17:H68)-COUNTIF(H17:H68,0) -> 0 | I70: 0 | J70: 0 | K70: 0 | L70: 0 | M70: 0 | N70: 0 | O70: 0 | P70: 0 | Q70: 0 | R70: 0 | S70: =COUNT(S17:S68)-COUNTIF(S17:S68,0) -> 0 | T70: =COUNT(T17:T68)-COUNTIF(T17:T68,0) -> 0 | U70: =COUNT(U17:U68)-COUNTIF(U17:U68,0) -> 0
B72: Überblick | D72: =TRANSPOSE(F17:G68) -> 31 | E72: 32 | F72: 33 | G72: 34 | H72: 35 | I72: 36 | J72: 37 | K72: 38 | L72: 39 | M72: 40 | N72: 41 | O72: 42 | P72: 43 | Q72: 44 | R72: 45 | S72: 46 | T72: 47 | U72: 48 | V72: 49 | W72: 50 | X72: 51 | Y72: 52 | Z72: 1 | AA72: 2 | AB72: 3 | AC72: 4 | AD72: 5 | AE72: 6 | AF72: 7 | AG72: 8 | AH72: 9 | AI72: 10 | AJ72: 11 | AK72: 12 | AL72: 13 | AM72: 14 | AN72: 15 | AO72: 16 | AP72: 17 | AQ72: 18 | AR72: 19 | AS72: 20 | AT72: 21 | AU72: 22 | AV72: 23 | AW72: 24 | AX72: 25 | AY72: 26 | AZ72: 27 | BA72: 28 | BB72: 29 | BC72: 30
B73: ='31'!AI32 -> Jours d'entrainement | C73: 32 | D73: =INDIRECT(CONCATENATE("'",D$72,"'!$AK",$C73)) ->  | N73: =INDIRECT(CONCATENATE("'",N$72,"'!$AK",$C73)) ->  | X73: =INDIRECT(CONCATENATE("'",X$72,"'!$AK",$C73)) ->  | AH73: =INDIRECT(CONCATENATE("'",AH$72,"'!$AK",$C73)) ->  | AR73: =INDIRECT(CONCATENATE("'",AR$72,"'!$AK",$C73)) -> 
B74: ='31'!AI33 -> Entrainements | C74: 33
B75: ='31'!AI34 -> Heures d'entrainement | C75: 34
B76: ='31'!AI35 -> Charge de l'entrainement | C76: 35
B77: ='31'!AI36 -> Monotonie | C77: 36 | D77: 0 | E77: 0 | F77: 0 | G77: 0 | H77: 0 | I77: 0 | J77: 0 | K77: 0 | L77: 0 | M77: 0 | N77: 0 | O77: 0 | P77: 0 | Q77: 0 | R77: 0 | S77: 0 | T77: 0 | U77: 0 | V77: 0 | W77: 0 | X77: 0 | Y77: 0 | Z77: 0 | AA77: 0 | AB77: 0 | AC77: 0 | AD77: 0 | AE77: 0 | AF77: 0 | AG77: 0 | AH77: 0 | AI77: 0 | AJ77: 0 | AK77: 0 | AL77: 0 | AM77: 0 | AN77: 0 | AO77: 0 | AP77: 0 | AQ77: 0 | AR77: 0 | AS77: 0 | AT77: 0 | AU77: 0 | AV77: 0 | AW77: 0 | AX77: 0 | AY77: 0 | AZ77: 0 | BA77: 0 | BB77: 0 | BC77: 0
B78: ='31'!AI37 -> Efforts à l'entrainement | C78: 37
B79: ='31'!AI40 -> Matchs de volleyball | C79: 40
B80: ='31'!AI41 -> Sets de volleyball | C80: 41
B81: ='31'!AI42 -> Matchs de beach volley | C81: 42
B82: ='31'!AI43 -> Sets de beach volley | C82: 43
B83: Satisfaction avec l'entrainement/la compétition | C83: 46
B84: ='31'!AI49 -> Limitation pour cause de douleurs | C84: 49 | D84: 0 | E84: 0 | F84: 0 | G84: 0 | H84: 0 | I84: 0 | J84: 0 | K84: 0 | L84: 0 | M84: 0 | N84: 0 | O84: 0 | P84: 0 | Q84: 0 | R84: 0 | S84: 0 | T84: 0 | U84: 0 | V84: 0 | W84: 0 | X84: 0 | Y84: 0 | Z84: 0 | AA84: 0 | AB84: 0 | AC84: 0 | AD84: 0 | AE84: 0 | AF84: 0 | AG84: 0 | AH84: 0 | AI84: 0 | AJ84: 0 | AK84: 0 | AL84: 0 | AM84: 0 | AN84: 0 | AO84: 0 | AP84: 0 | AQ84: 0 | AR84: 0 | AS84: 0 | AT84: 0 | AU84: 0 | AV84: 0 | AW84: 0 | AX84: 0 | AY84: 0 | AZ84: 0 | BA84: 0 | BB84: 0 | BC84: 0
B85: ='31'!AI50 -> Absence pour cause de blessure | C85: 50 | D85: 0 | E85: 0 | F85: 0 | G85: 0 | H85: 0 | I85: 0 | J85: 0 | K85: 0 | L85: 0 | M85: 0 | N85: 0 | O85: 0 | P85: 0 | Q85: 0 | R85: 0 | S85: 0 | T85: 0 | U85: 0 | V85: 0 | W85: 0 | X85: 0 | Y85: 0 | Z85: 0 | AA85: 0 | AB85: 0 | AC85: 0 | AD85: 0 | AE85: 0 | AF85: 0 | AG85: 0 | AH85: 0 | AI85: 0 | AJ85: 0 | AK85: 0 | AL85: 0 | AM85: 0 | AN85: 0 | AO85: 0 | AP85: 0 | AQ85: 0 | AR85: 0 | AS85: 0 | AT85: 0 | AU85: 0 | AV85: 0 | AW85: 0 | AX85: 0 | AY85: 0 | AZ85: 0 | BA85: 0 | BB85: 0 | BC85: 0
B86: ='31'!AI51 -> Absence pour cause de maladie | C86: 51 | D86: 0 | E86: 0 | F86: 0 | G86: 0 | H86: 0 | I86: 0 | J86: 0 | K86: 0 | L86: 0 | M86: 0 | N86: 0 | O86: 0 | P86: 0 | Q86: 0 | R86: 0 | S86: 0 | T86: 0 | U86: 0 | V86: 0 | W86: 0 | X86: 0 | Y86: 0 | Z86: 0 | AA86: 0 | AB86: 0 | AC86: 0 | AD86: 0 | AE86: 0 | AF86: 0 | AG86: 0 | AH86: 0 | AI86: 0 | AJ86: 0 | AK86: 0 | AL86: 0 | AM86: 0 | AN86: 0 | AO86: 0 | AP86: 0 | AQ86: 0 | AR86: 0 | AS86: 0 | AT86: 0 | AU86: 0 | AV86: 0 | AW86: 0 | AX86: 0 | AY86: 0 | AZ86: 0 | BA86: 0 | BB86: 0 | BC86: 0
W93: =X93 ->  | X93: =IF(Y93=0,"",Y93) -> 

Sheet Répartition des intensités
A1: Beanspruchungverteilung
D2: Gewicht-Motiv-Schlaf
B3: Athlet : | C3: ='Aperçu de la charge'!D2 -> Prénom Nom | N3: Jahr : | O3: ='Aperçu de la charge'!N2 -> 2018/2019
E6: =F48 -> Club - VB | I6: =I48 -> TS/ Nati - VB | M6: =L48 -> Club - BVB | Q6: =O48 -> TS/ Nati - BVB | U6: =R48 -> Force & fitness | Y6: =U48 -> Compet. - VB | AC6: =X48 -> Compet. - BVB | AH6: Gewünschte Analyse :
E8: Zone | H8: Total | I8: Zone | L8: Total | M8: Zone | P8: Total | Q8: Zone | T8: Total | U8: Zone | X8: Total | Y8: Zone | AB8: Total | AC8: Zone | AF8: Total
E9: 1 | F9: 2 | G9: 3 | I9: 1 | J9: 2 | K9: 3 | M9: 1 | N9: 2 | O9: 3 | Q9: 1 | R9: 2 | S9: 3 | U9: 1 | V9: 2 | W9: 3 | Y9: 1 | Z9: 2 | AA9: 3 | AC9: 1 | AD9: 2 | AE9: 3
D11: Trainingseinheiten | E11: =F102 -> 0 | F11: =G102 -> 0 | G11: =H102 -> 0 | H11: =SUM(E11:G11) -> 0 | I11: =J102 -> 0 | J11: =K102 -> 0 | K11: =L102 -> 0 | L11: =SUM(I11:K11) -> 0 | M11: =L102 -> 0 | N11: =M102 -> 0 | O11: =N102 -> 0 | P11: =SUM(M11:O11) -> 0 | Q11: =O102 -> 0 | R11: =P102 -> 0 | S11: =Q102 -> 0 | T11: =SUM(Q11:S11) -> 0 | U11: =R102 -> 0 | V11: =S102 -> 0 | W11: =T102 -> 0 | X11: =SUM(U11:W11) -> 0 | Y11: =U102 -> 0 | Z11: =V102 -> 0 | AA11: =W102 -> 0 | AB11: =SUM(Y11:AA11) -> 0 | AC11: =X102 -> 0 | AD11: =Y102 -> 0 | AE11: =Z102 -> 0 | AF11: =SUM(AC11:AE11) -> 0 | AI11: Von Trainingswoche : | AM11: 1 | AO11: bis Trainingswoche : | AS11: 52
E12: =E11/$H11 ->  | F12: =F11/$H11 ->  | G12: =G11/$H11 ->  | I12: =I11/$L11 ->  | J12: =J11/$L11 ->  | M12: =M11/$P11 ->  | N12: =N11/$P11 ->  | O12: =O11/$P11 ->  | Q12: =Q11/$T11 ->  | R12: =R11/$T11 ->  | S12: =S11/$T11 ->  | U12: =U11/$X11 ->  | V12: =V11/$X11 ->  | W12: =W11/$X11 ->  | Y12: =Y11/$AB11 ->  | Z12: =Z11/$AB11 ->  | AA12: =AA11/$AB11 ->  | AC12: =AC11/$AF11 ->  | AD12: =AD11/$AF11 ->  | AE12: =AE11/$AF11 -> 
D13: Trainingsstunden | E13: =AD102 -> 0 | F13: =AE102 -> 0 | G13: =AF102 -> 0 | H13: =SUM(E13:G13) -> 0 | I13: =AH102 -> 0 | J13: =AI102 -> 0 | K13: =AJ102 -> 0 | L13: =SUM(I13:K13) -> 0 | M13: =AJ102 -> 0 | N13: =AK102 -> 0 | O13: =AL102 -> 0 | P13: =SUM(M13:O13) -> 0 | Q13: =AM102 -> 0 | R13: =AN102 -> 0 | S13: =AO102 -> 0 | T13: =SUM(Q13:S13) -> 0 | U13: =AP102 -> 0 | V13: =AQ102 -> 0 | W13: =AR102 -> 0 | X13: =SUM(U13:W13) -> 0 | Y13: =AS102 -> 0 | Z13: =AT102 -> 0 | AA13: =AU102 -> 0 | AB13: =SUM(Y13:AA13) -> 0 | AC13: =AV102 -> 0 | AD13: =AW102 -> 0 | AE13: =AX102 -> 0 | AF13: =SUM(AC13:AE13) -> 0
E14: =E13/$H13 ->  | F14: =F13/$H13 ->  | G14: =G13/$H13 ->  | I14: =I13/$L13 ->  | J14: =J13/$L13 ->  | M14: =M13/$P13 ->  | N14: =N13/$P13 ->  | O14: =O13/$P13 ->  | Q14: =Q13/$T13 ->  | R14: =R13/$T13 ->  | S14: =S13/$T13 ->  | U14: =U13/$X13 ->  | V14: =V13/$X13 ->  | W14: =W13/$X13 ->  | Y14: =Y13/$AB13 ->  | Z14: =Z13/$AB13 ->  | AA14: =AA13/$AB13 ->  | AC14: =AC13/$AF13 ->  | AD14: =AD13/$AF13 ->  | AE14: =AE13/$AF13 -> 
AM19: RPE | AP19: Zone | AR19: RPE
AM21: 1-4 | AP21: I | AR21: 1-3
AM22: 5-6 | AP22: II | AR22: 4-5
AM23: 7-10 | AP23: III | AR23: 6-10
AR25: x
C45: Intensitätverteilung | F45: Entrainements | AD45: Heures d'entrainement
A46: Semaine | B46: Semaine | F46: b1 | G46: b2 | H46: b3 | I46: a1 | J46: a2 | K46: a3 | L46: r1 | M46: r2 | N46: r3 | O46: c1 | P46: c2 | Q46: c3 | R46: s1 | S46: s2 | T46: s3 | U46: f1 | V46: f2 | W46: f3 | X46: d1 | Y46: d2 | Z46: d3 | AD46: b1 | AE46: b2 | AF46: b3 | AG46: a1 | AH46: a2 | AI46: a3 | AJ46: r1 | AK46: r2 | AL46: r3 | AM46: c1 | AN46: c2 | AO46: c3 | AP46: s1 | AQ46: s2 | AR46: s3 | AS46: f1 | AT46: f2 | AU46: f3 | AV46: d1 | AW46: d2 | AX46: d3 | AY46: Semaine | AZ46: Semaine
A47: =CONCATENATE(">","=",AM11) -> >=1 | B47: =CONCATENATE("<","=",AS11) -> <=52 | F47: b1 | G47: b2 | H47: b3 | I47: a1 | J47: a2 | K47: a3 | L47: r1 | M47: r2 | N47: r3 | O47: c1 | P47: c2 | Q47: c3 | R47: s1 | S47: s2 | T47: s3 | U47: f1 | V47: f2 | W47: f3 | X47: d1 | Y47: d2 | Z47: d3 | AD47: b1 | AE47: b2 | AF47: b3 | AG47: a1 | AH47: a2 | AI47: a3 | AJ47: r1 | AK47: r2 | AL47: r3 | AM47: c1 | AN47: c2 | AO47: c3 | AP47: s1 | AQ47: s2 | AR47: s3 | AS47: f1 | AT47: f2 | AU47: f3 | AV47: d1 | AW47: d2 | AX47: d3 | AY47: =CONCATENATE(">","=",AM11) -> >=1 | AZ47: =CONCATENATE("<","=",AS11) -> <=52
F48: ='31'!M2 -> Club - VB | I48: ='31'!P2 -> TS/ Nati - VB | L48: ='31'!S2 -> Club - BVB | O48: ='31'!V2 -> TS/ Nati - BVB | R48: Force & fitness | U48: ='31'!AB2 -> Compet. - VB | X48: ='31'!AE2 -> Compet. - BVB | AD48: =F48 -> Club - VB | AG48: =I48 -> TS/ Nati - VB | AJ48: =L48 -> Club - BVB | AM48: =O48 -> TS/ Nati - BVB | AP48: =R48 -> Force & fitness | AS48: =U48 -> Compet. - VB | AV48: =X48 -> Compet. - BVB
A49: Semaine d'entr. | B49: Semaine | F49: I | G49: II | H49: III | I49: I | J49: II | K49: III | L49: I | M49: II | N49: III | O49: I | P49: II | Q49: III | R49: I | S49: II | T49: III | U49: I | V49: II | W49: III | X49: I | Y49: II | Z49: III | AD49: I | AE49: II | AF49: III | AG49: I | AH49: II | AI49: III | AJ49: I | AK49: II | AL49: III | AM49: I | AN49: II | AO49: III | AP49: I | AQ49: II | AR49: III | AS49: I | AT49: II | AU49: III | AV49: I | AW49: II | AX49: III | AY49: =A49 -> Semaine d'entr. | AZ49: =B49 -> Semaine
A50: 1 | B50: ='Aperçu de la charge'!C17 -> 2018-07-30 | C50: - | D50: =B50+6 -> 2018-08-05 | E50: ='Aperçu de la charge'!F17 -> 31 | F50: ='31'!M$27 -> 0 | G50: ='31'!N$27 -> 0 | H50: ='31'!O$27 -> 0 | I50: ='31'!P$27 -> 0 | J50: ='31'!Q$27 -> 0 | K50: ='31'!R$27 -> 0 | L50: ='31'!S$27 -> 0 | M50: ='31'!T$27 -> 0 | N50: ='31'!U$27 -> 0 | O50: ='31'!V$27 -> 0 | P50: ='31'!W$27 -> 0 | Q50: ='31'!X$27 -> 0 | R50: ='31'!Y$27 -> 0 | S50: ='31'!Z$27 -> 0 | T50: ='31'!AA$27 -> 0 | U50: ='31'!AB$27 -> 0 | V50: ='31'!AC$27 -> 0 | W50: ='31'!AD$27 -> 0 | X50: ='31'!AE$27 -> 0 | Y50: ='31'!AF$27 -> 0 | Z50: ='31'!AG$27 -> 0 | AD50: ='31'!M$28 -> 0 | AE50: ='31'!N$28 -> 0 | AF50: ='31'!O$28 -> 0 | AG50: ='31'!P$28 -> 0 | AH50: ='31'!Q$28 -> 0 | AI50: ='31'!R$28 -> 0 | AJ50: ='31'!S$28 -> 0 | AK50: ='31'!T$28 -> 0 | AL50: ='31'!U$28 -> 0 | AM50: ='31'!V$28 -> 0 | AN50: ='31'!W$28 -> 0 | AO50: ='31'!X$28 -> 0 | AP50: ='31'!Y$28 -> 0 | AQ50: ='31'!Z$28 -> 0 | AR50: ='31'!AA$28 -> 0 | AS50: ='31'!AB$28 -> 0 | AT50: ='31'!AC$28 -> 0 | AU50: ='31'!AD$28 -> 0 | AV50: ='31'!AE$28 -> 0 | AW50: ='31'!AF$28 -> 0 | AX50: ='31'!AG$28 -> 0 | AY50: 1 | AZ50: 2018-07-30 | BA50: =C50 -> - | BB50: =D50 -> 2018-08-05 | BC50: =E50 -> 31
A51: 2 | B51: =B50+7 -> 2018-08-06 | C51: - | D51: =D50+7 -> 2018-08-12 | E51: ='Aperçu de la charge'!F18 -> 32 | F51: ='32'!M$27 -> 0 | G51: ='32'!N$27 -> 0 | H51: ='32'!O$27 -> 0 | I51: ='32'!P$27 -> 0 | J51: ='32'!Q$27 -> 0 | K51: ='32'!R$27 -> 0 | L51: ='32'!S$27 -> 0 | M51: ='32'!T$27 -> 0 | N51: ='32'!U$27 -> 0 | O51: ='32'!V$27 -> 0 | P51: ='32'!W$27 -> 0 | Q51: ='32'!X$27 -> 0 | R51: ='32'!Y$27 -> 0 | S51: ='32'!Z$27 -> 0 | T51: ='32'!AA$27 -> 0 | U51: ='32'!AB$27 -> 0 | V51: ='32'!AC$27 -> 0 | W51: ='32'!AD$27 -> 0 | X51: ='32'!AE$27 -> 0 | Y51: ='32'!AF$27 -> 0 | Z51: ='32'!AG$27 -> 0 | AD51: ='32'!M$28 -> 0 | AE51: ='32'!N$28 -> 0 | AF51: ='32'!O$28 -> 0 | AG51: ='32'!P$28 -> 0 | AH51: ='32'!Q$28 -> 0 | AI51: ='32'!R$28 -> 0 | AJ51: ='32'!S$28 -> 0 | AK51: ='32'!T$28 -> 0 | AL51: ='32'!U$28 -> 0 | AM51: ='32'!V$28 -> 0 | AN51: ='32'!W$28 -> 0 | AO51: ='32'!X$28 -> 0 | AP51: ='32'!Y$28 -> 0 | AQ51: ='32'!Z$28 -> 0 | AR51: ='32'!AA$28 -> 0 | AS51: ='32'!AB$28 -> 0 | AT51: ='32'!AC$28 -> 0 | AU51: ='32'!AD$28 -> 0 | AV51: ='32'!AE$28 -> 0 | AW51: ='32'!AF$28 -> 0 | AX51: ='32'!AG$28 -> 0 | AY51: 2 | AZ51: 2018-08-06 | BA51: - | BB51: 2018-08-12 | BC51: 32
A52: 3 | B52: =B51+7 -> 2018-08-13 | C52: - | D52: =D51+7 -> 2018-08-19 | E52: ='Aperçu de la charge'!F19 -> 33 | F52: ='33'!M$27 -> 0 | G52: ='33'!N$27 -> 0 | H52: ='33'!O$27 -> 0 | I52: ='33'!P$27 -> 0 | J52: ='33'!Q$27 -> 0 | K52: ='33'!R$27 -> 0 | L52: ='33'!S$27 -> 0 | M52: ='33'!T$27 -> 0 | N52: ='33'!U$27 -> 0 | O52: ='33'!V$27 -> 0 | P52: ='33'!W$27 -> 0 | Q52: ='33'!X$27 -> 0 | R52: ='33'!Y$27 -> 0 | S52: ='33'!Z$27 -> 0 | T52: ='33'!AA$27 -> 0 | U52: ='33'!AB$27 -> 0 | V52: ='33'!AC$27 -> 0 | W52: ='33'!AD$27 -> 0 | X52: ='33'!AE$27 -> 0 | Y52: ='33'!AF$27 -> 0 | Z52: ='33'!AG$27 -> 0 | AD52: ='33'!M$28 -> 0 | AE52: ='33'!N$28 -> 0 | AF52: ='33'!O$28 -> 0 | AG52: ='33'!P$28 -> 0 | AH52: ='33'!Q$28 -> 0 | AI52: ='33'!R$28 -> 0 | AJ52: ='33'!S$28 -> 0 | AK52: ='33'!T$28 -> 0 | AL52: ='33'!U$28 -> 0 | AM52: ='33'!V$28 -> 0 | AN52: ='33'!W$28 -> 0 | AO52: ='33'!X$28 -> 0 | AP52: ='33'!Y$28 -> 0 | AQ52: ='33'!Z$28 -> 0 | AR52: ='33'!AA$28 -> 0 | AS52: ='33'!AB$28 -> 0 | AT52: ='33'!AC$28 -> 0 | AU52: ='33'!AD$28 -> 0 | AV52: ='33'!AE$28 -> 0 | AW52: ='33'!AF$28 -> 0 | AX52: ='33'!AG$28 -> 0 | AY52: 3 | AZ52: 2018-08-13 | BA52: - | BB52: 2018-08-19 | BC52: 33
A53: 4 | B53: =B52+7 -> 2018-08-20 | C53: - | D53: =D52+7 -> 2018-08-26 | E53: ='Aperçu de la charge'!F20 -> 34 | F53: ='34'!M$27 -> 0 | G53: ='34'!N$27 -> 0 | H53: ='34'!O$27 -> 0 | I53: ='34'!P$27 -> 0 | J53: ='34'!Q$27 -> 0 | K53: ='34'!R$27 -> 0 | L53: ='34'!S$27 -> 0 | M53: ='34'!T$27 -> 0 | N53: ='34'!U$27 -> 0 | O53: ='34'!V$27 -> 0 | P53: ='34'!W$27 -> 0 | Q53: ='34'!X$27 -> 0 | R53: ='34'!Y$27 -> 0 | S53: ='34'!Z$27 -> 0 | T53: ='34'!AA$27 -> 0 | U53: ='34'!AB$27 -> 0 | V53: ='34'!AC$27 -> 0 | W53: ='34'!AD$27 -> 0 | X53: ='34'!AE$27 -> 0 | Y53: ='34'!AF$27 -> 0 | Z53: ='34'!AG$27 -> 0 | AD53: ='34'!M$28 -> 0 | AE53: ='34'!N$28 -> 0 | AF53: ='34'!O$28 -> 0 | AG53: ='34'!P$28 -> 0 | AH53: ='34'!Q$28 -> 0 | AI53: ='34'!R$28 -> 0 | AJ53: ='34'!S$28 -> 0 | AK53: ='34'!T$28 -> 0 | AL53: ='34'!U$28 -> 0 | AM53: ='34'!V$28 -> 0 | AN53: ='34'!W$28 -> 0 | AO53: ='34'!X$28 -> 0 | AP53: ='34'!Y$28 -> 0 | AQ53: ='34'!Z$28 -> 0 | AR53: ='34'!AA$28 -> 0 | AS53: ='34'!AB$28 -> 0 | AT53: ='34'!AC$28 -> 0 | AU53: ='34'!AD$28 -> 0 | AV53: ='34'!AE$28 -> 0 | AW53: ='34'!AF$28 -> 0 | AX53: ='34'!AG$28 -> 0 | AY53: 4 | AZ53: 2018-08-20 | BA53: - | BB53: 2018-08-26 | BC53: 34
A54: 5 | B54: =B53+7 -> 2018-08-27 | C54: - | D54: =D53+7 -> 2018-09-02 | E54: ='Aperçu de la charge'!F21 -> 35 | F54: ='35'!M$27 -> 0 | G54: ='35'!N$27 -> 0 | H54: ='35'!O$27 -> 0 | I54: ='35'!P$27 -> 0 | J54: ='35'!Q$27 -> 0 | K54: ='35'!R$27 -> 0 | L54: ='35'!S$27 -> 0 | M54: ='35'!T$27 -> 0 | N54: ='35'!U$27 -> 0 | O54: ='35'!V$27 -> 0 | P54: ='35'!W$27 -> 0 | Q54: ='35'!X$27 -> 0 | R54: ='35'!Y$27 -> 0 | S54: ='35'!Z$27 -> 0 | T54: ='35'!AA$27 -> 0 | U54: ='35'!AB$27 -> 0 | V54: ='35'!AC$27 -> 0 | W54: ='35'!AD$27 -> 0 | X54: ='35'!AE$27 -> 0 | Y54: ='35'!AF$27 -> 0 | Z54: ='35'!AG$27 -> 0 | AD54: ='35'!M$28 -> 0 | AE54: ='35'!N$28 -> 0 | AF54: ='35'!O$28 -> 0 | AG54: ='35'!P$28 -> 0 | AH54: ='35'!Q$28 -> 0 | AI54: ='35'!R$28 -> 0 | AJ54: ='35'!S$28 -> 0 | AK54: ='35'!T$28 -> 0 | AL54: ='35'!U$28 -> 0 | AM54: ='35'!V$28 -> 0 | AN54: ='35'!W$28 -> 0 | AO54: ='35'!X$28 -> 0 | AP54: ='35'!Y$28 -> 0 | AQ54: ='35'!Z$28 -> 0 | AR54: ='35'!AA$28 -> 0 | AS54: ='35'!AB$28 -> 0 | AT54: ='35'!AC$28 -> 0 | AU54: ='35'!AD$28 -> 0 | AV54: ='35'!AE$28 -> 0 | AW54: ='35'!AF$28 -> 0 | AX54: ='35'!AG$28 -> 0 | AY54: 5 | AZ54: 2018-08-27 | BA54: - | BB54: 2018-09-02 | BC54: 35
A55: 6 | B55: =B54+7 -> 2018-09-03 | C55: - | D55: =D54+7 -> 2018-09-09 | E55: ='Aperçu de la charge'!F22 -> 36 | F55: ='36'!M$27 -> 0 | G55: ='36'!N$27 -> 0 | H55: ='36'!O$27 -> 0 | I55: ='36'!P$27 -> 0 | J55: ='36'!Q$27 -> 0 | K55: ='36'!R$27 -> 0 | L55: ='36'!S$27 -> 0 | M55: ='36'!T$27 -> 0 | N55: ='36'!U$27 -> 0 | O55: ='36'!V$27 -> 0 | P55: ='36'!W$27 -> 0 | Q55: ='36'!X$27 -> 0 | R55: ='36'!Y$27 -> 0 | S55: ='36'!Z$27 -> 0 | T55: ='36'!AA$27 -> 0 | U55: ='36'!AB$27 -> 0 | V55: ='36'!AC$27 -> 0 | W55: ='36'!AD$27 -> 0 | X55: ='36'!AE$27 -> 0 | Y55: ='36'!AF$27 -> 0 | Z55: ='36'!AG$27 -> 0 | AD55: ='36'!M$28 -> 0 | AE55: ='36'!N$28 -> 0 | AF55: ='36'!O$28 -> 0 | AG55: ='36'!P$28 -> 0 | AH55: ='36'!Q$28 -> 0 | AI55: ='36'!R$28 -> 0 | AJ55: ='36'!S$28 -> 0 | AK55: ='36'!T$28 -> 0 | AL55: ='36'!U$28 -> 0 | AM55: ='36'!V$28 -> 0 | AN55: ='36'!W$28 -> 0 | AO55: ='36'!X$28 -> 0 | AP55: ='36'!Y$28 -> 0 | AQ55: ='36'!Z$28 -> 0 | AR55: ='36'!AA$28 -> 0 | AS55: ='36'!AB$28 -> 0 | AT55: ='36'!AC$28 -> 0 | AU55: ='36'!AD$28 -> 0 | AV55: ='36'!AE$28 -> 0 | AW55: ='36'!AF$28 -> 0 | AX55: ='36'!AG$28 -> 0 | AY55: 6 | AZ55: 2018-09-03 | BA55: - | BB55: 2018-09-09 | BC55: 36
A56: 7 | B56: 2018-09-10 | C56: - | D56: 2018-09-16 | E56: ='Aperçu de la charge'!F23 -> 37 | F56: ='37'!M$27 -> 0 | G56: ='37'!N$27 -> 0 | H56: ='37'!O$27 -> 0 | I56: ='37'!P$27 -> 0 | J56: ='37'!Q$27 -> 0 | K56: ='37'!R$27 -> 0 | L56: ='37'!S$27 -> 0 | M56: ='37'!T$27 -> 0 | N56: ='37'!U$27 -> 0 | O56: ='37'!V$27 -> 0 | P56: ='37'!W$27 -> 0 | Q56: ='37'!X$27 -> 0 | R56: ='37'!Y$27 -> 0 | S56: ='37'!Z$27 -> 0 | T56: ='37'!AA$27 -> 0 | U56: ='37'!AB$27 -> 0 | V56: ='37'!AC$27 -> 0 | W56: ='37'!AD$27 -> 0 | X56: ='37'!AE$27 -> 0 | Y56: ='37'!AF$27 -> 0 | Z56: ='37'!AG$27 -> 0 | AD56: ='37'!M$28 -> 0 | AE56: ='37'!N$28 -> 0 | AF56: ='37'!O$28 -> 0 | AG56: ='37'!P$28 -> 0 | AH56: ='37'!Q$28 -> 0 | AI56: ='37'!R$28 -> 0 | AJ56: ='37'!S$28 -> 0 | AK56: ='37'!T$28 -> 0 | AL56: ='37'!U$28 -> 0 | AM56: ='37'!V$28 -> 0 | AN56: ='37'!W$28 -> 0 | AO56: ='37'!X$28 -> 0 | AP56: ='37'!Y$28 -> 0 | AQ56: ='37'!Z$28 -> 0 | AR56: ='37'!AA$28 -> 0 | AS56: ='37'!AB$28 -> 0 | AT56: ='37'!AC$28 -> 0 | AU56: ='37'!AD$28 -> 0 | AV56: ='37'!AE$28 -> 0 | AW56: ='37'!AF$28 -> 0 | AX56: ='37'!AG$28 -> 0 | AY56: 7 | AZ56: 2018-09-10 | BA56: - | BB56: 2018-09-16 | BC56: 37
A57: 8 | B57: 2018-09-17 | C57: - | D57: 2018-09-23 | E57: ='Aperçu de la charge'!F24 -> 38 | F57: ='38'!M$27 -> 0 | G57: ='38'!N$27 -> 0 | H57: ='38'!O$27 -> 0 | I57: ='38'!P$27 -> 0 | J57: ='38'!Q$27 -> 0 | K57: ='38'!R$27 -> 0 | L57: ='38'!S$27 -> 0 | M57: ='38'!T$27 -> 0 | N57: ='38'!U$27 -> 0 | O57: ='38'!V$27 -> 0 | P57: ='38'!W$27 -> 0 | Q57: ='38'!X$27 -> 0 | R57: ='38'!Y$27 -> 0 | S57: ='38'!Z$27 -> 0 | T57: ='38'!AA$27 -> 0 | U57: ='38'!AB$27 -> 0 | V57: ='38'!AC$27 -> 0 | W57: ='38'!AD$27 -> 0 | X57: ='38'!AE$27 -> 0 | Y57: ='38'!AF$27 -> 0 | Z57: ='38'!AG$27 -> 0 | AD57: ='38'!M$28 -> 0 | AE57: ='38'!N$28 -> 0 | AF57: ='38'!O$28 -> 0 | AG57: ='38'!P$28 -> 0 | AH57: ='38'!Q$28 -> 0 | AI57: ='38'!R$28 -> 0 | AJ57: ='38'!S$28 -> 0 | AK57: ='38'!T$28 -> 0 | AL57: ='38'!U$28 -> 0 | AM57: ='38'!V$28 -> 0 | AN57: ='38'!W$28 -> 0 | AO57: ='38'!X$28 -> 0 | AP57: ='38'!Y$28 -> 0 | AQ57: ='38'!Z$28 -> 0 | AR57: ='38'!AA$28 -> 0 | AS57: ='38'!AB$28 -> 0 | AT57: ='38'!AC$28 -> 0 | AU57: ='38'!AD$28 -> 0 | AV57: ='38'!AE$28 -> 0 | AW57: ='38'!AF$28 -> 0 | AX57: ='38'!AG$28 -> 0 | AY57: 8 | AZ57: 2018-09-17 | BA57: - | BB57: 2018-09-23 | BC57: 38
A58: 9 | B58: 2018-09-24 | C58: - | D58: 2018-09-30 | E58: ='Aperçu de la charge'!F25 -> 39 | F58: ='39'!M$27 -> 0 | G58: ='39'!N$27 -> 0 | H58: ='39'!O$27 -> 0 | I58: ='39'!P$27 -> 0 | J58: ='39'!Q$27 -> 0 | K58: ='39'!R$27 -> 0 | L58: ='39'!S$27 -> 0 | M58: ='39'!T$27 -> 0 | N58: ='39'!U$27 -> 0 | O58: ='39'!V$27 -> 0 | P58: ='39'!W$27 -> 0 | Q58: ='39'!X$27 -> 0 | R58: ='39'!Y$27 -> 0 | S58: ='39'!Z$27 -> 0 | T58: ='39'!AA$27 -> 0 | U58: ='39'!AB$27 -> 0 | V58: ='39'!AC$27 -> 0 | W58: ='39'!AD$27 -> 0 | X58: ='39'!AE$27 -> 0 | Y58: ='39'!AF$27 -> 0 | Z58: ='39'!AG$27 -> 0 | AD58: ='39'!M$28 -> 0 | AE58: ='39'!N$28 -> 0 | AF58: ='39'!O$28 -> 0 | AG58: ='39'!P$28 -> 0 | AH58: ='39'!Q$28 -> 0 | AI58: ='39'!R$28 -> 0 | AJ58: ='39'!S$28 -> 0 | AK58: ='39'!T$28 -> 0 | AL58: ='39'!U$28 -> 0 | AM58: ='39'!V$28 -> 0 | AN58: ='39'!W$28 -> 0 | AO58: ='39'!X$28 -> 0 | AP58: ='39'!Y$28 -> 0 | AQ58: ='39'!Z$28 -> 0 | AR58: ='39'!AA$28 -> 0 | AS58: ='39'!AB$28 -> 0 | AT58: ='39'!AC$28 -> 0 | AU58: ='39'!AD$28 -> 0 | AV58: ='39'!AE$28 -> 0 | AW58: ='39'!AF$28 -> 0 | AX58: ='39'!AG$28 -> 0 | AY58: 9 | AZ58: 2018-09-24 | BA58: - | BB58: 2018-09-30 | BC58: 39
A59: 10 | B59: 2018-10-01 | C59: - | D59: 2018-10-07 | E59: ='Aperçu de la charge'!F26 -> 40 | F59: ='40'!M$27 -> 0 | G59: ='40'!N$27 -> 0 | H59: ='40'!O$27 -> 0 | I59: ='40'!P$27 -> 0 | J59: ='40'!Q$27 -> 0 | K59: ='40'!R$27 -> 0 | L59: ='40'!S$27 -> 0 | M59: ='40'!T$27 -> 0 | N59: ='40'!U$27 -> 0 | O59: ='40'!V$27 -> 0 | P59: ='40'!W$27 -> 0 | Q59: ='40'!X$27 -> 0 | R59: ='40'!Y$27 -> 0 | S59: ='40'!Z$27 -> 0 | T59: ='40'!AA$27 -> 0 | U59: ='40'!AB$27 -> 0 | V59: ='40'!AC$27 -> 0 | W59: ='40'!AD$27 -> 0 | X59: ='40'!AE$27 -> 0 | Y59: ='40'!AF$27 -> 0 | Z59: ='40'!AG$27 -> 0 | AD59: ='40'!M$28 -> 0 | AE59: ='40'!N$28 -> 0 | AF59: ='40'!O$28 -> 0 | AG59: ='40'!P$28 -> 0 | AH59: ='40'!Q$28 -> 0 | AI59: ='40'!R$28 -> 0 | AJ59: ='40'!S$28 -> 0 | AK59: ='40'!T$28 -> 0 | AL59: ='40'!U$28 -> 0 | AM59: ='40'!V$28 -> 0 | AN59: ='40'!W$28 -> 0 | AO59: ='40'!X$28 -> 0 | AP59: ='40'!Y$28 -> 0 | AQ59: ='40'!Z$28 -> 0 | AR59: ='40'!AA$28 -> 0 | AS59: ='40'!AB$28 -> 0 | AT59: ='40'!AC$28 -> 0 | AU59: ='40'!AD$28 -> 0 | AV59: ='40'!AE$28 -> 0 | AW59: ='40'!AF$28 -> 0 | AX59: ='40'!AG$28 -> 0 | AY59: 10 | AZ59: 2018-10-01 | BA59: - | BB59: 2018-10-07 | BC59: 40
A60: 11 | B60: 2018-10-08 | C60: - | D60: 2018-10-14 | E60: ='Aperçu de la charge'!F27 -> 41 | F60: ='41'!M$27 -> 0 | G60: ='41'!N$27 -> 0 | H60: ='41'!O$27 -> 0 | I60: ='41'!P$27 -> 0 | J60: ='41'!Q$27 -> 0 | K60: ='41'!R$27 -> 0 | L60: ='41'!S$27 -> 0 | M60: ='41'!T$27 -> 0 | N60: ='41'!U$27 -> 0 | O60: ='41'!V$27 -> 0 | P60: ='41'!W$27 -> 0 | Q60: ='41'!X$27 -> 0 | R60: ='41'!Y$27 -> 0 | S60: ='41'!Z$27 -> 0 | T60: ='41'!AA$27 -> 0 | U60: ='41'!AB$27 -> 0 | V60: ='41'!AC$27 -> 0 | W60: ='41'!AD$27 -> 0 | X60: ='41'!AE$27 -> 0 | Y60: ='41'!AF$27 -> 0 | Z60: ='41'!AG$27 -> 0 | AD60: ='41'!M$28 -> 0 | AE60: ='41'!N$28 -> 0 | AF60: ='41'!O$28 -> 0 | AG60: ='41'!P$28 -> 0 | AH60: ='41'!Q$28 -> 0 | AI60: ='41'!R$28 -> 0 | AJ60: ='41'!S$28 -> 0 | AK60: ='41'!T$28 -> 0 | AL60: ='41'!U$28 -> 0 | AM60: ='41'!V$28 -> 0 | AN60: ='41'!W$28 -> 0 | AO60: ='41'!X$28 -> 0 | AP60: ='41'!Y$28 -> 0 | AQ60: ='41'!Z$28 -> 0 | AR60: ='41'!AA$28 -> 0 | AS60: ='41'!AB$28 -> 0 | AT60: ='41'!AC$28 -> 0 | AU60: ='41'!AD$28 -> 0 | AV60: ='41'!AE$28 -> 0 | AW60: ='41'!AF$28 -> 0 | AX60: ='41'!AG$28 -> 0 | AY60: 11 | AZ60: 2018-10-08 | BA60: - | BB60: 2018-10-14 | BC60: 41
A61: 12 | B61: 2018-10-15 | C61: - | D61: 2018-10-21 | E61: ='Aperçu de la charge'!F28 -> 42 | F61: ='42'!M$27 -> 0 | G61: ='42'!N$27 -> 0 | H61: ='42'!O$27 -> 0 | I61: ='42'!P$27 -> 0 | J61: ='42'!Q$27 -> 0 | K61: ='42'!R$27 -> 0 | L61: ='42'!S$27 -> 0 | M61: ='42'!T$27 -> 0 | N61: ='42'!U$27 -> 0 | O61: ='42'!V$27 -> 0 | P61: ='42'!W$27 -> 0 | Q61: ='42'!X$27 -> 0 | R61: ='42'!Y$27 -> 0 | S61: ='42'!Z$27 -> 0 | T61: ='42'!AA$27 -> 0 | U61: ='42'!AB$27 -> 0 | V61: ='42'!AC$27 -> 0 | W61: ='42'!AD$27 -> 0 | X61: ='42'!AE$27 -> 0 | Y61: ='42'!AF$27 -> 0 | Z61: ='42'!AG$27 -> 0 | AD61: ='42'!M$28 -> 0 | AE61: ='42'!N$28 -> 0 | AF61: ='42'!O$28 -> 0 | AG61: ='42'!P$28 -> 0 | AH61: ='42'!Q$28 -> 0 | AI61: ='42'!R$28 -> 0 | AJ61: ='42'!S$28 -> 0 | AK61: ='42'!T$28 -> 0 | AL61: ='42'!U$28 -> 0 | AM61: ='42'!V$28 -> 0 | AN61: ='42'!W$28 -> 0 | AO61: ='42'!X$28 -> 0 | AP61: ='42'!Y$28 -> 0 | AQ61: ='42'!Z$28 -> 0 | AR61: ='42'!AA$28 -> 0 | AS61: ='42'!AB$28 -> 0 | AT61: ='42'!AC$28 -> 0 | AU61: ='42'!AD$28 -> 0 | AV61: ='42'!AE$28 -> 0 | AW61: ='42'!AF$28 -> 0 | AX61: ='42'!AG$28 -> 0 | AY61: 12 | AZ61: 2018-10-15 | BA61: - | BB61: 2018-10-21 | BC61: 42
A62: 13 | B62: 2018-10-22 | C62: - | D62: 2018-10-28 | E62: ='Aperçu de la charge'!F29 -> 43 | F62: ='43'!M$27 -> 0 | G62: ='43'!N$27 -> 0 | H62: ='43'!O$27 -> 0 | I62: ='43'!P$27 -> 0 | J62: ='43'!Q$27 -> 0 | K62: ='43'!R$27 -> 0 | L62: ='43'!S$27 -> 0 | M62: ='43'!T$27 -> 0 | N62: ='43'!U$27 -> 0 | O62: ='43'!V$27 -> 0 | P62: ='43'!W$27 -> 0 | Q62: ='43'!X$27 -> 0 | R62: ='43'!Y$27 -> 0 | S62: ='43'!Z$27 -> 0 | T62: ='43'!AA$27 -> 0 | U62: ='43'!AB$27 -> 0 | V62: ='43'!AC$27 -> 0 | W62: ='43'!AD$27 -> 0 | X62: ='43'!AE$27 -> 0 | Y62: ='43'!AF$27 -> 0 | Z62: ='43'!AG$27 -> 0 | AD62: ='43'!M$28 -> 0 | AE62: ='43'!N$28 -> 0 | AF62: ='43'!O$28 -> 0 | AG62: ='43'!P$28 -> 0 | AH62: ='43'!Q$28 -> 0 | AI62: ='43'!R$28 -> 0 | AJ62: ='43'!S$28 -> 0 | AK62: ='43'!T$28 -> 0 | AL62: ='43'!U$28 -> 0 | AM62: ='43'!V$28 -> 0 | AN62: ='43'!W$28 -> 0 | AO62: ='43'!X$28 -> 0 | AP62: ='43'!Y$28 -> 0 | AQ62: ='43'!Z$28 -> 0 | AR62: ='43'!AA$28 -> 0 | AS62: ='43'!AB$28 -> 0 | AT62: ='43'!AC$28 -> 0 | AU62: ='43'!AD$28 -> 0 | AV62: ='43'!AE$28 -> 0 | AW62: ='43'!AF$28 -> 0 | AX62: ='43'!AG$28 -> 0 | AY62: 13 | AZ62: 2018-10-22 | BA62: - | BB62: 2018-10-28 | BC62: 43
A63: 14 | B63: 2018-10-29 | C63: - | D63: 2018-11-04 | E63: ='Aperçu de la charge'!F30 -> 44 | F63: ='44'!M$27 -> 0 | G63: ='44'!N$27 -> 0 | H63: ='44'!O$27 -> 0 | I63: ='44'!P$27 -> 0 | J63: ='44'!Q$27 -> 0 | K63: ='44'!R$27 -> 0 | L63: ='44'!S$27 -> 0 | M63: ='44'!T$27 -> 0 | N63: ='44'!U$27 -> 0 | O63: ='44'!V$27 -> 0 | P63: ='44'!W$27 -> 0 | Q63: ='44'!X$27 -> 0 | R63: ='44'!Y$27 -> 0 | S63: ='44'!Z$27 -> 0 | T63: ='44'!AA$27 -> 0 | U63: ='44'!AB$27 -> 0 | V63: ='44'!AC$27 -> 0 | W63: ='44'!AD$27 -> 0 | X63: ='44'!AE$27 -> 0 | Y63: ='44'!AF$27 -> 0 | Z63: ='44'!AG$27 -> 0 | AD63: ='44'!M$28 -> 0 | AE63: ='44'!N$28 -> 0 | AF63: ='44'!O$28 -> 0 | AG63: ='44'!P$28 -> 0 | AH63: ='44'!Q$28 -> 0 | AI63: ='44'!R$28 -> 0 | AJ63: ='44'!S$28 -> 0 | AK63: ='44'!T$28 -> 0 | AL63: ='44'!U$28 -> 0 | AM63: ='44'!V$28 -> 0 | AN63: ='44'!W$28 -> 0 | AO63: ='44'!X$28 -> 0 | AP63: ='44'!Y$28 -> 0 | AQ63: ='44'!Z$28 -> 0 | AR63: ='44'!AA$28 -> 0 | AS63: ='44'!AB$28 -> 0 | AT63: ='44'!AC$28 -> 0 | AU63: ='44'!AD$28 -> 0 | AV63: ='44'!AE$28 -> 0 | AW63: ='44'!AF$28 -> 0 | AX63: ='44'!AG$28 -> 0 | AY63: 14 | AZ63: 2018-10-29 | BA63: - | BB63: 2018-11-04 | BC63: 44
A64: 15 | B64: 2018-11-05 | C64: - | D64: 2018-11-11 | E64: ='Aperçu de la charge'!F31 -> 45 | F64: ='45'!M$27 -> 0 | G64: ='45'!N$27 -> 0 | H64: ='45'!O$27 -> 0 | I64: ='45'!P$27 -> 0 | J64: ='45'!Q$27 -> 0 | K64: ='45'!R$27 -> 0 | L64: ='45'!S$27 -> 0 | M64: ='45'!T$27 -> 0 | N64: ='45'!U$27 -> 0 | O64: ='45'!V$27 -> 0 | P64: ='45'!W$27 -> 0 | Q64: ='45'!X$27 -> 0 | R64: ='45'!Y$27 -> 0 | S64: ='45'!Z$27 -> 0 | T64: ='45'!AA$27 -> 0 | U64: ='45'!AB$27 -> 0 | V64: ='45'!AC$27 -> 0 | W64: ='45'!AD$27 -> 0 | X64: ='45'!AE$27 -> 0 | Y64: ='45'!AF$27 -> 0 | Z64: ='45'!AG$27 -> 0 | AD64: ='45'!M$28 -> 0 | AE64: ='45'!N$28 -> 0 | AF64: ='45'!O$28 -> 0 | AG64: ='45'!P$28 -> 0 | AH64: ='45'!Q$28 -> 0 | AI64: ='45'!R$28 -> 0 | AJ64: ='45'!S$28 -> 0 | AK64: ='45'!T$28 -> 0 | AL64: ='45'!U$28 -> 0 | AM64: ='45'!V$28 -> 0 | AN64: ='45'!W$28 -> 0 | AO64: ='45'!X$28 -> 0 | AP64: ='45'!Y$28 -> 0 | AQ64: ='45'!Z$28 -> 0 | AR64: ='45'!AA$28 -> 0 | AS64: ='45'!AB$28 -> 0 | AT64: ='45'!AC$28 -> 0 | AU64: ='45'!AD$28 -> 0 | AV64: ='45'!AE$28 -> 0 | AW64: ='45'!AF$28 -> 0 | AX64: ='45'!AG$28 -> 0 | AY64: 15 | AZ64: 2018-11-05 | BA64: - | BB64: 2018-11-11 | BC64: 45
A65: 16 | B65: 2018-11-12 | C65: - | D65: 2018-11-18 | E65: ='Aperçu de la charge'!F32 -> 46 | F65: ='46'!M$27 -> 0 | G65: ='46'!N$27 -> 0 | H65: ='46'!O$27 -> 0 | I65: ='46'!P$27 -> 0 | J65: ='46'!Q$27 -> 0 | K65: ='46'!R$27 -> 0 | L65: ='46'!S$27 -> 0 | M65: ='46'!T$27 -> 0 | N65: ='46'!U$27 -> 0 | O65: ='46'!V$27 -> 0 | P65: ='46'!W$27 -> 0 | Q65: ='46'!X$27 -> 0 | R65: ='46'!Y$27 -> 0 | S65: ='46'!Z$27 -> 0 | T65: ='46'!AA$27 -> 0 | U65: ='46'!AB$27 -> 0 | V65: ='46'!AC$27 -> 0 | W65: ='46'!AD$27 -> 0 | X65: ='46'!AE$27 -> 0 | Y65: ='46'!AF$27 -> 0 | Z65: ='46'!AG$27 -> 0 | AD65: ='46'!M$28 -> 0 | AE65: ='46'!N$28 -> 0 | AF65: ='46'!O$28 -> 0 | AG65: ='46'!P$28 -> 0 | AH65: ='46'!Q$28 -> 0 | AI65: ='46'!R$28 -> 0 | AJ65: ='46'!S$28 -> 0 | AK65: ='46'!T$28 -> 0 | AL65: ='46'!U$28 -> 0 | AM65: ='46'!V$28 -> 0 | AN65: ='46'!W$28 -> 0 | AO65: ='46'!X$28 -> 0 | AP65: ='46'!Y$28 -> 0 | AQ65: ='46'!Z$28 -> 0 | AR65: ='46'!AA$28 -> 0 | AS65: ='46'!AB$28 -> 0 | AT65: ='46'!AC$28 -> 0 | AU65: ='46'!AD$28 -> 0 | AV65: ='46'!AE$28 -> 0 | AW65: ='46'!AF$28 -> 0 | AX65: ='46'!AG$28 -> 0 | AY65: 16 | AZ65: 2018-11-12 | BA65: - | BB65: 2018-11-18 | BC65: 46
A66: 17 | B66: 2018-11-19 | C66: - | D66: 2018-11-25 | E66: ='Aperçu de la charge'!F33 -> 47 | F66: ='47'!M$27 -> 0 | G66: ='47'!N$27 -> 0 | H66: ='47'!O$27 -> 0 | I66: ='47'!P$27 -> 0 | J66: ='47'!Q$27 -> 0 | K66: ='47'!R$27 -> 0 | L66: ='47'!S$27 -> 0 | M66: ='47'!T$27 -> 0 | N66: ='47'!U$27 -> 0 | O66: ='47'!V$27 -> 0 | P66: ='47'!W$27 -> 0 | Q66: ='47'!X$27 -> 0 | R66: ='47'!Y$27 -> 0 | S66: ='47'!Z$27 -> 0 | T66: ='47'!AA$27 -> 0 | U66: ='47'!AB$27 -> 0 | V66: ='47'!AC$27 -> 0 | W66: ='47'!AD$27 -> 0 | X66: ='47'!AE$27 -> 0 | Y66: ='47'!AF$27 -> 0 | Z66: ='47'!AG$27 -> 0 | AD66: ='47'!M$28 -> 0 | AE66: ='47'!N$28 -> 0 | AF66: ='47'!O$28 -> 0 | AG66: ='47'!P$28 -> 0 | AH66: ='47'!Q$28 -> 0 | AI66: ='47'!R$28 -> 0 | AJ66: ='47'!S$28 -> 0 | AK66: ='47'!T$28 -> 0 | AL66: ='47'!U$28 -> 0 | AM66: ='47'!V$28 -> 0 | AN66: ='47'!W$28 -> 0 | AO66: ='47'!X$28 -> 0 | AP66: ='47'!Y$28 -> 0 | AQ66: ='47'!Z$28 -> 0 | AR66: ='47'!AA$28 -> 0 | AS66: ='47'!AB$28 -> 0 | AT66: ='47'!AC$28 -> 0 | AU66: ='47'!AD$28 -> 0 | AV66: ='47'!AE$28 -> 0 | AW66: ='47'!AF$28 -> 0 | AX66: ='47'!AG$28 -> 0 | AY66: 17 | AZ66: 2018-11-19 | BA66: - | BB66: 2018-11-25 | BC66: 47
A67: 18 | B67: 2018-11-26 | C67: - | D67: 2018-12-02 | E67: ='Aperçu de la charge'!F34 -> 48 | F67: ='48'!M$27 -> 0 | G67: ='48'!N$27 -> 0 | H67: ='48'!O$27 -> 0 | I67: ='48'!P$27 -> 0 | J67: ='48'!Q$27 -> 0 | K67: ='48'!R$27 -> 0 | L67: ='48'!S$27 -> 0 | M67: ='48'!T$27 -> 0 | N67: ='48'!U$27 -> 0 | O67: ='48'!V$27 -> 0 | P67: ='48'!W$27 -> 0 | Q67: ='48'!X$27 -> 0 | R67: ='48'!Y$27 -> 0 | S67: ='48'!Z$27 -> 0 | T67: ='48'!AA$27 -> 0 | U67: ='48'!AB$27 -> 0 | V67: ='48'!AC$27 -> 0 | W67: ='48'!AD$27 -> 0 | X67: ='48'!AE$27 -> 0 | Y67: ='48'!AF$27 -> 0 | Z67: ='48'!AG$27 -> 0 | AD67: ='48'!M$28 -> 0 | AE67: ='48'!N$28 -> 0 | AF67: ='48'!O$28 -> 0 | AG67: ='48'!P$28 -> 0 | AH67: ='48'!Q$28 -> 0 | AI67: ='48'!R$28 -> 0 | AJ67: ='48'!S$28 -> 0 | AK67: ='48'!T$28 -> 0 | AL67: ='48'!U$28 -> 0 | AM67: ='48'!V$28 -> 0 | AN67: ='48'!W$28 -> 0 | AO67: ='48'!X$28 -> 0 | AP67: ='48'!Y$28 -> 0 | AQ67: ='48'!Z$28 -> 0 | AR67: ='48'!AA$28 -> 0 | AS67: ='48'!AB$28 -> 0 | AT67: ='48'!AC$28 -> 0 | AU67: ='48'!AD$28 -> 0 | AV67: ='48'!AE$28 -> 0 | AW67: ='48'!AF$28 -> 0 | AX67: ='48'!AG$28 -> 0 | AY67: 18 | AZ67: 2018-11-26 | BA67: - | BB67: 2018-12-02 | BC67: 48
A68: 19 | B68: 2018-12-03 | C68: - | D68: 2018-12-09 | E68: ='Aperçu de la charge'!F35 -> 49 | F68: ='49'!M$27 -> 0 | G68: ='49'!N$27 -> 0 | H68: ='49'!O$27 -> 0 | I68: ='49'!P$27 -> 0 | J68: ='49'!Q$27 -> 0 | K68: ='49'!R$27 -> 0 | L68: ='49'!S$27 -> 0 | M68: ='49'!T$27 -> 0 | N68: ='49'!U$27 -> 0 | O68: ='49'!V$27 -> 0 | P68: ='49'!W$27 -> 0 | Q68: ='49'!X$27 -> 0 | R68: ='49'!Y$27 -> 0 | S68: ='49'!Z$27 -> 0 | T68: ='49'!AA$27 -> 0 | U68: ='49'!AB$27 -> 0 | V68: ='49'!AC$27 -> 0 | W68: ='49'!AD$27 -> 0 | X68: ='49'!AE$27 -> 0 | Y68: ='49'!AF$27 -> 0 | Z68: ='49'!AG$27 -> 0 | AD68: ='49'!M$28 -> 0 | AE68: ='49'!N$28 -> 0 | AF68: ='49'!O$28 -> 0 | AG68: ='49'!P$28 -> 0 | AH68: ='49'!Q$28 -> 0 | AI68: ='49'!R$28 -> 0 | AJ68: ='49'!S$28 -> 0 | AK68: ='49'!T$28 -> 0 | AL68: ='49'!U$28 -> 0 | AM68: ='49'!V$28 -> 0 | AN68: ='49'!W$28 -> 0 | AO68: ='49'!X$28 -> 0 | AP68: ='49'!Y$28 -> 0 | AQ68: ='49'!Z$28 -> 0 | AR68: ='49'!AA$28 -> 0 | AS68: ='49'!AB$28 -> 0 | AT68: ='49'!AC$28 -> 0 | AU68: ='49'!AD$28 -> 0 | AV68: ='49'!AE$28 -> 0 | AW68: ='49'!AF$28 -> 0 | AX68: ='49'!AG$28 -> 0 | AY68: 19 | AZ68: 2018-12-03 | BA68: - | BB68: 2018-12-09 | BC68: 49
A69: 20 | B69: 2018-12-10 | C69: - | D69: 2018-12-16 | E69: ='Aperçu de la charge'!F36 -> 50 | F69: ='50'!M$27 -> 0 | G69: ='50'!N$27 -> 0 | H69: ='50'!O$27 -> 0 | I69: ='50'!P$27 -> 0 | J69: ='50'!Q$27 -> 0 | K69: ='50'!R$27 -> 0 | L69: ='50'!S$27 -> 0 | M69: ='50'!T$27 -> 0 | N69: ='50'!U$27 -> 0 | O69: ='50'!V$27 -> 0 | P69: ='50'!W$27 -> 0 | Q69: ='50'!X$27 -> 0 | R69: ='50'!Y$27 -> 0 | S69: ='50'!Z$27 -> 0 | T69: ='50'!AA$27 -> 0 | U69: ='50'!AB$27 -> 0 | V69: ='50'!AC$27 -> 0 | W69: ='50'!AD$27 -> 0 | X69: ='50'!AE$27 -> 0 | Y69: ='50'!AF$27 -> 0 | Z69: ='50'!AG$27 -> 0 | AD69: ='50'!M$28 -> 0 | AE69: ='50'!N$28 -> 0 | AF69: ='50'!O$28 -> 0 | AG69: ='50'!P$28 -> 0 | AH69: ='50'!Q$28 -> 0 | AI69: ='50'!R$28 -> 0 | AJ69: ='50'!S$28 -> 0 | AK69: ='50'!T$28 -> 0 | AL69: ='50'!U$28 -> 0 | AM69: ='50'!V$28 -> 0 | AN69: ='50'!W$28 -> 0 | AO69: ='50'!X$28 -> 0 | AP69: ='50'!Y$28 -> 0 | AQ69: ='50'!Z$28 -> 0 | AR69: ='50'!AA$28 -> 0 | AS69: ='50'!AB$28 -> 0 | AT69: ='50'!AC$28 -> 0 | AU69: ='50'!AD$28 -> 0 | AV69: ='50'!AE$28 -> 0 | AW69: ='50'!AF$28 -> 0 | AX69: ='50'!AG$28 -> 0 | AY69: 20 | AZ69: 2018-12-10 | BA69: - | BB69: 2018-12-16 | BC69: 50
A70: 21 | B70: 2018-12-17 | C70: - | D70: 2018-12-23 | E70: ='Aperçu de la charge'!F37 -> 51 | F70: ='51'!M$27 -> 0 | G70: ='51'!N$27 -> 0 | H70: ='51'!O$27 -> 0 | I70: ='51'!P$27 -> 0 | J70: ='51'!Q$27 -> 0 | K70: ='51'!R$27 -> 0 | L70: ='51'!S$27 -> 0 | M70: ='51'!T$27 -> 0 | N70: ='51'!U$27 -> 0 | O70: ='51'!V$27 -> 0 | P70: ='51'!W$27 -> 0 | Q70: ='51'!X$27 -> 0 | R70: ='51'!Y$27 -> 0 | S70: ='51'!Z$27 -> 0 | T70: ='51'!AA$27 -> 0 | U70: ='51'!AB$27 -> 0 | V70: ='51'!AC$27 -> 0 | W70: ='51'!AD$27 -> 0 | X70: ='51'!AE$27 -> 0 | Y70: ='51'!AF$27 -> 0 | Z70: ='51'!AG$27 -> 0 | AD70: ='51'!M$28 -> 0 | AE70: ='51'!N$28 -> 0 | AF70: ='51'!O$28 -> 0 | AG70: ='51'!P$28 -> 0 | AH70: ='51'!Q$28 -> 0 | AI70: ='51'!R$28 -> 0 | AJ70: ='51'!S$28 -> 0 | AK70: ='51'!T$28 -> 0 | AL70: ='51'!U$28 -> 0 | AM70: ='51'!V$28 -> 0 | AN70: ='51'!W$28 -> 0 | AO70: ='51'!X$28 -> 0 | AP70: ='51'!Y$28 -> 0 | AQ70: ='51'!Z$28 -> 0 | AR70: ='51'!AA$28 -> 0 | AS70: ='51'!AB$28 -> 0 | AT70: ='51'!AC$28 -> 0 | AU70: ='51'!AD$28 -> 0 | AV70: ='51'!AE$28 -> 0 | AW70: ='51'!AF$28 -> 0 | AX70: ='51'!AG$28 -> 0 | AY70: 21 | AZ70: 2018-12-17 | BA70: - | BB70: 2018-12-23 | BC70: 51
A71: 22 | B71: 2018-12-24 | C71: - | D71: 2018-12-30 | E71: ='Aperçu de la charge'!F38 -> 52 | F71: ='52'!M$27 -> 0 | G71: ='52'!N$27 -> 0 | H71: ='52'!O$27 -> 0 | I71: ='52'!P$27 -> 0 | J71: ='52'!Q$27 -> 0 | K71: ='52'!R$27 -> 0 | L71: ='52'!S$27 -> 0 | M71: ='52'!T$27 -> 0 | N71: ='52'!U$27 -> 0 | O71: ='52'!V$27 -> 0 | P71: ='52'!W$27 -> 0 | Q71: ='52'!X$27 -> 0 | R71: ='52'!Y$27 -> 0 | S71: ='52'!Z$27 -> 0 | T71: ='52'!AA$27 -> 0 | U71: ='52'!AB$27 -> 0 | V71: ='52'!AC$27 -> 0 | W71: ='52'!AD$27 -> 0 | X71: ='52'!AE$27 -> 0 | Y71: ='52'!AF$27 -> 0 | Z71: ='52'!AG$27 -> 0 | AD71: ='52'!M$28 -> 0 | AE71: ='52'!N$28 -> 0 | AF71: ='52'!O$28 -> 0 | AG71: ='52'!P$28 -> 0 | AH71: ='52'!Q$28 -> 0 | AI71: ='52'!R$28 -> 0 | AJ71: ='52'!S$28 -> 0 | AK71: ='52'!T$28 -> 0 | AL71: ='52'!U$28 -> 0 | AM71: ='52'!V$28 -> 0 | AN71: ='52'!W$28 -> 0 | AO71: ='52'!X$28 -> 0 | AP71: ='52'!Y$28 -> 0 | AQ71: ='52'!Z$28 -> 0 | AR71: ='52'!AA$28 -> 0 | AS71: ='52'!AB$28 -> 0 | AT71: ='52'!AC$28 -> 0 | AU71: ='52'!AD$28 -> 0 | AV71: ='52'!AE$28 -> 0 | AW71: ='52'!AF$28 -> 0 | AX71: ='52'!AG$28 -> 0 | AY71: 22 | AZ71: 2018-12-24 | BA71: - | BB71: 2018-12-30 | BC71: 52
A72: 23 | B72: 2018-12-31 | C72: - | D72: 2019-01-06 | E72: ='Aperçu de la charge'!F39 -> 1 | F72: ='1'!M$27 -> 0 | G72: ='1'!N$27 -> 0 | H72: ='1'!O$27 -> 0 | I72: ='1'!P$27 -> 0 | J72: ='1'!Q$27 -> 0 | K72: ='1'!R$27 -> 0 | L72: ='1'!S$27 -> 0 | M72: ='1'!T$27 -> 0 | N72: ='1'!U$27 -> 0 | O72: ='1'!V$27 -> 0 | P72: ='1'!W$27 -> 0 | Q72: ='1'!X$27 -> 0 | R72: ='1'!Y$27 -> 0 | S72: ='1'!Z$27 -> 0 | T72: ='1'!AA$27 -> 0 | U72: ='1'!AB$27 -> 0 | V72: ='1'!AC$27 -> 0 | W72: ='1'!AD$27 -> 0 | X72: ='1'!AE$27 -> 0 | Y72: ='1'!AF$27 -> 0 | Z72: ='1'!AG$27 -> 0 | AD72: ='1'!M$28 -> 0 | AE72: ='1'!N$28 -> 0 | AF72: ='1'!O$28 -> 0 | AG72: ='1'!P$28 -> 0 | AH72: ='1'!Q$28 -> 0 | AI72: ='1'!R$28 -> 0 | AJ72: ='1'!S$28 -> 0 | AK72: ='1'!T$28 -> 0 | AL72: ='1'!U$28 -> 0 | AM72: ='1'!V$28 -> 0 | AN72: ='1'!W$28 -> 0 | AO72: ='1'!X$28 -> 0 | AP72: ='1'!Y$28 -> 0 | AQ72: ='1'!Z$28 -> 0 | AR72: ='1'!AA$28 -> 0 | AS72: ='1'!AB$28 -> 0 | AT72: ='1'!AC$28 -> 0 | AU72: ='1'!AD$28 -> 0 | AV72: ='1'!AE$28 -> 0 | AW72: ='1'!AF$28 -> 0 | AX72: ='1'!AG$28 -> 0 | AY72: 23 | AZ72: 2018-12-31 | BA72: - | BB72: 2019-01-06 | BC72: 1
A73: 24 | B73: 2019-01-07 | C73: - | D73: 2019-01-13 | E73: ='Aperçu de la charge'!F40 -> 2 | F73: ='2'!M$27 -> 0 | G73: ='2'!N$27 -> 0 | H73: ='2'!O$27 -> 0 | I73: ='2'!P$27 -> 0 | J73: ='2'!Q$27 -> 0 | K73: ='2'!R$27 -> 0 | L73: ='2'!S$27 -> 0 | M73: ='2'!T$27 -> 0 | N73: ='2'!U$27 -> 0 | O73: ='2'!V$27 -> 0 | P73: ='2'!W$27 -> 0 | Q73: ='2'!X$27 -> 0 | R73: ='2'!Y$27 -> 0 | S73: ='2'!Z$27 -> 0 | T73: ='2'!AA$27 -> 0 | U73: ='2'!AB$27 -> 0 | V73: ='2'!AC$27 -> 0 | W73: ='2'!AD$27 -> 0 | X73: ='2'!AE$27 -> 0 | Y73: ='2'!AF$27 -> 0 | Z73: ='2'!AG$27 -> 0 | AD73: ='2'!M$28 -> 0 | AE73: ='2'!N$28 -> 0 | AF73: ='2'!O$28 -> 0 | AG73: ='2'!P$28 -> 0 | AH73: ='2'!Q$28 -> 0 | AI73: ='2'!R$28 -> 0 | AJ73: ='2'!S$28 -> 0 | AK73: ='2'!T$28 -> 0 | AL73: ='2'!U$28 -> 0 | AM73: ='2'!V$28 -> 0 | AN73: ='2'!W$28 -> 0 | AO73: ='2'!X$28 -> 0 | AP73: ='2'!Y$28 -> 0 | AQ73: ='2'!Z$28 -> 0 | AR73: ='2'!AA$28 -> 0 | AS73: ='2'!AB$28 -> 0 | AT73: ='2'!AC$28 -> 0 | AU73: ='2'!AD$28 -> 0 | AV73: ='2'!AE$28 -> 0 | AW73: ='2'!AF$28 -> 0 | AX73: ='2'!AG$28 -> 0 | AY73: 24 | AZ73: 2019-01-07 | BA73: - | BB73: 2019-01-13 | BC73: 2
A74: 25 | B74: 2019-01-14 | C74: - | D74: 2019-01-20 | E74: ='Aperçu de la charge'!F41 -> 3 | F74: ='3'!M$27 -> 0 | G74: ='3'!N$27 -> 0 | H74: ='3'!O$27 -> 0 | I74: ='3'!P$27 -> 0 | J74: ='3'!Q$27 -> 0 | K74: ='3'!R$27 -> 0 | L74: ='3'!S$27 -> 0 | M74: ='3'!T$27 -> 0 | N74: ='3'!U$27 -> 0 | O74: ='3'!V$27 -> 0 | P74: ='3'!W$27 -> 0 | Q74: ='3'!X$27 -> 0 | R74: ='3'!Y$27 -> 0 | S74: ='3'!Z$27 -> 0 | T74: ='3'!AA$27 -> 0 | U74: ='3'!AB$27 -> 0 | V74: ='3'!AC$27 -> 0 | W74: ='3'!AD$27 -> 0 | X74: ='3'!AE$27 -> 0 | Y74: ='3'!AF$27 -> 0 | Z74: ='3'!AG$27 -> 0 | AD74: ='3'!M$28 -> 0 | AE74: ='3'!N$28 -> 0 | AF74: ='3'!O$28 -> 0 | AG74: ='3'!P$28 -> 0 | AH74: ='3'!Q$28 -> 0 | AI74: ='3'!R$28 -> 0 | AJ74: ='3'!S$28 -> 0 | AK74: ='3'!T$28 -> 0 | AL74: ='3'!U$28 -> 0 | AM74: ='3'!V$28 -> 0 | AN74: ='3'!W$28 -> 0 | AO74: ='3'!X$28 -> 0 | AP74: ='3'!Y$28 -> 0 | AQ74: ='3'!Z$28 -> 0 | AR74: ='3'!AA$28 -> 0 | AS74: ='3'!AB$28 -> 0 | AT74: ='3'!AC$28 -> 0 | AU74: ='3'!AD$28 -> 0 | AV74: ='3'!AE$28 -> 0 | AW74: ='3'!AF$28 -> 0 | AX74: ='3'!AG$28 -> 0 | AY74: 25 | AZ74: 2019-01-14 | BA74: - | BB74: 2019-01-20 | BC74: 3
A75: 26 | B75: 2019-01-21 | C75: - | D75: 2019-01-27 | E75: ='Aperçu de la charge'!F42 -> 4 | F75: ='4'!M$27 -> 0 | G75: ='4'!N$27 -> 0 | H75: ='4'!O$27 -> 0 | I75: ='4'!P$27 -> 0 | J75: ='4'!Q$27 -> 0 | K75: ='4'!R$27 -> 0 | L75: ='4'!S$27 -> 0 | M75: ='4'!T$27 -> 0 | N75: ='4'!U$27 -> 0 | O75: ='4'!V$27 -> 0 | P75: ='4'!W$27 -> 0 | Q75: ='4'!X$27 -> 0 | R75: ='4'!Y$27 -> 0 | S75: ='4'!Z$27 -> 0 | T75: ='4'!AA$27 -> 0 | U75: ='4'!AB$27 -> 0 | V75: ='4'!AC$27 -> 0 | W75: ='4'!AD$27 -> 0 | X75: ='4'!AE$27 -> 0 | Y75: ='4'!AF$27 -> 0 | Z75: ='4'!AG$27 -> 0 | AD75: ='4'!M$28 -> 0 | AE75: ='4'!N$28 -> 0 | AF75: ='4'!O$28 -> 0 | AG75: ='4'!P$28 -> 0 | AH75: ='4'!Q$28 -> 0 | AI75: ='4'!R$28 -> 0 | AJ75: ='4'!S$28 -> 0 | AK75: ='4'!T$28 -> 0 | AL75: ='4'!U$28 -> 0 | AM75: ='4'!V$28 -> 0 | AN75: ='4'!W$28 -> 0 | AO75: ='4'!X$28 -> 0 | AP75: ='4'!Y$28 -> 0 | AQ75: ='4'!Z$28 -> 0 | AR75: ='4'!AA$28 -> 0 | AS75: ='4'!AB$28 -> 0 | AT75: ='4'!AC$28 -> 0 | AU75: ='4'!AD$28 -> 0 | AV75: ='4'!AE$28 -> 0 | AW75: ='4'!AF$28 -> 0 | AX75: ='4'!AG$28 -> 0 | AY75: 26 | AZ75: 2019-01-21 | BA75: - | BB75: 2019-01-27 | BC75: 4
A76: 27 | B76: 2019-01-28 | C76: - | D76: 2019-02-03 | E76: ='Aperçu de la charge'!F43 -> 5 | F76: ='5'!M$27 -> 0 | G76: ='5'!N$27 -> 0 | H76: ='5'!O$27 -> 0 | I76: ='5'!P$27 -> 0 | J76: ='5'!Q$27 -> 0 | K76: ='5'!R$27 -> 0 | L76: ='5'!S$27 -> 0 | M76: ='5'!T$27 -> 0 | N76: ='5'!U$27 -> 0 | O76: ='5'!V$27 -> 0 | P76: ='5'!W$27 -> 0 | Q76: ='5'!X$27 -> 0 | R76: ='5'!Y$27 -> 0 | S76: ='5'!Z$27 -> 0 | T76: ='5'!AA$27 -> 0 | U76: ='5'!AB$27 -> 0 | V76: ='5'!AC$27 -> 0 | W76: ='5'!AD$27 -> 0 | X76: ='5'!AE$27 -> 0 | Y76: ='5'!AF$27 -> 0 | Z76: ='5'!AG$27 -> 0 | AD76: ='5'!M$28 -> 0 | AE76: ='5'!N$28 -> 0 | AF76: ='5'!O$28 -> 0 | AG76: ='5'!P$28 -> 0 | AH76: ='5'!Q$28 -> 0 | AI76: ='5'!R$28 -> 0 | AJ76: ='5'!S$28 -> 0 | AK76: ='5'!T$28 -> 0 | AL76: ='5'!U$28 -> 0 | AM76: ='5'!V$28 -> 0 | AN76: ='5'!W$28 -> 0 | AO76: ='5'!X$28 -> 0 | AP76: ='5'!Y$28 -> 0 | AQ76: ='5'!Z$28 -> 0 | AR76: ='5'!AA$28 -> 0 | AS76: ='5'!AB$28 -> 0 | AT76: ='5'!AC$28 -> 0 | AU76: ='5'!AD$28 -> 0 | AV76: ='5'!AE$28 -> 0 | AW76: ='5'!AF$28 -> 0 | AX76: ='5'!AG$28 -> 0 | AY76: 27 | AZ76: 2019-01-28 | BA76: - | BB76: 2019-02-03 | BC76: 5
A77: 28 | B77: 2019-02-04 | C77: - | D77: 2019-02-10 | E77: ='Aperçu de la charge'!F44 -> 6 | F77: ='6'!M$27 -> 0 | G77: ='6'!N$27 -> 0 | H77: ='6'!O$27 -> 0 | I77: ='6'!P$27 -> 0 | J77: ='6'!Q$27 -> 0 | K77: ='6'!R$27 -> 0 | L77: ='6'!S$27 -> 0 | M77: ='6'!T$27 -> 0 | N77: ='6'!U$27 -> 0 | O77: ='6'!V$27 -> 0 | P77: ='6'!W$27 -> 0 | Q77: ='6'!X$27 -> 0 | R77: ='6'!Y$27 -> 0 | S77: ='6'!Z$27 -> 0 | T77: ='6'!AA$27 -> 0 | U77: ='6'!AB$27 -> 0 | V77: ='6'!AC$27 -> 0 | W77: ='6'!AD$27 -> 0 | X77: ='6'!AE$27 -> 0 | Y77: ='6'!AF$27 -> 0 | Z77: ='6'!AG$27 -> 0 | AD77: ='6'!M$28 -> 0 | AE77: ='6'!N$28 -> 0 | AF77: ='6'!O$28 -> 0 | AG77: ='6'!P$28 -> 0 | AH77: ='6'!Q$28 -> 0 | AI77: ='6'!R$28 -> 0 | AJ77: ='6'!S$28 -> 0 | AK77: ='6'!T$28 -> 0 | AL77: ='6'!U$28 -> 0 | AM77: ='6'!V$28 -> 0 | AN77: ='6'!W$28 -> 0 | AO77: ='6'!X$28 -> 0 | AP77: ='6'!Y$28 -> 0 | AQ77: ='6'!Z$28 -> 0 | AR77: ='6'!AA$28 -> 0 | AS77: ='6'!AB$28 -> 0 | AT77: ='6'!AC$28 -> 0 | AU77: ='6'!AD$28 -> 0 | AV77: ='6'!AE$28 -> 0 | AW77: ='6'!AF$28 -> 0 | AX77: ='6'!AG$28 -> 0 | AY77: 28 | AZ77: 2019-02-04 | BA77: - | BB77: 2019-02-10 | BC77: 6
A78: 29 | B78: 2019-02-11 | C78: - | D78: 2019-02-17 | E78: ='Aperçu de la charge'!F45 -> 7 | F78: ='7'!M$27 -> 0 | G78: ='7'!N$27 -> 0 | H78: ='7'!O$27 -> 0 | I78: ='7'!P$27 -> 0 | J78: ='7'!Q$27 -> 0 | K78: ='7'!R$27 -> 0 | L78: ='7'!S$27 -> 0 | M78: ='7'!T$27 -> 0 | N78: ='7'!U$27 -> 0 | O78: ='7'!V$27 -> 0 | P78: ='7'!W$27 -> 0 | Q78: ='7'!X$27 -> 0 | R78: ='7'!Y$27 -> 0 | S78: ='7'!Z$27 -> 0 | T78: ='7'!AA$27 -> 0 | U78: ='7'!AB$27 -> 0 | V78: ='7'!AC$27 -> 0 | W78: ='7'!AD$27 -> 0 | X78: ='7'!AE$27 -> 0 | Y78: ='7'!AF$27 -> 0 | Z78: ='7'!AG$27 -> 0 | AD78: ='7'!M$28 -> 0 | AE78: ='7'!N$28 -> 0 | AF78: ='7'!O$28 -> 0 | AG78: ='7'!P$28 -> 0 | AH78: ='7'!Q$28 -> 0 | AI78: ='7'!R$28 -> 0 | AJ78: ='7'!S$28 -> 0 | AK78: ='7'!T$28 -> 0 | AL78: ='7'!U$28 -> 0 | AM78: ='7'!V$28 -> 0 | AN78: ='7'!W$28 -> 0 | AO78: ='7'!X$28 -> 0 | AP78: ='7'!Y$28 -> 0 | AQ78: ='7'!Z$28 -> 0 | AR78: ='7'!AA$28 -> 0 | AS78: ='7'!AB$28 -> 0 | AT78: ='7'!AC$28 -> 0 | AU78: ='7'!AD$28 -> 0 | AV78: ='7'!AE$28 -> 0 | AW78: ='7'!AF$28 -> 0 | AX78: ='7'!AG$28 -> 0 | AY78: 29 | AZ78: 2019-02-11 | BA78: - | BB78: 2019-02-17 | BC78: 7
A79: 30 | B79: 2019-02-18 | C79: - | D79: 2019-02-24 | E79: ='Aperçu de la charge'!F46 -> 8 | F79: ='8'!M$27 -> 0 | G79: ='8'!N$27 -> 0 | H79: ='8'!O$27 -> 0 | I79: ='8'!P$27 -> 0 | J79: ='8'!Q$27 -> 0 | K79: ='8'!R$27 -> 0 | L79: ='8'!S$27 -> 0 | M79: ='8'!T$27 -> 0 | N79: ='8'!U$27 -> 0 | O79: ='8'!V$27 -> 0 | P79: ='8'!W$27 -> 0 | Q79: ='8'!X$27 -> 0 | R79: ='8'!Y$27 -> 0 | S79: ='8'!Z$27 -> 0 | T79: ='8'!AA$27 -> 0 | U79: ='8'!AB$27 -> 0 | V79: ='8'!AC$27 -> 0 | W79: ='8'!AD$27 -> 0 | X79: ='8'!AE$27 -> 0 | Y79: ='8'!AF$27 -> 0 | Z79: ='8'!AG$27 -> 0 | AD79: ='8'!M$28 -> 0 | AE79: ='8'!N$28 -> 0 | AF79: ='8'!O$28 -> 0 | AG79: ='8'!P$28 -> 0 | AH79: ='8'!Q$28 -> 0 | AI79: ='8'!R$28 -> 0 | AJ79: ='8'!S$28 -> 0 | AK79: ='8'!T$28 -> 0 | AL79: ='8'!U$28 -> 0 | AM79: ='8'!V$28 -> 0 | AN79: ='8'!W$28 -> 0 | AO79: ='8'!X$28 -> 0 | AP79: ='8'!Y$28 -> 0 | AQ79: ='8'!Z$28 -> 0 | AR79: ='8'!AA$28 -> 0 | AS79: ='8'!AB$28 -> 0 | AT79: ='8'!AC$28 -> 0 | AU79: ='8'!AD$28 -> 0 | AV79: ='8'!AE$28 -> 0 | AW79: ='8'!AF$28 -> 0 | AX79: ='8'!AG$28 -> 0 | AY79: 30 | AZ79: 2019-02-18 | BA79: - | BB79: 2019-02-24 | BC79: 8
A80: 31 | B80: 2019-02-25 | C80: - | D80: 2019-03-03 | E80: ='Aperçu de la charge'!F47 -> 9 | F80: ='9'!M$27 -> 0 | G80: ='9'!N$27 -> 0 | H80: ='9'!O$27 -> 0 | I80: ='9'!P$27 -> 0 | J80: ='9'!Q$27 -> 0 | K80: ='9'!R$27 -> 0 | L80: ='9'!S$27 -> 0 | M80: ='9'!T$27 -> 0 | N80: ='9'!U$27 -> 0 | O80: ='9'!V$27 -> 0 | P80: ='9'!W$27 -> 0 | Q80: ='9'!X$27 -> 0 | R80: ='9'!Y$27 -> 0 | S80: ='9'!Z$27 -> 0 | T80: ='9'!AA$27 -> 0 | U80: ='9'!AB$27 -> 0 | V80: ='9'!AC$27 -> 0 | W80: ='9'!AD$27 -> 0 | X80: ='9'!AE$27 -> 0 | Y80: ='9'!AF$27 -> 0 | Z80: ='9'!AG$27 -> 0 | AD80: ='9'!M$28 -> 0 | AE80: ='9'!N$28 -> 0 | AF80: ='9'!O$28 -> 0 | AG80: ='9'!P$28 -> 0 | AH80: ='9'!Q$28 -> 0 | AI80: ='9'!R$28 -> 0 | AJ80: ='9'!S$28 -> 0 | AK80: ='9'!T$28 -> 0 | AL80: ='9'!U$28 -> 0 | AM80: ='9'!V$28 -> 0 | AN80: ='9'!W$28 -> 0 | AO80: ='9'!X$28 -> 0 | AP80: ='9'!Y$28 -> 0 | AQ80: ='9'!Z$28 -> 0 | AR80: ='9'!AA$28 -> 0 | AS80: ='9'!AB$28 -> 0 | AT80: ='9'!AC$28 -> 0 | AU80: ='9'!AD$28 -> 0 | AV80: ='9'!AE$28 -> 0 | AW80: ='9'!AF$28 -> 0 | AX80: ='9'!AG$28 -> 0 | AY80: 31 | AZ80: 2019-02-25 | BA80: - | BB80: 2019-03-03 | BC80: 9
A81: 32 | B81: 2019-03-04 | C81: - | D81: 2019-03-10 | E81: ='Aperçu de la charge'!F48 -> 10 | F81: ='10'!M$27 -> 0 | G81: ='10'!N$27 -> 0 | H81: ='10'!O$27 -> 0 | I81: ='10'!P$27 -> 0 | J81: ='10'!Q$27 -> 0 | K81: ='10'!R$27 -> 0 | L81: ='10'!S$27 -> 0 | M81: ='10'!T$27 -> 0 | N81: ='10'!U$27 -> 0 | O81: ='10'!V$27 -> 0 | P81: ='10'!W$27 -> 0 | Q81: ='10'!X$27 -> 0 | R81: ='10'!Y$27 -> 0 | S81: ='10'!Z$27 -> 0 | T81: ='10'!AA$27 -> 0 | U81: ='10'!AB$27 -> 0 | V81: ='10'!AC$27 -> 0 | W81: ='10'!AD$27 -> 0 | X81: ='10'!AE$27 -> 0 | Y81: ='10'!AF$27 -> 0 | Z81: ='10'!AG$27 -> 0 | AD81: ='10'!M$28 -> 0 | AE81: ='10'!N$28 -> 0 | AF81: ='10'!O$28 -> 0 | AG81: ='10'!P$28 -> 0 | AH81: ='10'!Q$28 -> 0 | AI81: ='10'!R$28 -> 0 | AJ81: ='10'!S$28 -> 0 | AK81: ='10'!T$28 -> 0 | AL81: ='10'!U$28 -> 0 | AM81: ='10'!V$28 -> 0 | AN81: ='10'!W$28 -> 0 | AO81: ='10'!X$28 -> 0 | AP81: ='10'!Y$28 -> 0 | AQ81: ='10'!Z$28 -> 0 | AR81: ='10'!AA$28 -> 0 | AS81: ='10'!AB$28 -> 0 | AT81: ='10'!AC$28 -> 0 | AU81: ='10'!AD$28 -> 0 | AV81: ='10'!AE$28 -> 0 | AW81: ='10'!AF$28 -> 0 | AX81: ='10'!AG$28 -> 0 | AY81: 32 | AZ81: =B81 -> 2019-03-04 | BA81: =C81 -> - | BB81: =D81 -> 2019-03-10 | BC81: =E81 -> 10
A82: 33 | B82: 2019-03-11 | C82: - | D82: 2019-03-17 | E82: ='Aperçu de la charge'!F49 -> 11 | F82: ='11'!M$27 -> 0 | G82: ='11'!N$27 -> 0 | H82: ='11'!O$27 -> 0 | I82: ='11'!P$27 -> 0 | J82: ='11'!Q$27 -> 0 | K82: ='11'!R$27 -> 0 | L82: ='11'!S$27 -> 0 | M82: ='11'!T$27 -> 0 | N82: ='11'!U$27 -> 0 | O82: ='11'!V$27 -> 0 | P82: ='11'!W$27 -> 0 | Q82: ='11'!X$27 -> 0 | R82: ='11'!Y$27 -> 0 | S82: ='11'!Z$27 -> 0 | T82: ='11'!AA$27 -> 0 | U82: ='11'!AB$27 -> 0 | V82: ='11'!AC$27 -> 0 | W82: ='11'!AD$27 -> 0 | X82: ='11'!AE$27 -> 0 | Y82: ='11'!AF$27 -> 0 | Z82: ='11'!AG$27 -> 0 | AD82: ='11'!M$28 -> 0 | AE82: ='11'!N$28 -> 0 | AF82: ='11'!O$28 -> 0 | AG82: ='11'!P$28 -> 0 | AH82: ='11'!Q$28 -> 0 | AI82: ='11'!R$28 -> 0 | AJ82: ='11'!S$28 -> 0 | AK82: ='11'!T$28 -> 0 | AL82: ='11'!U$28 -> 0 | AM82: ='11'!V$28 -> 0 | AN82: ='11'!W$28 -> 0 | AO82: ='11'!X$28 -> 0 | AP82: ='11'!Y$28 -> 0 | AQ82: ='11'!Z$28 -> 0 | AR82: ='11'!AA$28 -> 0 | AS82: ='11'!AB$28 -> 0 | AT82: ='11'!AC$28 -> 0 | AU82: ='11'!AD$28 -> 0 | AV82: ='11'!AE$28 -> 0 | AW82: ='11'!AF$28 -> 0 | AX82: ='11'!AG$28 -> 0 | AY82: 33 | AZ82: 2019-03-11 | BA82: - | BB82: 2019-03-17 | BC82: 11
A83: 34 | B83: 2019-03-18 | C83: - | D83: 2019-03-24 | E83: ='Aperçu de la charge'!F50 -> 12 | F83: ='12'!M$27 -> 0 | G83: ='12'!N$27 -> 0 | H83: ='12'!O$27 -> 0 | I83: ='12'!P$27 -> 0 | J83: ='12'!Q$27 -> 0 | K83: ='12'!R$27 -> 0 | L83: ='12'!S$27 -> 0 | M83: ='12'!T$27 -> 0 | N83: ='12'!U$27 -> 0 | O83: ='12'!V$27 -> 0 | P83: ='12'!W$27 -> 0 | Q83: ='12'!X$27 -> 0 | R83: ='12'!Y$27 -> 0 | S83: ='12'!Z$27 -> 0 | T83: ='12'!AA$27 -> 0 | U83: ='12'!AB$27 -> 0 | V83: ='12'!AC$27 -> 0 | W83: ='12'!AD$27 -> 0 | X83: ='12'!AE$27 -> 0 | Y83: ='12'!AF$27 -> 0 | Z83: ='12'!AG$27 -> 0 | AD83: ='12'!M$28 -> 0 | AE83: ='12'!N$28 -> 0 | AF83: ='12'!O$28 -> 0 | AG83: ='12'!P$28 -> 0 | AH83: ='12'!Q$28 -> 0 | AI83: ='12'!R$28 -> 0 | AJ83: ='12'!S$28 -> 0 | AK83: ='12'!T$28 -> 0 | AL83: ='12'!U$28 -> 0 | AM83: ='12'!V$28 -> 0 | AN83: ='12'!W$28 -> 0 | AO83: ='12'!X$28 -> 0 | AP83: ='12'!Y$28 -> 0 | AQ83: ='12'!Z$28 -> 0 | AR83: ='12'!AA$28 -> 0 | AS83: ='12'!AB$28 -> 0 | AT83: ='12'!AC$28 -> 0 | AU83: ='12'!AD$28 -> 0 | AV83: ='12'!AE$28 -> 0 | AW83: ='12'!AF$28 -> 0 | AX83: ='12'!AG$28 -> 0 | AY83: 34 | AZ83: 2019-03-18 | BA83: - | BB83: 2019-03-24 | BC83: 12
A84: 35 | B84: 2019-03-25 | C84: - | D84: 2019-03-31 | E84: ='Aperçu de la charge'!F51 -> 13 | F84: ='13'!M$27 -> 0 | G84: ='13'!N$27 -> 0 | H84: ='13'!O$27 -> 0 | I84: ='13'!P$27 -> 0 | J84: ='13'!Q$27 -> 0 | K84: ='13'!R$27 -> 0 | L84: ='13'!S$27 -> 0 | M84: ='13'!T$27 -> 0 | N84: ='13'!U$27 -> 0 | O84: ='13'!V$27 -> 0 | P84: ='13'!W$27 -> 0 | Q84: ='13'!X$27 -> 0 | R84: ='13'!Y$27 -> 0 | S84: ='13'!Z$27 -> 0 | T84: ='13'!AA$27 -> 0 | U84: ='13'!AB$27 -> 0 | V84: ='13'!AC$27 -> 0 | W84: ='13'!AD$27 -> 0 | X84: ='13'!AE$27 -> 0 | Y84: ='13'!AF$27 -> 0 | Z84: ='13'!AG$27 -> 0 | AD84: ='13'!M$28 -> 0 | AE84: ='13'!N$28 -> 0 | AF84: ='13'!O$28 -> 0 | AG84: ='13'!P$28 -> 0 | AH84: ='13'!Q$28 -> 0 | AI84: ='13'!R$28 -> 0 | AJ84: ='13'!S$28 -> 0 | AK84: ='13'!T$28 -> 0 | AL84: ='13'!U$28 -> 0 | AM84: ='13'!V$28 -> 0 | AN84: ='13'!W$28 -> 0 | AO84: ='13'!X$28 -> 0 | AP84: ='13'!Y$28 -> 0 | AQ84: ='13'!Z$28 -> 0 | AR84: ='13'!AA$28 -> 0 | AS84: ='13'!AB$28 -> 0 | AT84: ='13'!AC$28 -> 0 | AU84: ='13'!AD$28 -> 0 | AV84: ='13'!AE$28 -> 0 | AW84: ='13'!AF$28 -> 0 | AX84: ='13'!AG$28 -> 0 | AY84: 35 | AZ84: 2019-03-25 | BA84: - | BB84: 2019-03-31 | BC84: 13
A85: 36 | B85: 2019-04-01 | C85: - | D85: 2019-04-07 | E85: ='Aperçu de la charge'!F52 -> 14 | F85: ='14'!M$27 -> 0 | G85: ='14'!N$27 -> 0 | H85: ='14'!O$27 -> 0 | I85: ='14'!P$27 -> 0 | J85: ='14'!Q$27 -> 0 | K85: ='14'!R$27 -> 0 | L85: ='14'!S$27 -> 0 | M85: ='14'!T$27 -> 0 | N85: ='14'!U$27 -> 0 | O85: ='14'!V$27 -> 0 | P85: ='14'!W$27 -> 0 | Q85: ='14'!X$27 -> 0 | R85: ='14'!Y$27 -> 0 | S85: ='14'!Z$27 -> 0 | T85: ='14'!AA$27 -> 0 | U85: ='14'!AB$27 -> 0 | V85: ='14'!AC$27 -> 0 | W85: ='14'!AD$27 -> 0 | X85: ='14'!AE$27 -> 0 | Y85: ='14'!AF$27 -> 0 | Z85: ='14'!AG$27 -> 0 | AD85: ='14'!M$28 -> 0 | AE85: ='14'!N$28 -> 0 | AF85: ='14'!O$28 -> 0 | AG85: ='14'!P$28 -> 0 | AH85: ='14'!Q$28 -> 0 | AI85: ='14'!R$28 -> 0 | AJ85: ='14'!S$28 -> 0 | AK85: ='14'!T$28 -> 0 | AL85: ='14'!U$28 -> 0 | AM85: ='14'!V$28 -> 0 | AN85: ='14'!W$28 -> 0 | AO85: ='14'!X$28 -> 0 | AP85: ='14'!Y$28 -> 0 | AQ85: ='14'!Z$28 -> 0 | AR85: ='14'!AA$28 -> 0 | AS85: ='14'!AB$28 -> 0 | AT85: ='14'!AC$28 -> 0 | AU85: ='14'!AD$28 -> 0 | AV85: ='14'!AE$28 -> 0 | AW85: ='14'!AF$28 -> 0 | AX85: ='14'!AG$28 -> 0 | AY85: 36 | AZ85: 2019-04-01 | BA85: - | BB85: 2019-04-07 | BC85: 14
A86: 37 | B86: 2019-04-08 | C86: - | D86: 2019-04-14 | E86: ='Aperçu de la charge'!F53 -> 15 | F86: ='15'!M$27 -> 0 | G86: ='15'!N$27 -> 0 | H86: ='15'!O$27 -> 0 | I86: ='15'!P$27 -> 0 | J86: ='15'!Q$27 -> 0 | K86: ='15'!R$27 -> 0 | L86: ='15'!S$27 -> 0 | M86: ='15'!T$27 -> 0 | N86: ='15'!U$27 -> 0 | O86: ='15'!V$27 -> 0 | P86: ='15'!W$27 -> 0 | Q86: ='15'!X$27 -> 0 | R86: ='15'!Y$27 -> 0 | S86: ='15'!Z$27 -> 0 | T86: ='15'!AA$27 -> 0 | U86: ='15'!AB$27 -> 0 | V86: ='15'!AC$27 -> 0 | W86: ='15'!AD$27 -> 0 | X86: ='15'!AE$27 -> 0 | Y86: ='15'!AF$27 -> 0 | Z86: ='15'!AG$27 -> 0 | AD86: ='15'!M$28 -> 0 | AE86: ='15'!N$28 -> 0 | AF86: ='15'!O$28 -> 0 | AG86: ='15'!P$28 -> 0 | AH86: ='15'!Q$28 -> 0 | AI86: ='15'!R$28 -> 0 | AJ86: ='15'!S$28 -> 0 | AK86: ='15'!T$28 -> 0 | AL86: ='15'!U$28 -> 0 | AM86: ='15'!V$28 -> 0 | AN86: ='15'!W$28 -> 0 | AO86: ='15'!X$28 -> 0 | AP86: ='15'!Y$28 -> 0 | AQ86: ='15'!Z$28 -> 0 | AR86: ='15'!AA$28 -> 0 | AS86: ='15'!AB$28 -> 0 | AT86: ='15'!AC$28 -> 0 | AU86: ='15'!AD$28 -> 0 | AV86: ='15'!AE$28 -> 0 | AW86: ='15'!AF$28 -> 0 | AX86: ='15'!AG$28 -> 0 | AY86: 37 | AZ86: 2019-04-08 | BA86: - | BB86: 2019-04-14 | BC86: 15
A87: 38 | B87: 2019-04-15 | C87: - | D87: 2019-04-21 | E87: ='Aperçu de la charge'!F54 -> 16 | F87: ='16'!M$27 -> 0 | G87: ='16'!N$27 -> 0 | H87: ='16'!O$27 -> 0 | I87: ='16'!P$27 -> 0 | J87: ='16'!Q$27 -> 0 | K87: ='16'!R$27 -> 0 | L87: ='16'!S$27 -> 0 | M87: ='16'!T$27 -> 0 | N87: ='16'!U$27 -> 0 | O87: ='16'!V$27 -> 0 | P87: ='16'!W$27 -> 0 | Q87: ='16'!X$27 -> 0 | R87: ='16'!Y$27 -> 0 | S87: ='16'!Z$27 -> 0 | T87: ='16'!AA$27 -> 0 | U87: ='16'!AB$27 -> 0 | V87: ='16'!AC$27 -> 0 | W87: ='16'!AD$27 -> 0 | X87: ='16'!AE$27 -> 0 | Y87: ='16'!AF$27 -> 0 | Z87: ='16'!AG$27 -> 0 | AD87: ='16'!M$28 -> 0 | AE87: ='16'!N$28 -> 0 | AF87: ='16'!O$28 -> 0 | AG87: ='16'!P$28 -> 0 | AH87: ='16'!Q$28 -> 0 | AI87: ='16'!R$28 -> 0 | AJ87: ='16'!S$28 -> 0 | AK87: ='16'!T$28 -> 0 | AL87: ='16'!U$28 -> 0 | AM87: ='16'!V$28 -> 0 | AN87: ='16'!W$28 -> 0 | AO87: ='16'!X$28 -> 0 | AP87: ='16'!Y$28 -> 0 | AQ87: ='16'!Z$28 -> 0 | AR87: ='16'!AA$28 -> 0 | AS87: ='16'!AB$28 -> 0 | AT87: ='16'!AC$28 -> 0 | AU87: ='16'!AD$28 -> 0 | AV87: ='16'!AE$28 -> 0 | AW87: ='16'!AF$28 -> 0 | AX87: ='16'!AG$28 -> 0 | AY87: 38 | AZ87: 2019-04-15 | BA87: - | BB87: 2019-04-21 | BC87: 16
A88: 39 | B88: 2019-04-22 | C88: - | D88: 2019-04-28 | E88: ='Aperçu de la charge'!F55 -> 17 | F88: ='17'!M$27 -> 0 | G88: ='17'!N$27 -> 0 | H88: ='17'!O$27 -> 0 | I88: ='17'!P$27 -> 0 | J88: ='17'!Q$27 -> 0 | K88: ='17'!R$27 -> 0 | L88: ='17'!S$27 -> 0 | M88: ='17'!T$27 -> 0 | N88: ='17'!U$27 -> 0 | O88: ='17'!V$27 -> 0 | P88: ='17'!W$27 -> 0 | Q88: ='17'!X$27 -> 0 | R88: ='17'!Y$27 -> 0 | S88: ='17'!Z$27 -> 0 | T88: ='17'!AA$27 -> 0 | U88: ='17'!AB$27 -> 0 | V88: ='17'!AC$27 -> 0 | W88: ='17'!AD$27 -> 0 | X88: ='17'!AE$27 -> 0 | Y88: ='17'!AF$27 -> 0 | Z88: ='17'!AG$27 -> 0 | AD88: ='17'!M$28 -> 0 | AE88: ='17'!N$28 -> 0 | AF88: ='17'!O$28 -> 0 | AG88: ='17'!P$28 -> 0 | AH88: ='17'!Q$28 -> 0 | AI88: ='17'!R$28 -> 0 | AJ88: ='17'!S$28 -> 0 | AK88: ='17'!T$28 -> 0 | AL88: ='17'!U$28 -> 0 | AM88: ='17'!V$28 -> 0 | AN88: ='17'!W$28 -> 0 | AO88: ='17'!X$28 -> 0 | AP88: ='17'!Y$28 -> 0 | AQ88: ='17'!Z$28 -> 0 | AR88: ='17'!AA$28 -> 0 | AS88: ='17'!AB$28 -> 0 | AT88: ='17'!AC$28 -> 0 | AU88: ='17'!AD$28 -> 0 | AV88: ='17'!AE$28 -> 0 | AW88: ='17'!AF$28 -> 0 | AX88: ='17'!AG$28 -> 0 | AY88: 39 | AZ88: 2019-04-22 | BA88: - | BB88: 2019-04-28 | BC88: 17
A89: 40 | B89: 2019-04-29 | C89: - | D89: 2019-05-05 | E89: ='Aperçu de la charge'!F56 -> 18 | F89: ='18'!M$27 -> 0 | G89: ='18'!N$27 -> 0 | H89: ='18'!O$27 -> 0 | I89: ='18'!P$27 -> 0 | J89: ='18'!Q$27 -> 0 | K89: ='18'!R$27 -> 0 | L89: ='18'!S$27 -> 0 | M89: ='18'!T$27 -> 0 | N89: ='18'!U$27 -> 0 | O89: ='18'!V$27 -> 0 | P89: ='18'!W$27 -> 0 | Q89: ='18'!X$27 -> 0 | R89: ='18'!Y$27 -> 0 | S89: ='18'!Z$27 -> 0 | T89: ='18'!AA$27 -> 0 | U89: ='18'!AB$27 -> 0 | V89: ='18'!AC$27 -> 0 | W89: ='18'!AD$27 -> 0 | X89: ='18'!AE$27 -> 0 | Y89: ='18'!AF$27 -> 0 | Z89: ='18'!AG$27 -> 0 | AD89: ='18'!M$28 -> 0 | AE89: ='18'!N$28 -> 0 | AF89: ='18'!O$28 -> 0 | AG89: ='18'!P$28 -> 0 | AH89: ='18'!Q$28 -> 0 | AI89: ='18'!R$28 -> 0 | AJ89: ='18'!S$28 -> 0 | AK89: ='18'!T$28 -> 0 | AL89: ='18'!U$28 -> 0 | AM89: ='18'!V$28 -> 0 | AN89: ='18'!W$28 -> 0 | AO89: ='18'!X$28 -> 0 | AP89: ='18'!Y$28 -> 0 | AQ89: ='18'!Z$28 -> 0 | AR89: ='18'!AA$28 -> 0 | AS89: ='18'!AB$28 -> 0 | AT89: ='18'!AC$28 -> 0 | AU89: ='18'!AD$28 -> 0 | AV89: ='18'!AE$28 -> 0 | AW89: ='18'!AF$28 -> 0 | AX89: ='18'!AG$28 -> 0 | AY89: 40 | AZ89: 2019-04-29 | BA89: - | BB89: 2019-05-05 | BC89: 18
A90: 41 | B90: 2019-05-06 | C90: - | D90: 2019-05-12 | E90: ='Aperçu de la charge'!F57 -> 19 | F90: ='19'!M$27 -> 0 | G90: ='19'!N$27 -> 0 | H90: ='19'!O$27 -> 0 | I90: ='19'!P$27 -> 0 | J90: ='19'!Q$27 -> 0 | K90: ='19'!R$27 -> 0 | L90: ='19'!S$27 -> 0 | M90: ='19'!T$27 -> 0 | N90: ='19'!U$27 -> 0 | O90: ='19'!V$27 -> 0 | P90: ='19'!W$27 -> 0 | Q90: ='19'!X$27 -> 0 | R90: ='19'!Y$27 -> 0 | S90: ='19'!Z$27 -> 0 | T90: ='19'!AA$27 -> 0 | U90: ='19'!AB$27 -> 0 | V90: ='19'!AC$27 -> 0 | W90: ='19'!AD$27 -> 0 | X90: ='19'!AE$27 -> 0 | Y90: ='19'!AF$27 -> 0 | Z90: ='19'!AG$27 -> 0 | AD90: ='19'!M$28 -> 0 | AE90: ='19'!N$28 -> 0 | AF90: ='19'!O$28 -> 0 | AG90: ='19'!P$28 -> 0 | AH90: ='19'!Q$28 -> 0 | AI90: ='19'!R$28 -> 0 | AJ90: ='19'!S$28 -> 0 | AK90: ='19'!T$28 -> 0 | AL90: ='19'!U$28 -> 0 | AM90: ='19'!V$28 -> 0 | AN90: ='19'!W$28 -> 0 | AO90: ='19'!X$28 -> 0 | AP90: ='19'!Y$28 -> 0 | AQ90: ='19'!Z$28 -> 0 | AR90: ='19'!AA$28 -> 0 | AS90: ='19'!AB$28 -> 0 | AT90: ='19'!AC$28 -> 0 | AU90: ='19'!AD$28 -> 0 | AV90: ='19'!AE$28 -> 0 | AW90: ='19'!AF$28 -> 0 | AX90: ='19'!AG$28 -> 0 | AY90: 41 | AZ90: 2019-05-06 | BA90: - | BB90: 2019-05-12 | BC90: 19
A91: 42 | B91: 2019-05-13 | C91: - | D91: 2019-05-19 | E91: ='Aperçu de la charge'!F58 -> 20 | F91: ='20'!M$27 -> 0 | G91: ='20'!N$27 -> 0 | H91: ='20'!O$27 -> 0 | I91: ='20'!P$27 -> 0 | J91: ='20'!Q$27 -> 0 | K91: ='20'!R$27 -> 0 | L91: ='20'!S$27 -> 0 | M91: ='20'!T$27 -> 0 | N91: ='20'!U$27 -> 0 | O91: ='20'!V$27 -> 0 | P91: ='20'!W$27 -> 0 | Q91: ='20'!X$27 -> 0 | R91: ='20'!Y$27 -> 0 | S91: ='20'!Z$27 -> 0 | T91: ='20'!AA$27 -> 0 | U91: ='20'!AB$27 -> 0 | V91: ='20'!AC$27 -> 0 | W91: ='20'!AD$27 -> 0 | X91: ='20'!AE$27 -> 0 | Y91: ='20'!AF$27 -> 0 | Z91: ='20'!AG$27 -> 0 | AD91: ='20'!M$28 -> 0 | AE91: ='20'!N$28 -> 0 | AF91: ='20'!O$28 -> 0 | AG91: ='20'!P$28 -> 0 | AH91: ='20'!Q$28 -> 0 | AI91: ='20'!R$28 -> 0 | AJ91: ='20'!S$28 -> 0 | AK91: ='20'!T$28 -> 0 | AL91: ='20'!U$28 -> 0 | AM91: ='20'!V$28 -> 0 | AN91: ='20'!W$28 -> 0 | AO91: ='20'!X$28 -> 0 | AP91: ='20'!Y$28 -> 0 | AQ91: ='20'!Z$28 -> 0 | AR91: ='20'!AA$28 -> 0 | AS91: ='20'!AB$28 -> 0 | AT91: ='20'!AC$28 -> 0 | AU91: ='20'!AD$28 -> 0 | AV91: ='20'!AE$28 -> 0 | AW91: ='20'!AF$28 -> 0 | AX91: ='20'!AG$28 -> 0 | AY91: 42 | AZ91: 2019-05-13 | BA91: - | BB91: 2019-05-19 | BC91: 20
A92: 43 | B92: 2019-05-20 | C92: - | D92: 2019-05-26 | E92: ='Aperçu de la charge'!F59 -> 21 | F92: ='21'!M$27 -> 0 | G92: ='21'!N$27 -> 0 | H92: ='21'!O$27 -> 0 | I92: ='21'!P$27 -> 0 | J92: ='21'!Q$27 -> 0 | K92: ='21'!R$27 -> 0 | L92: ='21'!S$27 -> 0 | M92: ='21'!T$27 -> 0 | N92: ='21'!U$27 -> 0 | O92: ='21'!V$27 -> 0 | P92: ='21'!W$27 -> 0 | Q92: ='21'!X$27 -> 0 | R92: ='21'!Y$27 -> 0 | S92: ='21'!Z$27 -> 0 | T92: ='21'!AA$27 -> 0 | U92: ='21'!AB$27 -> 0 | V92: ='21'!AC$27 -> 0 | W92: ='21'!AD$27 -> 0 | X92: ='21'!AE$27 -> 0 | Y92: ='21'!AF$27 -> 0 | Z92: ='21'!AG$27 -> 0 | AD92: ='21'!M$28 -> 0 | AE92: ='21'!N$28 -> 0 | AF92: ='21'!O$28 -> 0 | AG92: ='21'!P$28 -> 0 | AH92: ='21'!Q$28 -> 0 | AI92: ='21'!R$28 -> 0 | AJ92: ='21'!S$28 -> 0 | AK92: ='21'!T$28 -> 0 | AL92: ='21'!U$28 -> 0 | AM92: ='21'!V$28 -> 0 | AN92: ='21'!W$28 -> 0 | AO92: ='21'!X$28 -> 0 | AP92: ='21'!Y$28 -> 0 | AQ92: ='21'!Z$28 -> 0 | AR92: ='21'!AA$28 -> 0 | AS92: ='21'!AB$28 -> 0 | AT92: ='21'!AC$28 -> 0 | AU92: ='21'!AD$28 -> 0 | AV92: ='21'!AE$28 -> 0 | AW92: ='21'!AF$28 -> 0 | AX92: ='21'!AG$28 -> 0 | AY92: 43 | AZ92: 2019-05-20 | BA92: - | BB92: 2019-05-26 | BC92: 21
A93: 44 | B93: 2019-05-27 | C93: - | D93: 2019-06-02 | E93: ='Aperçu de la charge'!F60 -> 22 | F93: ='22'!M$27 -> 0 | G93: ='22'!N$27 -> 0 | H93: ='22'!O$27 -> 0 | I93: ='22'!P$27 -> 0 | J93: ='22'!Q$27 -> 0 | K93: ='22'!R$27 -> 0 | L93: ='22'!S$27 -> 0 | M93: ='22'!T$27 -> 0 | N93: ='22'!U$27 -> 0 | O93: ='22'!V$27 -> 0 | P93: ='22'!W$27 -> 0 | Q93: ='22'!X$27 -> 0 | R93: ='22'!Y$27 -> 0 | S93: ='22'!Z$27 -> 0 | T93: ='22'!AA$27 -> 0 | U93: ='22'!AB$27 -> 0 | V93: ='22'!AC$27 -> 0 | W93: ='22'!AD$27 -> 0 | X93: ='22'!AE$27 -> 0 | Y93: ='22'!AF$27 -> 0 | Z93: ='22'!AG$27 -> 0 | AD93: ='22'!M$28 -> 0 | AE93: ='22'!N$28 -> 0 | AF93: ='22'!O$28 -> 0 | AG93: ='22'!P$28 -> 0 | AH93: ='22'!Q$28 -> 0 | AI93: ='22'!R$28 -> 0 | AJ93: ='22'!S$28 -> 0 | AK93: ='22'!T$28 -> 0 | AL93: ='22'!U$28 -> 0 | AM93: ='22'!V$28 -> 0 | AN93: ='22'!W$28 -> 0 | AO93: ='22'!X$28 -> 0 | AP93: ='22'!Y$28 -> 0 | AQ93: ='22'!Z$28 -> 0 | AR93: ='22'!AA$28 -> 0 | AS93: ='22'!AB$28 -> 0 | AT93: ='22'!AC$28 -> 0 | AU93: ='22'!AD$28 -> 0 | AV93: ='22'!AE$28 -> 0 | AW93: ='22'!AF$28 -> 0 | AX93: ='22'!AG$28 -> 0 | AY93: 44 | AZ93: 2019-05-27 | BA93: - | BB93: 2019-06-02 | BC93: 22
A94: 45 | B94: 2019-06-03 | C94: - | D94: 2019-06-09 | E94: ='Aperçu de la charge'!F61 -> 23 | F94: ='23'!M$27 -> 0 | G94: ='23'!N$27 -> 0 | H94: ='23'!O$27 -> 0 | I94: ='23'!P$27 -> 0 | J94: ='23'!Q$27 -> 0 | K94: ='23'!R$27 -> 0 | L94: ='23'!S$27 -> 0 | M94: ='23'!T$27 -> 0 | N94: ='23'!U$27 -> 0 | O94: ='23'!V$27 -> 0 | P94: ='23'!W$27 -> 0 | Q94: ='23'!X$27 -> 0 | R94: ='23'!Y$27 -> 0 | S94: ='23'!Z$27 -> 0 | T94: ='23'!AA$27 -> 0 | U94: ='23'!AB$27 -> 0 | V94: ='23'!AC$27 -> 0 | W94: ='23'!AD$27 -> 0 | X94: ='23'!AE$27 -> 0 | Y94: ='23'!AF$27 -> 0 | Z94: ='23'!AG$27 -> 0 | AD94: ='23'!M$28 -> 0 | AE94: ='23'!N$28 -> 0 | AF94: ='23'!O$28 -> 0 | AG94: ='23'!P$28 -> 0 | AH94: ='23'!Q$28 -> 0 | AI94: ='23'!R$28 -> 0 | AJ94: ='23'!S$28 -> 0 | AK94: ='23'!T$28 -> 0 | AL94: ='23'!U$28 -> 0 | AM94: ='23'!V$28 -> 0 | AN94: ='23'!W$28 -> 0 | AO94: ='23'!X$28 -> 0 | AP94: ='23'!Y$28 -> 0 | AQ94: ='23'!Z$28 -> 0 | AR94: ='23'!AA$28 -> 0 | AS94: ='23'!AB$28 -> 0 | AT94: ='23'!AC$28 -> 0 | AU94: ='23'!AD$28 -> 0 | AV94: ='23'!AE$28 -> 0 | AW94: ='23'!AF$28 -> 0 | AX94: ='23'!AG$28 -> 0 | AY94: 45 | AZ94: 2019-06-03 | BA94: - | BB94: 2019-06-09 | BC94: 23
A95: 46 | B95: 2019-06-10 | C95: - | D95: 2019-06-16 | E95: ='Aperçu de la charge'!F62 -> 24 | F95: ='24'!M$27 -> 0 | G95: ='24'!N$27 -> 0 | H95: ='24'!O$27 -> 0 | I95: ='24'!P$27 -> 0 | J95: ='24'!Q$27 -> 0 | K95: ='24'!R$27 -> 0 | L95: ='24'!S$27 -> 0 | M95: ='24'!T$27 -> 0 | N95: ='24'!U$27 -> 0 | O95: ='24'!V$27 -> 0 | P95: ='24'!W$27 -> 0 | Q95: ='24'!X$27 -> 0 | R95: ='24'!Y$27 -> 0 | S95: ='24'!Z$27 -> 0 | T95: ='24'!AA$27 -> 0 | U95: ='24'!AB$27 -> 0 | V95: ='24'!AC$27 -> 0 | W95: ='24'!AD$27 -> 0 | X95: ='24'!AE$27 -> 0 | Y95: ='24'!AF$27 -> 0 | Z95: ='24'!AG$27 -> 0 | AD95: ='24'!M$28 -> 0 | AE95: ='24'!N$28 -> 0 | AF95: ='24'!O$28 -> 0 | AG95: ='24'!P$28 -> 0 | AH95: ='24'!Q$28 -> 0 | AI95: ='24'!R$28 -> 0 | AJ95: ='24'!S$28 -> 0 | AK95: ='24'!T$28 -> 0 | AL95: ='24'!U$28 -> 0 | AM95: ='24'!V$28 -> 0 | AN95: ='24'!W$28 -> 0 | AO95: ='24'!X$28 -> 0 | AP95: ='24'!Y$28 -> 0 | AQ95: ='24'!Z$28 -> 0 | AR95: ='24'!AA$28 -> 0 | AS95: ='24'!AB$28 -> 0 | AT95: ='24'!AC$28 -> 0 | AU95: ='24'!AD$28 -> 0 | AV95: ='24'!AE$28 -> 0 | AW95: ='24'!AF$28 -> 0 | AX95: ='24'!AG$28 -> 0 | AY95: 46 | AZ95: 2019-06-10 | BA95: - | BB95: 2019-06-16 | BC95: 24
A96: 47 | B96: 2019-06-17 | C96: - | D96: 2019-06-23 | E96: ='Aperçu de la charge'!F63 -> 25 | F96: ='25'!M$27 -> 0 | G96: ='25'!N$27 -> 0 | H96: ='25'!O$27 -> 0 | I96: ='25'!P$27 -> 0 | J96: ='25'!Q$27 -> 0 | K96: ='25'!R$27 -> 0 | L96: ='25'!S$27 -> 0 | M96: ='25'!T$27 -> 0 | N96: ='25'!U$27 -> 0 | O96: ='25'!V$27 -> 0 | P96: ='25'!W$27 -> 0 | Q96: ='25'!X$27 -> 0 | R96: ='25'!Y$27 -> 0 | S96: ='25'!Z$27 -> 0 | T96: ='25'!AA$27 -> 0 | U96: ='25'!AB$27 -> 0 | V96: ='25'!AC$27 -> 0 | W96: ='25'!AD$27 -> 0 | X96: ='25'!AE$27 -> 0 | Y96: ='25'!AF$27 -> 0 | Z96: ='25'!AG$27 -> 0 | AD96: ='25'!M$28 -> 0 | AE96: ='25'!N$28 -> 0 | AF96: ='25'!O$28 -> 0 | AG96: ='25'!P$28 -> 0 | AH96: ='25'!Q$28 -> 0 | AI96: ='25'!R$28 -> 0 | AJ96: ='25'!S$28 -> 0 | AK96: ='25'!T$28 -> 0 | AL96: ='25'!U$28 -> 0 | AM96: ='25'!V$28 -> 0 | AN96: ='25'!W$28 -> 0 | AO96: ='25'!X$28 -> 0 | AP96: ='25'!Y$28 -> 0 | AQ96: ='25'!Z$28 -> 0 | AR96: ='25'!AA$28 -> 0 | AS96: ='25'!AB$28 -> 0 | AT96: ='25'!AC$28 -> 0 | AU96: ='25'!AD$28 -> 0 | AV96: ='25'!AE$28 -> 0 | AW96: ='25'!AF$28 -> 0 | AX96: ='25'!AG$28 -> 0 | AY96: 47 | AZ96: 2019-06-17 | BA96: - | BB96: 2019-06-23 | BC96: 25
A97: 48 | B97: 2019-06-24 | C97: - | D97: 2019-06-30 | E97: ='Aperçu de la charge'!F64 -> 26 | F97: ='26'!M$27 -> 0 | G97: ='26'!N$27 -> 0 | H97: ='26'!O$27 -> 0 | I97: ='26'!P$27 -> 0 | J97: ='26'!Q$27 -> 0 | K97: ='26'!R$27 -> 0 | L97: ='26'!S$27 -> 0 | M97: ='26'!T$27 -> 0 | N97: ='26'!U$27 -> 0 | O97: ='26'!V$27 -> 0 | P97: ='26'!W$27 -> 0 | Q97: ='26'!X$27 -> 0 | R97: ='26'!Y$27 -> 0 | S97: ='26'!Z$27 -> 0 | T97: ='26'!AA$27 -> 0 | U97: ='26'!AB$27 -> 0 | V97: ='26'!AC$27 -> 0 | W97: ='26'!AD$27 -> 0 | X97: ='26'!AE$27 -> 0 | Y97: ='26'!AF$27 -> 0 | Z97: ='26'!AG$27 -> 0 | AD97: ='26'!M$28 -> 0 | AE97: ='26'!N$28 -> 0 | AF97: ='26'!O$28 -> 0 | AG97: ='26'!P$28 -> 0 | AH97: ='26'!Q$28 -> 0 | AI97: ='26'!R$28 -> 0 | AJ97: ='26'!S$28 -> 0 | AK97: ='26'!T$28 -> 0 | AL97: ='26'!U$28 -> 0 | AM97: ='26'!V$28 -> 0 | AN97: ='26'!W$28 -> 0 | AO97: ='26'!X$28 -> 0 | AP97: ='26'!Y$28 -> 0 | AQ97: ='26'!Z$28 -> 0 | AR97: ='26'!AA$28 -> 0 | AS97: ='26'!AB$28 -> 0 | AT97: ='26'!AC$28 -> 0 | AU97: ='26'!AD$28 -> 0 | AV97: ='26'!AE$28 -> 0 | AW97: ='26'!AF$28 -> 0 | AX97: ='26'!AG$28 -> 0 | AY97: 48 | AZ97: 2019-06-24 | BA97: - | BB97: 2019-06-30 | BC97: 26
A98: 49 | B98: 2019-07-01 | C98: - | D98: 2019-07-07 | E98: ='Aperçu de la charge'!F65 -> 27 | F98: ='27'!M$27 -> 0 | G98: ='27'!N$27 -> 0 | H98: ='27'!O$27 -> 0 | I98: ='27'!P$27 -> 0 | J98: ='27'!Q$27 -> 0 | K98: ='27'!R$27 -> 0 | L98: ='27'!S$27 -> 0 | M98: ='27'!T$27 -> 0 | N98: ='27'!U$27 -> 0 | O98: ='27'!V$27 -> 0 | P98: ='27'!W$27 -> 0 | Q98: ='27'!X$27 -> 0 | R98: ='27'!Y$27 -> 0 | S98: ='27'!Z$27 -> 0 | T98: ='27'!AA$27 -> 0 | U98: ='27'!AB$27 -> 0 | V98: ='27'!AC$27 -> 0 | W98: ='27'!AD$27 -> 0 | X98: ='27'!AE$27 -> 0 | Y98: ='27'!AF$27 -> 0 | Z98: ='27'!AG$27 -> 0 | AD98: ='27'!M$28 -> 0 | AE98: ='27'!N$28 -> 0 | AF98: ='27'!O$28 -> 0 | AG98: ='27'!P$28 -> 0 | AH98: ='27'!Q$28 -> 0 | AI98: ='27'!R$28 -> 0 | AJ98: ='27'!S$28 -> 0 | AK98: ='27'!T$28 -> 0 | AL98: ='27'!U$28 -> 0 | AM98: ='27'!V$28 -> 0 | AN98: ='27'!W$28 -> 0 | AO98: ='27'!X$28 -> 0 | AP98: ='27'!Y$28 -> 0 | AQ98: ='27'!Z$28 -> 0 | AR98: ='27'!AA$28 -> 0 | AS98: ='27'!AB$28 -> 0 | AT98: ='27'!AC$28 -> 0 | AU98: ='27'!AD$28 -> 0 | AV98: ='27'!AE$28 -> 0 | AW98: ='27'!AF$28 -> 0 | AX98: ='27'!AG$28 -> 0 | AY98: 49 | AZ98: 2019-07-01 | BA98: - | BB98: 2019-07-07 | BC98: 27
A99: 50 | B99: 2019-07-08 | C99: - | D99: 2019-07-14 | E99: ='Aperçu de la charge'!F66 -> 28 | F99: ='28'!M$27 -> 0 | G99: ='28'!N$27 -> 0 | H99: ='28'!O$27 -> 0 | I99: ='28'!P$27 -> 0 | J99: ='28'!Q$27 -> 0 | K99: ='28'!R$27 -> 0 | L99: ='28'!S$27 -> 0 | M99: ='28'!T$27 -> 0 | N99: ='28'!U$27 -> 0 | O99: ='28'!V$27 -> 0 | P99: ='28'!W$27 -> 0 | Q99: ='28'!X$27 -> 0 | R99: ='28'!Y$27 -> 0 | S99: ='28'!Z$27 -> 0 | T99: ='28'!AA$27 -> 0 | U99: ='28'!AB$27 -> 0 | V99: ='28'!AC$27 -> 0 | W99: ='28'!AD$27 -> 0 | X99: ='28'!AE$27 -> 0 | Y99: ='28'!AF$27 -> 0 | Z99: ='28'!AG$27 -> 0 | AD99: ='28'!M$28 -> 0 | AE99: ='28'!N$28 -> 0 | AF99: ='28'!O$28 -> 0 | AG99: ='28'!P$28 -> 0 | AH99: ='28'!Q$28 -> 0 | AI99: ='28'!R$28 -> 0 | AJ99: ='28'!S$28 -> 0 | AK99: ='28'!T$28 -> 0 | AL99: ='28'!U$28 -> 0 | AM99: ='28'!V$28 -> 0 | AN99: ='28'!W$28 -> 0 | AO99: ='28'!X$28 -> 0 | AP99: ='28'!Y$28 -> 0 | AQ99: ='28'!Z$28 -> 0 | AR99: ='28'!AA$28 -> 0 | AS99: ='28'!AB$28 -> 0 | AT99: ='28'!AC$28 -> 0 | AU99: ='28'!AD$28 -> 0 | AV99: ='28'!AE$28 -> 0 | AW99: ='28'!AF$28 -> 0 | AX99: ='28'!AG$28 -> 0 | AY99: 50 | AZ99: 2019-07-08 | BA99: - | BB99: 2019-07-14 | BC99: 28
A100: 51 | B100: 2019-07-15 | C100: - | D100: 2019-07-21 | E100: ='Aperçu de la charge'!F67 -> 29 | F100: ='29'!M$27 -> 0 | G100: ='29'!N$27 -> 0 | H100: ='29'!O$27 -> 0 | I100: ='29'!P$27 -> 0 | J100: ='29'!Q$27 -> 0 | K100: ='29'!R$27 -> 0 | L100: ='29'!S$27 -> 0 | M100: ='29'!T$27 -> 0 | N100: ='29'!U$27 -> 0 | O100: ='29'!V$27 -> 0 | P100: ='29'!W$27 -> 0 | Q100: ='29'!X$27 -> 0 | R100: ='29'!Y$27 -> 0 | S100: ='29'!Z$27 -> 0 | T100: ='29'!AA$27 -> 0 | U100: ='29'!AB$27 -> 0 | V100: ='29'!AC$27 -> 0 | W100: ='29'!AD$27 -> 0 | X100: ='29'!AE$27 -> 0 | Y100: ='29'!AF$27 -> 0 | Z100: ='29'!AG$27 -> 0 | AD100: ='29'!M$28 -> 0 | AE100: ='29'!N$28 -> 0 | AF100: ='29'!O$28 -> 0 | AG100: ='29'!P$28 -> 0 | AH100: ='29'!Q$28 -> 0 | AI100: ='29'!R$28 -> 0 | AJ100: ='29'!S$28 -> 0 | AK100: ='29'!T$28 -> 0 | AL100: ='29'!U$28 -> 0 | AM100: ='29'!V$28 -> 0 | AN100: ='29'!W$28 -> 0 | AO100: ='29'!X$28 -> 0 | AP100: ='29'!Y$28 -> 0 | AQ100: ='29'!Z$28 -> 0 | AR100: ='29'!AA$28 -> 0 | AS100: ='29'!AB$28 -> 0 | AT100: ='29'!AC$28 -> 0 | AU100: ='29'!AD$28 -> 0 | AV100: ='29'!AE$28 -> 0 | AW100: ='29'!AF$28 -> 0 | AX100: ='29'!AG$28 -> 0 | AY100: 51 | AZ100: 2019-07-15 | BA100: - | BB100: 2019-07-21 | BC100: 29
A101: 52 | B101: 2019-07-22 | C101: - | D101: 2019-07-28 | E101: ='Aperçu de la charge'!F68 -> 30 | F101: ='30'!M$27 -> 0 | G101: ='30'!N$27 -> 0 | H101: ='30'!O$27 -> 0 | I101: ='30'!P$27 -> 0 | J101: ='30'!Q$27 -> 0 | K101: ='30'!R$27 -> 0 | L101: ='30'!S$27 -> 0 | M101: ='30'!T$27 -> 0 | N101: ='30'!U$27 -> 0 | O101: ='30'!V$27 -> 0 | P101: ='30'!W$27 -> 0 | Q101: ='30'!X$27 -> 0 | R101: ='30'!Y$27 -> 0 | S101: ='30'!Z$27 -> 0 | T101: ='30'!AA$27 -> 0 | U101: ='30'!AB$27 -> 0 | V101: ='30'!AC$27 -> 0 | W101: ='30'!AD$27 -> 0 | X101: ='30'!AE$27 -> 0 | Y101: ='30'!AF$27 -> 0 | Z101: ='30'!AG$27 -> 0 | AD101: ='30'!M$28 -> 0 | AE101: ='30'!N$28 -> 0 | AF101: ='30'!O$28 -> 0 | AG101: ='30'!P$28 -> 0 | AH101: ='30'!Q$28 -> 0 | AI101: ='30'!R$28 -> 0 | AJ101: ='30'!S$28 -> 0 | AK101: ='30'!T$28 -> 0 | AL101: ='30'!U$28 -> 0 | AM101: ='30'!V$28 -> 0 | AN101: ='30'!W$28 -> 0 | AO101: ='30'!X$28 -> 0 | AP101: ='30'!Y$28 -> 0 | AQ101: ='30'!Z$28 -> 0 | AR101: ='30'!AA$28 -> 0 | AS101: ='30'!AB$28 -> 0 | AT101: ='30'!AC$28 -> 0 | AU101: ='30'!AD$28 -> 0 | AV101: ='30'!AE$28 -> 0 | AW101: ='30'!AF$28 -> 0 | AX101: ='30'!AG$28 -> 0 | AY101: 52 | AZ101: 2019-07-22 | BA101: - | BB101: 2019-07-28 | BC101: 30
E102: Total entrainements | F102: =DSUM($A$46:H101,F47,$A$46:$B$47) -> 0 | G102: =DSUM($A$46:L101,G47,$A$46:$B$47) -> 0 | H102: =DSUM($A$46:M101,H47,$A$46:$B$47) -> 0 | I102: =DSUM($A$46:K101,I47,$A$46:$B$47) -> 0 | J102: =DSUM($A$46:O101,J47,$A$46:$B$47) -> 0 | K102: =DSUM($A$46:P101,K47,$A$46:$B$47) -> 0 | L102: =DSUM($A$46:N101,L47,$A$46:$B$47) -> 0 | M102: =DSUM($A$46:O101,M47,$A$46:$B$47) -> 0 | N102: =DSUM($A$46:P101,N47,$A$46:$B$47) -> 0 | O102: =DSUM($A$46:Q101,O47,$A$46:$B$47) -> 0 | P102: =DSUM($A$46:R101,P47,$A$46:$B$47) -> 0 | Q102: =DSUM($A$46:S101,Q47,$A$46:$B$47) -> 0 | R102: =DSUM($A$46:T101,R47,$A$46:$B$47) -> 0 | S102: =DSUM($A$46:U101,S47,$A$46:$B$47) -> 0 | T102: =DSUM($A$46:V101,T47,$A$46:$B$47) -> 0 | U102: =DSUM($A$46:W101,U47,$A$46:$B$47) -> 0 | V102: =DSUM($A$46:X101,V47,$A$46:$B$47) -> 0 | W102: =DSUM($A$46:Y101,W47,$A$46:$B$47) -> 0 | X102: =DSUM($A$46:Z101,X47,$A$46:$B$47) -> 0 | Y102: =DSUM($A$46:AA101,Y47,$A$46:$B$47) -> 0 | Z102: =DSUM($A$46:AC101,Z47,$A$46:$B$47) -> 0 | AC102: Total heures d'entr. | AD102: =DSUM($AD$46:AZ101,AD47,$AY$46:$AZ$47)/60 -> 0 | AE102: =DSUM($AD$46:BA101,AE47,$AY$46:$AZ$47)/60 -> 0 | AF102: =DSUM($AD$46:BB101,AF47,$AY$46:$AZ$47)/60 -> 0 | AG102: =DSUM($AD$46:BC101,AG47,$AY$46:$AZ$47)/60 -> 0 | AH102: =DSUM($AD$46:BD101,AH47,$AY$46:$AZ$47)/60 -> 0 | AI102: =DSUM($AD$46:BE101,AI47,$AY$46:$AZ$47)/60 -> 0 | AJ102: =DSUM($AD$46:BC101,AJ47,$AY$46:$AZ$47)/60 -> 0 | AK102: =DSUM($AD$46:BC101,AK47,$AY$46:$AZ$47)/60 -> 0 | AL102: =DSUM($AD$46:BC101,AL47,$AY$46:$AZ$47)/60 -> 0 | AM102: =DSUM($AD$46:BC101,AM47,$AY$46:$AZ$47)/60 -> 0 | AN102: =DSUM($AD$46:BC101,AN47,$AY$46:$AZ$47)/60 -> 0 | AO102: =DSUM($AD$46:BC101,AO47,$AY$46:$AZ$47)/60 -> 0 | AP102: =DSUM($AD$46:BC101,AP47,$AY$46:$AZ$47)/60 -> 0 | AQ102: =DSUM($AD$46:BC101,AQ47,$AY$46:$AZ$47)/60 -> 0 | AR102: =DSUM($AD$46:BC101,AR47,$AY$46:$AZ$47)/60 -> 0 | AS102: =DSUM($AD$46:BC101,AS47,$AY$46:$AZ$47)/60 -> 0 | AT102: =DSUM($AD$46:BC101,AT47,$AY$46:$AZ$47)/60 -> 0 | AU102: =DSUM($AD$46:BC101,AU47,$AY$46:$AZ$47)/60 -> 0 | AV102: =DSUM($AD$46:BC101,AV47,$AY$46:$AZ$47)/60 -> 0 | AW102: =DSUM($AD$46:BC101,AW47,$AY$46:$AZ$47)/60 -> 0 | AX102: =DSUM($AD$46:BC101,AX47,$AY$46:$AZ$47)/60 -> 0
E103: % des sports | F103: =SUM(F102:H102)/(SUM($F$102:$Z$102)) ->  | I103: =SUM(I102:K102)/(SUM($F$102:$Z$102)) ->  | L103: =SUM(L102:N102)/(SUM($F$102:$Z$102)) ->  | O103: =SUM(O102:Q102)/(SUM($F$102:$Z$102)) ->  | R103: =SUM(R102:T102)/(SUM($F$102:$Z$102)) ->  | U103: =SUM(U102:W102)/(SUM($F$102:$Z$102)) ->  | X103: =SUM(X102:Z102)/(SUM($F$102:$Z$102)) ->  | AC103: % des sports | AD103: =SUM(AD102:AF102)/(SUM($F$102:$Z$102)) ->  | AG103: =SUM(AG102:AI102)/(SUM($F$102:$Z$102)) ->  | AJ103: =SUM(AJ102:AL102)/(SUM($F$102:$Z$102)) ->  | AM103: =SUM(AM102:AO102)/(SUM($F$102:$Z$102)) ->  | AP103: =SUM(AP102:AR102)/(SUM($F$102:$Z$102)) ->  | AS103: =SUM(AS102:AU102)/(SUM($F$102:$Z$102)) ->  | AV103: =SUM(AV102:AX102)/(SUM($F$102:$Z$102)) -> 
E104: Répartition des intensités (total) | F104: =SUM(F102,I102,L102,O102,R102,U102,X102)/SUM($F$102:$Z$102) ->  | G104: =SUM(G102,J102,M102,P102,S102,V102,Y102)/SUM($F$102:$Z$102) ->  | H104: =SUM(H102,K102,N102,Q102,T102,W102,Z102)/SUM($F$102:$Z$102) ->  | AC104: Répartition des intensités (total) | AD104: =SUM(AD102,AG102,AJ102,AM102,AP102,AS102,AV102)/SUM($F$102:$Z$102) ->  | AE104: =SUM(AE102,AH102,AK102,AN102,AQ102,AT102,AW102)/SUM($F$102:$Z$102) ->  | AF104: =SUM(AF102,AI102,AL102,AO102,AR102,AU102,AX102)/SUM($F$102:$Z$102) -> 
E105: Répartition des intensités (par sport) | F105: =F102/SUM($F$102:$H$102) ->  | G105: =G102/SUM($F$102:$H$102) ->  | H105: =H102/SUM($F$102:$H$102) ->  | I105: =I102/SUM($L$102:$N$102) ->  | O105: =O102/SUM($O$102:$Q$102) ->  | P105: =P102/SUM($O$102:$Q$102) ->  | Q105: =Q102/SUM($O$102:$Q$102) ->  | R105: =R102/SUM($R$102:$T$102) ->  | S105: =S102/SUM($R$102:$T$102) ->  | T105: =T102/SUM($R$102:$T$102) ->  | U105: =U102/SUM($U$102:$W$102) ->  | V105: =V102/SUM($U$102:$W$102) ->  | W105: =W102/SUM($U$102:$W$102) ->  | X105: =X102/SUM($X$102:$Z$102) ->  | Y105: =Y102/SUM($X$102:$Z$102) ->  | Z105: =Z102/SUM($X$102:$Z$102) ->  | AC105: Répartition des intensités (par sport) | AD105: =AD102/SUM($AD$102:$AF$102) ->  | AE105: =AE102/SUM($AD$102:$AF$102) ->  | AF105: =AF102/SUM($AD$102:$AF$102) ->  | AJ105: =AJ102/SUM($AJ$102:$AL$102) ->  | AK105: =AK102/SUM($AJ$102:$AL$102) ->  | AL105: =AL102/SUM($AJ$102:$AL$102) ->  | AM105: =AM102/SUM($AM$102:$AO$102) ->  | AN105: =AN102/SUM($AM$102:$AO$102) ->  | AO105: =AO102/SUM($AM$102:$AO$102) ->  | AP105: =AP102/SUM($AP$102:$AR$102) ->  | AQ105: =AQ102/SUM($AP$102:$AR$102) ->  | AR105: =AR102/SUM($AP$102:$AR$102) ->  | AS105: =AS102/SUM($AS$102:$AU$102) ->  | AT105: =AT102/SUM($AS$102:$AU$102) ->  | AU105: =AU102/SUM($AS$102:$AU$102) ->  | AV105: =AV102/SUM($AV$102:$AX$102) ->  | AW105: =AW102/SUM($AV$102:$AX$102) ->  | AX105: =AX102/SUM($AV$102:$AX$102) -> 
E171: Total | F171: =F48 -> Club - VB | G171: =L48 -> Club - BVB | H171: =O48 -> TS/ Nati - BVB | I171: =R48 -> Force & fitness | J171: =U48 -> Compet. - VB | K171: =X48 -> Compet. - BVB

Sheet Régénération-sommeil-poids
A1: Régénération-sommeil-poids
D2: Gewicht-Motiv-Schlaf
B3: Athlète : | C3: ='Aperçu de la charge'!D2 -> Prénom Nom | G3: Année : | H3: ='Aperçu de la charge'!N2 -> 2018/2019
A5: Semaine | B5: Date | E5: Poids | F5: régénération ressentie | G5: Schlafqualität | H5: Schlafdauer | I5: Schlaf-abweichung
E6: Kg | F6: 1-5 | G6: 1-5 | H6: Std | I6: Std
A7: ='Aperçu de la charge'!F17 -> 31 | B7: ='Aperçu de la charge'!C17 -> 2018-07-30 | C7: ='Aperçu de la charge'!D17 -> - | D7: ='Aperçu de la charge'!E17 -> 2018-08-05 | E7: =IF('31'!D$26="","",'31'!D$26) -> 0 | F7: =IF('31'!E$26="","",'31'!E$26) -> 0 | G7: =IF('31'!F$26="","",'31'!F$26) -> 0 | H7: =IF('31'!G$26="","",'31'!G$26) -> 0 | I7: =IF('31'!G$27="","",'31'!G$27) -> 0 | AO7: =IF(E7="",#N/A,E7) -> 0 | AP7: =IF(F7="",#N/A,F7) -> 0 | AQ7: =IF(G7="",#N/A,G7) -> 0 | AR7: =IF(H7="",#N/A,H7) -> 0 | AS7: =IF(I7="",#N/A,I7) -> 0
A8: ='Aperçu de la charge'!F18 -> 32 | B8: ='Aperçu de la charge'!C18 -> 2018-08-06 | C8: ='Aperçu de la charge'!D18 -> - | D8: ='Aperçu de la charge'!E18 -> 2018-08-12 | E8: =IF('32'!D$26="","",'32'!D$26) -> 0 | F8: =IF('32'!E$26="","",'32'!E$26) -> 0 | G8: =IF('32'!F$26="","",'32'!F$26) -> 0 | H8: =IF('32'!G$26="","",'32'!G$26) -> 0 | I8: =IF('32'!G$27="","",'32'!G$27) -> 0 | AO8: =IF(E8="",#N/A,E8) -> 0 | AP8: =IF(F8="",#N/A,F8) -> 0 | AQ8: =IF(G8="",#N/A,G8) -> 0 | AR8: =IF(H8="",#N/A,H8) -> 0 | AS8: =IF(I8="",#N/A,I8) -> 0
A9: ='Aperçu de la charge'!F19 -> 33 | B9: ='Aperçu de la charge'!C19 -> 2018-08-13 | C9: ='Aperçu de la charge'!D19 -> - | D9: ='Aperçu de la charge'!E19 -> 2018-08-19 | E9: =IF('33'!D$26="","",'33'!D$26) -> 0 | F9: =IF('33'!E$26="","",'33'!E$26) -> 0 | G9: =IF('33'!F$26="","",'33'!F$26) -> 0 | H9: =IF('33'!G$26="","",'33'!G$26) -> 0 | I9: =IF('33'!G$27="","",'33'!G$27) -> 0 | AO9: 0 | AP9: 0 | AQ9: 0 | AR9: 0 | AS9: 0
A10: ='Aperçu de la charge'!F20 -> 34 | B10: ='Aperçu de la charge'!C20 -> 2018-08-20 | C10: ='Aperçu de la charge'!D20 -> - | D10: ='Aperçu de la charge'!E20 -> 2018-08-26 | E10: =IF('34'!D$26="","",'34'!D$26) -> 0 | F10: =IF('34'!E$26="","",'34'!E$26) -> 0 | G10: =IF('34'!F$26="","",'34'!F$26) -> 0 | H10: =IF('34'!G$26="","",'34'!G$26) -> 0 | I10: =IF('34'!G$27="","",'34'!G$27) -> 0 | AO10: 0 | AP10: 0 | AQ10: 0 | AR10: 0 | AS10: 0
A11: ='Aperçu de la charge'!F21 -> 35 | B11: ='Aperçu de la charge'!C21 -> 2018-08-27 | C11: ='Aperçu de la charge'!D21 -> - | D11: ='Aperçu de la charge'!E21 -> 2018-09-02 | E11: =IF('35'!D$26="","",'35'!D$26) -> 0 | F11: =IF('35'!E$26="","",'35'!E$26) -> 0 | G11: =IF('35'!F$26="","",'35'!F$26) -> 0 | H11: =IF('35'!G$26="","",'35'!G$26) -> 0 | I11: =IF('35'!G$27="","",'35'!G$27) -> 0 | AO11: 0 | AP11: 0 | AQ11: 0 | AR11: 0 | AS11: 0
A12: ='Aperçu de la charge'!F22 -> 36 | B12: ='Aperçu de la charge'!C22 -> 2018-09-03 | C12: ='Aperçu de la charge'!D22 -> - | D12: ='Aperçu de la charge'!E22 -> 2018-09-09 | E12: =IF('36'!D$26="","",'36'!D$26) -> 0 | F12: =IF('36'!E$26="","",'36'!E$26) -> 0 | G12: =IF('36'!F$26="","",'36'!F$26) -> 0 | H12: =IF('36'!G$26="","",'36'!G$26) -> 0 | I12: =IF('36'!G$27="","",'36'!G$27) -> 0 | AO12: 0 | AP12: 0 | AQ12: 0 | AR12: 0 | AS12: 0
A13: ='Aperçu de la charge'!F23 -> 37 | B13: ='Aperçu de la charge'!C23 -> 2018-09-10 | C13: ='Aperçu de la charge'!D23 -> - | D13: ='Aperçu de la charge'!E23 -> 2018-09-16 | E13: =IF('37'!D$26="","",'37'!D$26) -> 0 | F13: =IF('37'!E$26="","",'37'!E$26) -> 0 | G13: =IF('37'!F$26="","",'37'!F$26) -> 0 | H13: =IF('37'!G$26="","",'37'!G$26) -> 0 | I13: =IF('37'!G$27="","",'37'!G$27) -> 0 | AO13: 0 | AP13: 0 | AQ13: 0 | AR13: 0 | AS13: 0
A14: ='Aperçu de la charge'!F24 -> 38 | B14: ='Aperçu de la charge'!C24 -> 2018-09-17 | C14: ='Aperçu de la charge'!D24 -> - | D14: ='Aperçu de la charge'!E24 -> 2018-09-23 | E14: =IF('38'!D$26="","",'38'!D$26) -> 0 | F14: =IF('38'!E$26="","",'38'!E$26) -> 0 | G14: =IF('38'!F$26="","",'38'!F$26) -> 0 | H14: =IF('38'!G$26="","",'38'!G$26) -> 0 | I14: =IF('38'!G$27="","",'38'!G$27) -> 0 | AO14: 0 | AP14: 0 | AQ14: 0 | AR14: 0 | AS14: 0
A15: ='Aperçu de la charge'!F25 -> 39 | B15: ='Aperçu de la charge'!C25 -> 2018-09-24 | C15: ='Aperçu de la charge'!D25 -> - | D15: ='Aperçu de la charge'!E25 -> 2018-09-30 | E15: =IF('39'!D$26="","",'39'!D$26) -> 0 | F15: =IF('39'!E$26="","",'39'!E$26) -> 0 | G15: =IF('39'!F$26="","",'39'!F$26) -> 0 | H15: =IF('39'!G$26="","",'39'!G$26) -> 0 | I15: =IF('39'!G$27="","",'39'!G$27) -> 0 | AO15: 0 | AP15: 0 | AQ15: 0 | AR15: 0 | AS15: 0
A16: ='Aperçu de la charge'!F26 -> 40 | B16: ='Aperçu de la charge'!C26 -> 2018-10-01 | C16: ='Aperçu de la charge'!D26 -> - | D16: ='Aperçu de la charge'!E26 -> 2018-10-07 | E16: =IF('40'!D$26="","",'40'!D$26) -> 0 | F16: =IF('40'!E$26="","",'40'!E$26) -> 0 | G16: =IF('40'!F$26="","",'40'!F$26) -> 0 | H16: =IF('40'!G$26="","",'40'!G$26) -> 0 | I16: =IF('40'!G$27="","",'40'!G$27) -> 0 | AO16: 0 | AP16: 0 | AQ16: 0 | AR16: 0 | AS16: 0
A17: ='Aperçu de la charge'!F27 -> 41 | B17: ='Aperçu de la charge'!C27 -> 2018-10-08 | C17: ='Aperçu de la charge'!D27 -> - | D17: ='Aperçu de la charge'!E27 -> 2018-10-14 | E17: =IF('41'!D$26="","",'41'!D$26) -> 0 | F17: =IF('41'!E$26="","",'41'!E$26) -> 0 | G17: =IF('41'!F$26="","",'41'!F$26) -> 0 | H17: =IF('41'!G$26="","",'41'!G$26) -> 0 | I17: =IF('41'!G$27="","",'41'!G$27) -> 0 | AO17: 0 | AP17: 0 | AQ17: 0 | AR17: 0 | AS17: 0
A18: ='Aperçu de la charge'!F28 -> 42 | B18: ='Aperçu de la charge'!C28 -> 2018-10-15 | C18: ='Aperçu de la charge'!D28 -> - | D18: ='Aperçu de la charge'!E28 -> 2018-10-21 | E18: =IF('42'!D$26="","",'42'!D$26) -> 0 | F18: =IF('42'!E$26="","",'42'!E$26) -> 0 | G18: =IF('42'!F$26="","",'42'!F$26) -> 0 | H18: =IF('42'!G$26="","",'42'!G$26) -> 0 | I18: =IF('42'!G$27="","",'42'!G$27) -> 0 | AO18: 0 | AP18: 0 | AQ18: 0 | AR18: 0 | AS18: 0
A19: ='Aperçu de la charge'!F29 -> 43 | B19: ='Aperçu de la charge'!C29 -> 2018-10-22 | C19: ='Aperçu de la charge'!D29 -> - | D19: ='Aperçu de la charge'!E29 -> 2018-10-28 | E19: =IF('43'!D$26="","",'43'!D$26) -> 0 | F19: =IF('43'!E$26="","",'43'!E$26) -> 0 | G19: =IF('43'!F$26="","",'43'!F$26) -> 0 | H19: =IF('43'!G$26="","",'43'!G$26) -> 0 | I19: =IF('43'!G$27="","",'43'!G$27) -> 0 | AO19: 0 | AP19: 0 | AQ19: 0 | AR19: 0 | AS19: 0
A20: ='Aperçu de la charge'!F30 -> 44 | B20: ='Aperçu de la charge'!C30 -> 2018-10-29 | C20: ='Aperçu de la charge'!D30 -> - | D20: ='Aperçu de la charge'!E30 -> 2018-11-04 | E20: =IF('44'!D$26="","",'44'!D$26) -> 0 | F20: =IF('44'!E$26="","",'44'!E$26) -> 0 | G20: =IF('44'!F$26="","",'44'!F$26) -> 0 | H20: =IF('44'!G$26="","",'44'!G$26) -> 0 | I20: =IF('44'!G$27="","",'44'!G$27) -> 0 | AO20: 0 | AP20: 0 | AQ20: 0 | AR20: 0 | AS20: 0
A21: ='Aperçu de la charge'!F31 -> 45 | B21: ='Aperçu de la charge'!C31 -> 2018-11-05 | C21: ='Aperçu de la charge'!D31 -> - | D21: ='Aperçu de la charge'!E31 -> 2018-11-11 | E21: =IF('45'!D$26="","",'45'!D$26) -> 0 | F21: =IF('45'!E$26="","",'45'!E$26) -> 0 | G21: =IF('45'!F$26="","",'45'!F$26) -> 0 | H21: =IF('45'!G$26="","",'45'!G$26) -> 0 | I21: =IF('45'!G$27="","",'45'!G$27) -> 0 | AO21: 0 | AP21: 0 | AQ21: 0 | AR21: 0 | AS21: 0
A22: ='Aperçu de la charge'!F32 -> 46 | B22: ='Aperçu de la charge'!C32 -> 2018-11-12 | C22: ='Aperçu de la charge'!D32 -> - | D22: ='Aperçu de la charge'!E32 -> 2018-11-18 | E22: =IF('46'!D$26="","",'46'!D$26) -> 0 | F22: =IF('46'!E$26="","",'46'!E$26) -> 0 | G22: =IF('46'!F$26="","",'46'!F$26) -> 0 | H22: =IF('46'!G$26="","",'46'!G$26) -> 0 | I22: =IF('46'!G$27="","",'46'!G$27) -> 0 | AO22: 0 | AP22: 0 | AQ22: 0 | AR22: 0 | AS22: 0
A23: ='Aperçu de la charge'!F33 -> 47 | B23: ='Aperçu de la charge'!C33 -> 2018-11-19 | C23: ='Aperçu de la charge'!D33 -> - | D23: ='Aperçu de la charge'!E33 -> 2018-11-25 | E23: =IF('47'!D$26="","",'47'!D$26) -> 0 | F23: =IF('47'!E$26="","",'47'!E$26) -> 0 | G23: =IF('47'!F$26="","",'47'!F$26) -> 0 | H23: =IF('47'!G$26="","",'47'!G$26) -> 0 | I23: =IF('47'!G$27="","",'47'!G$27) -> 0 | AO23: 0 | AP23: =IF(F23="",#N/A,F23) -> 0 | AQ23: =IF(G23="",#N/A,G23) -> 0 | AR23: =IF(H23="",#N/A,H23) -> 0 | AS23: 0
A24: ='Aperçu de la charge'!F34 -> 48 | B24: ='Aperçu de la charge'!C34 -> 2018-11-26 | C24: ='Aperçu de la charge'!D34 -> - | D24: ='Aperçu de la charge'!E34 -> 2018-12-02 | E24: =IF('48'!D$26="","",'48'!D$26) -> 0 | F24: =IF('48'!E$26="","",'48'!E$26) -> 0 | G24: =IF('48'!F$26="","",'48'!F$26) -> 0 | H24: =IF('48'!G$26="","",'48'!G$26) -> 0 | I24: =IF('48'!G$27="","",'48'!G$27) -> 0 | AO24: 0 | AP24: 0 | AQ24: 0 | AR24: 0 | AS24: 0
A25: ='Aperçu de la charge'!F35 -> 49 | B25: ='Aperçu de la charge'!C35 -> 2018-12-03 | C25: ='Aperçu de la charge'!D35 -> - | D25: ='Aperçu de la charge'!E35 -> 2018-12-09 | E25: =IF('49'!D$26="","",'49'!D$26) -> 0 | F25: =IF('49'!E$26="","",'49'!E$26) -> 0 | G25: =IF('49'!F$26="","",'49'!F$26) -> 0 | H25: =IF('49'!G$26="","",'49'!G$26) -> 0 | I25: =IF('49'!G$27="","",'49'!G$27) -> 0 | AO25: 0 | AP25: 0 | AQ25: 0 | AR25: 0 | AS25: 0
A26: ='Aperçu de la charge'!F36 -> 50 | B26: ='Aperçu de la charge'!C36 -> 2018-12-10 | C26: ='Aperçu de la charge'!D36 -> - | D26: ='Aperçu de la charge'!E36 -> 2018-12-16 | E26: =IF('50'!D$26="","",'50'!D$26) -> 0 | F26: =IF('50'!E$26="","",'50'!E$26) -> 0 | G26: =IF('50'!F$26="","",'50'!F$26) -> 0 | H26: =IF('50'!G$26="","",'50'!G$26) -> 0 | I26: =IF('50'!G$27="","",'50'!G$27) -> 0 | AO26: 0 | AP26: 0 | AQ26: 0 | AR26: 0 | AS26: 0
A27: ='Aperçu de la charge'!F37 -> 51 | B27: ='Aperçu de la charge'!C37 -> 2018-12-17 | C27: ='Aperçu de la charge'!D37 -> - | D27: ='Aperçu de la charge'!E37 -> 2018-12-23 | E27: =IF('51'!D$26="","",'51'!D$26) -> 0 | F27: =IF('51'!E$26="","",'51'!E$26) -> 0 | G27: =IF('51'!F$26="","",'51'!F$26) -> 0 | H27: =IF('51'!G$26="","",'51'!G$26) -> 0 | I27: =IF('51'!G$27="","",'51'!G$27) -> 0 | AO27: 0 | AP27: 0 | AQ27: 0 | AR27: 0 | AS27: 0
A28: ='Aperçu de la charge'!F38 -> 52 | B28: ='Aperçu de la charge'!C38 -> 2018-12-24 | C28: ='Aperçu de la charge'!D38 -> - | D28: ='Aperçu de la charge'!E38 -> 2018-12-30 | E28: =IF('52'!D$26="","",'52'!D$26) -> 0 | F28: =IF('52'!E$26="","",'52'!E$26) -> 0 | G28: =IF('52'!F$26="","",'52'!F$26) -> 0 | H28: =IF('52'!G$26="","",'52'!G$26) -> 0 | I28: =IF('52'!G$27="","",'52'!G$27) -> 0 | AO28: 0 | AP28: 0 | AQ28: 0 | AR28: 0 | AS28: 0
A29: ='Aperçu de la charge'!F39 -> 1 | B29: ='Aperçu de la charge'!C39 -> 2018-12-31 | C29: ='Aperçu de la charge'!D39 -> - | D29: ='Aperçu de la charge'!E39 -> 2019-01-06 | E29: =IF('1'!D$26="","",'1'!D$26) -> 0 | F29: =IF('1'!E$26="","",'1'!E$26) -> 0 | G29: =IF('1'!F$26="","",'1'!F$26) -> 0 | H29: =IF('1'!G$26="","",'1'!G$26) -> 0 | I29: =IF('1'!G$27="","",'1'!G$27) -> 0 | AO29: 0 | AP29: 0 | AQ29: 0 | AR29: 0 | AS29: 0
A30: ='Aperçu de la charge'!F40 -> 2 | B30: ='Aperçu de la charge'!C40 -> 2019-01-07 | C30: ='Aperçu de la charge'!D40 -> - | D30: ='Aperçu de la charge'!E40 -> 2019-01-13 | E30: =IF('2'!D$26="","",'2'!D$26) -> 0 | F30: =IF('2'!E$26="","",'2'!E$26) -> 0 | G30: =IF('2'!F$26="","",'2'!F$26) -> 0 | H30: =IF('2'!G$26="","",'2'!G$26) -> 0 | I30: =IF('2'!G$27="","",'2'!G$27) -> 0 | AO30: 0 | AP30: 0 | AQ30: 0 | AR30: 0 | AS30: 0
A31: ='Aperçu de la charge'!F41 -> 3 | B31: ='Aperçu de la charge'!C41 -> 2019-01-14 | C31: ='Aperçu de la charge'!D41 -> - | D31: ='Aperçu de la charge'!E41 -> 2019-01-20 | E31: =IF('3'!D$26="","",'3'!D$26) -> 0 | F31: =IF('3'!E$26="","",'3'!E$26) -> 0 | G31: =IF('3'!F$26="","",'3'!F$26) -> 0 | H31: =IF('3'!G$26="","",'3'!G$26) -> 0 | I31: =IF('3'!G$27="","",'3'!G$27) -> 0 | AO31: 0 | AP31: 0 | AQ31: 0 | AR31: 0 | AS31: 0
A32: ='Aperçu de la charge'!F42 -> 4 | B32: ='Aperçu de la charge'!C42 -> 2019-01-21 | C32: ='Aperçu de la charge'!D42 -> - | D32: ='Aperçu de la charge'!E42 -> 2019-01-27 | E32: =IF('4'!D$26="","",'4'!D$26) -> 0 | F32: =IF('4'!E$26="","",'4'!E$26) -> 0 | G32: =IF('4'!F$26="","",'4'!F$26) -> 0 | H32: =IF('4'!G$26="","",'4'!G$26) -> 0 | I32: =IF('4'!G$27="","",'4'!G$27) -> 0 | AO32: 0 | AP32: 0 | AQ32: 0 | AR32: 0 | AS32: 0
A33: ='Aperçu de la charge'!F43 -> 5 | B33: ='Aperçu de la charge'!C43 -> 2019-01-28 | C33: ='Aperçu de la charge'!D43 -> - | D33: ='Aperçu de la charge'!E43 -> 2019-02-03 | E33: =IF('5'!D$26="","",'5'!D$26) -> 0 | F33: =IF('5'!E$26="","",'5'!E$26) -> 0 | G33: =IF('5'!F$26="","",'5'!F$26) -> 0 | H33: =IF('5'!G$26="","",'5'!G$26) -> 0 | I33: =IF('5'!G$27="","",'5'!G$27) -> 0 | AO33: 0 | AP33: 0 | AQ33: 0 | AR33: 0 | AS33: 0
A34: ='Aperçu de la charge'!F44 -> 6 | B34: ='Aperçu de la charge'!C44 -> 2019-02-04 | C34: ='Aperçu de la charge'!D44 -> - | D34: ='Aperçu de la charge'!E44 -> 2019-02-10 | E34: =IF('6'!D$26="","",'6'!D$26) -> 0 | F34: =IF('6'!E$26="","",'6'!E$26) -> 0 | G34: =IF('6'!F$26="","",'6'!F$26) -> 0 | H34: =IF('6'!G$26="","",'6'!G$26) -> 0 | I34: =IF('6'!G$27="","",'6'!G$27) -> 0 | AO34: 0 | AP34: 0 | AQ34: 0 | AR34: 0 | AS34: 0
A35: ='Aperçu de la charge'!F45 -> 7 | B35: ='Aperçu de la charge'!C45 -> 2019-02-11 | C35: ='Aperçu de la charge'!D45 -> - | D35: ='Aperçu de la charge'!E45 -> 2019-02-17 | E35: =IF('7'!D$26="","",'7'!D$26) -> 0 | F35: =IF('7'!E$26="","",'7'!E$26) -> 0 | G35: =IF('7'!F$26="","",'7'!F$26) -> 0 | H35: =IF('7'!G$26="","",'7'!G$26) -> 0 | I35: =IF('7'!G$27="","",'7'!G$27) -> 0 | AO35: 0 | AP35: 0 | AQ35: 0 | AR35: 0 | AS35: 0
A36: ='Aperçu de la charge'!F46 -> 8 | B36: ='Aperçu de la charge'!C46 -> 2019-02-18 | C36: ='Aperçu de la charge'!D46 -> - | D36: ='Aperçu de la charge'!E46 -> 2019-02-24 | E36: =IF('8'!D$26="","",'8'!D$26) -> 0 | F36: =IF('8'!E$26="","",'8'!E$26) -> 0 | G36: =IF('8'!F$26="","",'8'!F$26) -> 0 | H36: =IF('8'!G$26="","",'8'!G$26) -> 0 | I36: =IF('8'!G$27="","",'8'!G$27) -> 0 | AO36: 0 | AP36: 0 | AQ36: 0 | AR36: 0 | AS36: 0
A37: ='Aperçu de la charge'!F47 -> 9 | B37: ='Aperçu de la charge'!C47 -> 2019-02-25 | C37: ='Aperçu de la charge'!D47 -> - | D37: ='Aperçu de la charge'!E47 -> 2019-03-03 | E37: =IF('9'!D$26="","",'9'!D$26) -> 0 | F37: =IF('9'!E$26="","",'9'!E$26) -> 0 | G37: =IF('9'!F$26="","",'9'!F$26) -> 0 | H37: =IF('9'!G$26="","",'9'!G$26) -> 0 | I37: =IF('9'!G$27="","",'9'!G$27) -> 0 | AO37: 0 | AP37: 0 | AQ37: 0 | AR37: 0 | AS37: 0
A38: ='Aperçu de la charge'!F48 -> 10 | B38: ='Aperçu de la charge'!C48 -> 2019-03-04 | C38: ='Aperçu de la charge'!D48 -> - | D38: ='Aperçu de la charge'!E48 -> 2019-03-10 | E38: =IF('10'!D$26="","",'10'!D$26) -> 0 | F38: =IF('10'!E$26="","",'10'!E$26) -> 0 | G38: =IF('10'!F$26="","",'10'!F$26) -> 0 | H38: =IF('10'!G$26="","",'10'!G$26) -> 0 | I38: =IF('10'!G$27="","",'10'!G$27) -> 0 | AO38: 0 | AP38: 0 | AQ38: 0 | AR38: 0 | AS38: 0
A39: ='Aperçu de la charge'!F49 -> 11 | B39: ='Aperçu de la charge'!C49 -> 2019-03-11 | C39: ='Aperçu de la charge'!D49 -> - | D39: ='Aperçu de la charge'!E49 -> 2019-03-17 | E39: =IF('11'!D$26="","",'11'!D$26) -> 0 | F39: =IF('11'!E$26="","",'11'!E$26) -> 0 | G39: =IF('11'!F$26="","",'11'!F$26) -> 0 | H39: =IF('11'!G$26="","",'11'!G$26) -> 0 | I39: =IF('11'!G$27="","",'11'!G$27) -> 0 | AO39: =IF(E39="",#N/A,E39) -> 0 | AP39: =IF(F39="",#N/A,F39) -> 0 | AQ39: =IF(G39="",#N/A,G39) -> 0 | AR39: 0 | AS39: 0
A40: ='Aperçu de la charge'!F50 -> 12 | B40: ='Aperçu de la charge'!C50 -> 2019-03-18 | C40: ='Aperçu de la charge'!D50 -> - | D40: ='Aperçu de la charge'!E50 -> 2019-03-24 | E40: =IF('12'!D$26="","",'12'!D$26) -> 0 | F40: =IF('12'!E$26="","",'12'!E$26) -> 0 | G40: =IF('12'!F$26="","",'12'!F$26) -> 0 | H40: =IF('12'!G$26="","",'12'!G$26) -> 0 | I40: =IF('12'!G$27="","",'12'!G$27) -> 0 | AO40: 0 | AP40: 0 | AQ40: 0 | AR40: 0 | AS40: 0
A41: ='Aperçu de la charge'!F51 -> 13 | B41: ='Aperçu de la charge'!C51 -> 2019-03-25 | C41: ='Aperçu de la charge'!D51 -> - | D41: ='Aperçu de la charge'!E51 -> 2019-03-31 | E41: =IF('13'!D$26="","",'13'!D$26) -> 0 | F41: =IF('13'!E$26="","",'13'!E$26) -> 0 | G41: =IF('13'!F$26="","",'13'!F$26) -> 0 | H41: =IF('13'!G$26="","",'13'!G$26) -> 0 | I41: =IF('13'!G$27="","",'13'!G$27) -> 0 | AO41: 0 | AP41: 0 | AQ41: 0 | AR41: 0 | AS41: 0
A42: ='Aperçu de la charge'!F52 -> 14 | B42: ='Aperçu de la charge'!C52 -> 2019-04-01 | C42: ='Aperçu de la charge'!D52 -> - | D42: ='Aperçu de la charge'!E52 -> 2019-04-07 | E42: =IF('14'!D$26="","",'14'!D$26) -> 0 | F42: =IF('14'!E$26="","",'14'!E$26) -> 0 | G42: =IF('14'!F$26="","",'14'!F$26) -> 0 | H42: =IF('14'!G$26="","",'14'!G$26) -> 0 | I42: =IF('14'!G$27="","",'14'!G$27) -> 0 | AO42: 0 | AP42: 0 | AQ42: 0 | AR42: 0 | AS42: 0
A43: ='Aperçu de la charge'!F53 -> 15 | B43: ='Aperçu de la charge'!C53 -> 2019-04-08 | C43: ='Aperçu de la charge'!D53 -> - | D43: ='Aperçu de la charge'!E53 -> 2019-04-14 | E43: =IF('15'!D$26="","",'15'!D$26) -> 0 | F43: =IF('15'!E$26="","",'15'!E$26) -> 0 | G43: =IF('15'!F$26="","",'15'!F$26) -> 0 | H43: =IF('15'!G$26="","",'15'!G$26) -> 0 | I43: =IF('15'!G$27="","",'15'!G$27) -> 0 | AO43: 0 | AP43: 0 | AQ43: 0 | AR43: 0 | AS43: 0
A44: ='Aperçu de la charge'!F54 -> 16 | B44: ='Aperçu de la charge'!C54 -> 2019-04-15 | C44: ='Aperçu de la charge'!D54 -> - | D44: ='Aperçu de la charge'!E54 -> 2019-04-21 | E44: =IF('16'!D$26="","",'16'!D$26) -> 0 | F44: =IF('16'!E$26="","",'16'!E$26) -> 0 | G44: =IF('16'!F$26="","",'16'!F$26) -> 0 | H44: =IF('16'!G$26="","",'16'!G$26) -> 0 | I44: =IF('16'!G$27="","",'16'!G$27) -> 0 | AO44: 0 | AP44: 0 | AQ44: 0 | AR44: 0 | AS44: 0
A45: ='Aperçu de la charge'!F55 -> 17 | B45: ='Aperçu de la charge'!C55 -> 2019-04-22 | C45: ='Aperçu de la charge'!D55 -> - | D45: ='Aperçu de la charge'!E55 -> 2019-04-28 | E45: =IF('17'!D$26="","",'17'!D$26) -> 0 | F45: =IF('17'!E$26="","",'17'!E$26) -> 0 | G45: =IF('17'!F$26="","",'17'!F$26) -> 0 | H45: =IF('17'!G$26="","",'17'!G$26) -> 0 | I45: =IF('17'!G$27="","",'17'!G$27) -> 0 | AO45: 0 | AP45: 0 | AQ45: 0 | AR45: 0 | AS45: 0
A46: ='Aperçu de la charge'!F56 -> 18 | B46: ='Aperçu de la charge'!C56 -> 2019-04-29 | C46: ='Aperçu de la charge'!D56 -> - | D46: ='Aperçu de la charge'!E56 -> 2019-05-05 | E46: =IF('18'!D$26="","",'18'!D$26) -> 0 | F46: =IF('18'!E$26="","",'18'!E$26) -> 0 | G46: =IF('18'!F$26="","",'18'!F$26) -> 0 | H46: =IF('18'!G$26="","",'18'!G$26) -> 0 | I46: =IF('18'!G$27="","",'18'!G$27) -> 0 | AO46: 0 | AP46: 0 | AQ46: 0 | AR46: 0 | AS46: 0
A47: ='Aperçu de la charge'!F57 -> 19 | B47: ='Aperçu de la charge'!C57 -> 2019-05-06 | C47: ='Aperçu de la charge'!D57 -> - | D47: ='Aperçu de la charge'!E57 -> 2019-05-12 | E47: =IF('19'!D$26="","",'19'!D$26) -> 0 | F47: =IF('19'!E$26="","",'19'!E$26) -> 0 | G47: =IF('19'!F$26="","",'19'!F$26) -> 0 | H47: =IF('19'!G$26="","",'19'!G$26) -> 0 | I47: =IF('19'!G$27="","",'19'!G$27) -> 0 | AO47: 0 | AP47: 0 | AQ47: 0 | AR47: 0 | AS47: 0
A48: ='Aperçu de la charge'!F58 -> 20 | B48: ='Aperçu de la charge'!C58 -> 2019-05-13 | C48: ='Aperçu de la charge'!D58 -> - | D48: ='Aperçu de la charge'!E58 -> 2019-05-19 | E48: =IF('20'!D$26="","",'20'!D$26) -> 0 | F48: =IF('20'!E$26="","",'20'!E$26) -> 0 | G48: =IF('20'!F$26="","",'20'!F$26) -> 0 | H48: =IF('20'!G$26="","",'20'!G$26) -> 0 | I48: =IF('20'!G$27="","",'20'!G$27) -> 0 | AO48: 0 | AP48: 0 | AQ48: 0 | AR48: 0 | AS48: 0
A49: ='Aperçu de la charge'!F59 -> 21 | B49: ='Aperçu de la charge'!C59 -> 2019-05-20 | C49: ='Aperçu de la charge'!D59 -> - | D49: ='Aperçu de la charge'!E59 -> 2019-05-26 | E49: =IF('21'!D$26="","",'21'!D$26) -> 0 | F49: =IF('21'!E$26="","",'21'!E$26) -> 0 | G49: =IF('21'!F$26="","",'21'!F$26) -> 0 | H49: =IF('21'!G$26="","",'21'!G$26) -> 0 | I49: =IF('21'!G$27="","",'21'!G$27) -> 0 | AO49: 0 | AP49: 0 | AQ49: 0 | AR49: 0 | AS49: 0
A50: ='Aperçu de la charge'!F60 -> 22 | B50: ='Aperçu de la charge'!C60 -> 2019-05-27 | C50: ='Aperçu de la charge'!D60 -> - | D50: ='Aperçu de la charge'!E60 -> 2019-06-02 | E50: =IF('22'!D$26="","",'22'!D$26) -> 0 | F50: =IF('22'!E$26="","",'22'!E$26) -> 0 | G50: =IF('22'!F$26="","",'22'!F$26) -> 0 | H50: =IF('22'!G$26="","",'22'!G$26) -> 0 | I50: =IF('22'!G$27="","",'22'!G$27) -> 0 | AO50: 0 | AP50: 0 | AQ50: 0 | AR50: 0 | AS50: 0
A51: ='Aperçu de la charge'!F61 -> 23 | B51: ='Aperçu de la charge'!C61 -> 2019-06-03 | C51: ='Aperçu de la charge'!D61 -> - | D51: ='Aperçu de la charge'!E61 -> 2019-06-09 | E51: =IF('23'!D$26="","",'23'!D$26) -> 0 | F51: =IF('23'!E$26="","",'23'!E$26) -> 0 | G51: =IF('23'!F$26="","",'23'!F$26) -> 0 | H51: =IF('23'!G$26="","",'23'!G$26) -> 0 | I51: =IF('23'!G$27="","",'23'!G$27) -> 0 | AO51: 0 | AP51: 0 | AQ51: 0 | AR51: 0 | AS51: 0
A52: ='Aperçu de la charge'!F62 -> 24 | B52: ='Aperçu de la charge'!C62 -> 2019-06-10 | C52: ='Aperçu de la charge'!D62 -> - | D52: ='Aperçu de la charge'!E62 -> 2019-06-16 | E52: =IF('24'!D$26="","",'24'!D$26) -> 0 | F52: =IF('24'!E$26="","",'24'!E$26) -> 0 | G52: =IF('24'!F$26="","",'24'!F$26) -> 0 | H52: =IF('24'!G$26="","",'24'!G$26) -> 0 | I52: =IF('24'!G$27="","",'24'!G$27) -> 0 | AO52: 0 | AP52: 0 | AQ52: 0 | AR52: 0 | AS52: 0
A53: ='Aperçu de la charge'!F63 -> 25 | B53: ='Aperçu de la charge'!C63 -> 2019-06-17 | C53: ='Aperçu de la charge'!D63 -> - | D53: ='Aperçu de la charge'!E63 -> 2019-06-23 | E53: =IF('25'!D$26="","",'25'!D$26) -> 0 | F53: =IF('25'!E$26="","",'25'!E$26) -> 0 | G53: =IF('25'!F$26="","",'25'!F$26) -> 0 | H53: =IF('25'!G$26="","",'25'!G$26) -> 0 | I53: =IF('25'!G$27="","",'25'!G$27) -> 0 | AO53: 0 | AP53: 0 | AQ53: 0 | AR53: 0 | AS53: 0
A54: ='Aperçu de la charge'!F64 -> 26 | B54: ='Aperçu de la charge'!C64 -> 2019-06-24 | C54: ='Aperçu de la charge'!D64 -> - | D54: ='Aperçu de la charge'!E64 -> 2019-06-30 | E54: =IF('26'!D$26="","",'26'!D$26) -> 0 | F54: =IF('26'!E$26="","",'26'!E$26) -> 0 | G54: =IF('26'!F$26="","",'26'!F$26) -> 0 | H54: =IF('26'!G$26="","",'26'!G$26) -> 0 | I54: =IF('26'!G$27="","",'26'!G$27) -> 0 | AO54: 0 | AP54: 0 | AQ54: 0 | AR54: 0 | AS54: 0
A55: ='Aperçu de la charge'!F65 -> 27 | B55: ='Aperçu de la charge'!C65 -> 2019-07-01 | C55: ='Aperçu de la charge'!D65 -> - | D55: ='Aperçu de la charge'!E65 -> 2019-07-07 | E55: =IF('27'!D$26="","",'27'!D$26) -> 0 | F55: =IF('27'!E$26="","",'27'!E$26) -> 0 | G55: =IF('27'!F$26="","",'27'!F$26) -> 0 | H55: =IF('27'!G$26="","",'27'!G$26) -> 0 | I55: =IF('27'!G$27="","",'27'!G$27) -> 0 | AO55: 0 | AP55: 0 | AQ55: 0 | AR55: 0 | AS55: 0
A56: ='Aperçu de la charge'!F66 -> 28 | B56: ='Aperçu de la charge'!C66 -> 2019-07-08 | C56: ='Aperçu de la charge'!D66 -> - | D56: ='Aperçu de la charge'!E66 -> 2019-07-14 | E56: =IF('28'!D$26="","",'28'!D$26) -> 0 | F56: =IF('28'!E$26="","",'28'!E$26) -> 0 | G56: =IF('28'!F$26="","",'28'!F$26) -> 0 | H56: =IF('28'!G$26="","",'28'!G$26) -> 0 | I56: =IF('28'!G$27="","",'28'!G$27) -> 0 | AO56: 0 | AP56: 0 | AQ56: 0 | AR56: 0 | AS56: 0
A57: ='Aperçu de la charge'!F67 -> 29 | B57: ='Aperçu de la charge'!C67 -> 2019-07-15 | C57: ='Aperçu de la charge'!D67 -> - | D57: ='Aperçu de la charge'!E67 -> 2019-07-21 | E57: =IF('29'!D$26="","",'29'!D$26) -> 0 | F57: =IF('29'!E$26="","",'29'!E$26) -> 0 | G57: =IF('29'!F$26="","",'29'!F$26) -> 0 | H57: =IF('29'!G$26="","",'29'!G$26) -> 0 | I57: =IF('29'!G$27="","",'29'!G$27) -> 0 | AO57: 0 | AP57: 0 | AQ57: 0 | AR57: 0 | AS57: 0
A58: ='Aperçu de la charge'!F68 -> 30 | B58: ='Aperçu de la charge'!C68 -> 2019-07-22 | C58: ='Aperçu de la charge'!D68 -> - | D58: ='Aperçu de la charge'!E68 -> 2019-07-28 | E58: =IF('30'!D$26="","",'30'!D$26) -> 0 | F58: =IF('30'!E$26="","",'30'!E$26) -> 0 | G58: =IF('30'!F$26="","",'30'!F$26) -> 0 | H58: =IF('30'!G$26="","",'30'!G$26) -> 0 | I58: =IF('30'!G$27="","",'30'!G$27) -> 0 | AO58: 0 | AP58: 0 | AQ58: 0 | AR58: 0 | AS58: 0

Sheet Rapport de santé
A1: Rapport de santé
D2: Gewicht-Motiv-Schlaf
B3: Athlète : | C3: ='Aperçu de la charge'!D2 -> Prénom Nom | E3: Année : | F3: ='Aperçu de la charge'!N2 -> 2018/2019
B6: Jours d'entrainement | E6: Jours d'entrainements sans limitation
B7: =BC62 -> 0 | C7: Nombre | E7: =BC62 -> 0 | F7: Nombre | L7: Anzahl Tage
B9: Jours d'entrainement limités | E9: Jours sans entrainement - blessure | H9: Jours sans entrainements - maladie | K9: =E6 -> Jours d'entrainements sans limitation | L9: =E7 -> 0
B10: =SUM(B11:B16) -> 0 | C10: Nombre | E10: =SUM(E11:E16) -> 0 | F10: Nombre | H10: =BC75 -> 0 | I10: Nombre | K10: =B9 -> Jours d'entrainement limités | L10: =SUM(B11:B16) -> 0
B11: =BC63 -> 0 | C11: Doigt | D11: =B11/$E$7 ->  | E11: =BC69 -> 0 | F11: Doigt | G11: =E11/$E$7 ->  | K11: =E9 -> Jours sans entrainement - blessure | L11: =SUM(E11:E16) -> 0
B12: 0 | C12: Épaule | E12: 0 | F12: Épaule | K12: =H9 -> Jours sans entrainements - maladie | L12: =H10 -> 0
B13: 0 | C13: Dos | E13: 0 | F13: Dos | K13: =#REF! ->  | L13: =SUM(#REF!) -> 
B14: 0 | C14: Genou | E14: 0 | F14: Genou | K14: =#REF! ->  | L14: =#REF! -> 
B15: 0 | C15: Cheville | E15: 0 | F15: Cheville
B16: 0 | C16: Autre | E16: 0 | F16: Autre
A18: Anamnèse
B20: Début (Début de l'absence) | C20: Fin (reprise des entrainements, 100% en forme) | D20: Provoqué par …. | E20: Quelle partie du corps était concernée? | F20: As-tu été traité? | G20: Was war die Diagnose? | H20: Wieviele Trainings versäumt? | I20: Wieviele Trainings eingeschränkt trainiert?
A21: 1
A22: 2
A23: 3
A24: 4
A25: 5
A26: 6
A27: 7
A28: 8
A29: 9
A30: 10
A32: Absence/ Limitation pour cause de maladie
B34: Début (Début de l'absence) | C34: Fin (reprise des entrainements, 100% en forme) | D34: As-tu été traité? | E34: Quel était le diagnostic? | F34: étais-tu particulièrement stressé durant cette période? | G34: combien d'entrainements as-tu manqué? | H34: Lors de combien d'entrainements étais-tu limité?
A35: 1
A36: 2
A37: 3
A38: 4
A39: 5
A41: Absence/ Limitation pour cause d'accident
B43: Début (Début de l'absence) | C43: Durant quelle période ça a eu lieu? | D43: À quel moment a eu lieu l'accident? | E43: Comment est arrivé l'accident? | F43: Où a eu lieu l'accident? | G43: Quelle partie du corps a été principalement touchée? | H43: Avais-tu déjà une blessure à cet endroit? | I43: Où as-tu été traité? | J43: Quel était le diagnostic? | K43: combien d'entrainements as-tu manqué? | L43: Lors de combien d'entrainements étais-tu limité?
A44: 1
A45: 2
A46: 3
A47: 4
A48: 5
A50: Absence/ Limitation pour cause de douleurs
B52: Début (Début de l'absence) | C52: Quand ont commencé les douleurs? | D52: À quel moment sont survenus les douleurs? | E52: Quelle partie du corps a été principalement touchée? | F52: Avais-tu déjà une blessure à cet endroit? | G52: Où as-tu été traité? | H52: Quel était le diagnostic? | I52: combien d'entrainements as-tu manqué? | J52: Lors de combien d'entrainements étais-tu limité?
A53: 1
A54: 2
A55: 3
A56: 4
A57: 5
C61: 1 | D61: 2 | E61: 3 | F61: 4 | G61: 5 | H61: 6 | I61: 7 | J61: 8 | K61: 9 | L61: 10 | M61: 11 | N61: 12 | O61: 13 | P61: 14 | Q61: 15 | R61: 16 | S61: 17 | T61: 18 | U61: 19 | V61: 20 | W61: 21 | X61: 22 | Y61: 23 | Z61: 24 | AA61: 25 | AB61: 26 | AC61: 27 | AD61: 28 | AE61: 29 | AF61: 30 | AG61: 31 | AH61: 32 | AI61: 33 | AJ61: 34 | AK61: 35 | AL61: 36 | AM61: 37 | AN61: 38 | AO61: 39 | AP61: 40 | AQ61: 41 | AR61: 42 | AS61: 43 | AT61: 44 | AU61: 45 | AV61: 46 | AW61: 47 | AX61: 48 | AY61: 49 | AZ61: 50 | BA61: 51 | BB61: 52 | BC61: Summe
B62: 34 | C62: =INDIRECT(CONCATENATE("'",C$61,"'!AM",$B62)) ->  | D62: =INDIRECT(CONCATENATE("'",D$61,"'!AM",$B62)) ->  | T62: =INDIRECT(CONCATENATE("'",T$61,"'!AM",$B62)) ->  | AJ62: =INDIRECT(CONCATENATE("'",AJ$61,"'!AM",$B62)) ->  | AZ62: =INDIRECT(CONCATENATE("'",AZ$61,"'!AM",$B62)) ->  | BC62: =SUM(C62:BB62) -> 0
B63: 37 | C63: =INDIRECT(CONCATENATE("'",C$61,"'!AM",$B63)) -> 0 | D63: 0 | E63: 0 | F63: 0 | G63: 0 | H63: 0 | I63: 0 | J63: 0 | K63: 0 | L63: 0 | M63: 0 | N63: 0 | O63: 0 | P63: 0 | Q63: 0 | R63: 0 | S63: 0 | T63: 0 | U63: 0 | V63: 0 | W63: 0 | X63: 0 | Y63: 0 | Z63: 0 | AA63: 0 | AB63: 0 | AC63: 0 | AD63: 0 | AE63: 0 | AF63: 0 | AG63: 0 | AH63: 0 | AI63: 0 | AJ63: 0 | AK63: 0 | AL63: 0 | AM63: 0 | AN63: 0 | AO63: 0 | AP63: 0 | AQ63: 0 | AR63: 0 | AS63: 0 | AT63: 0 | AU63: 0 | AV63: 0 | AW63: 0 | AX63: 0 | AY63: 0 | AZ63: 0 | BA63: 0 | BB63: 0 | BC63: 0
B64: 38 | C64: 0 | D64: 0 | E64: 0 | F64: 0 | G64: 0 | H64: 0 | I64: 0 | J64: 0 | K64: 0 | L64: 0 | M64: 0 | N64: 0 | O64: 0 | P64: 0 | Q64: 0 | R64: 0 | S64: 0 | T64: 0 | U64: 0 | V64: 0 | W64: 0 | X64: 0 | Y64: 0 | Z64: 0 | AA64: 0 | AB64: 0 | AC64: 0 | AD64: 0 | AE64: 0 | AF64: 0 | AG64: 0 | AH64: 0 | AI64: 0 | AJ64: 0 | AK64: 0 | AL64: 0 | AM64: 0 | AN64: 0 | AO64: 0 | AP64: 0 | AQ64: 0 | AR64: 0 | AS64: 0 | AT64: 0 | AU64: 0 | AV64: 0 | AW64: 0 | AX64: 0 | AY64: 0 | AZ64: 0 | BA64: 0 | BB64: 0 | BC64: 0
B65: 39 | C65: 0 | D65: 0 | E65: 0 | F65: 0 | G65: 0 | H65: 0 | I65: 0 | J65: 0 | K65: 0 | L65: 0 | M65: 0 | N65: 0 | O65: 0 | P65: 0 | Q65: 0 | R65: 0 | S65: 0 | T65: 0 | U65: 0 | V65: 0 | W65: 0 | X65: 0 | Y65: 0 | Z65: 0 | AA65: 0 | AB65: 0 | AC65: 0 | AD65: 0 | AE65: 0 | AF65: 0 | AG65: 0 | AH65: 0 | AI65: 0 | AJ65: 0 | AK65: 0 | AL65: 0 | AM65: 0 | AN65: 0 | AO65: 0 | AP65: 0 | AQ65: 0 | AR65: 0 | AS65: 0 | AT65: 0 | AU65: 0 | AV65: 0 | AW65: 0 | AX65: 0 | AY65: 0 | AZ65: 0 | BA65: 0 | BB65: 0 | BC65: 0
B66: 40 | C66: 0 | D66: 0 | E66: 0 | F66: 0 | G66: 0 | H66: 0 | I66: 0 | J66: 0 | K66: 0 | L66: 0 | M66: 0 | N66: 0 | O66: 0 | P66: 0 | Q66: 0 | R66: 0 | S66: 0 | T66: 0 | U66: 0 | V66: 0 | W66: 0 | X66: 0 | Y66: 0 | Z66: 0 | AA66: 0 | AB66: 0 | AC66: 0 | AD66: 0 | AE66: 0 | AF66: 0 | AG66: 0 | AH66: 0 | AI66: 0 | AJ66: 0 | AK66: 0 | AL66: 0 | AM66: 0 | AN66: 0 | AO66: 0 | AP66: 0 | AQ66: 0 | AR66: 0 | AS66: 0 | AT66: 0 | AU66: 0 | AV66: 0 | AW66: 0 | AX66: 0 | AY66: 0 | AZ66: 0 | BA66: 0 | BB66: 0 | BC66: 0
B67: 41 | C67: 0 | D67: 0 | E67: 0 | F67: 0 | G67: 0 | H67: 0 | I67: 0 | J67: 0 | K67: 0 | L67: 0 | M67: 0 | N67: 0 | O67: 0 | P67: 0 | Q67: 0 | R67: 0 | S67: 0 | T67: 0 | U67: 0 | V67: 0 | W67: 0 | X67: 0 | Y67: 0 | Z67: 0 | AA67: 0 | AB67: 0 | AC67: 0 | AD67: 0 | AE67: 0 | AF67: 0 | AG67: 0 | AH67: 0 | AI67: 0 | AJ67: 0 | AK67: 0 | AL67: 0 | AM67: 0 | AN67: 0 | AO67: 0 | AP67: 0 | AQ67: 0 | AR67: 0 | AS67: 0 | AT67: 0 | AU67: 0 | AV67: 0 | AW67: 0 | AX67: 0 | AY67: 0 | AZ67: 0 | BA67: 0 | BB67: 0 | BC67: 0
B68: 42 | C68: 0 | D68: 0 | E68: 0 | F68: 0 | G68: 0 | H68: 0 | I68: 0 | J68: 0 | K68: 0 | L68: 0 | M68: 0 | N68: 0 | O68: 0 | P68: 0 | Q68: 0 | R68: 0 | S68: 0 | T68: 0 | U68: 0 | V68: 0 | W68: 0 | X68: 0 | Y68: 0 | Z68: 0 | AA68: 0 | AB68: 0 | AC68: 0 | AD68: 0 | AE68: 0 | AF68: 0 | AG68: 0 | AH68: 0 | AI68: 0 | AJ68: 0 | AK68: 0 | AL68: 0 | AM68: 0 | AN68: 0 | AO68: 0 | AP68: 0 | AQ68: 0 | AR68: 0 | AS68: 0 | AT68: 0 | AU68: 0 | AV68: 0 | AW68: 0 | AX68: 0 | AY68: 0 | AZ68: 0 | BA68: 0 | BB68: 0 | BC68: 0
B69: 45 | C69: 0 | D69: 0 | E69: 0 | F69: 0 | G69: 0 | H69: 0 | I69: 0 | J69: 0 | K69: 0 | L69: 0 | M69: 0 | N69: 0 | O69: 0 | P69: 0 | Q69: 0 | R69: 0 | S69: 0 | T69: 0 | U69: 0 | V69: 0 | W69: 0 | X69: 0 | Y69: 0 | Z69: 0 | AA69: 0 | AB69: 0 | AC69: 0 | AD69: 0 | AE69: 0 | AF69: 0 | AG69: 0 | AH69: 0 | AI69: 0 | AJ69: 0 | AK69: 0 | AL69: 0 | AM69: 0 | AN69: 0 | AO69: 0 | AP69: 0 | AQ69: 0 | AR69: 0 | AS69: 0 | AT69: 0 | AU69: 0 | AV69: 0 | AW69: 0 | AX69: 0 | AY69: 0 | AZ69: 0 | BA69: 0 | BB69: 0 | BC69: 0
B70: 46 | C70: 0 | D70: 0 | E70: 0 | F70: 0 | G70: 0 | H70: 0 | I70: 0 | J70: 0 | K70: 0 | L70: 0 | M70: 0 | N70: 0 | O70: 0 | P70: 0 | Q70: 0 | R70: 0 | S70: 0 | T70: 0 | U70: 0 | V70: 0 | W70: 0 | X70: 0 | Y70: 0 | Z70: 0 | AA70: 0 | AB70: 0 | AC70: 0 | AD70: 0 | AE70: 0 | AF70: 0 | AG70: 0 | AH70: 0 | AI70: 0 | AJ70: 0 | AK70: 0 | AL70: 0 | AM70: 0 | AN70: 0 | AO70: 0 | AP70: 0 | AQ70: 0 | AR70: 0 | AS70: 0 | AT70: 0 | AU70: 0 | AV70: 0 | AW70: 0 | AX70: 0 | AY70: 0 | AZ70: 0 | BA70: 0 | BB70: 0 | BC70: 0
B71: 47 | C71: 0 | D71: 0 | E71: 0 | F71: 0 | G71: 0 | H71: 0 | I71: 0 | J71: 0 | K71: 0 | L71: 0 | M71: 0 | N71: 0 | O71: 0 | P71: 0 | Q71: 0 | R71: 0 | S71: 0 | T71: 0 | U71: 0 | V71: 0 | W71: 0 | X71: 0 | Y71: 0 | Z71: 0 | AA71: 0 | AB71: 0 | AC71: 0 | AD71: 0 | AE71: 0 | AF71: 0 | AG71: 0 | AH71: 0 | AI71: 0 | AJ71: 0 | AK71: 0 | AL71: 0 | AM71: 0 | AN71: 0 | AO71: 0 | AP71: 0 | AQ71: 0 | AR71: 0 | AS71: 0 | AT71: 0 | AU71: 0 | AV71: 0 | AW71: 0 | AX71: 0 | AY71: 0 | AZ71: 0 | BA71: 0 | BB71: 0 | BC71: 0
B72: 48 | C72: 0 | D72: 0 | E72: 0 | F72: 0 | G72: 0 | H72: 0 | I72: 0 | J72: 0 | K72: 0 | L72: 0 | M72: 0 | N72: 0 | O72: 0 | P72: 0 | Q72: 0 | R72: 0 | S72: 0 | T72: 0 | U72: 0 | V72: 0 | W72: 0 | X72: 0 | Y72: 0 | Z72: 0 | AA72: 0 | AB72: 0 | AC72: 0 | AD72: 0 | AE72: 0 | AF72: 0 | AG72: 0 | AH72: 0 | AI72: 0 | AJ72: 0 | AK72: 0 | AL72: 0 | AM72: 0 | AN72: 0 | AO72: 0 | AP72: 0 | AQ72: 0 | AR72: 0 | AS72: 0 | AT72: 0 | AU72: 0 | AV72: 0 | AW72: 0 | AX72: 0 | AY72: 0 | AZ72: 0 | BA72: 0 | BB72: 0 | BC72: 0
B73: 49 | C73: 0 | D73: 0 | E73: 0 | F73: 0 | G73: 0 | H73: 0 | I73: 0 | J73: 0 | K73: 0 | L73: 0 | M73: 0 | N73: 0 | O73: 0 | P73: 0 | Q73: 0 | R73: 0 | S73: 0 | T73: 0 | U73: 0 | V73: 0 | W73: 0 | X73: 0 | Y73: 0 | Z73: 0 | AA73: 0 | AB73: 0 | AC73: 0 | AD73: 0 | AE73: 0 | AF73: 0 | AG73: 0 | AH73: 0 | AI73: 0 | AJ73: 0 | AK73: 0 | AL73: 0 | AM73: 0 | AN73: 0 | AO73: 0 | AP73: 0 | AQ73: 0 | AR73: 0 | AS73: 0 | AT73: 0 | AU73: 0 | AV73: 0 | AW73: 0 | AX73: 0 | AY73: 0 | AZ73: 0 | BA73: 0 | BB73: 0 | BC73: 0
B74: 50 | C74: 0 | D74: 0 | E74: 0 | F74: 0 | G74: 0 | H74: 0 | I74: 0 | J74: 0 | K74: 0 | L74: 0 | M74: 0 | N74: 0 | O74: 0 | P74: 0 | Q74: 0 | R74: 0 | S74: 0 | T74: 0 | U74: 0 | V74: 0 | W74: 0 | X74: 0 | Y74: 0 | Z74: 0 | AA74: 0 | AB74: 0 | AC74: 0 | AD74: 0 | AE74: 0 | AF74: 0 | AG74: 0 | AH74: 0 | AI74: 0 | AJ74: 0 | AK74: 0 | AL74: 0 | AM74: 0 | AN74: 0 | AO74: 0 | AP74: 0 | AQ74: 0 | AR74: 0 | AS74: 0 | AT74: 0 | AU74: 0 | AV74: 0 | AW74: 0 | AX74: 0 | AY74: 0 | AZ74: 0 | BA74: 0 | BB74: 0 | BC74: 0
B75: 53 | C75: 0 | D75: 0 | E75: 0 | F75: 0 | G75: 0 | H75: 0 | I75: 0 | J75: 0 | K75: 0 | L75: 0 | M75: 0 | N75: 0 | O75: 0 | P75: 0 | Q75: 0 | R75: 0 | S75: 0 | T75: 0 | U75: 0 | V75: 0 | W75: 0 | X75: 0 | Y75: 0 | Z75: 0 | AA75: 0 | AB75: 0 | AC75: 0 | AD75: 0 | AE75: 0 | AF75: 0 | AG75: 0 | AH75: 0 | AI75: 0 | AJ75: 0 | AK75: 0 | AL75: 0 | AM75: 0 | AN75: 0 | AO75: 0 | AP75: 0 | AQ75: 0 | AR75: 0 | AS75: 0 | AT75: 0 | AU75: 0 | AV75: 0 | AW75: 0 | AX75: 0 | AY75: 0 | AZ75: 0 | BA75: 0 | BB75: 0 | BC75: 0

Sheet Phases de la saison
A1: Sorte d'absence | B1: Partie du corps | C1: Traitement | D1: Phase de la saison | E1: Phase d'activité | F1: Déroulement de l'accident | G1: Lieu de l'accident
A2: accident? | B2: Doigt | C2: Urgences | D2: Entrainements individuels | E2: Entrainement - échauffement | F2: Collision avec un joueur | G2: Volleyball - au filet
A3: maladie? | B3: Épaule | C3: Médecin | D3: Un match | E3: Entrainement - début | F3: Pénétration sous le filet | G3: Volleyball - sur le terrain
A4: Douleurs sans accident? | B4: Dos | C4: Physio directement (sans médecin) | D4: Tournoi - début | E4: Entrainement - milieu | F4: Sans influence externe | G4: Beachvolleyball - au filet
B5: Genou | C5: Traité soi-même | D5: Tournoi - milieu | E5: Entrainement - fin | F5: À cause du ballon | G5: Beachvolleyball - sur le terrain
B6: Cheville | C6: Pas de traitement | D6: Tournoi - fin | E6: Match - échauffement | F6: À cause du sol (mouillé, etc.) | G6: Pas sur le terrain
B7: Autre? | D7: Camp - début | E7: Match - début | F7: À cause d'un objet
D8: Camp - milieu | E8: Match - milieu | F8: À cause des poids au fitness
D9: Camp - fin | E9: Match - fin | F9: Autre
D10: Privé | E10: Trajet à/de l'entrainement
D11: Autre | E11: Autre

Sheet 31
C1: Sem | D1: =INT(MOD(INT((F1-2)/7)+0.6,52+5/28))+1 -> 31 | E1: =D1+1000 -> 1031 | F1: ='Aperçu de la charge'!C17 -> 2018-07-30 | H1: - | J1: =F1+6 -> 2018-08-05 | AG1: ='Aperçu de la charge'!D2 -> Prénom Nom | AI1: ='Aperçu de la charge'!N2 -> 2018/2019
B2: Jour | D2: Poids | E2: REG | F2: qualité sommeil | G2: durée sommeil | H2: Santé | J2: Description de l'entrainement | M2: Club - VB | P2: TS/ Nati - VB | S2: Club - BVB | V2: TS/ Nati - BVB | Y2: Force - fitness | AB2: Compet. - VB | AE2: Compet. - BVB | AI2: Réflexion | AK2: Charge/ jour | AM2: matchs VB | AN2: Sets VB | AO2: Matchs BVB | AP2: Sets BVB | AQ2: J | AR2: Autre (Rég, mentale) | AS2: Mental- oder Sonstiges Training
D3: [kg] | E3: [1 - 5] | F3: [1-5] | G3: [Std] | H3: Nr. | M3: Durée | N3: RPE | O3: Charge | P3: Durée | Q3: RPE | R3: Charge | S3: Durée | T3: RPE | U3: Charge | V3: Durée | W3: RPE | X3: Charge | Y3: Durée | Z3: RPE | AA3: Charge | AB3: Durée | AC3: RPE | AD3: Charge | AE3: Durée | AF3: RPE | AG3: Charge | AQ3: [1-5]
B4: Lu | D4: 0 | E4: 0 | F4: 0 | G4: 0 | H4: 0 | O4: =M4*N4 -> 0 | R4: =P4*Q4 -> 0 | U4: =S4*T4 -> 0 | X4: =V4*W4 -> 0 | AA4: =Y4*Z4 -> 0 | AD4: =AB4*AC4 -> 0 | AG4: =AE4*AF4 -> 0 | AH4: =IF(SUM(M4:AG6)>0,1,0) -> 00:00:00 | AK4: =SUM(O4:O6,R4:R6,U4:U6,X4:X6,AA4:AA6,AD4:AD6,AG4:AG6) -> 0
O5: =M5*N5 -> 0 | R5: =P5*Q5 -> 0 | U5: =S5*T5 -> 0 | X5: =V5*W5 -> 0 | AA5: =Y5*Z5 -> 0 | AD5: =AB5*AC5 -> 0 | AG5: =AE5*AF5 -> 0
O6: 0 | R6: 0 | U6: 0 | X6: 0 | AA6: 0 | AD6: 0 | AG6: 0
B7: Ma | D7: 0 | E7: 0 | F7: 0 | G7: 0 | H7: 0 | O7: 0 | R7: =P7*Q7 -> 0 | U7: 0 | X7: 0 | AA7: 0 | AD7: 0 | AG7: 0 | AH7: =IF(SUM(M7:AG9)>0,1,0) -> 00:00:00 | AK7: =SUM(O7:O9,R7:R9,U7:U9,X7:X9,AA7:AA9,AD7:AD9,AG7:AG9) -> 0
O8: 0 | R8: 0 | U8: 0 | X8: 0 | AA8: 0 | AD8: 0 | AG8: 0
O9: 0 | R9: 0 | U9: 0 | X9: 0 | AA9: 0 | AD9: 0 | AG9: 0
B10: Me | D10: 0 | E10: 0 | F10: 0 | G10: 0 | H10: 0 | O10: 0 | R10: =P10*Q10 -> 0 | U10: 0 | X10: 0 | AA10: 0 | AD10: 0 | AG10: 0 | AH10: =IF(SUM(M10:AG12)>0,1,0) -> 00:00:00 | AK10: =SUM(O10:O12,R10:R12,U10:U12,X10:X12,AA10:AA12,AD10:AD12,AG10:AG12) -> 0
O11: 0 | R11: 0 | U11: 0 | X11: 0 | AA11: 0 | AD11: 0 | AG11: 0
O12: 0 | R12: 0 | U12: 0 | X12: 0 | AA12: 0 | AD12: 0 | AG12: 0
B13: Je | D13: 0 | E13: 0 | F13: 0 | G13: 0 | H13: 0 | O13: 0 | R13: =P13*Q13 -> 0 | U13: 0 | X13: 0 | AA13: 0 | AD13: 0 | AG13: 0 | AH13: =IF(SUM(M13:AG15)>0,1,0) -> 00:00:00 | AK13: =SUM(O13:O15,R13:R15,U13:U15,X13:X15,AA13:AA15,AD13:AD15,AG13:AG15) -> 0
O14: 0 | R14: 0 | U14: 0 | X14: 0 | AA14: 0 | AD14: 0 | AG14: 0
O15: 0 | R15: 0 | U15: 0 | X15: 0 | AA15: 0 | AD15: 0 | AG15: 0
B16: Ve | D16: 0 | E16: 0 | F16: 0 | G16: 0 | H16: 0 | O16: 0 | R16: =P16*Q16 -> 0 | U16: 0 | X16: 0 | AA16: 0 | AD16: 0 | AG16: 0 | AH16: =IF(SUM(M16:AG18)>0,1,0) -> 00:00:00 | AK16: =SUM(O16:O18,R16:R18,U16:U18,X16:X18,AA16:AA18,AD16:AD18,AG16:AG18) -> 0
O17: 0 | R17: 0 | U17: 0 | X17: 0 | AA17: 0 | AD17: 0 | AG17: 0
O18: 0 | R18: 0 | U18: 0 | X18: 0 | AA18: 0 | AD18: 0 | AG18: 0
B19: Sa | D19: 0 | E19: 0 | F19: 0 | G19: 0 | H19: 0 | O19: =M19*N19 -> 0 | R19: =P19*Q19 -> 0 | U19: =S19*T19 -> 0 | X19: =V19*W19 -> 0 | AA19: =Y19*Z19 -> 0 | AD19: =AB19*AC19 -> 0 | AG19: =AE19*AF19 -> 0 | AH19: =IF(SUM(M19:AG21)>0,1,0) -> 00:00:00 | AK19: =SUM(O19:O21,R19:R21,U19:U21,X19:X21,AA19:AA21,AD19:AD21,AG19:AG21) -> 0
O20: =M20*N20 -> 0 | R20: 0 | U20: =S20*T20 -> 0 | X20: =V20*W20 -> 0 | AA20: =Y20*Z20 -> 0 | AD20: =AB20*AC20 -> 0 | AG20: =AE20*AF20 -> 0
O21: 0 | R21: 0 | U21: 0 | X21: 0 | AA21: 0 | AD21: 0 | AG21: 0
B22: Di | D22: 0 | E22: 0 | F22: 0 | G22: 0 | H22: 0 | O22: 0 | R22: =P22*Q22 -> 0 | U22: 0 | X22: 0 | AA22: 0 | AD22: 0 | AG22: 0 | AH22: =IF(SUM(M22:AG24)>0,1,0) -> 00:00:00 | AK22: =SUM(O22:O24,R22:R24,U22:U24,X22:X24,AA22:AA24,AD22:AD24,AG22:AG24) -> 0
O23: 0 | R23: 0 | U23: 0 | X23: 0 | AA23: 0 | AD23: 0 | AG23: 0
O24: 0 | R24: 0 | U24: 0 | X24: 0 | AA24: 0 | AD24: 0 | AG24: 0
K25: Total | M25: =SUM(M4:M24) -> 0 | O25: =SUM(O4:O24) -> 0 | P25: =SUM(P4:P24) -> 0 | R25: =SUM(R4:R24) -> 0 | S25: =SUM(S4:S24) -> 0 | U25: =SUM(U4:U24) -> 0 | V25: =SUM(V4:V24) -> 0 | X25: =SUM(X4:X24) -> 0 | Y25: =SUM(Y4:Y24) -> 0 | AA25: =SUM(AA4:AA24) -> 0 | AB25: =SUM(AB4:AB24) -> 0 | AD25: =SUM(AD4:AD24) -> 0 | AE25: =SUM(AE4:AE24) -> 0 | AG25: =SUM(AG4:AG24) -> 0 | AI25: Charge totale | AK25: =SUM(AK4:AK24) -> 0
B26: avg. | D26: =IF(COUNTA(D4:D24)=0,"",AVERAGE(D4:D24)) -> 0 | E26: =IF(COUNTA(E4:E24)=0,"",AVERAGE(E4:E24)) -> 0 | F26: =IF(COUNTA(F4:F24)=0,"",AVERAGE(F4:F24)) -> 0 | G26: =IF(COUNTA(G4:G24)=0,"",AVERAGE(G4:G24)) -> 0 | H26: =IF(COUNTA(H4:H24)=0,"",COUNTIF(H4:H24,"x")) -> 0 | K26: Zone | M26: 1 | N26: 2 | O26: 3 | P26: 1 | Q26: 2 | R26: 3 | S26: 1 | T26: 2 | U26: 3 | V26: 1 | W26: 2 | X26: 3 | Y26: 1 | Z26: 2 | AA26: 3 | AB26: 1 | AC26: 2 | AD26: 3 | AE26: 1 | AF26: 2 | AG26: 3 | AI26: Moyenne | AK26: =AVERAGE(AK4:AK24) -> 0
F27: =IF(COUNTA(F4:F24)=0,"",VAR(F4:F24)) -> 0 | G27: =IF(COUNTA(G4:G24)=0,"",STDEV(G4:G24)) -> 0 | H27: Divergence - durée du sommeil | K27: Unité par zone (RPE) | M27: =IF('Répartition des intensités'!$AR$25="x",COUNTIF(N4:N24,"<3,5"),COUNTIF(N4:N24,"<4,5")) -> 0 | N27: =COUNT(N4:N24)-(M27+O27) -> 0 | O27: =IF('Répartition des intensités'!$AR$25="x",COUNTIF(N4:N24,">5,5"),COUNTIF(N4:N24,">6,5")) -> 0 | P27: =IF('Répartition des intensités'!$AR$25="x",COUNTIF(Q4:Q24,"<3,5"),COUNTIF(Q4:Q24,"<4,5")) -> 0 | Q27: =COUNT(Q4:Q24)-(P27+R27) -> 0 | R27: =IF('Répartition des intensités'!$AR$25="x",COUNTIF(Q4:Q24,">5,5"),COUNTIF(Q4:Q24,">6,5")) -> 0 | S27: =IF('Répartition des intensités'!$AR$25="x",COUNTIF(T4:T24,"<3,5"),COUNTIF(T4:T24,"<4,5")) -> 0 | T27: =COUNT(T4:T24)-(S27+U27) -> 0 | U27: =IF('Répartition des intensités'!$AR$25="x",COUNTIF(T4:T24,">5,5"),COUNTIF(T4:T24,">6,5")) -> 0 | V27: =IF('Répartition des intensités'!$AR$25="x",COUNTIF(W4:W24,"<3,5"),COUNTIF(W4:W24,"<4,5")) -> 0 | W27: =COUNT(W4:W24)-(V27+X27) -> 0 | X27: =IF('Répartition des intensités'!$AR$25="x",COUNTIF(W4:W24,">5,5"),COUNTIF(W4:W24,">6,5")) -> 0 | Y27: =IF('Répartition des intensités'!$AR$25="x",COUNTIF(Z4:Z24,"<3,5"),COUNTIF(Z4:Z24,"<4,5")) -> 0 | Z27: =COUNT(Z4:Z24)-(Y27+AA27) -> 0 | AA27: =IF('Répartition des intensités'!$AR$25="x",COUNTIF(Z4:Z24,">5,5"),COUNTIF(Z4:Z24,">6,5")) -> 0 | AB27: =IF('Répartition des intensités'!$AR$25="x",COUNTIF(AC4:AC24,"<3,5"),COUNTIF(AC4:AC24,"<4,5")) -> 0 | AC27: =COUNT(AC4:AC24)-(AB27+AD27) -> 0 | AD27: =IF('Répartition des intensités'!$AR$25="x",COUNTIF(AC4:AC24,">5,5"),COUNTIF(AC4:AC24,">6,5")) -> 0 | AE27: =IF('Répartition des intensités'!$AR$25="x",COUNTIF(AF4:AF24,"<3,5"),COUNTIF(AF4:AF24,"<4,5")) -> 0 | AF27: =COUNT(AF4:AF24)-(AE27+AG27) -> 0 | AG27: =IF('Répartition des intensités'!$AR$25="x",COUNTIF(AF4:AF24,">5,5"),COUNTIF(AF4:AF24,">6,5")) -> 0 | AI27: Divergence | AK27: =STDEVP(AK4:AK24) -> 0
D28: échelle de Foster | H28: RPE | K28: Temps par zone (RPE) | M28: =IF('Répartition des intensités'!$AR$25="x",SUMIF(N4:N24,"<3,5",M4:M24),SUMIF(N4:N24,"<4,5",M4:M24)) -> 0 | N28: =IF(N27=0,0,SUM((M25)-(M28+O28))) -> 0 | O28: =IF('Répartition des intensités'!$AR$25="x",SUMIF(N4:N24,">5,5",M4:M24),SUMIF(N4:N24,">6,5",M4:M24)) -> 0 | P28: =IF('Répartition des intensités'!$AR$25="x",SUMIF(Q4:Q24,"<3,5",P4:P24),SUMIF(Q4:Q24,"<4,5",P4:P24)) -> 0 | Q28: =IF(Q27=0,0,SUM((P25)-(P28+R28))) -> 0 | R28: =IF('Répartition des intensités'!$AR$25="x",SUMIF(Q4:Q24,">5,5",P4:P24),SUMIF(Q4:Q24,">6,5",P4:P24)) -> 0 | S28: =IF('Répartition des intensités'!$AR$25="x",SUMIF(T4:T24,"<3,5",S4:S24),SUMIF(T4:T24,"<4,5",S4:S24)) -> 0 | T28: =IF(T27=0,0,SUM((S25)-(S28+U28))) -> 0 | U28: =IF('Répartition des intensités'!$AR$25="x",SUMIF(T4:T24,">5,5",S4:S24),SUMIF(T4:T24,">6,5",S4:S24)) -> 0 | V28: =IF('Répartition des intensités'!$AR$25="x",SUMIF(W4:W24,"<3,5",V4:V24),SUMIF(W4:W24,"<4,5",V4:V24)) -> 0 | W28: =IF(W27=0,0,SUM((V25)-(V28+X28))) -> 0 | X28: =IF('Répartition des intensités'!$AR$25="x",SUMIF(W4:W24,">5,5",V4:V24),SUMIF(W4:W24,">6,5",V4:V24)) -> 0 | Y28: =IF('Répartition des intensités'!$AR$25="x",SUMIF(Z4:Z24,"<3,5",Y4:Y24),SUMIF(Z4:Z24,"<4,5",Y4:Y24)) -> 0 | Z28: =IF(Z27=0,0,SUM((Y25)-(Y28+AA28))) -> 0 | AA28: =IF('Répartition des intensités'!$AR$25="x",SUMIF(Z4:Z24,">5,5",Y4:Y24),SUMIF(Z4:Z24,">6,5",Y4:Y24)) -> 0 | AB28: =IF('Répartition des intensités'!$AR$25="x",SUMIF(AC4:AC24,"<3,5",AB4:AB24),SUMIF(AC4:AC24,"<4,5",AB4:AB24)) -> 0 | AC28: =IF(AC27=0,0,SUM((AB25)-(AB28+AD28))) -> 0 | AD28: =IF('Répartition des intensités'!$AR$25="x",SUMIF(AC4:AC24,">5,5",AB4:AB24),SUMIF(AC4:AC24,">6,5",AB4:AB24)) -> 0 | AE28: =IF('Répartition des intensités'!$AR$25="x",SUMIF(AF4:AF24,"<3,5",AE4:AE24),SUMIF(AF4:AF24,"<4,5",AE4:AE24)) -> 0 | AF28: =IF(AF27=0,0,SUM((AE25)-(AE28+AG28))) -> 0 | AG28: =IF('Répartition des intensités'!$AR$25="x",SUMIF(AF4:AF24,">5,5",AE4:AE24),SUMIF(AF4:AF24,">6,5",AE4:AE24)) -> 0
D29: Comme au repos | H29: 0 | J29: REG | K29: Est-ce que j'ai l'impression d'avoir récupéré en me levant?
D30: très facile | H30: 1
D31: facile | H31: 2 | J31: 1 | K31: … pas du tout récupéré | AI31: Entrainements | AM31: Rapport de santé
H32: 3 | J32: 2 | K32: … un peu récupéré | AI32: Jours d'entrainement | AK32: =IF(SUM(AH4:AH24)=0,"",SUM(AH4:AH24)) -> 
D33: Assez dur | H33: 4 | J33: 3 | K33: … récupéré | V33: =B4 -> Lu | W33: =AK4 -> 0 | AI33: Entrainements | AK33: =IF(AK32="","",SUM(M27:AG27)) -> 
D34: dur | H34: 5 | J34: 4 | K34: … en forme | V34: =B7 -> Ma | W34: =AK7 -> 0 | AI34: Heures d'entrainement | AK34: =IF(AK32="","",SUM(M25,P25,S25,Y25,AB25,V25,AE25)/60) ->  | AM34: =IF($AK$32="","",AK32-AM36-AM44-AM52) ->  | AN34: Aucune limitation | AR34: 0
H35: 6 | J35: 5 | K35: … très en forme | V35: =B10 -> Me | W35: =AK10 -> 0 | AI35: Charge de l'entrainement | AK35: =IF(AK32="","",SUM(AK25)) -> 
D36: très dur | H36: 7 | V36: =B13 -> Je | W36: =AK13 -> 0 | AI36: Monotonie | AK36: =IF(AK27=0,0,(AVERAGE(AK4:AK24))/AK27) -> 0 | AM36: =SUM(AM37:AM42) -> 0 | AN36: Limitation pour cause de douleurs
H37: 8 | J37: Nombre de matchs | V37: =B16 -> Ve | W37: =AK16 -> 0 | AI37: Efforts à l'entrainement | AK37: =IF(AK32="","",AK35*AK36) ->  | AM37: =COUNTIF($H$4:$H$24,$AR37) -> 0 | AN37: Doigt | AR37: 1
D38: extrèmement dur | H38: 9 | V38: =B19 -> Sa | W38: =AK19 -> 0 | AM38: 0 | AN38: Épaule | AR38: 2
D39: Comme mon entrainement le plus dur | H39: 10 | J39: 1 | K39: … 3 sets et plus | V39: =B22 -> Di | W39: =AK22 -> 0 | AI39: Compétition | AM39: 0 | AN39: Dos | AR39: 3
J40: 0.5 | K40: … moins de 3 sets | AI40: Matchs de volleyball | AK40: =IF(AK32="","",SUM(AM4:AM24)) ->  | AM40: 0 | AN40: Genou | AR40: 4
AI41: Sets de volleyball | AK41: =IF(AK32="","",SUM(AN4:AN24)) ->  | AM41: 0 | AN41: Cheville | AR41: 5
J42: Sets joués | AI42: Matchs de beach volley | AK42: =IF(AK35="","",SUM(AO4:AO24)) ->  | AM42: 0 | AN42: Autre | AR42: 6
J43: 1 | K43: … depuis le début et durant tout le set | AI43: Sets de beach volley | AK43: =IF(AK35="","",SUM(AP4:AP24)) -> 
J44: 0.5 | K44: … entré/sorti en cours, beaucoup joué | AM44: =SUM(AM45:AM50) -> 0 | AN44: Absence pour cause de blessure
J45: 0.1 | K45: … entré/sorti en cours, peu joué | AI45: Satisfaction | AM45: =COUNTIF($H$4:$H$24,$AR45) -> 0 | AN45: Doigt | AR45: 11
AI46: Satisfaction de l'entrainement/match J | AK46: =IF(AK32="","",SUM(AQ4:AQ24)/AK32) ->  | AM46: 0 | AN46: Épaule | AR46: 12
J47: J | K47: Es-tu content de la qualité de ton | AM47: 0 | AN47: Dos | AR47: 13
K48: entrainement/compétition? | AI48: Santé | AM48: 0 | AN48: Genou | AR48: 14
J49: 1 | K49: … pas content | AI49: Limitation pour cause de douleurs | AK49: =AM36 -> 0 | AM49: 0 | AN49: Cheville | AR49: 15
J50: 2 | K50: … plutôt pas content | AI50: Absence pour cause de blessure | AK50: =AM44 -> 0 | AM50: 0 | AN50: Autre | AR50: 16
J51: 3 | K51: … moyen | AI51: Absence pour cause de maladie | AK51: =AM52 -> 0
J52: 4 | K52: … content | AM52: =SUM(AM53:AM59) -> 0 | AN52: Absence pour cause de maladie
J53: 5 | K53: … très content! | AM53: =COUNTIF($H$4:$H$24,$AR53) -> 0 | AN53: Maladie | AR53: 21

Sheet 32
C1: Woche | D1: =INT(MOD(INT((F1-2)/7)+0.6,52+5/28))+1 -> 32 | E1: =D1+1000 -> 1032 | F1: ='31'!F1+7 -> 2018-08-06 | H1: - | J1: =F1+6 -> 2018-08-12 | AG1: ='Aperçu de la charge'!D2 -> Prénom Nom | AI1: ='Aperçu de la charge'!N2 -> 2018/2019
B2: Jour | D2: Poids | E2: REG | F2: qualité sommeil | G2: durée sommeil | H2: Santé | J2: Description de l'entrainement | M2: Club - VB | P2: TS/ Nati - VB | S2: Club - BVB | V2: TS/ Nati - BVB | Y2: Force - fitness | AB2: Compet. - VB | AE2: Compet. - BVB | AI2: Réflexion | AK2: Charge/ jour | AM2: matchs VB | AN2: Sets VB | AO2: Matchs BVB | AP2: Sets BVB | AQ2: J | AR2: Autre (Rég, mentale) | AS2: Mental- oder Sonstiges Training
D3: [kg] | E3: [1 - 5] | F3: [1-5] | G3: [Std] | H3: Nr. | M3: Durée | N3: RPE | O3: Charge | P3: Durée | Q3: RPE | R3: Charge | S3: Durée | T3: RPE | U3: Charge | V3: Durée | W3: RPE | X3: Charge | Y3: Durée | Z3: RPE | AA3: Charge | AB3: Durée | AC3: RPE | AD3: Charge | AE3: Durée | AF3: RPE | AG3: Charge | AQ3: [1-5]
B4: Lu | D4: 0 | E4: 0 | F4: 0 | G4: 0 | H4: 0 | O4: =M4*N4 -> 0 | R4: =P4*Q4 -> 0 | U4: =S4*T4 -> 0 | X4: =V4*W4 -> 0 | AA4: =Y4*Z4 -> 0 | AD4: =AB4*AC4 -> 0 | AG4: =AE4*AF4 -> 0 | AH4: =IF(SUM(M4:AG6)>0,1,0) -> 00:00:00 | AK4: =SUM(O4:O6,R4:R6,U4:U6,X4:X6,AA4:AA6,AD4:AD6,AG4:AG6) -> 0
O5: =M5*N5 -> 0 | R5: =P5*Q5 -> 0 | U5: =S5*T5 -> 0 | X5: =V5*W5 -> 0 | AA5: =Y5*Z5 -> 0 | AD5: =AB5*AC5 -> 0 | AG5: =AE5*AF5 -> 0
O6: 0 | R6: 0 | U6: 0 | X6: 0 | AA6: 0 | AD6: 0 | AG6: 0
B7: Ma | D7: 0 | E7: 0 | F7: 0 | G7: 0 | H7: 0 | O7: 0 | R7: =P7*Q7 -> 0 | U7: 0 | X7: 0 | AA7: 0 | AD7: 0 | AG7: 0 | AH7: =IF(SUM(M7:AG9)>0,1,0) -> 00:00:00 | AK7: =SUM(O7:O9,R7:R9,U7:U9,X7:X9,AA7:AA9,AD7:AD9,AG7:AG9) -> 0
O8: 0 | R8: 0 | U8: 0 | X8: 0 | AA8: 0 | AD8: 0 | AG8: 0
O9: 0 | R9: 0 | U9: 0 | X9: 0 | AA9: 0 | AD9: 0 | AG9: 0
B10: Me | D10: 0 | E10: 0 | F10: 0 | G10: 0 | H10: 0 | O10: 0 | R10: =P10*Q10 -> 0 | U10: 0 | X10: 0 | AA10: 0 | AD10: 0 | AG10: 0 | AH10: =IF(SUM(M10:AG12)>0,1,0) -> 00:00:00 | AK10: =SUM(O10:O12,R10:R12,U10:U12,X10:X12,AA10:AA12,AD10:AD12,AG10:AG12) -> 0
O11: 0 | R11: 0 | U11: 0 | X11: 0 | AA11: 0 | AD11: 0 | AG11: 0
O12: 0 | R12: 0 | U12: 0 | X12: 0 | AA12: 0 | AD12: 0 | AG12: 0
B13: Je | D13: 0 | E13: 0 | F13: 0 | G13: 0 | H13: 0 | O13: 0 | R13: =P13*Q13 -> 0 | U13: 0 | X13: 0 | AA13: 0 | AD13: 0 | AG13: 0 | AH13: =IF(SUM(M13:AG15)>0,1,0) -> 00:00:00 | AK13: =SUM(O13:O15,R13:R15,U13:U15,X13:X15,AA13:AA15,AD13:AD15,AG13:AG15) -> 0
O14: 0 | R14: 0 | U14: 0 | X14: 0 | AA14: 0 | AD14: 0 | AG14: 0
O15: 0 | R15: 0 | U15: 0 | X15: 0 | AA15: 0 | AD15: 0 | AG15: 0
B16: Ve | D16: 0 | E16: 0 | F16: 0 | G16: 0 | H16: 0 | O16: 0 | R16: =P16*Q16 -> 0 | U16: 0 | X16: 0 | AA16: 0 | AD16: 0 | AG16: 0 | AH16: =IF(SUM(M16:AG18)>0,1,0) -> 00:00:00 | AK16: =SUM(O16:O18,R16:R18,U16:U18,X16:X18,AA16:AA18,AD16:AD18,AG16:AG18) -> 0
O17: 0 | R17: 0 | U17: 0 | X17: 0 | AA17: 0 | AD17: 0 | AG17: 0
O18: 0 | R18: 0 | U18: 0 | X18: 0 | AA18: 0 | AD18: 0 | AG18: 0
B19: Sa | D19: 0 | E19: 0 | F19: 0 | G19: 0 | H19: 0 | O19: =M19*N19 -> 0 | R19: =P19*Q19 -> 0 | U19: =S19*T19 -> 0 | X19: =V19*W19 -> 0 | AA19: =Y19*Z19 -> 0 | AD19: =AB19*AC19 -> 0 | AG19: =AE19*AF19 -> 0 | AH19: =IF(SUM(M19:AG21)>0,1,0) -> 00:00:00 | AK19: =SUM(O19:O21,R19:R21,U19:U21,X19:X21,AA19:AA21,AD19:AD21,AG19:AG21) -> 0
O20: =M20*N20 -> 0 | R20: 0 | U20: =S20*T20 -> 0 | X20: =V20*W20 -> 0 | AA20: =Y20*Z20 -> 0 | AD20: =AB20*AC20 -> 0 | AG20: =AE20*AF20 -> 0
O21: 0 | R21: 0 | U21: 0 | X21: 0 | AA21: 0 | AD21: 0 | AG21: 0
B22: Di | D22: 0 | E22: 0 | F22: 0 | G22: 0 | H22: 0 | O22: 0 | R22: =P22*Q22 -> 0 | U22: 0 | X22: 0 | AA22: 0 | AD22: 0 | AG22: 0 | AH22: =IF(SUM(M22:AG24)>0,1,0) -> 00:00:00 | AK22: =SUM(O22:O24,R22:R24,U22:U24,X22:X24,AA22:AA24,AD22:AD24,AG22:AG24) -> 0
O23: 0 | R23: 0 | U23: 0 | X23: 0 | AA23: 0 | AD23: 0 | AG23: 0
O24: 0 | R24: 0 | U24: 0 | X24: 0 | AA24: 0 | AD24: 0 | AG24: 0
K25: Total | M25: =SUM(M4:M24) -> 0 | O25: =SUM(O4:O24) -> 0 | P25: =SUM(P4:P24) -> 0 | R25: =SUM(R4:R24) -> 0 | S25: =SUM(S4:S24) -> 0 | U25: =SUM(U4:U24) -> 0 | V25: =SUM(V4:V24) -> 0 | X25: =SUM(X4:X24) -> 0 | Y25: =SUM(Y4:Y24) -> 0 | AA25: =SUM(AA4:AA24) -> 0 | AB25: =SUM(AB4:AB24) -> 0 | AD25: =SUM(AD4:AD24) -> 0 | AE25: =SUM(AE4:AE24) -> 0 | AG25: =SUM(AG4:AG24) -> 0 | AI25: Charge totale | AK25: =SUM(AK4:AK24) -> 0
B26: avg. | D26: =IF(COUNTA(D4:D24)=0,"",AVERAGE(D4:D24)) -> 0 | E26: =IF(COUNTA(E4:E24)=0,"",AVERAGE(E4:E24)) -> 0 | F26: =IF(COUNTA(F4:F24)=0,"",AVERAGE(F4:F24)) -> 0 | G26: =IF(COUNTA(G4:G24)=0,"",AVERAGE(G4:G24)) -> 0 | H26: =IF(COUNTA(H4:H24)=0,"",COUNTIF(H4:H24,"x")) -> 0 | K26: Zone | M26: 1 | N26: 2 | O26: 3 | P26: 1 | Q26: 2 | R26: 3 | S26: 1 | T26: 2 | U26: 3 | V26: 1 | W26: 2 | X26: 3 | Y26: 1 | Z26: 2 | AA26: 3 | AB26: 1 | AC26: 2 | AD26: 3 | AE26: 1 | AF26: 2 | AG26: 3 | AI26: Moyenne | AK26: =AVERAGE(AK4:AK24) -> 0
F27: =IF(COUNTA(F4:F24)=0,"",VAR(F4:F24)) -> 0 | G27: =IF(COUNTA(G4:G24)=0,"",STDEV(G4:G24)) -> 0 | H27: Divergence - durée du sommeil | K27: Unité par zone (RPE) | M27: =IF('Répartition des intensités'!$AR$25="x",COUNTIF(N4:N24,"<3,5"),COUNTIF(N4:N24,"<4,5")) -> 0 | N27: =COUNT(N4:N24)-(M27+O27) -> 0 | O27: =IF('Répartition des intensités'!$AR$25="x",COUNTIF(N4:N24,">5,5"),COUNTIF(N4:N24,">6,5")) -> 0 | P27: =IF('Répartition des intensités'!$AR$25="x",COUNTIF(Q4:Q24,"<3,5"),COUNTIF(Q4:Q24,"<4,5")) -> 0 | Q27: =COUNT(Q4:Q24)-(P27+R27) -> 0 | R27: =IF('Répartition des intensités'!$AR$25="x",COUNTIF(Q4:Q24,">5,5"),COUNTIF(Q4:Q24,">6,5")) -> 0 | S27: =IF('Répartition des intensités'!$AR$25="x",COUNTIF(T4:T24,"<3,5"),COUNTIF(T4:T24,"<4,5")) -> 0 | T27: =COUNT(T4:T24)-(S27+U27) -> 0 | U27: =IF('Répartition des intensités'!$AR$25="x",COUNTIF(T4:T24,">5,5"),COUNTIF(T4:T24,">6,5")) -> 0 | V27: =IF('Répartition des intensités'!$AR$25="x",COUNTIF(W4:W24,"<3,5"),COUNTIF(W4:W24,"<4,5")) -> 0 | W27: =COUNT(W4:W24)-(V27+X27) -> 0 | X27: =IF('Répartition des intensités'!$AR$25="x",COUNTIF(W4:W24,">5,5"),COUNTIF(W4:W24,">6,5")) -> 0 | Y27: =IF('Répartition des intensités'!$AR$25="x",COUNTIF(Z4:Z24,"<3,5"),COUNTIF(Z4:Z24,"<4,5")) -> 0 | Z27: =COUNT(Z4:Z24)-(Y27+AA27) -> 0 | AA27: =IF('Répartition des intensités'!$AR$25="x",COUNTIF(Z4:Z24,">5,5"),COUNTIF(Z4:Z24,">6,5")) -> 0 | AB27: =IF('Répartition des intensités'!$AR$25="x",COUNTIF(AC4:AC24,"<3,5"),COUNTIF(AC4:AC24,"<4,5")) -> 0 | AC27: =COUNT(AC4:AC24)-(AB27+AD27) -> 0 | AD27: =IF('Répartition des intensités'!$AR$25="x",COUNTIF(AC4:AC24,">5,5"),COUNTIF(AC4:AC24,">6,5")) -> 0 | AE27: =IF('Répartition des intensités'!$AR$25="x",COUNTIF(AF4:AF24,"<3,5"),COUNTIF(AF4:AF24,"<4,5")) -> 0 | AF27: =COUNT(AF4:AF24)-(AE27+AG27) -> 0 | AG27: =IF('Répartition des intensités'!$AR$25="x",COUNTIF(AF4:AF24,">5,5"),COUNTIF(AF4:AF24,">6,5")) -> 0 | AI27: Divergence | AK27: =STDEVP(AK4:AK24) -> 0
D28: échelle de Foster | H28: RPE | K28: Temps par zone (RPE) | M28: =IF('Répartition des intensités'!$AR$25="x",SUMIF(N4:N24,"<3,5",M4:M24),SUMIF(N4:N24,"<4,5",M4:M24)) -> 0 | N28: =IF(N27=0,0,SUM((M25)-(M28+O28))) -> 0 | O28: =IF('Répartition des intensités'!$AR$25="x",SUMIF(N4:N24,">5,5",M4:M24),SUMIF(N4:N24,">6,5",M4:M24)) -> 0 | P28: =IF('Répartition des intensités'!$AR$25="x",SUMIF(Q4:Q24,"<3,5",P4:P24),SUMIF(Q4:Q24,"<4,5",P4:P24)) -> 0 | Q28: =IF(Q27=0,0,SUM((P25)-(P28+R28))) -> 0 | R28: =IF('Répartition des intensités'!$AR$25="x",SUMIF(Q4:Q24,">5,5",P4:P24),SUMIF(Q4:Q24,">6,5",P4:P24)) -> 0 | S28: =IF('Répartition des intensités'!$AR$25="x",SUMIF(T4:T24,"<3,5",S4:S24),SUMIF(T4:T24,"<4,5",S4:S24)) -> 0 | T28: =IF(T27=0,0,SUM((S25)-(S28+U28))) -> 0 | U28: =IF('Répartition des intensités'!$AR$25="x",SUMIF(T4:T24,">5,5",S4:S24),SUMIF(T4:T24,">6,5",S4:S24)) -> 0 | V28: =IF('Répartition des intensités'!$AR$25="x",SUMIF(W4:W24,"<3,5",V4:V24),SUMIF(W4:W24,"<4,5",V4:V24)) -> 0 | W28: =IF(W27=0,0,SUM((V25)-(V28+X28))) -> 0 | X28: =IF('Répartition des intensités'!$AR$25="x",SUMIF(W4:W24,">5,5",V4:V24),SUMIF(W4:W24,">6,5",V4:V24)) -> 0 | Y28: =IF('Répartition des intensités'!$AR$25="x",SUMIF(Z4:Z24,"<3,5",Y4:Y24),SUMIF(Z4:Z24,"<4,5",Y4:Y24)) -> 0 | Z28: =IF(Z27=0,0,SUM((Y25)-(Y28+AA28))) -> 0 | AA28: =IF('Répartition des intensités'!$AR$25="x",SUMIF(Z4:Z24,">5,5",Y4:Y24),SUMIF(Z4:Z24,">6,5",Y4:Y24)) -> 0 | AB28: =IF('Répartition des intensités'!$AR$25="x",SUMIF(AC4:AC24,"<3,5",AB4:AB24),SUMIF(AC4:AC24,"<4,5",AB4:AB24)) -> 0 | AC28: =IF(AC27=0,0,SUM((AB25)-(AB28+AD28))) -> 0 | AD28: =IF('Répartition des intensités'!$AR$25="x",SUMIF(AC4:AC24,">5,5",AB4:AB24),SUMIF(AC4:AC24,">6,5",AB4:AB24)) -> 0 | AE28: =IF('Répartition des intensités'!$AR$25="x",SUMIF(AF4:AF24,"<3,5",AE4:AE24),SUMIF(AF4:AF24,"<4,5",AE4:AE24)) -> 0 | AF28: =IF(AF27=0,0,SUM((AE25)-(AE28+AG28))) -> 0 | AG28: =IF('Répartition des intensités'!$AR$25="x",SUMIF(AF4:AF24,">5,5",AE4:AE24),SUMIF(AF4:AF24,">6,5",AE4:AE24)) -> 0
D29: Comme au repos | H29: 0 | J29: REG | K29: Est-ce que j'ai l'impression d'avoir récupéré en me levant?
D30: très facile | H30: 1
D31: facile | H31: 2 | J31: 1 | K31: … pas du tout récupéré | AI31: Entrainements | AM31: Rapport de santé
H32: 3 | J32: 2 | K32: … un peu récupéré | AI32: Jours d'entrainement | AK32: =IF(SUM(AH4:AH24)=0,"",SUM(AH4:AH24)) -> 
D33: Assez dur | H33: 4 | J33: 3 | K33: … récupéré | V33: =B4 -> Lu | W33: =AK4 -> 0 | AI33: Entrainements | AK33: =IF(AK32="","",SUM(M27:AG27)) -> 
D34: dur | H34: 5 | J34: 4 | K34: … en forme | V34: =B7 -> Ma | W34: =AK7 -> 0 | AI34: Heures d'entrainement | AK34: =IF(AK32="","",SUM(M25,P25,S25,Y25,AB25,V25,AE25)/60) ->  | AM34: =IF($AK$32="","",AK32-AM36-AM44-AM52) ->  | AN34: Aucune limitation | AR34: 0
H35: 6 | J35: 5 | K35: … très en forme | V35: =B10 -> Me | W35: =AK10 -> 0 | AI35: Charge de l'entrainement | AK35: =IF(AK32="","",SUM(AK25)) -> 
D36: très dur | H36: 7 | V36: =B13 -> Je | W36: =AK13 -> 0 | AI36: Monotonie | AK36: =IF(AK27=0,0,(AVERAGE(AK4:AK24))/AK27) -> 0 | AM36: =SUM(AM37:AM42) -> 0 | AN36: Limitation pour cause de douleurs
H37: 8 | J37: Nombre de matchs | V37: =B16 -> Ve | W37: =AK16 -> 0 | AI37: Efforts à l'entrainement | AK37: =IF(AK32="","",AK35*AK36) ->  | AM37: =COUNTIF($H$4:$H$24,$AR37) -> 0 | AN37: Doigt | AR37: 1
D38: extrèmement dur | H38: 9 | V38: =B19 -> Sa | W38: =AK19 -> 0 | AM38: 0 | AN38: Épaule | AR38: 2
D39: Comme mon entrainement le plus dur | H39: 10 | J39: 1 | K39: … 3 sets et plus | V39: =B22 -> Di | W39: =AK22 -> 0 | AI39: Compétition | AM39: 0 | AN39: Dos | AR39: 3
J40: 0.5 | K40: … moins de 3 sets | AI40: Matchs de volleyball | AK40: =IF(AK32="","",SUM(AM4:AM24)) ->  | AM40: 0 | AN40: Genou | AR40: 4
AI41: Sets de volleyball | AK41: =IF(AK32="","",SUM(AN4:AN24)) ->  | AM41: 0 | AN41: Cheville | AR41: 5
J42: Sets joués | AI42: Matchs de beach volley | AK42: =IF(AK35="","",SUM(AO4:AO24)) ->  | AM42: 0 | AN42: Autre | AR42: 6
J43: 1 | K43: … depuis le début et durant tout le set | AI43: Sets de beach volley | AK43: =IF(AK35="","",SUM(AP4:AP24)) -> 
J44: 0.5 | K44: … entré/sorti en cours, beaucoup joué | AM44: =SUM(AM45:AM50) -> 0 | AN44: Absence pour cause de blessure
J45: 0.1 | K45: … entré/sorti en cours, peu joué | AI45: Satisfaction | AM45: =COUNTIF($H$4:$H$24,$AR45) -> 0 | AN45: Doigt | AR45: 11
AI46: Satisfaction de l'entrainement/match J | AK46: =IF(AK32="","",SUM(AQ4:AQ24)/AK32) ->  | AM46: 0 | AN46: Épaule | AR46: 12
J47: J | K47: Es-tu content de la qualité de ton | AM47: 0 | AN47: Dos | AR47: 13
K48: entrainement/compétition? | AI48: Santé | AM48: 0 | AN48: Genou | AR48: 14
J49: 1 | K49: … pas content | AI49: Limitation pour cause de douleurs | AK49: =AM36 -> 0 | AM49: 0 | AN49: Cheville | AR49: 15
J50: 2 | K50: … plutôt pas content | AI50: Absence pour cause de blessure | AK50: =AM44 -> 0 | AM50: 0 | AN50: Autre | AR50: 16
J51: 3 | K51: … moyen | AI51: Absence pour cause de maladie | AK51: =AM52 -> 0
J52: 4 | K52: … content | AM52: =SUM(AM53:AM59) -> 0 | AN52: Absence pour cause de maladie
J53: 5 | K53: … très content! | AM53: =COUNTIF($H$4:$H$24,$AR53) -> 0 | AN53: Maladie | AR53: 21
Y136: =Z136-1 -> 27 | Z136: =AA136-1 -> 28 | AA136: =AB136-1 -> 29 | AB136: =AC136-1 -> 30 | AC136: =AD136-1 -> 31 | AD136: =D1 -> 32 | AE136: =AD136+1 -> 33 | AF136: =AE136+1 -> 34
AG155: =AF136+1 -> 35

Sheet 33
C1: Woche | D1: =INT(MOD(INT((F1-2)/7)+0.6,52+5/28))+1 -> 33 | E1: =D1+1000 -> 1033 | F1: ='32'!F1+7 -> 2018-08-13 | H1: - | J1: =F1+6 -> 2018-08-19 | AG1: ='Aperçu de la charge'!D2 -> Prénom Nom | AI1: ='Aperçu de la charge'!N2 -> 2018/2019
B2: Jour | D2: Poids | E2: REG | F2: qualité sommeil | G2: durée sommeil | H2: Santé | J2: Description de l'entrainement | M2: Club - VB | P2: TS/ Nati - VB | S2: Club - BVB | V2: TS/ Nati - BVB | Y2: Force - fitness | AB2: Compet. - VB | AE2: Compet. - BVB | AI2: Réflexion | AK2: Charge/ jour | AM2: matchs VB | AN2: Sets VB | AO2: Matchs BVB | AP2: Sets BVB | AQ2: J | AR2: Autre (Rég, mentale) | AS2: Mental- oder Sonstiges Training
D3: [kg] | E3: [1 - 5] | F3: [1-5] | G3: [Std] | H3: Nr. | M3: Durée | N3: RPE | O3: Charge | P3: Durée | Q3: RPE | R3: Charge | S3: Durée | T3: RPE | U3: Charge | V3: Durée | W3: RPE | X3: Charge | Y3: Durée | Z3: RPE | AA3: Charge | AB3: Durée | AC3: RPE | AD3: Charge | AE3: Durée | AF3: RPE | AG3: Charge | AQ3: [1-5]
B4: Lu | D4: 0 | E4: 0 | F4: 0 | G4: 0 | H4: 0 | O4: =M4*N4 -> 0 | R4: =P4*Q4 -> 0 | U4: =S4*T4 -> 0 | X4: =V4*W4 -> 0 | AA4: =Y4*Z4 -> 0 | AD4: =AB4*AC4 -> 0 | AG4: =AE4*AF4 -> 0 | AH4: =IF(SUM(M4:AG6)>0,1,0) -> 00:00:00 | AK4: =SUM(O4:O6,R4:R6,U4:U6,X4:X6,AA4:AA6,AD4:AD6,AG4:AG6) -> 0
O5: =M5*N5 -> 0 | R5: =P5*Q5 -> 0 | U5: =S5*T5 -> 0 | X5: =V5*W5 -> 0 | AA5: =Y5*Z5 -> 0 | AD5: =AB5*AC5 -> 0 | AG5: =AE5*AF5 -> 0
O6: 0 | R6: 0 | U6: 0 | X6: 0 | AA6: 0 | AD6: 0 | AG6: 0
B7: Ma | D7: 0 | E7: 0 | F7: 0 | G7: 0 | H7: 0 | O7: 0 | R7: =P7*Q7 -> 0 | U7: 0 | X7: 0 | AA7: 0 | AD7: 0 | AG7: 0 | AH7: =IF(SUM(M7:AG9)>0,1,0) -> 00:00:00 | AK7: =SUM(O7:O9,R7:R9,U7:U9,X7:X9,AA7:AA9,AD7:AD9,AG7:AG9) -> 0
O8: 0 | R8: 0 | U8: 0 | X8: 0 | AA8: 0 | AD8: 0 | AG8: 0
O9: 0 | R9: 0 | U9: 0 | X9: 0 | AA9: 0 | AD9: 0 | AG9: 0
B10: Me | D10: 0 | E10: 0 | F10: 0 | G10: 0 | H10: 0 | O10: 0 | R10: =P10*Q10 -> 0 | U10: 0 | X10: 0 | AA10: 0 | AD10: 0 | AG10: 0 | AH10: =IF(SUM(M10:AG12)>0,1,0) -> 00:00:00 | AK10: =SUM(O10:O12,R10:R12,U10:U12,X10:X12,AA10:AA12,AD10:AD12,AG10:AG12) -> 0
O11: 0 | R11: 0 | U11: 0 | X11: 0 | AA11: 0 | AD11: 0 | AG11: 0
O12: 0 | R12: 0 | U12: 0 | X12: 0 | AA12: 0 | AD12: 0 | AG12: 0
B13: Je | D13: 0 | E13: 0 | F13: 0 | G13: 0 | H13: 0 | O13: 0 | R13: =P13*Q13 -> 0 | U13: 0 | X13: 0 | AA13: 0 | AD13: 0 | AG13: 0 | AH13: =IF(SUM(M13:AG15)>0,1,0) -> 00:00:00 | AK13: =SUM(O13:O15,R13:R15,U13:U15,X13:X15,AA13:AA15,AD13:AD15,AG13:AG15) -> 0
O14: 0 | R14: 0 | U14: 0 | X14: 0 | AA14: 0 | AD14: 0 | AG14: 0
O15: 0 | R15: 0 | U15: 0 | X15: 0 | AA15: 0 | AD15: 0 | AG15: 0
B16: Ve | D16: 0 | E16: 0 | F16: 0 | G16: 0 | H16: 0 | O16: 0 | R16: =P16*Q16 -> 0 | U16: 0 | X16: 0 | AA16: 0 | AD16: 0 | AG16: 0 | AH16: =IF(SUM(M16:AG18)>0,1,0) -> 00:00:00 | AK16: =SUM(O16:O18,R16:R18,U16:U18,X16:X18,AA16:AA18,AD16:AD18,AG16:AG18) -> 0
O17: 0 | R17: 0 | U17: 0 | X17: 0 | AA17: 0 | AD17: 0 | AG17: 0
O18: 0 | R18: 0 | U18: 0 | X18: 0 | AA18: 0 | AD18: 0 | AG18: 0
B19: Sa | D19: 0 | E19: 0 | F19: 0 | G19: 0 | H19: 0 | O19: =M19*N19 -> 0 | R19: =P19*Q19 -> 0 | U19: =S19*T19 -> 0 | X19: =V19*W19 -> 0 | AA19: =Y19*Z19 -> 0 | AD19: =AB19*AC19 -> 0 | AG19: =AE19*AF19 -> 0 | AH19: =IF(SUM(M19:AG21)>0,1,0) -> 00:00:00 | AK19: =SUM(O19:O21,R19:R21,U19:U21,X19:X21,AA19:AA21,AD19:AD21,AG19:AG21) -> 0
O20: =M20*N20 -> 0 | R20: 0 | U20: =S20*T20 -> 0 | X20: =V20*W20 -> 0 | AA20: =Y20*Z20 -> 0 | AD20: =AB20*AC20 -> 0 | AG20: =AE20*AF20 -> 0
O21: 0 | R21: 0 | U21: 0 | X21: 0 | AA21: 0 | AD21: 0 | AG21: 0
B22: Di | D22: 0 | E22: 0 | F22: 0 | G22: 0 | H22: 0 | O22: 0 | R22: =P22*Q22 -> 0 | U22: 0 | X22: 0 | AA22: 0 | AD22: 0 | AG22: 0 | AH22: =IF(SUM(M22:AG24)>0,1,0) -> 00:00:00 | AK22: =SUM(O22:O24,R22:R24,U22:U24,X22:X24,AA22:AA24,AD22:AD24,AG22:AG24) -> 0
O23: 0 | R23: 0 | U23: 0 | X23: 0 | AA23: 0 | AD23: 0 | AG23: 0
O24: 0 | R24: 0 | U24: 0 | X24: 0 | AA24: 0 | AD24: 0 | AG24: 0
K25: Total | M25: =SUM(M4:M24) -> 0 | O25: =SUM(O4:O24) -> 0 | P25: =SUM(P4:P24) -> 0 | R25: =SUM(R4:R24) -> 0 | S25: =SUM(S4:S24) -> 0 | U25: =SUM(U4:U24) -> 0 | V25: =SUM(V4:V24) -> 0 | X25: =SUM(X4:X24) -> 0 | Y25: =SUM(Y4:Y24) -> 0 | AA25: =SUM(AA4:AA24) -> 0 | AB25: =SUM(AB4:AB24) -> 0 | AD25: =SUM(AD4:AD24) -> 0 | AE25: =SUM(AE4:AE24) -> 0 | AG25: =SUM(AG4:AG24) -> 0 | AI25: Charge totale | AK25: =SUM(AK4:AK24) -> 0
B26: avg. | D26: =IF(COUNTA(D4:D24)=0,"",AVERAGE(D4:D24)) -> 0 | E26: =IF(COUNTA(E4:E24)=0,"",AVERAGE(E4:E24)) -> 0 | F26: =IF(COUNTA(F4:F24)=0,"",AVERAGE(F4:F24)) -> 0 | G26: =IF(COUNTA(G4:G24)=0,"",AVERAGE(G4:G24)) -> 0 | H26: =IF(COUNTA(H4:H24)=0,"",COUNTIF(H4:H24,"x")) -> 0 | K26: Zone | M26: 1 | N26: 2 | O26: 3 | P26: 1 | Q26: 2 | R26: 3 | S26: 1 | T26: 2 | U26: 3 | V26: 1 | W26: 2 | X26: 3 | Y26: 1 | Z26: 2 | AA26: 3 | AB26: 1 | AC26: 2 | AD26: 3 | AE26: 1 | AF26: 2 | AG26: 3 | AI26: Moyenne | AK26: =AVERAGE(AK4:AK24) -> 0
F27: =IF(COUNTA(F4:F24)=0,"",VAR(F4:F24)) -> 0 | G27: =IF(COUNTA(G4:G24)=0,"",STDEV(G4:G24)) -> 0 | H27: Divergence - durée du sommeil | K27: Unité par zone (RPE) | M27: =IF('Répartition des intensités'!$AR$25="x",COUNTIF(N4:N24,"<3,5"),COUNTIF(N4:N24,"<4,5")) -> 0 | N27: =COUNT(N4:N24)-(M27+O27) -> 0 | O27: =IF('Répartition des intensités'!$AR$25="x",COUNTIF(N4:N24,">5,5"),COUNTIF(N4:N24,">6,5")) -> 0 | P27: =IF('Répartition des intensités'!$AR$25="x",COUNTIF(Q4:Q24,"<3,5"),COUNTIF(Q4:Q24,"<4,5")) -> 0 | Q27: =COUNT(Q4:Q24)-(P27+R27) -> 0 | R27: =IF('Répartition des intensités'!$AR$25="x",COUNTIF(Q4:Q24,">5,5"),COUNTIF(Q4:Q24,">6,5")) -> 0 | S27: =IF('Répartition des intensités'!$AR$25="x",COUNTIF(T4:T24,"<3,5"),COUNTIF(T4:T24,"<4,5")) -> 0 | T27: =COUNT(T4:T24)-(S27+U27) -> 0 | U27: =IF('Répartition des intensités'!$AR$25="x",COUNTIF(T4:T24,">5,5"),COUNTIF(T4:T24,">6,5")) -> 0 | V27: =IF('Répartition des intensités'!$AR$25="x",COUNTIF(W4:W24,"<3,5"),COUNTIF(W4:W24,"<4,5")) -> 0 | W27: =COUNT(W4:W24)-(V27+X27) -> 0 | X27: =IF('Répartition des intensités'!$AR$25="x",COUNTIF(W4:W24,">5,5"),COUNTIF(W4:W24,">6,5")) -> 0 | Y27: =IF('Répartition des intensités'!$AR$25="x",COUNTIF(Z4:Z24,"<3,5"),COUNTIF(Z4:Z24,"<4,5")) -> 0 | Z27: =COUNT(Z4:Z24)-(Y27+AA27) -> 0 | AA27: =IF('Répartition des intensités'!$AR$25="x",COUNTIF(Z4:Z24,">5,5"),COUNTIF(Z4:Z24,">6,5")) -> 0 | AB27: =IF('Répartition des intensités'!$AR$25="x",COUNTIF(AC4:AC24,"<3,5"),COUNTIF(AC4:AC24,"<4,5")) -> 0 | AC27: =COUNT(AC4:AC24)-(AB27+AD27) -> 0 | AD27: =IF('Répartition des intensités'!$AR$25="x",COUNTIF(AC4:AC24,">5,5"),COUNTIF(AC4:AC24,">6,5")) -> 0 | AE27: =IF('Répartition des intensités'!$AR$25="x",COUNTIF(AF4:AF24,"<3,5"),COUNTIF(AF4:AF24,"<4,5")) -> 0 | AF27: =COUNT(AF4:AF24)-(AE27+AG27) -> 0 | AG27: =IF('Répartition des intensités'!$AR$25="x",COUNTIF(AF4:AF24,">5,5"),COUNTIF(AF4:AF24,">6,5")) -> 0 | AI27: Divergence | AK27: =STDEVP(AK4:AK24) -> 0
D28: échelle de Foster | H28: RPE | K28: Temps par zone (RPE) | M28: =IF('Répartition des intensités'!$AR$25="x",SUMIF(N4:N24,"<3,5",M4:M24),SUMIF(N4:N24,"<4,5",M4:M24)) -> 0 | N28: =IF(N27=0,0,SUM((M25)-(M28+O28))) -> 0 | O28: =IF('Répartition des intensités'!$AR$25="x",SUMIF(N4:N24,">5,5",M4:M24),SUMIF(N4:N24,">6,5",M4:M24)) -> 0 | P28: =IF('Répartition des intensités'!$AR$25="x",SUMIF(Q4:Q24,"<3,5",P4:P24),SUMIF(Q4:Q24,"<4,5",P4:P24)) -> 0 | Q28: =IF(Q27=0,0,SUM((P25)-(P28+R28))) -> 0 | R28: =IF('Répartition des intensités'!$AR$25="x",SUMIF(Q4:Q24,">5,5",P4:P24),SUMIF(Q4:Q24,">6,5",P4:P24)) -> 0 | S28: =IF('Répartition des intensités'!$AR$25="x",SUMIF(T4:T24,"<3,5",S4:S24),SUMIF(T4:T24,"<4,5",S4:S24)) -> 0 | T28: =IF(T27=0,0,SUM((S25)-(S28+U28))) -> 0 | U28: =IF('Répartition des intensités'!$AR$25="x",SUMIF(T4:T24,">5,5",S4:S24),SUMIF(T4:T24,">6,5",S4:S24)) -> 0 | V28: =IF('Répartition des intensités'!$AR$25="x",SUMIF(W4:W24,"<3,5",V4:V24),SUMIF(W4:W24,"<4,5",V4:V24)) -> 0 | W28: =IF(W27=0,0,SUM((V25)-(V28+X28))) -> 0 | X28: =IF('Répartition des intensités'!$AR$25="x",SUMIF(W4:W24,">5,5",V4:V24),SUMIF(W4:W24,">6,5",V4:V24)) -> 0 | Y28: =IF('Répartition des intensités'!$AR$25="x",SUMIF(Z4:Z24,"<3,5",Y4:Y24),SUMIF(Z4:Z24,"<4,5",Y4:Y24)) -> 0 | Z28: =IF(Z27=0,0,SUM((Y25)-(Y28+AA28))) -> 0 | AA28: =IF('Répartition des intensités'!$AR$25="x",SUMIF(Z4:Z24,">5,5",Y4:Y24),SUMIF(Z4:Z24,">6,5",Y4:Y24)) -> 0 | AB28: =IF('Répartition des intensités'!$AR$25="x",SUMIF(AC4:AC24,"<3,5",AB4:AB24),SUMIF(AC4:AC24,"<4,5",AB4:AB24)) -> 0 | AC28: =IF(AC27=0,0,SUM((AB25)-(AB28+AD28))) -> 0 | AD28: =IF('Répartition des intensités'!$AR$25="x",SUMIF(AC4:AC24,">5,5",AB4:AB24),SUMIF(AC4:AC24,">6,5",AB4:AB24)) -> 0 | AE28: =IF('Répartition des intensités'!$AR$25="x",SUMIF(AF4:AF24,"<3,5",AE4:AE24),SUMIF(AF4:AF24,"<4,5",AE4:AE24)) -> 0 | AF28: =IF(AF27=0,0,SUM((AE25)-(AE28+AG28))) -> 0 | AG28: =IF('Répartition des intensités'!$AR$25="x",SUMIF(AF4:AF24,">5,5",AE4:AE24),SUMIF(AF4:AF24,">6,5",AE4:AE24)) -> 0
D29: Comme au repos | H29: 0 | J29: REG | K29: Est-ce que j'ai l'impression d'avoir récupéré en me levant?
D30: très facile | H30: 1
D31: facile | H31: 2 | J31: 1 | K31: … pas du tout récupéré | AI31: Entrainements | AM31: Rapport de santé
H32: 3 | J32: 2 | K32: … un peu récupéré | AI32: Jours d'entrainement | AK32: =IF(SUM(AH4:AH24)=0,"",SUM(AH4:AH24)) -> 
D33: Assez dur | H33: 4 | J33: 3 | K33: … récupéré | V33: =B4 -> Lu | W33: =AK4 -> 0 | AI33: Entrainements | AK33: =IF(AK32="","",SUM(M27:AG27)) -> 
D34: dur | H34: 5 | J34: 4 | K34: … en forme | V34: =B7 -> Ma | W34: =AK7 -> 0 | AI34: Heures d'entrainement | AK34: =IF(AK32="","",SUM(M25,P25,S25,Y25,AB25,V25,AE25)/60) ->  | AM34: =IF($AK$32="","",AK32-AM36-AM44-AM52) ->  | AN34: Aucune limitation | AR34: 0
H35: 6 | J35: 5 | K35: … très en forme | V35: =B10 -> Me | W35: =AK10 -> 0 | AI35: Charge de l'entrainement | AK35: =IF(AK32="","",SUM(AK25)) -> 
D36: très dur | H36: 7 | V36: =B13 -> Je | W36: =AK13 -> 0 | AI36: Monotonie | AK36: =IF(AK27=0,0,(AVERAGE(AK4:AK24))/AK27) -> 0 | AM36: =SUM(AM37:AM42) -> 0 | AN36: Limitation pour cause de douleurs
H37: 8 | J37: Nombre de matchs | V37: =B16 -> Ve | W37: =AK16 -> 0 | AI37: Efforts à l'entrainement | AK37: =IF(AK32="","",AK35*AK36) ->  | AM37: =COUNTIF($H$4:$H$24,$AR37) -> 0 | AN37: Doigt | AR37: 1
D38: extrèmement dur | H38: 9 | V38: =B19 -> Sa | W38: =AK19 -> 0 | AM38: 0 | AN38: Épaule | AR38: 2
D39: Comme mon entrainement le plus dur | H39: 10 | J39: 1 | K39: … 3 sets et plus | V39: =B22 -> Di | W39: =AK22 -> 0 | AI39: Compétition | AM39: 0 | AN39: Dos | AR39: 3
J40: 0.5 | K40: … moins de 3 sets | AI40: Matchs de volleyball | AK40: =IF(AK32="","",SUM(AM4:AM24)) ->  | AM40: 0 | AN40: Genou | AR40: 4
AI41: Sets de volleyball | AK41: =IF(AK32="","",SUM(AN4:AN24)) ->  | AM41: 0 | AN41: Cheville | AR41: 5
J42: Sets joués | AI42: Matchs de beach volley | AK42: =IF(AK35="","",SUM(AO4:AO24)) ->  | AM42: 0 | AN42: Autre | AR42: 6
J43: 1 | K43: … depuis le début et durant tout le set | AI43: Sets de beach volley | AK43: =IF(AK35="","",SUM(AP4:AP24)) -> 
J44: 0.5 | K44: … entré/sorti en cours, beaucoup joué | AM44: =SUM(AM45:AM50) -> 0 | AN44: Absence pour cause de blessure
J45: 0.1 | K45: … entré/sorti en cours, peu joué | AI45: Satisfaction | AM45: =COUNTIF($H$4:$H$24,$AR45) -> 0 | AN45: Doigt | AR45: 11
AI46: Satisfaction de l'entrainement/match J | AK46: =IF(AK32="","",SUM(AQ4:AQ24)/AK32) ->  | AM46: 0 | AN46: Épaule | AR46: 12
J47: J | K47: Es-tu content de la qualité de ton | AM47: 0 | AN47: Dos | AR47: 13
K48: entrainement/compétition? | AI48: Santé | AM48: 0 | AN48: Genou | AR48: 14
J49: 1 | K49: … pas content | AI49: Limitation pour cause de douleurs | AK49: =AM36 -> 0 | AM49: 0 | AN49: Cheville | AR49: 15
J50: 2 | K50: … plutôt pas content | AI50: Absence pour cause de blessure | AK50: =AM44 -> 0 | AM50: 0 | AN50: Autre | AR50: 16
J51: 3 | K51: … moyen | AI51: Absence pour cause de maladie | AK51: =AM52 -> 0
J52: 4 | K52: … content | AM52: =SUM(AM53:AM59) -> 0 | AN52: Absence pour cause de maladie
J53: 5 | K53: … très content! | AM53: =COUNTIF($H$4:$H$24,$AR53) -> 0 | AN53: Maladie | AR53: 21
Y134: =Z134-1 -> 28 | Z134: =AA134-1 -> 29 | AA134: =AB134-1 -> 30 | AB134: =AC134-1 -> 31 | AC134: =AD134-1 -> 32 | AD134: =D1 -> 33 | AE134: =AD134+1 -> 34 | AF134: =AE134+1 -> 35
AG155: =AF134+1 -> 36

Sheet 34
C1: Woche | D1: =INT(MOD(INT((F1-2)/7)+0.6,52+5/28))+1 -> 34 | E1: =D1+1000 -> 1034 | F1: ='33'!F1+7 -> 2018-08-20 | H1: - | J1: =F1+6 -> 2018-08-26 | AG1: ='Aperçu de la charge'!D2 -> Prénom Nom | AI1: ='Aperçu de la charge'!N2 -> 2018/2019
B2: Jour | D2: Poids | E2: REG | F2: qualité sommeil | G2: durée sommeil | H2: Santé | J2: Description de l'entrainement | M2: Club - VB | P2: TS/ Nati - VB | S2: Club - BVB | V2: TS/ Nati - BVB | Y2: Force - fitness | AB2: Compet. - VB | AE2: Compet. - BVB | AI2: Réflexion | AK2: Charge/ jour | AM2: matchs VB | AN2: Sets VB | AO2: Matchs BVB | AP2: Sets BVB | AQ2: J | AR2: Autre (Rég, mentale) | AS2: Mental- oder Sonstiges Training
D3: [kg] | E3: [1 - 5] | F3: [1-5] | G3: [Std] | H3: Nr. | M3: Durée | N3: RPE | O3: Charge | P3: Durée | Q3: RPE | R3: Charge | S3: Durée | T3: RPE | U3: Charge | V3: Durée | W3: RPE | X3: Charge | Y3: Durée | Z3: RPE | AA3: Charge | AB3: Durée | AC3: RPE | AD3: Charge | AE3: Durée | AF3: RPE | AG3: Charge | AQ3: [1-5]
B4: Lu | D4: 0 | E4: 0 | F4: 0 | G4: 0 | H4: 0 | O4: =M4*N4 -> 0 | R4: =P4*Q4 -> 0 | U4: =S4*T4 -> 0 | X4: =V4*W4 -> 0 | AA4: =Y4*Z4 -> 0 | AD4: =AB4*AC4 -> 0 | AG4: =AE4*AF4 -> 0 | AH4: =IF(SUM(M4:AG6)>0,1,0) -> 00:00:00 | AK4: =SUM(O4:O6,R4:R6,U4:U6,X4:X6,AA4:AA6,AD4:AD6,AG4:AG6) -> 0
O5: =M5*N5 -> 0 | R5: =P5*Q5 -> 0 | U5: =S5*T5 -> 0 | X5: =V5*W5 -> 0 | AA5: =Y5*Z5 -> 0 | AD5: =AB5*AC5 -> 0 | AG5: =AE5*AF5 -> 0
O6: 0 | R6: 0 | U6: 0 | X6: 0 | AA6: 0 | AD6: 0 | AG6: 0
B7: Ma | D7: 0 | E7: 0 | F7: 0 | G7: 0 | H7: 0 | O7: 0 | R7: =P7*Q7 -> 0 | U7: 0 | X7: 0 | AA7: 0 | AD7: 0 | AG7: 0 | AH7: =IF(SUM(M7:AG9)>0,1,0) -> 00:00:00 | AK7: =SUM(O7:O9,R7:R9,U7:U9,X7:X9,AA7:AA9,AD7:AD9,AG7:AG9) -> 0
O8: 0 | R8: 0 | U8: 0 | X8: 0 | AA8: 0 | AD8: 0 | AG8: 0
O9: 0 | R9: 0 | U9: 0 | X9: 0 | AA9: 0 | AD9: 0 | AG9: 0
B10: Me | D10: 0 | E10: 0 | F10: 0 | G10: 0 | H10: 0 | O10: 0 | R10: =P10*Q10 -> 0 | U10: 0 | X10: 0 | AA10: 0 | AD10: 0 | AG10: 0 | AH10: =IF(SUM(M10:AG12)>0,1,0) -> 00:00:00 | AK10: =SUM(O10:O12,R10:R12,U10:U12,X10:X12,AA10:AA12,AD10:AD12,AG10:AG12) -> 0
O11: 0 | R11: 0 | U11: 0 | X11: 0 | AA11: 0 | AD11: 0 | AG11: 0
O12: 0 | R12: 0 | U12: 0 | X12: 0 | AA12: 0 | AD12: 0 | AG12: 0
B13: Je | D13: 0 | E13: 0 | F13: 0 | G13: 0 | H13: 0 | O13: 0 | R13: =P13*Q13 -> 0 | U13: 0 | X13: 0 | AA13: 0 | AD13: 0 | AG13: 0 | AH13: =IF(SUM(M13:AG15)>0,1,0) -> 00:00:00 | AK13: =SUM(O13:O15,R13:R15,U13:U15,X13:X15,AA13:AA15,AD13:AD15,AG13:AG15) -> 0
O14: 0 | R14: 0 | U14: 0 | X14: 0 | AA14: 0 | AD14: 0 | AG14: 0
O15: 0 | R15: 0 | U15: 0 | X15: 0 | AA15: 0 | AD15: 0 | AG15: 0
B16: Ve | D16: 0 | E16: 0 | F16: 0 | G16: 0 | H16: 0 | O16: 0 | R16: =P16*Q16 -> 0 | U16: 0 | X16: 0 | AA16: 0 | AD16: 0 | AG16: 0 | AH16: =IF(SUM(M16:AG18)>0,1,0) -> 00:00:00 | AK16: =SUM(O16:O18,R16:R18,U16:U18,X16:X18,AA16:AA18,AD16:AD18,AG16:AG18) -> 0
O17: 0 | R17: 0 | U17: 0 | X17: 0 | AA17: 0 | AD17: 0 | AG17: 0
O18: 0 | R18: 0 | U18: 0 | X18: 0 | AA18: 0 | AD18: 0 | AG18: 0
B19: Sa | D19: 0 | E19: 0 | F19: 0 | G19: 0 | H19: 0 | O19: =M19*N19 -> 0 | R19: =P19*Q19 -> 0 | U19: =S19*T19 -> 0 | X19: =V19*W19 -> 0 | AA19: =Y19*Z19 -> 0 | AD19: =AB19*AC19 -> 0 | AG19: =AE19*AF19 -> 0 | AH19: =IF(SUM(M19:AG21)>0,1,0) -> 00:00:00 | AK19: =SUM(O19:O21,R19:R21,U19:U21,X19:X21,AA19:AA21,AD19:AD21,AG19:AG21) -> 0
O20: =M20*N20 -> 0 | R20: 0 | U20: =S20*T20 -> 0 | X20: =V20*W20 -> 0 | AA20: =Y20*Z20 -> 0 | AD20: =AB20*AC20 -> 0 | AG20: =AE20*AF20 -> 0
O21: 0 | R21: 0 | U21: 0 | X21: 0 | AA21: 0 | AD21: 0 | AG21: 0
B22: Di | D22: 0 | E22: 0 | F22: 0 | G22: 0 | H22: 0 | O22: 0 | R22: =P22*Q22 -> 0 | U22: 0 | X22: 0 | AA22: 0 | AD22: 0 | AG22: 0 | AH22: =IF(SUM(M22:AG24)>0,1,0) -> 00:00:00 | AK22: =SUM(O22:O24,R22:R24,U22:U24,X22:X24,AA22:AA24,AD22:AD24,AG22:AG24) -> 0
O23: 0 | R23: 0 | U23: 0 | X23: 0 | AA23: 0 | AD23: 0 | AG23: 0
O24: 0 | R24: 0 | U24: 0 | X24: 0 | AA24: 0 | AD24: 0 | AG24: 0
K25: Total | M25: =SUM(M4:M24) -> 0 | O25: =SUM(O4:O24) -> 0 | P25: =SUM(P4:P24) -> 0 | R25: =SUM(R4:R24) -> 0 | S25: =SUM(S4:S24) -> 0 | U25: =SUM(U4:U24) -> 0 | V25: =SUM(V4:V24) -> 0 | X25: =SUM(X4:X24) -> 0 | Y25: =SUM(Y4:Y24) -> 0 | AA25: =SUM(AA4:AA24) -> 0 | AB25: =SUM(AB4:AB24) -> 0 | AD25: =SUM(AD4:AD24) -> 0 | AE25: =SUM(AE4:AE24) -> 0 | AG25: =SUM(AG4:AG24) -> 0 | AI25: Charge totale | AK25: =SUM(AK4:AK24) -> 0
B26: avg. | D26: =IF(COUNTA(D4:D24)=0,"",AVERAGE(D4:D24)) -> 0 | E26: =IF(COUNTA(E4:E24)=0,"",AVERAGE(E4:E24)) -> 0 | F26: =IF(COUNTA(F4:F24)=0,"",AVERAGE(F4:F24)) -> 0 | G26: =IF(COUNTA(G4:G24)=0,"",AVERAGE(G4:G24)) -> 0 | H26: =IF(COUNTA(H4:H24)=0,"",COUNTIF(H4:H24,"x")) -> 0 | K26: Zone | M26: 1 | N26: 2 | O26: 3 | P26: 1 | Q26: 2 | R26: 3 | S26: 1 | T26: 2 | U26: 3 | V26: 1 | W26: 2 | X26: 3 | Y26: 1 | Z26: 2 | AA26: 3 | AB26: 1 | AC26: 2 | AD26: 3 | AE26: 1 | AF26: 2 | AG26: 3 | AI26: Moyenne | AK26: =AVERAGE(AK4:AK24) -> 0
F27: =IF(COUNTA(F4:F24)=0,"",VAR(F4:F24)) -> 0 | G27: =IF(COUNTA(G4:G24)=0,"",STDEV(G4:G24)) -> 0 | H27: Divergence - durée du sommeil | K27: Unité par zone (RPE) | M27: =IF('Répartition des intensités'!$AR$25="x",COUNTIF(N4:N24,"<3,5"),COUNTIF(N4:N24,"<4,5")) -> 0 | N27: =COUNT(N4:N24)-(M27+O27) -> 0 | O27: =IF('Répartition des intensités'!$AR$25="x",COUNTIF(N4:N24,">5,5"),COUNTIF(N4:N24,">6,5")) -> 0 | P27: =IF('Répartition des intensités'!$AR$25="x",COUNTIF(Q4:Q24,"<3,5"),COUNTIF(Q4:Q24,"<4,5")) -> 0 | Q27: =COUNT(Q4:Q24)-(P27+R27) -> 0 | R27: =IF('Répartition des intensités'!$AR$25="x",COUNTIF(Q4:Q24,">5,5"),COUNTIF(Q4:Q24,">6,5")) -> 0 | S27: =IF('Répartition des intensités'!$AR$25="x",COUNTIF(T4:T24,"<3,5"),COUNTIF(T4:T24,"<4,5")) -> 0 | T27: =COUNT(T4:T24)-(S27+U27) -> 0 | U27: =IF('Répartition des intensités'!$AR$25="x",COUNTIF(T4:T24,">5,5"),COUNTIF(T4:T24,">6,5")) -> 0 | V27: =IF('Répartition des intensités'!$AR$25="x",COUNTIF(W4:W24,"<3,5"),COUNTIF(W4:W24,"<4,5")) -> 0 | W27: =COUNT(W4:W24)-(V27+X27) -> 0 | X27: =IF('Répartition des intensités'!$AR$25="x",COUNTIF(W4:W24,">5,5"),COUNTIF(W4:W24,">6,5")) -> 0 | Y27: =IF('Répartition des intensités'!$AR$25="x",COUNTIF(Z4:Z24,"<3,5"),COUNTIF(Z4:Z24,"<4,5")) -> 0 | Z27: =COUNT(Z4:Z24)-(Y27+AA27) -> 0 | AA27: =IF('Répartition des intensités'!$AR$25="x",COUNTIF(Z4:Z24,">5,5"),COUNTIF(Z4:Z24,">6,5")) -> 0 | AB27: =IF('Répartition des intensités'!$AR$25="x",COUNTIF(AC4:AC24,"<3,5"),COUNTIF(AC4:AC24,"<4,5")) -> 0 | AC27: =COUNT(AC4:AC24)-(AB27+AD27) -> 0 | AD27: =IF('Répartition des intensités'!$AR$25="x",COUNTIF(AC4:AC24,">5,5"),COUNTIF(AC4:AC24,">6,5")) -> 0 | AE27: =IF('Répartition des intensités'!$AR$25="x",COUNTIF(AF4:AF24,"<3,5"),COUNTIF(AF4:AF24,"<4,5")) -> 0 | AF27: =COUNT(AF4:AF24)-(AE27+AG27) -> 0 | AG27: =IF('Répartition des intensités'!$AR$25="x",COUNTIF(AF4:AF24,">5,5"),COUNTIF(AF4:AF24,">6,5")) -> 0 | AI27: Divergence | AK27: =STDEVP(AK4:AK24) -> 0
D28: échelle de Foster | H28: RPE | K28: Temps par zone (RPE) | M28: =IF('Répartition des intensités'!$AR$25="x",SUMIF(N4:N24,"<3,5",M4:M24),SUMIF(N4:N24,"<4,5",M4:M24)) -> 0 | N28: =IF(N27=0,0,SUM((M25)-(M28+O28))) -> 0 | O28: =IF('Répartition des intensités'!$AR$25="x",SUMIF(N4:N24,">5,5",M4:M24),SUMIF(N4:N24,">6,5",M4:M24)) -> 0 | P28: =IF('Répartition des intensités'!$AR$25="x",SUMIF(Q4:Q24,"<3,5",P4:P24),SUMIF(Q4:Q24,"<4,5",P4:P24)) -> 0 | Q28: =IF(Q27=0,0,SUM((P25)-(P28+R28))) -> 0 | R28: =IF('Répartition des intensités'!$AR$25="x",SUMIF(Q4:Q24,">5,5",P4:P24),SUMIF(Q4:Q24,">6,5",P4:P24)) -> 0 | S28: =IF('Répartition des intensités'!$AR$25="x",SUMIF(T4:T24,"<3,5",S4:S24),SUMIF(T4:T24,"<4,5",S4:S24)) -> 0 | T28: =IF(T27=0,0,SUM((S25)-(S28+U28))) -> 0 | U28: =IF('Répartition des intensités'!$AR$25="x",SUMIF(T4:T24,">5,5",S4:S24),SUMIF(T4:T24,">6,5",S4:S24)) -> 0 | V28: =IF('Répartition des intensités'!$AR$25="x",SUMIF(W4:W24,"<3,5",V4:V24),SUMIF(W4:W24,"<4,5",V4:V24)) -> 0 | W28: =IF(W27=0,0,SUM((V25)-(V28+X28))) -> 0 | X28: =IF('Répartition des intensités'!$AR$25="x",SUMIF(W4:W24,">5,5",V4:V24),SUMIF(W4:W24,">6,5",V4:V24)) -> 0 | Y28: =IF('Répartition des intensités'!$AR$25="x",SUMIF(Z4:Z24,"<3,5",Y4:Y24),SUMIF(Z4:Z24,"<4,5",Y4:Y24)) -> 0 | Z28: =IF(Z27=0,0,SUM((Y25)-(Y28+AA28))) -> 0 | AA28: =IF('Répartition des intensités'!$AR$25="x",SUMIF(Z4:Z24,">5,5",Y4:Y24),SUMIF(Z4:Z24,">6,5",Y4:Y24)) -> 0 | AB28: =IF('Répartition des intensités'!$AR$25="x",SUMIF(AC4:AC24,"<3,5",AB4:AB24),SUMIF(AC4:AC24,"<4,5",AB4:AB24)) -> 0 | AC28: =IF(AC27=0,0,SUM((AB25)-(AB28+AD28))) -> 0 | AD28: =IF('Répartition des intensités'!$AR$25="x",SUMIF(AC4:AC24,">5,5",AB4:AB24),SUMIF(AC4:AC24,">6,5",AB4:AB24)) -> 0 | AE28: =IF('Répartition des intensités'!$AR$25="x",SUMIF(AF4:AF24,"<3,5",AE4:AE24),SUMIF(AF4:AF24,"<4,5",AE4:AE24)) -> 0 | AF28: =IF(AF27=0,0,SUM((AE25)-(AE28+AG28))) -> 0 | AG28: =IF('Répartition des intensités'!$AR$25="x",SUMIF(AF4:AF24,">5,5",AE4:AE24),SUMIF(AF4:AF24,">6,5",AE4:AE24)) -> 0
D29: Comme au repos | H29: 0 | J29: REG | K29: Est-ce que j'ai l'impression d'avoir récupéré en me levant?
D30: très facile | H30: 1
D31: facile | H31: 2 | J31: 1 | K31: … pas du tout récupéré | AI31: Entrainements | AM31: Rapport de santé
H32: 3 | J32: 2 | K32: … un peu récupéré | AI32: Jours d'entrainement | AK32: =IF(SUM(AH4:AH24)=0,"",SUM(AH4:AH24)) -> 
D33: Assez dur | H33: 4 | J33: 3 | K33: … récupéré | V33: =B4 -> Lu | W33: =AK4 -> 0 | AI33: Entrainements | AK33: =IF(AK32="","",SUM(M27:AG27)) -> 
D34: dur | H34: 5 | J34: 4 | K34: … en forme | V34: =B7 -> Ma | W34: =AK7 -> 0 | AI34: Heures d'entrainement | AK34: =IF(AK32="","",SUM(M25,P25,S25,Y25,AB25,V25,AE25)/60) ->  | AM34: =IF($AK$32="","",AK32-AM36-AM44-AM52) ->  | AN34: Aucune limitation | AR34: 0
H35: 6 | J35: 5 | K35: … très en forme | V35: =B10 -> Me | W35: =AK10 -> 0 | AI35: Charge de l'entrainement | AK35: =IF(AK32="","",SUM(AK25)) -> 
D36: très dur | H36: 7 | V36: =B13 -> Je | W36: =AK13 -> 0 | AI36: Monotonie | AK36: =IF(AK27=0,0,(AVERAGE(AK4:AK24))/AK27) -> 0 | AM36: =SUM(AM37:AM42) -> 0 | AN36: Limitation pour cause de douleurs
H37: 8 | J37: Nombre de matchs | V37: =B16 -> Ve | W37: =AK16 -> 0 | AI37: Efforts à l'entrainement | AK37: =IF(AK32="","",AK35*AK36) ->  | AM37: =COUNTIF($H$4:$H$24,$AR37) -> 0 | AN37: Doigt | AR37: 1
D38: extrèmement dur | H38: 9 | V38: =B19 -> Sa | W38: =AK19 -> 0 | AM38: 0 | AN38: Épaule | AR38: 2
D39: Comme mon entrainement le plus dur | H39: 10 | J39: 1 | K39: … 3 sets et plus | V39: =B22 -> Di | W39: =AK22 -> 0 | AI39: Compétition | AM39: 0 | AN39: Dos | AR39: 3
J40: 0.5 | K40: … moins de 3 sets | AI40: Matchs de volleyball | AK40: =IF(AK32="","",SUM(AM4:AM24)) ->  | AM40: 0 | AN40: Genou | AR40: 4
AI41: Sets de volleyball | AK41: =IF(AK32="","",SUM(AN4:AN24)) ->  | AM41: 0 | AN41: Cheville | AR41: 5
J42: Sets joués | AI42: Matchs de beach volley | AK42: =IF(AK35="","",SUM(AO4:AO24)) ->  | AM42: 0 | AN42: Autre | AR42: 6
J43: 1 | K43: … depuis le début et durant tout le set | AI43: Sets de beach volley | AK43: =IF(AK35="","",SUM(AP4:AP24)) -> 
J44: 0.5 | K44: … entré/sorti en cours, beaucoup joué | AM44: =SUM(AM45:AM50) -> 0 | AN44: Absence pour cause de blessure
J45: 0.1 | K45: … entré/sorti en cours, peu joué | AI45: Satisfaction | AM45: =COUNTIF($H$4:$H$24,$AR45) -> 0 | AN45: Doigt | AR45: 11
AI46: Satisfaction de l'entrainement/match J | AK46: =IF(AK32="","",SUM(AQ4:AQ24)/AK32) ->  | AM46: 0 | AN46: Épaule | AR46: 12
J47: J | K47: Es-tu content de la qualité de ton | AM47: 0 | AN47: Dos | AR47: 13
K48: entrainement/compétition? | AI48: Santé | AM48: 0 | AN48: Genou | AR48: 14
J49: 1 | K49: … pas content | AI49: Limitation pour cause de douleurs | AK49: =AM36 -> 0 | AM49: 0 | AN49: Cheville | AR49: 15
J50: 2 | K50: … plutôt pas content | AI50: Absence pour cause de blessure | AK50: =AM44 -> 0 | AM50: 0 | AN50: Autre | AR50: 16
J51: 3 | K51: … moyen | AI51: Absence pour cause de maladie | AK51: =AM52 -> 0
J52: 4 | K52: … content | AM52: =SUM(AM53:AM59) -> 0 | AN52: Absence pour cause de maladie
J53: 5 | K53: … très content! | AM53: =COUNTIF($H$4:$H$24,$AR53) -> 0 | AN53: Maladie | AR53: 21
Y134: =Z134-1 -> 29 | Z134: =AA134-1 -> 30 | AA134: =AB134-1 -> 31 | AB134: =AC134-1 -> 32 | AC134: =AD134-1 -> 33 | AD134: =D1 -> 34 | AE134: =AD134+1 -> 35 | AF134: =AE134+1 -> 36
AG155: =H1 -> -

Sheet 35
C1: Woche | D1: =INT(MOD(INT((F1-2)/7)+0.6,52+5/28))+1 -> 35 | E1: =D1+1000 -> 1035 | F1: ='34'!F1+7 -> 2018-08-27 | H1: - | J1: =F1+6 -> 2018-09-02 | AG1: ='Aperçu de la charge'!D2 -> Prénom Nom | AI1: ='Aperçu de la charge'!N2 -> 2018/2019
B2: Jour | D2: Poids | E2: REG | F2: qualité sommeil | G2: durée sommeil | H2: Santé | J2: Description de l'entrainement | M2: Club - VB | P2: TS/ Nati - VB | S2: Club - BVB | V2: TS/ Nati - BVB | Y2: Force - fitness | AB2: Compet. - VB | AE2: Compet. - BVB | AI2: Réflexion | AK2: Charge/ jour | AM2: matchs VB | AN2: Sets VB | AO2: Matchs BVB | AP2: Sets BVB | AQ2: J | AR2: Autre (Rég, mentale) | AS2: Mental- oder Sonstiges Training
D3: [kg] | E3: [1 - 5] | F3: [1-5] | G3: [Std] | H3: Nr. | M3: Durée | N3: RPE | O3: Charge | P3: Durée | Q3: RPE | R3: Charge | S3: Durée | T3: RPE | U3: Charge | V3: Durée | W3: RPE | X3: Charge | Y3: Durée | Z3: RPE | AA3: Charge | AB3: Durée | AC3: RPE | AD3: Charge | AE3: Durée | AF3: RPE | AG3: Charge | AQ3: [1-5]
B4: Lu | D4: 0 | E4: 0 | F4: 0 | G4: 0 | H4: 0 | O4: =M4*N4 -> 0 | R4: =P4*Q4 -> 0 | U4: =S4*T4 -> 0 | X4: =V4*W4 -> 0 | AA4: =Y4*Z4 -> 0 | AD4: =AB4*AC4 -> 0 | AG4: =AE4*AF4 -> 0 | AH4: =IF(SUM(M4:AG6)>0,1,0) -> 00:00:00 | AK4: =SUM(O4:O6,R4:R6,U4:U6,X4:X6,AA4:AA6,AD4:AD6,AG4:AG6) -> 0
O5: =M5*N5 -> 0 | R5: =P5*Q5 -> 0 | U5: =S5*T5 -> 0 | X5: =V5*W5 -> 0 | AA5: =Y5*Z5 -> 0 | AD5: =AB5*AC5 -> 0 | AG5: =AE5*AF5 -> 0
O6: 0 | R6: 0 | U6: 0 | X6: 0 | AA6: 0 | AD6: 0 | AG6: 0
B7: Ma | D7: 0 | E7: 0 | F7: 0 | G7: 0 | H7: 0 | O7: 0 | R7: =P7*Q7 -> 0 | U7: 0 | X7: 0 | AA7: 0 | AD7: 0 | AG7: 0 | AH7: =IF(SUM(M7:AG9)>0,1,0) -> 00:00:00 | AK7: =SUM(O7:O9,R7:R9,U7:U9,X7:X9,AA7:AA9,AD7:AD9,AG7:AG9) -> 0
O8: 0 | R8: 0 | U8: 0 | X8: 0 | AA8: 0 | AD8: 0 | AG8: 0
O9: 0 | R9: 0 | U9: 0 | X9: 0 | AA9: 0 | AD9: 0 | AG9: 0
B10: Me | D10: 0 | E10: 0 | F10: 0 | G10: 0 | H10: 0 | O10: 0 | R10: =P10*Q10 -> 0 | U10: 0 | X10: 0 | AA10: 0 | AD10: 0 | AG10: 0 | AH10: =IF(SUM(M10:AG12)>0,1,0) -> 00:00:00 | AK10: =SUM(O10:O12,R10:R12,U10:U12,X10:X12,AA10:AA12,AD10:AD12,AG10:AG12) -> 0
O11: 0 | R11: 0 | U11: 0 | X11: 0 | AA11: 0 | AD11: 0 | AG11: 0
O12: 0 | R12: 0 | U12: 0 | X12: 0 | AA12: 0 | AD12: 0 | AG12: 0
B13: Je | D13: 0 | E13: 0 | F13: 0 | G13: 0 | H13: 0 | O13: 0 | R13: =P13*Q13 -> 0 | U13: 0 | X13: 0 | AA13: 0 | AD13: 0 | AG13: 0 | AH13: =IF(SUM(M13:AG15)>0,1,0) -> 00:00:00 | AK13: =SUM(O13:O15,R13:R15,U13:U15,X13:X15,AA13:AA15,AD13:AD15,AG13:AG15) -> 0
O14: 0 | R14: 0 | U14: 0 | X14: 0 | AA14: 0 | AD14: 0 | AG14: 0
O15: 0 | R15: 0 | U15: 0 | X15: 0 | AA15: 0 | AD15: 0 | AG15: 0
B16: Ve | D16: 0 | E16: 0 | F16: 0 | G16: 0 | H16: 0 | O16: 0 | R16: =P16*Q16 -> 0 | U16: 0 | X16: 0 | AA16: 0 | AD16: 0 | AG16: 0 | AH16: =IF(SUM(M16:AG18)>0,1,0) -> 00:00:00 | AK16: =SUM(O16:O18,R16:R18,U16:U18,X16:X18,AA16:AA18,AD16:AD18,AG16:AG18) -> 0
O17: 0 | R17: 0 | U17: 0 | X17: 0 | AA17: 0 | AD17: 0 | AG17: 0
O18: 0 | R18: 0 | U18: 0 | X18: 0 | AA18: 0 | AD18: 0 | AG18: 0
B19: Sa | D19: 0 | E19: 0 | F19: 0 | G19: 0 | H19: 0 | O19: =M19*N19 -> 0 | R19: =P19*Q19 -> 0 | U19: =S19*T19 -> 0 | X19: =V19*W19 -> 0 | AA19: =Y19*Z19 -> 0 | AD19: =AB19*AC19 -> 0 | AG19: =AE19*AF19 -> 0 | AH19: =IF(SUM(M19:AG21)>0,1,0) -> 00:00:00 | AK19: =SUM(O19:O21,R19:R21,U19:U21,X19:X21,AA19:AA21,AD19:AD21,AG19:AG21) -> 0
O20: =M20*N20 -> 0 | R20: 0 | U20: =S20*T20 -> 0 | X20: =V20*W20 -> 0 | AA20: =Y20*Z20 -> 0 | AD20: =AB20*AC20 -> 0 | AG20: =AE20*AF20 -> 0
O21: 0 | R21: 0 | U21: 0 | X21: 0 | AA21: 0 | AD21: 0 | AG21: 0
B22: Di | D22: 0 | E22: 0 | F22: 0 | G22: 0 | H22: 0 | O22: 0 | R22: =P22*Q22 -> 0 | U22: 0 | X22: 0 | AA22: 0 | AD22: 0 | AG22: 0 | AH22: =IF(SUM(M22:AG24)>0,1,0) -> 00:00:00 | AK22: =SUM(O22:O24,R22:R24,U22:U24,X22:X24,AA22:AA24,AD22:AD24,AG22:AG24) -> 0
O23: 0 | R23: 0 | U23: 0 | X23: 0 | AA23: 0 | AD23: 0 | AG23: 0
O24: 0 | R24: 0 | U24: 0 | X24: 0 | AA24: 0 | AD24: 0 | AG24: 0
K25: Total | M25: =SUM(M4:M24) -> 0 | O25: =SUM(O4:O24) -> 0 | P25: =SUM(P4:P24) -> 0 | R25: =SUM(R4:R24) -> 0 | S25: =SUM(S4:S24) -> 0 | U25: =SUM(U4:U24) -> 0 | V25: =SUM(V4:V24) -> 0 | X25: =SUM(X4:X24) -> 0 | Y25: =SUM(Y4:Y24) -> 0 | AA25: =SUM(AA4:AA24) -> 0 | AB25: =SUM(AB4:AB24) -> 0 | AD25: =SUM(AD4:AD24) -> 0 | AE25: =SUM(AE4:AE24) -> 0 | AG25: =SUM(AG4:AG24) -> 0 | AI25: Charge totale | AK25: =SUM(AK4:AK24) -> 0
B26: avg. | D26: =IF(COUNTA(D4:D24)=0,"",AVERAGE(D4:D24)) -> 0 | E26: =IF(COUNTA(E4:E24)=0,"",AVERAGE(E4:E24)) -> 0 | F26: =IF(COUNTA(F4:F24)=0,"",AVERAGE(F4:F24)) -> 0 | G26: =IF(COUNTA(G4:G24)=0,"",AVERAGE(G4:G24)) -> 0 | H26: =IF(COUNTA(H4:H24)=0,"",COUNTIF(H4:H24,"x")) -> 0 | K26: Zone | M26: 1 | N26: 2 | O26: 3 | P26: 1 | Q26: 2 | R26: 3 | S26: 1 | T26: 2 | U26: 3 | V26: 1 | W26: 2 | X26: 3 | Y26: 1 | Z26: 2 | AA26: 3 | AB26: 1 | AC26: 2 | AD26: 3 | AE26: 1 | AF26: 2 | AG26: 3 | AI26: Moyenne | AK26: =AVERAGE(AK4:AK24) -> 0
F27: =IF(COUNTA(F4:F24)=0,"",VAR(F4:F24)) -> 0 | G27: =IF(COUNTA(G4:G24)=0,"",STDEV(G4:G24)) -> 0 | H27: Divergence - durée du sommeil | K27: Unité par zone (RPE) | M27: =IF('Répartition des intensités'!$AR$25="x",COUNTIF(N4:N24,"<3,5"),COUNTIF(N4:N24,"<4,5")) -> 0 | N27: =COUNT(N4:N24)-(M27+O27) -> 0 | O27: =IF('Répartition des intensités'!$AR$25="x",COUNTIF(N4:N24,">5,5"),COUNTIF(N4:N24,">6,5")) -> 0 | P27: =IF('Répartition des intensités'!$AR$25="x",COUNTIF(Q4:Q24,"<3,5"),COUNTIF(Q4:Q24,"<4,5")) -> 0 | Q27: =COUNT(Q4:Q24)-(P27+R27) -> 0 | R27: =IF('Répartition des intensités'!$AR$25="x",COUNTIF(Q4:Q24,">5,5"),COUNTIF(Q4:Q24,">6,5")) -> 0 | S27: =IF('Répartition des intensités'!$AR$25="x",COUNTIF(T4:T24,"<3,5"),COUNTIF(T4:T24,"<4,5")) -> 0 | T27: =COUNT(T4:T24)-(S27+U27) -> 0 | U27: =IF('Répartition des intensités'!$AR$25="x",COUNTIF(T4:T24,">5,5"),COUNTIF(T4:T24,">6,5")) -> 0 | V27: =IF('Répartition des intensités'!$AR$25="x",COUNTIF(W4:W24,"<3,5"),COUNTIF(W4:W24,"<4,5")) -> 0 | W27: =COUNT(W4:W24)-(V27+X27) -> 0 | X27: =IF('Répartition des intensités'!$AR$25="x",COUNTIF(W4:W24,">5,5"),COUNTIF(W4:W24,">6,5")) -> 0 | Y27: =IF('Répartition des intensités'!$AR$25="x",COUNTIF(Z4:Z24,"<3,5"),COUNTIF(Z4:Z24,"<4,5")) -> 0 | Z27: =COUNT(Z4:Z24)-(Y27+AA27) -> 0 | AA27: =IF('Répartition des intensités'!$AR$25="x",COUNTIF(Z4:Z24,">5,5"),COUNTIF(Z4:Z24,">6,5")) -> 0 | AB27: =IF('Répartition des intensités'!$AR$25="x",COUNTIF(AC4:AC24,"<3,5"),COUNTIF(AC4:AC24,"<4,5")) -> 0 | AC27: =COUNT(AC4:AC24)-(AB27+AD27) -> 0 | AD27: =IF('Répartition des intensités'!$AR$25="x",COUNTIF(AC4:AC24,">5,5"),COUNTIF(AC4:AC24,">6,5")) -> 0 | AE27: =IF('Répartition des intensités'!$AR$25="x",COUNTIF(AF4:AF24,"<3,5"),COUNTIF(AF4:AF24,"<4,5")) -> 0 | AF27: =COUNT(AF4:AF24)-(AE27+AG27) -> 0 | AG27: =IF('Répartition des intensités'!$AR$25="x",COUNTIF(AF4:AF24,">5,5"),COUNTIF(AF4:AF24,">6,5")) -> 0 | AI27: Divergence | AK27: =STDEVP(AK4:AK24) -> 0
D28: échelle de Foster | H28: RPE | K28: Temps par zone (RPE) | M28: =IF('Répartition des intensités'!$AR$25="x",SUMIF(N4:N24,"<3,5",M4:M24),SUMIF(N4:N24,"<4,5",M4:M24)) -> 0 | N28: =IF(N27=0,0,SUM((M25)-(M28+O28))) -> 0 | O28: =IF('Répartition des intensités'!$AR$25="x",SUMIF(N4:N24,">5,5",M4:M24),SUMIF(N4:N24,">6,5",M4:M24)) -> 0 | P28: =IF('Répartition des intensités'!$AR$25="x",SUMIF(Q4:Q24,"<3,5",P4:P24),SUMIF(Q4:Q24,"<4,5",P4:P24)) -> 0 | Q28: =IF(Q27=0,0,SUM((P25)-(P28+R28))) -> 0 | R28: =IF('Répartition des intensités'!$AR$25="x",SUMIF(Q4:Q24,">5,5",P4:P24),SUMIF(Q4:Q24,">6,5",P4:P24)) -> 0 | S28: =IF('Répartition des intensités'!$AR$25="x",SUMIF(T4:T24,"<3,5",S4:S24),SUMIF(T4:T24,"<4,5",S4:S24)) -> 0 | T28: =IF(T27=0,0,SUM((S25)-(S28+U28))) -> 0 | U28: =IF('Répartition des intensités'!$AR$25="x",SUMIF(T4:T24,">5,5",S4:S24),SUMIF(T4:T24,">6,5",S4:S24)) -> 0 | V28: =IF('Répartition des intensités'!$AR$25="x",SUMIF(W4:W24,"<3,5",V4:V24),SUMIF(W4:W24,"<4,5",V4:V24)) -> 0 | W28: =IF(W27=0,0,SUM((V25)-(V28+X28))) -> 0 | X28: =IF('Répartition des intensités'!$AR$25="x",SUMIF(W4:W24,">5,5",V4:V24),SUMIF(W4:W24,">6,5",V4:V24)) -> 0 | Y28: =IF('Répartition des intensités'!$AR$25="x",SUMIF(Z4:Z24,"<3,5",Y4:Y24),SUMIF(Z4:Z24,"<4,5",Y4:Y24)) -> 0 | Z28: =IF(Z27=0,0,SUM((Y25)-(Y28+AA28))) -> 0 | AA28: =IF('Répartition des intensités'!$AR$25="x",SUMIF(Z4:Z24,">5,5",Y4:Y24),SUMIF(Z4:Z24,">6,5",Y4:Y24)) -> 0 | AB28: =IF('Répartition des intensités'!$AR$25="x",SUMIF(AC4:AC24,"<3,5",AB4:AB24),SUMIF(AC4:AC24,"<4,5",AB4:AB24)) -> 0 | AC28: =IF(AC27=0,0,SUM((AB25)-(AB28+AD28))) -> 0 | AD28: =IF('Répartition des intensités'!$AR$25="x",SUMIF(AC4:AC24,">5,5",AB4:AB24),SUMIF(AC4:AC24,">6,5",AB4:AB24)) -> 0 | AE28: =IF('Répartition des intensités'!$AR$25="x",SUMIF(AF4:AF24,"<3,5",AE4:AE24),SUMIF(AF4:AF24,"<4,5",AE4:AE24)) -> 0 | AF28: =IF(AF27=0,0,SUM((AE25)-(AE28+AG28))) -> 0 | AG28: =IF('Répartition des intensités'!$AR$25="x",SUMIF(AF4:AF24,">5,5",AE4:AE24),SUMIF(AF4:AF24,">6,5",AE4:AE24)) -> 0
D29: Comme au repos | H29: 0 | J29: REG | K29: Est-ce que j'ai l'impression d'avoir récupéré en me levant?
D30: très facile | H30: 1
D31: facile | H31: 2 | J31: 1 | K31: … pas du tout récupéré | AI31: Entrainements | AM31: Rapport de santé
H32: 3 | J32: 2 | K32: … un peu récupéré | AI32: Jours d'entrainement | AK32: =IF(SUM(AH4:AH24)=0,"",SUM(AH4:AH24)) -> 
D33: Assez dur | H33: 4 | J33: 3 | K33: … récupéré | V33: =B4 -> Lu | W33: =AK4 -> 0 | AI33: Entrainements | AK33: =IF(AK32="","",SUM(M27:AG27)) -> 
D34: dur | H34: 5 | J34: 4 | K34: … en forme | V34: =B7 -> Ma | W34: =AK7 -> 0 | AI34: Heures d'entrainement | AK34: =IF(AK32="","",SUM(M25,P25,S25,Y25,AB25,V25,AE25)/60) ->  | AM34: =IF($AK$32="","",AK32-AM36-AM44-AM52) ->  | AN34: Aucune limitation | AR34: 0
H35: 6 | J35: 5 | K35: … très en forme | V35: =B10 -> Me | W35: =AK10 -> 0 | AI35: Charge de l'entrainement | AK35: =IF(AK32="","",SUM(AK25)) -> 
D36: très dur | H36: 7 | V36: =B13 -> Je | W36: =AK13 -> 0 | AI36: Monotonie | AK36: =IF(AK27=0,0,(AVERAGE(AK4:AK24))/AK27) -> 0 | AM36: =SUM(AM37:AM42) -> 0 | AN36: Limitation pour cause de douleurs
H37: 8 | J37: Nombre de matchs | V37: =B16 -> Ve | W37: =AK16 -> 0 | AI37: Efforts à l'entrainement | AK37: =IF(AK32="","",AK35*AK36) ->  | AM37: =COUNTIF($H$4:$H$24,$AR37) -> 0 | AN37: Doigt | AR37: 1
D38: extrèmement dur | H38: 9 | V38: =B19 -> Sa | W38: =AK19 -> 0 | AM38: 0 | AN38: Épaule | AR38: 2
D39: Comme mon entrainement le plus dur | H39: 10 | J39: 1 | K39: … 3 sets et plus | V39: =B22 -> Di | W39: =AK22 -> 0 | AI39: Compétition | AM39: 0 | AN39: Dos | AR39: 3
J40: 0.5 | K40: … moins de 3 sets | AI40: Matchs de volleyball | AK40: =IF(AK32="","",SUM(AM4:AM24)) ->  | AM40: 0 | AN40: Genou | AR40: 4
AI41: Sets de volleyball | AK41: =IF(AK32="","",SUM(AN4:AN24)) ->  | AM41: 0 | AN41: Cheville | AR41: 5
J42: Sets joués | AI42: Matchs de beach volley | AK42: =IF(AK35="","",SUM(AO4:AO24)) ->  | AM42: 0 | AN42: Autre | AR42: 6
J43: 1 | K43: … depuis le début et durant tout le set | AI43: Sets de beach volley | AK43: =IF(AK35="","",SUM(AP4:AP24)) -> 
J44: 0.5 | K44: … entré/sorti en cours, beaucoup joué | AM44: =SUM(AM45:AM50) -> 0 | AN44: Absence pour cause de blessure
J45: 0.1 | K45: … entré/sorti en cours, peu joué | AI45: Satisfaction | AM45: =COUNTIF($H$4:$H$24,$AR45) -> 0 | AN45: Doigt | AR45: 11
AI46: Satisfaction de l'entrainement/match J | AK46: =IF(AK32="","",SUM(AQ4:AQ24)/AK32) ->  | AM46: 0 | AN46: Épaule | AR46: 12
J47: J | K47: Es-tu content de la qualité de ton | AM47: 0 | AN47: Dos | AR47: 13
K48: entrainement/compétition? | AI48: Santé | AM48: 0 | AN48: Genou | AR48: 14
J49: 1 | K49: … pas content | AI49: Limitation pour cause de douleurs | AK49: =AM36 -> 0 | AM49: 0 | AN49: Cheville | AR49: 15
J50: 2 | K50: … plutôt pas content | AI50: Absence pour cause de blessure | AK50: =AM44 -> 0 | AM50: 0 | AN50: Autre | AR50: 16
J51: 3 | K51: … moyen | AI51: Absence pour cause de maladie | AK51: =AM52 -> 0
J52: 4 | K52: … content | AM52: =SUM(AM53:AM59) -> 0 | AN52: Absence pour cause de maladie
J53: 5 | K53: … très content! | AM53: =COUNTIF($H$4:$H$24,$AR53) -> 0 | AN53: Maladie | AR53: 21
Y134: =Z134-1 -> 30 | Z134: =AA134-1 -> 31 | AA134: =AB134-1 -> 32 | AB134: =AC134-1 -> 33 | AC134: =AD134-1 -> 34 | AD134: =D1 -> 35 | AE134: =AD134+1 -> 36 | AF134: =AE134+1 -> 37
AG155: =H1 -> -

Sheet 36
A1: A6 | C1: Woche | D1: =INT(MOD(INT((F1-2)/7)+0.6,52+5/28))+1 -> 36 | E1: =D1+1000 -> 1036 | F1: ='35'!F1+7 -> 2018-09-03 | H1: - | J1: =F1+6 -> 2018-09-09 | AG1: ='Aperçu de la charge'!D2 -> Prénom Nom | AI1: ='Aperçu de la charge'!N2 -> 2018/2019
B2: Jour | D2: Poids | E2: REG | F2: qualité sommeil | G2: durée sommeil | H2: Santé | J2: Description de l'entrainement | M2: Club - VB | P2: TS/ Nati - VB | S2: Club - BVB | V2: TS/ Nati - BVB | Y2: Force - fitness | AB2: Compet. - VB | AE2: Compet. - BVB | AI2: Réflexion | AK2: Charge/ jour | AM2: matchs VB | AN2: Sets VB | AO2: Matchs BVB | AP2: Sets BVB | AQ2: J | AR2: Autre (Rég, mentale) | AS2: Mental- oder Sonstiges Training
D3: [kg] | E3: [1 - 5] | F3: [1-5] | G3: [Std] | H3: Nr. | M3: Durée | N3: RPE | O3: Charge | P3: Durée | Q3: RPE | R3: Charge | S3: Durée | T3: RPE | U3: Charge | V3: Durée | W3: RPE | X3: Charge | Y3: Durée | Z3: RPE | AA3: Charge | AB3: Durée | AC3: RPE | AD3: Charge | AE3: Durée | AF3: RPE | AG3: Charge | AQ3: [1-5]
B4: Lu | D4: 0 | E4: 0 | F4: 0 | G4: 0 | H4: 0 | O4: =M4*N4 -> 0 | R4: =P4*Q4 -> 0 | U4: =S4*T4 -> 0 | X4: =V4*W4 -> 0 | AA4: =Y4*Z4 -> 0 | AD4: =AB4*AC4 -> 0 | AG4: =AE4*AF4 -> 0 | AH4: =IF(SUM(M4:AG6)>0,1,0) -> 00:00:00 | AK4: =SUM(O4:O6,R4:R6,U4:U6,X4:X6,AA4:AA6,AD4:AD6,AG4:AG6) -> 0
O5: =M5*N5 -> 0 | R5: =P5*Q5 -> 0 | U5: =S5*T5 -> 0 | X5: =V5*W5 -> 0 | AA5: =Y5*Z5 -> 0 | AD5: =AB5*AC5 -> 0 | AG5: =AE5*AF5 -> 0
O6: 0 | R6: 0 | U6: 0 | X6: 0 | AA6: 0 | AD6: 0 | AG6: 0
B7: Ma | D7: 0 | E7: 0 | F7: 0 | G7: 0 | H7: 0 | O7: 0 | R7: =P7*Q7 -> 0 | U7: 0 | X7: 0 | AA7: 0 | AD7: 0 | AG7: 0 | AH7: =IF(SUM(M7:AG9)>0,1,0) -> 00:00:00 | AK7: =SUM(O7:O9,R7:R9,U7:U9,X7:X9,AA7:AA9,AD7:AD9,AG7:AG9) -> 0
O8: 0 | R8: 0 | U8: 0 | X8: 0 | AA8: 0 | AD8: 0 | AG8: 0
O9: 0 | R9: 0 | U9: 0 | X9: 0 | AA9: 0 | AD9: 0 | AG9: 0
B10: Me | D10: 0 | E10: 0 | F10: 0 | G10: 0 | H10: 0 | O10: 0 | R10: =P10*Q10 -> 0 | U10: 0 | X10: 0 | AA10: 0 | AD10: 0 | AG10: 0 | AH10: =IF(SUM(M10:AG12)>0,1,0) -> 00:00:00 | AK10: =SUM(O10:O12,R10:R12,U10:U12,X10:X12,AA10:AA12,AD10:AD12,AG10:AG12) -> 0
O11: 0 | R11: 0 | U11: 0 | X11: 0 | AA11: 0 | AD11: 0 | AG11: 0
O12: 0 | R12: 0 | U12: 0 | X12: 0 | AA12: 0 | AD12: 0 | AG12: 0
B13: Je | D13: 0 | E13: 0 | F13: 0 | G13: 0 | H13: 0 | O13: 0 | R13: =P13*Q13 -> 0 | U13: 0 | X13: 0 | AA13: 0 | AD13: 0 | AG13: 0 | AH13: =IF(SUM(M13:AG15)>0,1,0) -> 00:00:00 | AK13: =SUM(O13:O15,R13:R15,U13:U15,X13:X15,AA13:AA15,AD13:AD15,AG13:AG15) -> 0
O14: 0 | R14: 0 | U14: 0 | X14: 0 | AA14: 0 | AD14: 0 | AG14: 0
O15: 0 | R15: 0 | U15: 0 | X15: 0 | AA15: 0 | AD15: 0 | AG15: 0
B16: Ve | D16: 0 | E16: 0 | F16: 0 | G16: 0 | H16: 0 | O16: 0 | R16: =P16*Q16 -> 0 | U16: 0 | X16: 0 | AA16: 0 | AD16: 0 | AG16: 0 | AH16: =IF(SUM(M16:AG18)>0,1,0) -> 00:00:00 | AK16: =SUM(O16:O18,R16:R18,U16:U18,X16:X18,AA16:AA18,AD16:AD18,AG16:AG18) -> 0
O17: 0 | R17: 0 | U17: 0 | X17: 0 | AA17: 0 | AD17: 0 | AG17: 0
O18: 0 | R18: 0 | U18: 0 | X18: 0 | AA18: 0 | AD18: 0 | AG18: 0
B19: Sa | D19: 0 | E19: 0 | F19: 0 | G19: 0 | H19: 0 | O19: =M19*N19 -> 0 | R19: =P19*Q19 -> 0 | U19: =S19*T19 -> 0 | X19: =V19*W19 -> 0 | AA19: =Y19*Z19 -> 0 | AD19: =AB19*AC19 -> 0 | AG19: =AE19*AF19 -> 0 | AH19: =IF(SUM(M19:AG21)>0,1,0) -> 00:00:00 | AK19: =SUM(O19:O21,R19:R21,U19:U21,X19:X21,AA19:AA21,AD19:AD21,AG19:AG21) -> 0
O20: =M20*N20 -> 0 | R20: 0 | U20: =S20*T20 -> 0 | X20: =V20*W20 -> 0 | AA20: =Y20*Z20 -> 0 | AD20: =AB20*AC20 -> 0 | AG20: =AE20*AF20 -> 0
O21: 0 | R21: 0 | U21: 0 | X21: 0 | AA21: 0 | AD21: 0 | AG21: 0
B22: Di | D22: 0 | E22: 0 | F22: 0 | G22: 0 | H22: 0 | O22: 0 | R22: =P22*Q22 -> 0 | U22: 0 | X22: 0 | AA22: 0 | AD22: 0 | AG22: 0 | AH22: =IF(SUM(M22:AG24)>0,1,0) -> 00:00:00 | AK22: =SUM(O22:O24,R22:R24,U22:U24,X22:X24,AA22:AA24,AD22:AD24,AG22:AG24) -> 0
O23: 0 | R23: 0 | U23: 0 | X23: 0 | AA23: 0 | AD23: 0 | AG23: 0
O24: 0 | R24: 0 | U24: 0 | X24: 0 | AA24: 0 | AD24: 0 | AG24: 0
K25: Total | M25: =SUM(M4:M24) -> 0 | O25: =SUM(O4:O24) -> 0 | P25: =SUM(P4:P24) -> 0 | R25: =SUM(R4:R24) -> 0 | S25: =SUM(S4:S24) -> 0 | U25: =SUM(U4:U24) -> 0 | V25: =SUM(V4:V24) -> 0 | X25: =SUM(X4:X24) -> 0 | Y25: =SUM(Y4:Y24) -> 0 | AA25: =SUM(AA4:AA24) -> 0 | AB25: =SUM(AB4:AB24) -> 0 | AD25: =SUM(AD4:AD24) -> 0 | AE25: =SUM(AE4:AE24) -> 0 | AG25: =SUM(AG4:AG24) -> 0 | AI25: Charge totale | AK25: =SUM(AK4:AK24) -> 0
B26: avg. | D26: =IF(COUNTA(D4:D24)=0,"",AVERAGE(D4:D24)) -> 0 | E26: =IF(COUNTA(E4:E24)=0,"",AVERAGE(E4:E24)) -> 0 | F26: =IF(COUNTA(F4:F24)=0,"",AVERAGE(F4:F24)) -> 0 | G26: =IF(COUNTA(G4:G24)=0,"",AVERAGE(G4:G24)) -> 0 | H26: =IF(COUNTA(H4:H24)=0,"",COUNTIF(H4:H24,"x")) -> 0 | K26: Zone | M26: 1 | N26: 2 | O26: 3 | P26: 1 | Q26: 2 | R26: 3 | S26: 1 | T26: 2 | U26: 3 | V26: 1 | W26: 2 | X26: 3 | Y26: 1 | Z26: 2 | AA26: 3 | AB26: 1 | AC26: 2 | AD26: 3 | AE26: 1 | AF26: 2 | AG26: 3 | AI26: Moyenne | AK26: =AVERAGE(AK4:AK24) -> 0
F27: =IF(COUNTA(F4:F24)=0,"",VAR(F4:F24)) -> 0 | G27: =IF(COUNTA(G4:G24)=0,"",STDEV(G4:G24)) -> 0 | H27: Divergence - durée du sommeil | K27: Unité par zone (RPE) | M27: =IF('Répartition des intensités'!$AR$25="x",COUNTIF(N4:N24,"<3,5"),COUNTIF(N4:N24,"<4,5")) -> 0 | N27: =COUNT(N4:N24)-(M27+O27) -> 0 | O27: =IF('Répartition des intensités'!$AR$25="x",COUNTIF(N4:N24,">5,5"),COUNTIF(N4:N24,">6,5")) -> 0 | P27: =IF('Répartition des intensités'!$AR$25="x",COUNTIF(Q4:Q24,"<3,5"),COUNTIF(Q4:Q24,"<4,5")) -> 0 | Q27: =COUNT(Q4:Q24)-(P27+R27) -> 0 | R27: =IF('Répartition des intensités'!$AR$25="x",COUNTIF(Q4:Q24,">5,5"),COUNTIF(Q4:Q24,">6,5")) -> 0 | S27: =IF('Répartition des intensités'!$AR$25="x",COUNTIF(T4:T24,"<3,5"),COUNTIF(T4:T24,"<4,5")) -> 0 | T27: =COUNT(T4:T24)-(S27+U27) -> 0 | U27: =IF('Répartition des intensités'!$AR$25="x",COUNTIF(T4:T24,">5,5"),COUNTIF(T4:T24,">6,5")) -> 0 | V27: =IF('Répartition des intensités'!$AR$25="x",COUNTIF(W4:W24,"<3,5"),COUNTIF(W4:W24,"<4,5")) -> 0 | W27: =COUNT(W4:W24)-(V27+X27) -> 0 | X27: =IF('Répartition des intensités'!$AR$25="x",COUNTIF(W4:W24,">5,5"),COUNTIF(W4:W24,">6,5")) -> 0 | Y27: =IF('Répartition des intensités'!$AR$25="x",COUNTIF(Z4:Z24,"<3,5"),COUNTIF(Z4:Z24,"<4,5")) -> 0 | Z27: =COUNT(Z4:Z24)-(Y27+AA27) -> 0 | AA27: =IF('Répartition des intensités'!$AR$25="x",COUNTIF(Z4:Z24,">5,5"),COUNTIF(Z4:Z24,">6,5")) -> 0 | AB27: =IF('Répartition des intensités'!$AR$25="x",COUNTIF(AC4:AC24,"<3,5"),COUNTIF(AC4:AC24,"<4,5")) -> 0 | AC27: =COUNT(AC4:AC24)-(AB27+AD27) -> 0 | AD27: =IF('Répartition des intensités'!$AR$25="x",COUNTIF(AC4:AC24,">5,5"),COUNTIF(AC4:AC24,">6,5")) -> 0 | AE27: =IF('Répartition des intensités'!$AR$25="x",COUNTIF(AF4:AF24,"<3,5"),COUNTIF(AF4:AF24,"<4,5")) -> 0 | AF27: =COUNT(AF4:AF24)-(AE27+AG27) -> 0 | AG27: =IF('Répartition des intensités'!$AR$25="x",COUNTIF(AF4:AF24,">5,5"),COUNTIF(AF4:AF24,">6,5")) -> 0 | AI27: Divergence | AK27: =STDEVP(AK4:AK24) -> 0
D28: échelle de Foster | H28: RPE | K28: Temps par zone (RPE) | M28: =IF('Répartition des intensités'!$AR$25="x",SUMIF(N4:N24,"<3,5",M4:M24),SUMIF(N4:N24,"<4,5",M4:M24)) -> 0 | N28: =IF(N27=0,0,SUM((M25)-(M28+O28))) -> 0 | O28: =IF('Répartition des intensités'!$AR$25="x",SUMIF(N4:N24,">5,5",M4:M24),SUMIF(N4:N24,">6,5",M4:M24)) -> 0 | P28: =IF('Répartition des intensités'!$AR$25="x",SUMIF(Q4:Q24,"<3,5",P4:P24),SUMIF(Q4:Q24,"<4,5",P4:P24)) -> 0 | Q28: =IF(Q27=0,0,SUM((P25)-(P28+R28))) -> 0 | R28: =IF('Répartition des intensités'!$AR$25="x",SUMIF(Q4:Q24,">5,5",P4:P24),SUMIF(Q4:Q24,">6,5",P4:P24)) -> 0 | S28: =IF('Répartition des intensités'!$AR$25="x",SUMIF(T4:T24,"<3,5",S4:S24),SUMIF(T4:T24,"<4,5",S4:S24)) -> 0 | T28: =IF(T27=0,0,SUM((S25)-(S28+U28))) -> 0 | U28: =IF('Répartition des intensités'!$AR$25="x",SUMIF(T4:T24,">5,5",S4:S24),SUMIF(T4:T24,">6,5",S4:S24)) -> 0 | V28: =IF('Répartition des intensités'!$AR$25="x",SUMIF(W4:W24,"<3,5",V4:V24),SUMIF(W4:W24,"<4,5",V4:V24)) -> 0 | W28: =IF(W27=0,0,SUM((V25)-(V28+X28))) -> 0 | X28: =IF('Répartition des intensités'!$AR$25="x",SUMIF(W4:W24,">5,5",V4:V24),SUMIF(W4:W24,">6,5",V4:V24)) -> 0 | Y28: =IF('Répartition des intensités'!$AR$25="x",SUMIF(Z4:Z24,"<3,5",Y4:Y24),SUMIF(Z4:Z24,"<4,5",Y4:Y24)) -> 0 | Z28: =IF(Z27=0,0,SUM((Y25)-(Y28+AA28))) -> 0 | AA28: =IF('Répartition des intensités'!$AR$25="x",SUMIF(Z4:Z24,">5,5",Y4:Y24),SUMIF(Z4:Z24,">6,5",Y4:Y24)) -> 0 | AB28: =IF('Répartition des intensités'!$AR$25="x",SUMIF(AC4:AC24,"<3,5",AB4:AB24),SUMIF(AC4:AC24,"<4,5",AB4:AB24)) -> 0 | AC28: =IF(AC27=0,0,SUM((AB25)-(AB28+AD28))) -> 0 | AD28: =IF('Répartition des intensités'!$AR$25="x",SUMIF(AC4:AC24,">5,5",AB4:AB24),SUMIF(AC4:AC24,">6,5",AB4:AB24)) -> 0 | AE28: =IF('Répartition des intensités'!$AR$25="x",SUMIF(AF4:AF24,"<3,5",AE4:AE24),SUMIF(AF4:AF24,"<4,5",AE4:AE24)) -> 0 | AF28: =IF(AF27=0,0,SUM((AE25)-(AE28+AG28))) -> 0 | AG28: =IF('Répartition des intensités'!$AR$25="x",SUMIF(AF4:AF24,">5,5",AE4:AE24),SUMIF(AF4:AF24,">6,5",AE4:AE24)) -> 0
D29: Comme au repos | H29: 0 | J29: REG | K29: Est-ce que j'ai l'impression d'avoir récupéré en me levant?
D30: très facile | H30: 1
D31: facile | H31: 2 | J31: 1 | K31: … pas du tout récupéré | AI31: Entrainements | AM31: Rapport de santé
H32: 3 | J32: 2 | K32: … un peu récupéré | AI32: Jours d'entrainement | AK32: =IF(SUM(AH4:AH24)=0,"",SUM(AH4:AH24)) -> 
D33: Assez dur | H33: 4 | J33: 3 | K33: … récupéré | V33: =B4 -> Lu | W33: =AK4 -> 0 | AI33: Entrainements | AK33: =IF(AK32="","",SUM(M27:AG27)) -> 
D34: dur | H34: 5 | J34: 4 | K34: … en forme | V34: =B7 -> Ma | W34: =AK7 -> 0 | AI34: Heures d'entrainement | AK34: =IF(AK32="","",SUM(M25,P25,S25,Y25,AB25,V25,AE25)/60) ->  | AM34: =IF($AK$32="","",AK32-AM36-AM44-AM52) ->  | AN34: Aucune limitation | AR34: 0
H35: 6 | J35: 5 | K35: … très en forme | V35: =B10 -> Me | W35: =AK10 -> 0 | AI35: Charge de l'entrainement | AK35: =IF(AK32="","",SUM(AK25)) -> 
D36: très dur | H36: 7 | V36: =B13 -> Je | W36: =AK13 -> 0 | AI36: Monotonie | AK36: =IF(AK27=0,0,(AVERAGE(AK4:AK24))/AK27) -> 0 | AM36: =SUM(AM37:AM42) -> 0 | AN36: Limitation pour cause de douleurs
H37: 8 | J37: Nombre de matchs | V37: =B16 -> Ve | W37: =AK16 -> 0 | AI37: Efforts à l'entrainement | AK37: =IF(AK32="","",AK35*AK36) ->  | AM37: =COUNTIF($H$4:$H$24,$AR37) -> 0 | AN37: Doigt | AR37: 1
D38: extrèmement dur | H38: 9 | V38: =B19 -> Sa | W38: =AK19 -> 0 | AM38: 0 | AN38: Épaule | AR38: 2
D39: Comme mon entrainement le plus dur | H39: 10 | J39: 1 | K39: … 3 sets et plus | V39: =B22 -> Di | W39: =AK22 -> 0 | AI39: Compétition | AM39: 0 | AN39: Dos | AR39: 3
J40: 0.5 | K40: … moins de 3 sets | AI40: Matchs de volleyball | AK40: =IF(AK32="","",SUM(AM4:AM24)) ->  | AM40: 0 | AN40: Genou | AR40: 4
AI41: Sets de volleyball | AK41: =IF(AK32="","",SUM(AN4:AN24)) ->  | AM41: 0 | AN41: Cheville | AR41: 5
J42: Sets joués | AI42: Matchs de beach volley | AK42: =IF(AK35="","",SUM(AO4:AO24)) ->  | AM42: 0 | AN42: Autre | AR42: 6
J43: 1 | K43: … depuis le début et durant tout le set | AI43: Sets de beach volley | AK43: =IF(AK35="","",SUM(AP4:AP24)) -> 
J44: 0.5 | K44: … entré/sorti en cours, beaucoup joué | AM44: =SUM(AM45:AM50) -> 0 | AN44: Absence pour cause de blessure
J45: 0.1 | K45: … entré/sorti en cours, peu joué | AI45: Satisfaction | AM45: =COUNTIF($H$4:$H$24,$AR45) -> 0 | AN45: Doigt | AR45: 11
AI46: Satisfaction de l'entrainement/match J | AK46: =IF(AK32="","",SUM(AQ4:AQ24)/AK32) ->  | AM46: 0 | AN46: Épaule | AR46: 12
J47: J | K47: Es-tu content de la qualité de ton | AM47: 0 | AN47: Dos | AR47: 13
K48: entrainement/compétition? | AI48: Santé | AM48: 0 | AN48: Genou | AR48: 14
J49: 1 | K49: … pas content | AI49: Limitation pour cause de douleurs | AK49: =AM36 -> 0 | AM49: 0 | AN49: Cheville | AR49: 15
J50: 2 | K50: … plutôt pas content | AI50: Absence pour cause de blessure | AK50: =AM44 -> 0 | AM50: 0 | AN50: Autre | AR50: 16
J51: 3 | K51: … moyen | AI51: Absence pour cause de maladie | AK51: =AM52 -> 0
J52: 4 | K52: … content | AM52: =SUM(AM53:AM59) -> 0 | AN52: Absence pour cause de maladie
J53: 5 | K53: … très content! | AM53: =COUNTIF($H$4:$H$24,$AR53) -> 0 | AN53: Maladie | AR53: 21
Y134: =Z134-1 -> 29 | Z134: 30 | AA134: 31 | AB134: 32 | AC134: 33 | AD134: 34 | AE134: 35 | AF134: =D1 -> 36
AG155: =AF134+1 -> 37

Sheet 37
C1: Woche | D1: =INT(MOD(INT((F1-2)/7)+0.6,52+5/28))+1 -> 37 | E1: =D1+1000 -> 1037 | F1: ='36'!F1+7 -> 2018-09-10 | H1: - | J1: =F1+6 -> 2018-09-16 | AG1: ='Aperçu de la charge'!D2 -> Prénom Nom | AI1: ='Aperçu de la charge'!N2 -> 2018/2019
B2: Jour | D2: Poids | E2: REG | F2: qualité sommeil | G2: durée sommeil | H2: Santé | J2: Description de l'entrainement | M2: Club - VB | P2: TS/ Nati - VB | S2: Club - BVB | V2: TS/ Nati - BVB | Y2: Force - fitness | AB2: Compet. - VB | AE2: Compet. - BVB | AI2: Réflexion | AK2: Charge/ jour | AM2: matchs VB | AN2: Sets VB | AO2: Matchs BVB | AP2: Sets BVB | AQ2: J | AR2: Autre (Rég, mentale) | AS2: Mental- oder Sonstiges Training
D3: [kg] | E3: [1 - 5] | F3: [1-5] | G3: [Std] | H3: Nr. | M3: Durée | N3: RPE | O3: Charge | P3: Durée | Q3: RPE | R3: Charge | S3: Durée | T3: RPE | U3: Charge | V3: Durée | W3: RPE | X3: Charge | Y3: Durée | Z3: RPE | AA3: Charge | AB3: Durée | AC3: RPE | AD3: Charge | AE3: Durée | AF3: RPE | AG3: Charge | AQ3: [1-5]
B4: Lu | D4: 0 | E4: 0 | F4: 0 | G4: 0 | H4: 0 | O4: =M4*N4 -> 0 | R4: =P4*Q4 -> 0 | U4: =S4*T4 -> 0 | X4: =V4*W4 -> 0 | AA4: =Y4*Z4 -> 0 | AD4: =AB4*AC4 -> 0 | AG4: =AE4*AF4 -> 0 | AH4: =IF(SUM(M4:AG6)>0,1,0) -> 00:00:00 | AK4: =SUM(O4:O6,R4:R6,U4:U6,X4:X6,AA4:AA6,AD4:AD6,AG4:AG6) -> 0
O5: =M5*N5 -> 0 | R5: =P5*Q5 -> 0 | U5: =S5*T5 -> 0 | X5: =V5*W5 -> 0 | AA5: =Y5*Z5 -> 0 | AD5: =AB5*AC5 -> 0 | AG5: =AE5*AF5 -> 0
O6: 0 | R6: 0 | U6: 0 | X6: 0 | AA6: 0 | AD6: 0 | AG6: 0
B7: Ma | D7: 0 | E7: 0 | F7: 0 | G7: 0 | H7: 0 | O7: 0 | R7: =P7*Q7 -> 0 | U7: 0 | X7: 0 | AA7: 0 | AD7: 0 | AG7: 0 | AH7: =IF(SUM(M7:AG9)>0,1,0) -> 00:00:00 | AK7: =SUM(O7:O9,R7:R9,U7:U9,X7:X9,AA7:AA9,AD7:AD9,AG7:AG9) -> 0
O8: 0 | R8: 0 | U8: 0 | X8: 0 | AA8: 0 | AD8: 0 | AG8: 0
O9: 0 | R9: 0 | U9: 0 | X9: 0 | AA9: 0 | AD9: 0 | AG9: 0
B10: Me | D10: 0 | E10: 0 | F10: 0 | G10: 0 | H10: 0 | O10: 0 | R10: =P10*Q10 -> 0 | U10: 0 | X10: 0 | AA10: 0 | AD10: 0 | AG10: 0 | AH10: =IF(SUM(M10:AG12)>0,1,0) -> 00:00:00 | AK10: =SUM(O10:O12,R10:R12,U10:U12,X10:X12,AA10:AA12,AD10:AD12,AG10:AG12) -> 0
O11: 0 | R11: 0 | U11: 0 | X11: 0 | AA11: 0 | AD11: 0 | AG11: 0
O12: 0 | R12: 0 | U12: 0 | X12: 0 | AA12: 0 | AD12: 0 | AG12: 0
B13: Je | D13: 0 | E13: 0 | F13: 0 | G13: 0 | H13: 0 | O13: 0 | R13: =P13*Q13 -> 0 | U13: 0 | X13: 0 | AA13: 0 | AD13: 0 | AG13: 0 | AH13: =IF(SUM(M13:AG15)>0,1,0) -> 00:00:00 | AK13: =SUM(O13:O15,R13:R15,U13:U15,X13:X15,AA13:AA15,AD13:AD15,AG13:AG15) -> 0
O14: 0 | R14: 0 | U14: 0 | X14: 0 | AA14: 0 | AD14: 0 | AG14: 0
O15: 0 | R15: 0 | U15: 0 | X15: 0 | AA15: 0 | AD15: 0 | AG15: 0
B16: Ve | D16: 0 | E16: 0 | F16: 0 | G16: 0 | H16: 0 | O16: 0 | R16: =P16*Q16 -> 0 | U16: 0 | X16: 0 | AA16: 0 | AD16: 0 | AG16: 0 | AH16: =IF(SUM(M16:AG18)>0,1,0) -> 00:00:00 | AK16: =SUM(O16:O18,R16:R18,U16:U18,X16:X18,AA16:AA18,AD16:AD18,AG16:AG18) -> 0
O17: 0 | R17: 0 | U17: 0 | X17: 0 | AA17: 0 | AD17: 0 | AG17: 0
O18: 0 | R18: 0 | U18: 0 | X18: 0 | AA18: 0 | AD18: 0 | AG18: 0
B19: Sa | D19: 0 | E19: 0 | F19: 0 | G19: 0 | H19: 0 | O19: =M19*N19 -> 0 | R19: =P19*Q19 -> 0 | U19: =S19*T19 -> 0 | X19: =V19*W19 -> 0 | AA19: =Y19*Z19 -> 0 | AD19: =AB19*AC19 -> 0 | AG19: =AE19*AF19 -> 0 | AH19: =IF(SUM(M19:AG21)>0,1,0) -> 00:00:00 | AK19: =SUM(O19:O21,R19:R21,U19:U21,X19:X21,AA19:AA21,AD19:AD21,AG19:AG21) -> 0
O20: =M20*N20 -> 0 | R20: 0 | U20: =S20*T20 -> 0 | X20: =V20*W20 -> 0 | AA20: =Y20*Z20 -> 0 | AD20: =AB20*AC20 -> 0 | AG20: =AE20*AF20 -> 0
O21: 0 | R21: 0 | U21: 0 | X21: 0 | AA21: 0 | AD21: 0 | AG21: 0
B22: Di | D22: 0 | E22: 0 | F22: 0 | G22: 0 | H22: 0 | O22: 0 | R22: =P22*Q22 -> 0 | U22: 0 | X22: 0 | AA22: 0 | AD22: 0 | AG22: 0 | AH22: =IF(SUM(M22:AG24)>0,1,0) -> 00:00:00 | AK22: =SUM(O22:O24,R22:R24,U22:U24,X22:X24,AA22:AA24,AD22:AD24,AG22:AG24) -> 0
O23: 0 | R23: 0 | U23: 0 | X23: 0 | AA23: 0 | AD23: 0 | AG23: 0
O24: 0 | R24: 0 | U24: 0 | X24: 0 | AA24: 0 | AD24: 0 | AG24: 0
K25: Total | M25: =SUM(M4:M24) -> 0 | O25: =SUM(O4:O24) -> 0 | P25: =SUM(P4:P24) -> 0 | R25: =SUM(R4:R24) -> 0 | S25: =SUM(S4:S24) -> 0 | U25: =SUM(U4:U24) -> 0 | V25: =SUM(V4:V24) -> 0 | X25: =SUM(X4:X24) -> 0 | Y25: =SUM(Y4:Y24) -> 0 | AA25: =SUM(AA4:AA24) -> 0 | AB25: =SUM(AB4:AB24) -> 0 | AD25: =SUM(AD4:AD24) -> 0 | AE25: =SUM(AE4:AE24) -> 0 | AG25: =SUM(AG4:AG24) -> 0 | AI25: Charge totale | AK25: =SUM(AK4:AK24) -> 0
B26: avg. | D26: =IF(COUNTA(D4:D24)=0,"",AVERAGE(D4:D24)) -> 0 | E26: =IF(COUNTA(E4:E24)=0,"",AVERAGE(E4:E24)) -> 0 | F26: =IF(COUNTA(F4:F24)=0,"",AVERAGE(F4:F24)) -> 0 | G26: =IF(COUNTA(G4:G24)=0,"",AVERAGE(G4:G24)) -> 0 | H26: =IF(COUNTA(H4:H24)=0,"",COUNTIF(H4:H24,"x")) -> 0 | K26: Zone | M26: 1 | N26: 2 | O26: 3 | P26: 1 | Q26: 2 | R26: 3 | S26: 1 | T26: 2 | U26: 3 | V26: 1 | W26: 2 | X26: 3 | Y26: 1 | Z26: 2 | AA26: 3 | AB26: 1 | AC26: 2 | AD26: 3 | AE26: 1 | AF26: 2 | AG26: 3 | AI26: Moyenne | AK26: =AVERAGE(AK4:AK24) -> 0
F27: =IF(COUNTA(F4:F24)=0,"",VAR(F4:F24)) -> 0 | G27: =IF(COUNTA(G4:G24)=0,"",STDEV(G4:G24)) -> 0 | H27: Divergence - durée du sommeil | K27: Unité par zone (RPE) | M27: =IF('Répartition des intensités'!$AR$25="x",COUNTIF(N4:N24,"<3,5"),COUNTIF(N4:N24,"<4,5")) -> 0 | N27: =COUNT(N4:N24)-(M27+O27) -> 0 | O27: =IF('Répartition des intensités'!$AR$25="x",COUNTIF(N4:N24,">5,5"),COUNTIF(N4:N24,">6,5")) -> 0 | P27: =IF('Répartition des intensités'!$AR$25="x",COUNTIF(Q4:Q24,"<3,5"),COUNTIF(Q4:Q24,"<4,5")) -> 0 | Q27: =COUNT(Q4:Q24)-(P27+R27) -> 0 | R27: =IF('Répartition des intensités'!$AR$25="x",COUNTIF(Q4:Q24,">5,5"),COUNTIF(Q4:Q24,">6,5")) -> 0 | S27: =IF('Répartition des intensités'!$AR$25="x",COUNTIF(T4:T24,"<3,5"),COUNTIF(T4:T24,"<4,5")) -> 0 | T27: =COUNT(T4:T24)-(S27+U27) -> 0 | U27: =IF('Répartition des intensités'!$AR$25="x",COUNTIF(T4:T24,">5,5"),COUNTIF(T4:T24,">6,5")) -> 0 | V27: =IF('Répartition des intensités'!$AR$25="x",COUNTIF(W4:W24,"<3,5"),COUNTIF(W4:W24,"<4,5")) -> 0 | W27: =COUNT(W4:W24)-(V27+X27) -> 0 | X27: =IF('Répartition des intensités'!$AR$25="x",COUNTIF(W4:W24,">5,5"),COUNTIF(W4:W24,">6,5")) -> 0 | Y27: =IF('Répartition des intensités'!$AR$25="x",COUNTIF(Z4:Z24,"<3,5"),COUNTIF(Z4:Z24,"<4,5")) -> 0 | Z27: =COUNT(Z4:Z24)-(Y27+AA27) -> 0 | AA27: =IF('Répartition des intensités'!$AR$25="x",COUNTIF(Z4:Z24,">5,5"),COUNTIF(Z4:Z24,">6,5")) -> 0 | AB27: =IF('Répartition des intensités'!$AR$25="x",COUNTIF(AC4:AC24,"<3,5"),COUNTIF(AC4:AC24,"<4,5")) -> 0 | AC27: =COUNT(AC4:AC24)-(AB27+AD27) -> 0 | AD27: =IF('Répartition des intensités'!$AR$25="x",COUNTIF(AC4:AC24,">5,5"),COUNTIF(AC4:AC24,">6,5")) -> 0 | AE27: =IF('Répartition des intensités'!$AR$25="x",COUNTIF(AF4:AF24,"<3,5"),COUNTIF(AF4:AF24,"<4,5")) -> 0 | AF27: =COUNT(AF4:AF24)-(AE27+AG27) -> 0 | AG27: =IF('Répartition des intensités'!$AR$25="x",COUNTIF(AF4:AF24,">5,5"),COUNTIF(AF4:AF24,">6,5")) -> 0 | AI27: Divergence | AK27: =STDEVP(AK4:AK24) -> 0
D28: échelle de Foster | H28: RPE | K28: Temps par zone (RPE) | M28: =IF('Répartition des intensités'!$AR$25="x",SUMIF(N4:N24,"<3,5",M4:M24),SUMIF(N4:N24,"<4,5",M4:M24)) -> 0 | N28: =IF(N27=0,0,SUM((M25)-(M28+O28))) -> 0 | O28: =IF('Répartition des intensités'!$AR$25="x",SUMIF(N4:N24,">5,5",M4:M24),SUMIF(N4:N24,">6,5",M4:M24)) -> 0 | P28: =IF('Répartition des intensités'!$AR$25="x",SUMIF(Q4:Q24,"<3,5",P4:P24),SUMIF(Q4:Q24,"<4,5",P4:P24)) -> 0 | Q28: =IF(Q27=0,0,SUM((P25)-(P28+R28))) -> 0 | R28: =IF('Répartition des intensités'!$AR$25="x",SUMIF(Q4:Q24,">5,5",P4:P24),SUMIF(Q4:Q24,">6,5",P4:P24)) -> 0 | S28: =IF('Répartition des intensités'!$AR$25="x",SUMIF(T4:T24,"<3,5",S4:S24),SUMIF(T4:T24,"<4,5",S4:S24)) -> 0 | T28: =IF(T27=0,0,SUM((S25)-(S28+U28))) -> 0 | U28: =IF('Répartition des intensités'!$AR$25="x",SUMIF(T4:T24,">5,5",S4:S24),SUMIF(T4:T24,">6,5",S4:S24)) -> 0 | V28: =IF('Répartition des intensités'!$AR$25="x",SUMIF(W4:W24,"<3,5",V4:V24),SUMIF(W4:W24,"<4,5",V4:V24)) -> 0 | W28: =IF(W27=0,0,SUM((V25)-(V28+X28))) -> 0 | X28: =IF('Répartition des intensités'!$AR$25="x",SUMIF(W4:W24,">5,5",V4:V24),SUMIF(W4:W24,">6,5",V4:V24)) -> 0 | Y28: =IF('Répartition des intensités'!$AR$25="x",SUMIF(Z4:Z24,"<3,5",Y4:Y24),SUMIF(Z4:Z24,"<4,5",Y4:Y24)) -> 0 | Z28: =IF(Z27=0,0,SUM((Y25)-(Y28+AA28))) -> 0 | AA28: =IF('Répartition des intensités'!$AR$25="x",SUMIF(Z4:Z24,">5,5",Y4:Y24),SUMIF(Z4:Z24,">6,5",Y4:Y24)) -> 0 | AB28: =IF('Répartition des intensités'!$AR$25="x",SUMIF(AC4:AC24,"<3,5",AB4:AB24),SUMIF(AC4:AC24,"<4,5",AB4:AB24)) -> 0 | AC28: =IF(AC27=0,0,SUM((AB25)-(AB28+AD28))) -> 0 | AD28: =IF('Répartition des intensités'!$AR$25="x",SUMIF(AC4:AC24,">5,5",AB4:AB24),SUMIF(AC4:AC24,">6,5",AB4:AB24)) -> 0 | AE28: =IF('Répartition des intensités'!$AR$25="x",SUMIF(AF4:AF24,"<3,5",AE4:AE24),SUMIF(AF4:AF24,"<4,5",AE4:AE24)) -> 0 | AF28: =IF(AF27=0,0,SUM((AE25)-(AE28+AG28))) -> 0 | AG28: =IF('Répartition des intensités'!$AR$25="x",SUMIF(AF4:AF24,">5,5",AE4:AE24),SUMIF(AF4:AF24,">6,5",AE4:AE24)) -> 0
D29: Comme au repos | H29: 0 | J29: REG | K29: Est-ce que j'ai l'impression d'avoir récupéré en me levant?
D30: très facile | H30: 1
D31: facile | H31: 2 | J31: 1 | K31: … pas du tout récupéré | AI31: Entrainements | AM31: Rapport de santé
H32: 3 | J32: 2 | K32: … un peu récupéré | AI32: Jours d'entrainement | AK32: =IF(SUM(AH4:AH24)=0,"",SUM(AH4:AH24)) -> 
D33: Assez dur | H33: 4 | J33: 3 | K33: … récupéré | V33: =B4 -> Lu | W33: =AK4 -> 0 | AI33: Entrainements | AK33: =IF(AK32="","",SUM(M27:AG27)) -> 
D34: dur | H34: 5 | J34: 4 | K34: … en forme | V34: =B7 -> Ma | W34: =AK7 -> 0 | AI34: Heures d'entrainement | AK34: =IF(AK32="","",SUM(M25,P25,S25,Y25,AB25,V25,AE25)/60) ->  | AM34: =IF($AK$32="","",AK32-AM36-AM44-AM52) ->  | AN34: Aucune limitation | AR34: 0
H35: 6 | J35: 5 | K35: … très en forme | V35: =B10 -> Me | W35: =AK10 -> 0 | AI35: Charge de l'entrainement | AK35: =IF(AK32="","",SUM(AK25)) -> 
D36: très dur | H36: 7 | V36: =B13 -> Je | W36: =AK13 -> 0 | AI36: Monotonie | AK36: =IF(AK27=0,0,(AVERAGE(AK4:AK24))/AK27) -> 0 | AM36: =SUM(AM37:AM42) -> 0 | AN36: Limitation pour cause de douleurs
H37: 8 | J37: Nombre de matchs | V37: =B16 -> Ve | W37: =AK16 -> 0 | AI37: Efforts à l'entrainement | AK37: =IF(AK32="","",AK35*AK36) ->  | AM37: =COUNTIF($H$4:$H$24,$AR37) -> 0 | AN37: Doigt | AR37: 1
D38: extrèmement dur | H38: 9 | V38: =B19 -> Sa | W38: =AK19 -> 0 | AM38: 0 | AN38: Épaule | AR38: 2
D39: Comme mon entrainement le plus dur | H39: 10 | J39: 1 | K39: … 3 sets et plus | V39: =B22 -> Di | W39: =AK22 -> 0 | AI39: Compétition | AM39: 0 | AN39: Dos | AR39: 3
J40: 0.5 | K40: … moins de 3 sets | AI40: Matchs de volleyball | AK40: =IF(AK32="","",SUM(AM4:AM24)) ->  | AM40: 0 | AN40: Genou | AR40: 4
AI41: Sets de volleyball | AK41: =IF(AK32="","",SUM(AN4:AN24)) ->  | AM41: 0 | AN41: Cheville | AR41: 5
J42: Sets joués | AI42: Matchs de beach volley | AK42: =IF(AK35="","",SUM(AO4:AO24)) ->  | AM42: 0 | AN42: Autre | AR42: 6
J43: 1 | K43: … depuis le début et durant tout le set | AI43: Sets de beach volley | AK43: =IF(AK35="","",SUM(AP4:AP24)) -> 
J44: 0.5 | K44: … entré/sorti en cours, beaucoup joué | AM44: =SUM(AM45:AM50) -> 0 | AN44: Absence pour cause de blessure
J45: 0.1 | K45: … entré/sorti en cours, peu joué | AI45: Satisfaction | AM45: =COUNTIF($H$4:$H$24,$AR45) -> 0 | AN45: Doigt | AR45: 11
AI46: Satisfaction de l'entrainement/match J | AK46: =IF(AK32="","",SUM(AQ4:AQ24)/AK32) ->  | AM46: 0 | AN46: Épaule | AR46: 12
J47: J | K47: Es-tu content de la qualité de ton | AM47: 0 | AN47: Dos | AR47: 13
K48: entrainement/compétition? | AI48: Santé | AM48: 0 | AN48: Genou | AR48: 14
J49: 1 | K49: … pas content | AI49: Limitation pour cause de douleurs | AK49: =AM36 -> 0 | AM49: 0 | AN49: Cheville | AR49: 15
J50: 2 | K50: … plutôt pas content | AI50: Absence pour cause de blessure | AK50: =AM44 -> 0 | AM50: 0 | AN50: Autre | AR50: 16
J51: 3 | K51: … moyen | AI51: Absence pour cause de maladie | AK51: =AM52 -> 0
J52: 4 | K52: … content | AM52: =SUM(AM53:AM59) -> 0 | AN52: Absence pour cause de maladie
J53: 5 | K53: … très content! | AM53: =COUNTIF($H$4:$H$24,$AR53) -> 0 | AN53: Maladie | AR53: 21
Y134: =Z134-1 -> 30 | Z134: 31 | AA134: 32 | AB134: 33 | AC134: 34 | AD134: 35 | AE134: 36 | AF134: =D1 -> 37
AG155: =AF134+1 -> 38

Sheet 38
C1: Woche | D1: =INT(MOD(INT((F1-2)/7)+0.6,52+5/28))+1 -> 38 | E1: =D1+1000 -> 1038 | F1: ='37'!F1+7 -> 2018-09-17 | H1: - | J1: =F1+6 -> 2018-09-23 | AG1: ='Aperçu de la charge'!D2 -> Prénom Nom | AI1: ='Aperçu de la charge'!N2 -> 2018/2019
B2: Jour | D2: Poids | E2: REG | F2: qualité sommeil | G2: durée sommeil | H2: Santé | J2: Description de l'entrainement | M2: Club - VB | P2: TS/ Nati - VB | S2: Club - BVB | V2: TS/ Nati - BVB | Y2: Force - fitness | AB2: Compet. - VB | AE2: Compet. - BVB | AI2: Réflexion | AK2: Charge/ jour | AM2: matchs VB | AN2: Sets VB | AO2: Matchs BVB | AP2: Sets BVB | AQ2: J | AR2: Autre (Rég, mentale) | AS2: Mental- oder Sonstiges Training
D3: [kg] | E3: [1 - 5] | F3: [1-5] | G3: [Std] | H3: Nr. | M3: Durée | N3: RPE | O3: Charge | P3: Durée | Q3: RPE | R3: Charge | S3: Durée | T3: RPE | U3: Charge | V3: Durée | W3: RPE | X3: Charge | Y3: Durée | Z3: RPE | AA3: Charge | AB3: Durée | AC3: RPE | AD3: Charge | AE3: Durée | AF3: RPE | AG3: Charge | AQ3: [1-5]
B4: Lu | D4: 0 | E4: 0 | F4: 0 | G4: 0 | H4: 0 | O4: =M4*N4 -> 0 | R4: =P4*Q4 -> 0 | U4: =S4*T4 -> 0 | X4: =V4*W4 -> 0 | AA4: =Y4*Z4 -> 0 | AD4: =AB4*AC4 -> 0 | AG4: =AE4*AF4 -> 0 | AH4: =IF(SUM(M4:AG6)>0,1,0) -> 00:00:00 | AK4: =SUM(O4:O6,R4:R6,U4:U6,X4:X6,AA4:AA6,AD4:AD6,AG4:AG6) -> 0
O5: =M5*N5 -> 0 | R5: =P5*Q5 -> 0 | U5: =S5*T5 -> 0 | X5: =V5*W5 -> 0 | AA5: =Y5*Z5 -> 0 | AD5: =AB5*AC5 -> 0 | AG5: =AE5*AF5 -> 0
O6: 0 | R6: 0 | U6: 0 | X6: 0 | AA6: 0 | AD6: 0 | AG6: 0
B7: Ma | D7: 0 | E7: 0 | F7: 0 | G7: 0 | H7: 0 | O7: 0 | R7: =P7*Q7 -> 0 | U7: 0 | X7: 0 | AA7: 0 | AD7: 0 | AG7: 0 | AH7: =IF(SUM(M7:AG9)>0,1,0) -> 00:00:00 | AK7: =SUM(O7:O9,R7:R9,U7:U9,X7:X9,AA7:AA9,AD7:AD9,AG7:AG9) -> 0
O8: 0 | R8: 0 | U8: 0 | X8: 0 | AA8: 0 | AD8: 0 | AG8: 0
O9: 0 | R9: 0 | U9: 0 | X9: 0 | AA9: 0 | AD9: 0 | AG9: 0
B10: Me | D10: 0 | E10: 0 | F10: 0 | G10: 0 | H10: 0 | O10: 0 | R10: =P10*Q10 -> 0 | U10: 0 | X10: 0 | AA10: 0 | AD10: 0 | AG10: 0 | AH10: =IF(SUM(M10:AG12)>0,1,0) -> 00:00:00 | AK10: =SUM(O10:O12,R10:R12,U10:U12,X10:X12,AA10:AA12,AD10:AD12,AG10:AG12) -> 0
O11: 0 | R11: 0 | U11: 0 | X11: 0 | AA11: 0 | AD11: 0 | AG11: 0
O12: 0 | R12: 0 | U12: 0 | X12: 0 | AA12: 0 | AD12: 0 | AG12: 0
B13: Je | D13: 0 | E13: 0 | F13: 0 | G13: 0 | H13: 0 | O13: 0 | R13: =P13*Q13 -> 0 | U13: 0 | X13: 0 | AA13: 0 | AD13: 0 | AG13: 0 | AH13: =IF(SUM(M13:AG15)>0,1,0) -> 00:00:00 | AK13: =SUM(O13:O15,R13:R15,U13:U15,X13:X15,AA13:AA15,AD13:AD15,AG13:AG15) -> 0
O14: 0 | R14: 0 | U14: 0 | X14: 0 | AA14: 0 | AD14: 0 | AG14: 0
O15: 0 | R15: 0 | U15: 0 | X15: 0 | AA15: 0 | AD15: 0 | AG15: 0
B16: Ve | D16: 0 | E16: 0 | F16: 0 | G16: 0 | H16: 0 | O16: 0 | R16: =P16*Q16 -> 0 | U16: 0 | X16: 0 | AA16: 0 | AD16: 0 | AG16: 0 | AH16: =IF(SUM(M16:AG18)>0,1,0) -> 00:00:00 | AK16: =SUM(O16:O18,R16:R18,U16:U18,X16:X18,AA16:AA18,AD16:AD18,AG16:AG18) -> 0
O17: 0 | R17: 0 | U17: 0 | X17: 0 | AA17: 0 | AD17: 0 | AG17: 0
O18: 0 | R18: 0 | U18: 0 | X18: 0 | AA18: 0 | AD18: 0 | AG18: 0
B19: Sa | D19: 0 | E19: 0 | F19: 0 | G19: 0 | H19: 0 | O19: =M19*N19 -> 0 | R19: =P19*Q19 -> 0 | U19: =S19*T19 -> 0 | X19: =V19*W19 -> 0 | AA19: =Y19*Z19 -> 0 | AD19: =AB19*AC19 -> 0 | AG19: =AE19*AF19 -> 0 | AH19: =IF(SUM(M19:AG21)>0,1,0) -> 00:00:00 | AK19: =SUM(O19:O21,R19:R21,U19:U21,X19:X21,AA19:AA21,AD19:AD21,AG19:AG21) -> 0
O20: =M20*N20 -> 0 | R20: 0 | U20: =S20*T20 -> 0 | X20: =V20*W20 -> 0 | AA20: =Y20*Z20 -> 0 | AD20: =AB20*AC20 -> 0 | AG20: =AE20*AF20 -> 0
O21: 0 | R21: 0 | U21: 0 | X21: 0 | AA21: 0 | AD21: 0 | AG21: 0
B22: Di | D22: 0 | E22: 0 | F22: 0 | G22: 0 | H22: 0 | O22: 0 | R22: =P22*Q22 -> 0 | U22: 0 | X22: 0 | AA22: 0 | AD22: 0 | AG22: 0 | AH22: =IF(SUM(M22:AG24)>0,1,0) -> 00:00:00 | AK22: =SUM(O22:O24,R22:R24,U22:U24,X22:X24,AA22:AA24,AD22:AD24,AG22:AG24) -> 0
O23: 0 | R23: 0 | U23: 0 | X23: 0 | AA23: 0 | AD23: 0 | AG23: 0
O24: 0 | R24: 0 | U24: 0 | X24: 0 | AA24: 0 | AD24: 0 | AG24: 0
K25: Total | M25: =SUM(M4:M24) -> 0 | O25: =SUM(O4:O24) -> 0 | P25: =SUM(P4:P24) -> 0 | R25: =SUM(R4:R24) -> 0 | S25: =SUM(S4:S24) -> 0 | U25: =SUM(U4:U24) -> 0 | V25: =SUM(V4:V24) -> 0 | X25: =SUM(X4:X24) -> 0 | Y25: =SUM(Y4:Y24) -> 0 | AA25: =SUM(AA4:AA24) -> 0 | AB25: =SUM(AB4:AB24) -> 0 | AD25: =SUM(AD4:AD24) -> 0 | AE25: =SUM(AE4:AE24) -> 0 | AG25: =SUM(AG4:AG24) -> 0 | AI25: Charge totale | AK25: =SUM(AK4:AK24) -> 0
B26: avg. | D26: =IF(COUNTA(D4:D24)=0,"",AVERAGE(D4:D24)) -> 0 | E26: =IF(COUNTA(E4:E24)=0,"",AVERAGE(E4:E24)) -> 0 | F26: =IF(COUNTA(F4:F24)=0,"",AVERAGE(F4:F24)) -> 0 | G26: =IF(COUNTA(G4:G24)=0,"",AVERAGE(G4:G24)) -> 0 | H26: =IF(COUNTA(H4:H24)=0,"",COUNTIF(H4:H24,"x")) -> 0 | K26: Zone | M26: 1 | N26: 2 | O26: 3 | P26: 1 | Q26: 2 | R26: 3 | S26: 1 | T26: 2 | U26: 3 | V26: 1 | W26: 2 | X26: 3 | Y26: 1 | Z26: 2 | AA26: 3 | AB26: 1 | AC26: 2 | AD26: 3 | AE26: 1 | AF26: 2 | AG26: 3 | AI26: Moyenne | AK26: =AVERAGE(AK4:AK24) -> 0
F27: =IF(COUNTA(F4:F24)=0,"",VAR(F4:F24)) -> 0 | G27: =IF(COUNTA(G4:G24)=0,"",STDEV(G4:G24)) -> 0 | H27: Divergence - durée du sommeil | K27: Unité par zone (RPE) | M27: =IF('Répartition des intensités'!$AR$25="x",COUNTIF(N4:N24,"<3,5"),COUNTIF(N4:N24,"<4,5")) -> 0 | N27: =COUNT(N4:N24)-(M27+O27) -> 0 | O27: =IF('Répartition des intensités'!$AR$25="x",COUNTIF(N4:N24,">5,5"),COUNTIF(N4:N24,">6,5")) -> 0 | P27: =IF('Répartition des intensités'!$AR$25="x",COUNTIF(Q4:Q24,"<3,5"),COUNTIF(Q4:Q24,"<4,5")) -> 0 | Q27: =COUNT(Q4:Q24)-(P27+R27) -> 0 | R27: =IF('Répartition des intensités'!$AR$25="x",COUNTIF(Q4:Q24,">5,5"),COUNTIF(Q4:Q24,">6,5")) -> 0 | S27: =IF('Répartition des intensités'!$AR$25="x",COUNTIF(T4:T24,"<3,5"),COUNTIF(T4:T24,"<4,5")) -> 0 | T27: =COUNT(T4:T24)-(S27+U27) -> 0 | U27: =IF('Répartition des intensités'!$AR$25="x",COUNTIF(T4:T24,">5,5"),COUNTIF(T4:T24,">6,5")) -> 0 | V27: =IF('Répartition des intensités'!$AR$25="x",COUNTIF(W4:W24,"<3,5"),COUNTIF(W4:W24,"<4,5")) -> 0 | W27: =COUNT(W4:W24)-(V27+X27) -> 0 | X27: =IF('Répartition des intensités'!$AR$25="x",COUNTIF(W4:W24,">5,5"),COUNTIF(W4:W24,">6,5")) -> 0 | Y27: =IF('Répartition des intensités'!$AR$25="x",COUNTIF(Z4:Z24,"<3,5"),COUNTIF(Z4:Z24,"<4,5")) -> 0 | Z27: =COUNT(Z4:Z24)-(Y27+AA27) -> 0 | AA27: =IF('Répartition des intensités'!$AR$25="x",COUNTIF(Z4:Z24,">5,5"),COUNTIF(Z4:Z24,">6,5")) -> 0 | AB27: =IF('Répartition des intensités'!$AR$25="x",COUNTIF(AC4:AC24,"<3,5"),COUNTIF(AC4:AC24,"<4,5")) -> 0 | AC27: =COUNT(AC4:AC24)-(AB27+AD27) -> 0 | AD27: =IF('Répartition des intensités'!$AR$25="x",COUNTIF(AC4:AC24,">5,5"),COUNTIF(AC4:AC24,">6,5")) -> 0 | AE27: =IF('Répartition des intensités'!$AR$25="x",COUNTIF(AF4:AF24,"<3,5"),COUNTIF(AF4:AF24,"<4,5")) -> 0 | AF27: =COUNT(AF4:AF24)-(AE27+AG27) -> 0 | AG27: =IF('Répartition des intensités'!$AR$25="x",COUNTIF(AF4:AF24,">5,5"),COUNTIF(AF4:AF24,">6,5")) -> 0 | AI27: Divergence | AK27: =STDEVP(AK4:AK24) -> 0
D28: échelle de Foster | H28: RPE | K28: Temps par zone (RPE) | M28: =IF('Répartition des intensités'!$AR$25="x",SUMIF(N4:N24,"<3,5",M4:M24),SUMIF(N4:N24,"<4,5",M4:M24)) -> 0 | N28: =IF(N27=0,0,SUM((M25)-(M28+O28))) -> 0 | O28: =IF('Répartition des intensités'!$AR$25="x",SUMIF(N4:N24,">5,5",M4:M24),SUMIF(N4:N24,">6,5",M4:M24)) -> 0 | P28: =IF('Répartition des intensités'!$AR$25="x",SUMIF(Q4:Q24,"<3,5",P4:P24),SUMIF(Q4:Q24,"<4,5",P4:P24)) -> 0 | Q28: =IF(Q27=0,0,SUM((P25)-(P28+R28))) -> 0 | R28: =IF('Répartition des intensités'!$AR$25="x",SUMIF(Q4:Q24,">5,5",P4:P24),SUMIF(Q4:Q24,">6,5",P4:P24)) -> 0 | S28: =IF('Répartition des intensités'!$AR$25="x",SUMIF(T4:T24,"<3,5",S4:S24),SUMIF(T4:T24,"<4,5",S4:S24)) -> 0 | T28: =IF(T27=0,0,SUM((S25)-(S28+U28))) -> 0 | U28: =IF('Répartition des intensités'!$AR$25="x",SUMIF(T4:T24,">5,5",S4:S24),SUMIF(T4:T24,">6,5",S4:S24)) -> 0 | V28: =IF('Répartition des intensités'!$AR$25="x",SUMIF(W4:W24,"<3,5",V4:V24),SUMIF(W4:W24,"<4,5",V4:V24)) -> 0 | W28: =IF(W27=0,0,SUM((V25)-(V28+X28))) -> 0 | X28: =IF('Répartition des intensités'!$AR$25="x",SUMIF(W4:W24,">5,5",V4:V24),SUMIF(W4:W24,">6,5",V4:V24)) -> 0 | Y28: =IF('Répartition des intensités'!$AR$25="x",SUMIF(Z4:Z24,"<3,5",Y4:Y24),SUMIF(Z4:Z24,"<4,5",Y4:Y24)) -> 0 | Z28: =IF(Z27=0,0,SUM((Y25)-(Y28+AA28))) -> 0 | AA28: =IF('Répartition des intensités'!$AR$25="x",SUMIF(Z4:Z24,">5,5",Y4:Y24),SUMIF(Z4:Z24,">6,5",Y4:Y24)) -> 0 | AB28: =IF('Répartition des intensités'!$AR$25="x",SUMIF(AC4:AC24,"<3,5",AB4:AB24),SUMIF(AC4:AC24,"<4,5",AB4:AB24)) -> 0 | AC28: =IF(AC27=0,0,SUM((AB25)-(AB28+AD28))) -> 0 | AD28: =IF('Répartition des intensités'!$AR$25="x",SUMIF(AC4:AC24,">5,5",AB4:AB24),SUMIF(AC4:AC24,">6,5",AB4:AB24)) -> 0 | AE28: =IF('Répartition des intensités'!$AR$25="x",SUMIF(AF4:AF24,"<3,5",AE4:AE24),SUMIF(AF4:AF24,"<4,5",AE4:AE24)) -> 0 | AF28: =IF(AF27=0,0,SUM((AE25)-(AE28+AG28))) -> 0 | AG28: =IF('Répartition des intensités'!$AR$25="x",SUMIF(AF4:AF24,">5,5",AE4:AE24),SUMIF(AF4:AF24,">6,5",AE4:AE24)) -> 0
D29: Comme au repos | H29: 0 | J29: REG | K29: Est-ce que j'ai l'impression d'avoir récupéré en me levant?
D30: très facile | H30: 1
D31: facile | H31: 2 | J31: 1 | K31: … pas du tout récupéré | AI31: Entrainements | AM31: Rapport de santé
H32: 3 | J32: 2 | K32: … un peu récupéré | AI32: Jours d'entrainement | AK32: =IF(SUM(AH4:AH24)=0,"",SUM(AH4:AH24)) -> 
D33: Assez dur | H33: 4 | J33: 3 | K33: … récupéré | V33: =B4 -> Lu | W33: =AK4 -> 0 | AI33: Entrainements | AK33: =IF(AK32="","",SUM(M27:AG27)) -> 
D34: dur | H34: 5 | J34: 4 | K34: … en forme | V34: =B7 -> Ma | W34: =AK7 -> 0 | AI34: Heures d'entrainement | AK34: =IF(AK32="","",SUM(M25,P25,S25,Y25,AB25,V25,AE25)/60) ->  | AM34: =IF($AK$32="","",AK32-AM36-AM44-AM52) ->  | AN34: Aucune limitation | AR34: 0
H35: 6 | J35: 5 | K35: … très en forme | V35: =B10 -> Me | W35: =AK10 -> 0 | AI35: Charge de l'entrainement | AK35: =IF(AK32="","",SUM(AK25)) -> 
D36: très dur | H36: 7 | V36: =B13 -> Je | W36: =AK13 -> 0 | AI36: Monotonie | AK36: =IF(AK27=0,0,(AVERAGE(AK4:AK24))/AK27) -> 0 | AM36: =SUM(AM37:AM42) -> 0 | AN36: Limitation pour cause de douleurs
H37: 8 | J37: Nombre de matchs | V37: =B16 -> Ve | W37: =AK16 -> 0 | AI37: Efforts à l'entrainement | AK37: =IF(AK32="","",AK35*AK36) ->  | AM37: =COUNTIF($H$4:$H$24,$AR37) -> 0 | AN37: Doigt | AR37: 1
D38: extrèmement dur | H38: 9 | V38: =B19 -> Sa | W38: =AK19 -> 0 | AM38: 0 | AN38: Épaule | AR38: 2
D39: Comme mon entrainement le plus dur | H39: 10 | J39: 1 | K39: … 3 sets et plus | V39: =B22 -> Di | W39: =AK22 -> 0 | AI39: Compétition | AM39: 0 | AN39: Dos | AR39: 3
J40: 0.5 | K40: … moins de 3 sets | AI40: Matchs de volleyball | AK40: =IF(AK32="","",SUM(AM4:AM24)) ->  | AM40: 0 | AN40: Genou | AR40: 4
AI41: Sets de volleyball | AK41: =IF(AK32="","",SUM(AN4:AN24)) ->  | AM41: 0 | AN41: Cheville | AR41: 5
J42: Sets joués | AI42: Matchs de beach volley | AK42: =IF(AK35="","",SUM(AO4:AO24)) ->  | AM42: 0 | AN42: Autre | AR42: 6
J43: 1 | K43: … depuis le début et durant tout le set | AI43: Sets de beach volley | AK43: =IF(AK35="","",SUM(AP4:AP24)) -> 
J44: 0.5 | K44: … entré/sorti en cours, beaucoup joué | AM44: =SUM(AM45:AM50) -> 0 | AN44: Absence pour cause de blessure
J45: 0.1 | K45: … entré/sorti en cours, peu joué | AI45: Satisfaction | AM45: =COUNTIF($H$4:$H$24,$AR45) -> 0 | AN45: Doigt | AR45: 11
AI46: Satisfaction de l'entrainement/match J | AK46: =IF(AK32="","",SUM(AQ4:AQ24)/AK32) ->  | AM46: 0 | AN46: Épaule | AR46: 12
J47: J | K47: Es-tu content de la qualité de ton | AM47: 0 | AN47: Dos | AR47: 13
K48: entrainement/compétition? | AI48: Santé | AM48: 0 | AN48: Genou | AR48: 14
J49: 1 | K49: … pas content | AI49: Limitation pour cause de douleurs | AK49: =AM36 -> 0 | AM49: 0 | AN49: Cheville | AR49: 15
J50: 2 | K50: … plutôt pas content | AI50: Absence pour cause de blessure | AK50: =AM44 -> 0 | AM50: 0 | AN50: Autre | AR50: 16
J51: 3 | K51: … moyen | AI51: Absence pour cause de maladie | AK51: =AM52 -> 0
J52: 4 | K52: … content | AM52: =SUM(AM53:AM59) -> 0 | AN52: Absence pour cause de maladie
J53: 5 | K53: … très content! | AM53: =COUNTIF($H$4:$H$24,$AR53) -> 0 | AN53: Maladie | AR53: 21
Y134: =Z134-1 -> 31 | Z134: 32 | AA134: 33 | AB134: 34 | AC134: 35 | AD134: 36 | AE134: 37 | AF134: =D1 -> 38
AG155: =AF134+1 -> 39

Sheet 39
C1: Woche | D1: =INT(MOD(INT((F1-2)/7)+0.6,52+5/28))+1 -> 39 | E1: =D1+1000 -> 1039 | F1: ='38'!F1+7 -> 2018-09-24 | H1: - | J1: =F1+6 -> 2018-09-30 | AG1: ='Aperçu de la charge'!D2 -> Prénom Nom | AI1: ='Aperçu de la charge'!N2 -> 2018/2019
B2: Jour | D2: Poids | E2: REG | F2: qualité sommeil | G2: durée sommeil | H2: Santé | J2: Description de l'entrainement | M2: Club - VB | P2: TS/ Nati - VB | S2: Club - BVB | V2: TS/ Nati - BVB | Y2: Force - fitness | AB2: Compet. - VB | AE2: Compet. - BVB | AI2: Réflexion | AK2: Charge/ jour | AM2: matchs VB | AN2: Sets VB | AO2: Matchs BVB | AP2: Sets BVB | AQ2: J | AR2: Autre (Rég, mentale) | AS2: Mental- oder Sonstiges Training
D3: [kg] | E3: [1 - 5] | F3: [1-5] | G3: [Std] | H3: Nr. | M3: Durée | N3: RPE | O3: Charge | P3: Durée | Q3: RPE | R3: Charge | S3: Durée | T3: RPE | U3: Charge | V3: Durée | W3: RPE | X3: Charge | Y3: Durée | Z3: RPE | AA3: Charge | AB3: Durée | AC3: RPE | AD3: Charge | AE3: Durée | AF3: RPE | AG3: Charge | AQ3: [1-5]
B4: Lu | D4: 0 | E4: 0 | F4: 0 | G4: 0 | H4: 0 | O4: =M4*N4 -> 0 | R4: =P4*Q4 -> 0 | U4: =S4*T4 -> 0 | X4: =V4*W4 -> 0 | AA4: =Y4*Z4 -> 0 | AD4: =AB4*AC4 -> 0 | AG4: =AE4*AF4 -> 0 | AH4: =IF(SUM(M4:AG6)>0,1,0) -> 00:00:00 | AK4: =SUM(O4:O6,R4:R6,U4:U6,X4:X6,AA4:AA6,AD4:AD6,AG4:AG6) -> 0
O5: =M5*N5 -> 0 | R5: =P5*Q5 -> 0 | U5: =S5*T5 -> 0 | X5: =V5*W5 -> 0 | AA5: =Y5*Z5 -> 0 | AD5: =AB5*AC5 -> 0 | AG5: =AE5*AF5 -> 0
O6: 0 | R6: 0 | U6: 0 | X6: 0 | AA6: 0 | AD6: 0 | AG6: 0
B7: Ma | D7: 0 | E7: 0 | F7: 0 | G7: 0 | H7: 0 | O7: 0 | R7: =P7*Q7 -> 0 | U7: 0 | X7: 0 | AA7: 0 | AD7: 0 | AG7: 0 | AH7: =IF(SUM(M7:AG9)>0,1,0) -> 00:00:00 | AK7: =SUM(O7:O9,R7:R9,U7:U9,X7:X9,AA7:AA9,AD7:AD9,AG7:AG9) -> 0
O8: 0 | R8: 0 | U8: 0 | X8: 0 | AA8: 0 | AD8: 0 | AG8: 0
O9: 0 | R9: 0 | U9: 0 | X9: 0 | AA9: 0 | AD9: 0 | AG9: 0
B10: Me | D10: 0 | E10: 0 | F10: 0 | G10: 0 | H10: 0 | O10: 0 | R10: =P10*Q10 -> 0 | U10: 0 | X10: 0 | AA10: 0 | AD10: 0 | AG10: 0 | AH10: =IF(SUM(M10:AG12)>0,1,0) -> 00:00:00 | AK10: =SUM(O10:O12,R10:R12,U10:U12,X10:X12,AA10:AA12,AD10:AD12,AG10:AG12) -> 0
O11: 0 | R11: 0 | U11: 0 | X11: 0 | AA11: 0 | AD11: 0 | AG11: 0
O12: 0 | R12: 0 | U12: 0 | X12: 0 | AA12: 0 | AD12: 0 | AG12: 0
B13: Je | D13: 0 | E13: 0 | F13: 0 | G13: 0 | H13: 0 | O13: 0 | R13: =P13*Q13 -> 0 | U13: 0 | X13: 0 | AA13: 0 | AD13: 0 | AG13: 0 | AH13: =IF(SUM(M13:AG15)>0,1,0) -> 00:00:00 | AK13: =SUM(O13:O15,R13:R15,U13:U15,X13:X15,AA13:AA15,AD13:AD15,AG13:AG15) -> 0
O14: 0 | R14: 0 | U14: 0 | X14: 0 | AA14: 0 | AD14: 0 | AG14: 0
O15: 0 | R15: 0 | U15: 0 | X15: 0 | AA15: 0 | AD15: 0 | AG15: 0
B16: Ve | D16: 0 | E16: 0 | F16: 0 | G16: 0 | H16: 0 | O16: 0 | R16: =P16*Q16 -> 0 | U16: 0 | X16: 0 | AA16: 0 | AD16: 0 | AG16: 0 | AH16: =IF(SUM(M16:AG18)>0,1,0) -> 00:00:00 | AK16: =SUM(O16:O18,R16:R18,U16:U18,X16:X18,AA16:AA18,AD16:AD18,AG16:AG18) -> 0
O17: 0 | R17: 0 | U17: 0 | X17: 0 | AA17: 0 | AD17: 0 | AG17: 0
O18: 0 | R18: 0 | U18: 0 | X18: 0 | AA18: 0 | AD18: 0 | AG18: 0
B19: Sa | D19: 0 | E19: 0 | F19: 0 | G19: 0 | H19: 0 | O19: =M19*N19 -> 0 | R19: =P19*Q19 -> 0 | U19: =S19*T19 -> 0 | X19: =V19*W19 -> 0 | AA19: =Y19*Z19 -> 0 | AD19: =AB19*AC19 -> 0 | AG19: =AE19*AF19 -> 0 | AH19: =IF(SUM(M19:AG21)>0,1,0) -> 00:00:00 | AK19: =SUM(O19:O21,R19:R21,U19:U21,X19:X21,AA19:AA21,AD19:AD21,AG19:AG21) -> 0
O20: =M20*N20 -> 0 | R20: 0 | U20: =S20*T20 -> 0 | X20: =V20*W20 -> 0 | AA20: =Y20*Z20 -> 0 | AD20: =AB20*AC20 -> 0 | AG20: =AE20*AF20 -> 0
O21: 0 | R21: 0 | U21: 0 | X21: 0 | AA21: 0 | AD21: 0 | AG21: 0
B22: Di | D22: 0 | E22: 0 | F22: 0 | G22: 0 | H22: 0 | O22: 0 | R22: =P22*Q22 -> 0 | U22: 0 | X22: 0 | AA22: 0 | AD22: 0 | AG22: 0 | AH22: =IF(SUM(M22:AG24)>0,1,0) -> 00:00:00 | AK22: =SUM(O22:O24,R22:R24,U22:U24,X22:X24,AA22:AA24,AD22:AD24,AG22:AG24) -> 0
O23: 0 | R23: 0 | U23: 0 | X23: 0 | AA23: 0 | AD23: 0 | AG23: 0
O24: 0 | R24: 0 | U24: 0 | X24: 0 | AA24: 0 | AD24: 0 | AG24: 0
K25: Total | M25: =SUM(M4:M24) -> 0 | O25: =SUM(O4:O24) -> 0 | P25: =SUM(P4:P24) -> 0 | R25: =SUM(R4:R24) -> 0 | S25: =SUM(S4:S24) -> 0 | U25: =SUM(U4:U24) -> 0 | V25: =SUM(V4:V24) -> 0 | X25: =SUM(X4:X24) -> 0 | Y25: =SUM(Y4:Y24) -> 0 | AA25: =SUM(AA4:AA24) -> 0 | AB25: =SUM(AB4:AB24) -> 0 | AD25: =SUM(AD4:AD24) -> 0 | AE25: =SUM(AE4:AE24) -> 0 | AG25: =SUM(AG4:AG24) -> 0 | AI25: Charge totale | AK25: =SUM(AK4:AK24) -> 0
B26: avg. | D26: =IF(COUNTA(D4:D24)=0,"",AVERAGE(D4:D24)) -> 0 | E26: =IF(COUNTA(E4:E24)=0,"",AVERAGE(E4:E24)) -> 0 | F26: =IF(COUNTA(F4:F24)=0,"",AVERAGE(F4:F24)) -> 0 | G26: =IF(COUNTA(G4:G24)=0,"",AVERAGE(G4:G24)) -> 0 | H26: =IF(COUNTA(H4:H24)=0,"",COUNTIF(H4:H24,"x")) -> 0 | K26: Zone | M26: 1 | N26: 2 | O26: 3 | P26: 1 | Q26: 2 | R26: 3 | S26: 1 | T26: 2 | U26: 3 | V26: 1 | W26: 2 | X26: 3 | Y26: 1 | Z26: 2 | AA26: 3 | AB26: 1 | AC26: 2 | AD26: 3 | AE26: 1 | AF26: 2 | AG26: 3 | AI26: Moyenne | AK26: =AVERAGE(AK4:AK24) -> 0
F27: =IF(COUNTA(F4:F24)=0,"",VAR(F4:F24)) -> 0 | G27: =IF(COUNTA(G4:G24)=0,"",STDEV(G4:G24)) -> 0 | H27: Divergence - durée du sommeil | K27: Unité par zone (RPE) | M27: =IF('Répartition des intensités'!$AR$25="x",COUNTIF(N4:N24,"<3,5"),COUNTIF(N4:N24,"<4,5")) -> 0 | N27: =COUNT(N4:N24)-(M27+O27) -> 0 | O27: =IF('Répartition des intensités'!$AR$25="x",COUNTIF(N4:N24,">5,5"),COUNTIF(N4:N24,">6,5")) -> 0 | P27: =IF('Répartition des intensités'!$AR$25="x",COUNTIF(Q4:Q24,"<3,5"),COUNTIF(Q4:Q24,"<4,5")) -> 0 | Q27: =COUNT(Q4:Q24)-(P27+R27) -> 0 | R27: =IF('Répartition des intensités'!$AR$25="x",COUNTIF(Q4:Q24,">5,5"),COUNTIF(Q4:Q24,">6,5")) -> 0 | S27: =IF('Répartition des intensités'!$AR$25="x",COUNTIF(T4:T24,"<3,5"),COUNTIF(T4:T24,"<4,5")) -> 0 | T27: =COUNT(T4:T24)-(S27+U27) -> 0 | U27: =IF('Répartition des intensités'!$AR$25="x",COUNTIF(T4:T24,">5,5"),COUNTIF(T4:T24,">6,5")) -> 0 | V27: =IF('Répartition des intensités'!$AR$25="x",COUNTIF(W4:W24,"<3,5"),COUNTIF(W4:W24,"<4,5")) -> 0 | W27: =COUNT(W4:W24)-(V27+X27) -> 0 | X27: =IF('Répartition des intensités'!$AR$25="x",COUNTIF(W4:W24,">5,5"),COUNTIF(W4:W24,">6,5")) -> 0 | Y27: =IF('Répartition des intensités'!$AR$25="x",COUNTIF(Z4:Z24,"<3,5"),COUNTIF(Z4:Z24,"<4,5")) -> 0 | Z27: =COUNT(Z4:Z24)-(Y27+AA27) -> 0 | AA27: =IF('Répartition des intensités'!$AR$25="x",COUNTIF(Z4:Z24,">5,5"),COUNTIF(Z4:Z24,">6,5")) -> 0 | AB27: =IF('Répartition des intensités'!$AR$25="x",COUNTIF(AC4:AC24,"<3,5"),COUNTIF(AC4:AC24,"<4,5")) -> 0 | AC27: =COUNT(AC4:AC24)-(AB27+AD27) -> 0 | AD27: =IF('Répartition des intensités'!$AR$25="x",COUNTIF(AC4:AC24,">5,5"),COUNTIF(AC4:AC24,">6,5")) -> 0 | AE27: =IF('Répartition des intensités'!$AR$25="x",COUNTIF(AF4:AF24,"<3,5"),COUNTIF(AF4:AF24,"<4,5")) -> 0 | AF27: =COUNT(AF4:AF24)-(AE27+AG27) -> 0 | AG27: =IF('Répartition des intensités'!$AR$25="x",COUNTIF(AF4:AF24,">5,5"),COUNTIF(AF4:AF24,">6,5")) -> 0 | AI27: Divergence | AK27: =STDEVP(AK4:AK24) -> 0
D28: échelle de Foster | H28: RPE | K28: Temps par zone (RPE) | M28: =IF('Répartition des intensités'!$AR$25="x",SUMIF(N4:N24,"<3,5",M4:M24),SUMIF(N4:N24,"<4,5",M4:M24)) -> 0 | N28: =IF(N27=0,0,SUM((M25)-(M28+O28))) -> 0 | O28: =IF('Répartition des intensités'!$AR$25="x",SUMIF(N4:N24,">5,5",M4:M24),SUMIF(N4:N24,">6,5",M4:M24)) -> 0 | P28: =IF('Répartition des intensités'!$AR$25="x",SUMIF(Q4:Q24,"<3,5",P4:P24),SUMIF(Q4:Q24,"<4,5",P4:P24)) -> 0 | Q28: =IF(Q27=0,0,SUM((P25)-(P28+R28))) -> 0 | R28: =IF('Répartition des intensités'!$AR$25="x",SUMIF(Q4:Q24,">5,5",P4:P24),SUMIF(Q4:Q24,">6,5",P4:P24)) -> 0 | S28: =IF('Répartition des intensités'!$AR$25="x",SUMIF(T4:T24,"<3,5",S4:S24),SUMIF(T4:T24,"<4,5",S4:S24)) -> 0 | T28: =IF(T27=0,0,SUM((S25)-(S28+U28))) -> 0 | U28: =IF('Répartition des intensités'!$AR$25="x",SUMIF(T4:T24,">5,5",S4:S24),SUMIF(T4:T24,">6,5",S4:S24)) -> 0 | V28: =IF('Répartition des intensités'!$AR$25="x",SUMIF(W4:W24,"<3,5",V4:V24),SUMIF(W4:W24,"<4,5",V4:V24)) -> 0 | W28: =IF(W27=0,0,SUM((V25)-(V28+X28))) -> 0 | X28: =IF('Répartition des intensités'!$AR$25="x",SUMIF(W4:W24,">5,5",V4:V24),SUMIF(W4:W24,">6,5",V4:V24)) -> 0 | Y28: =IF('Répartition des intensités'!$AR$25="x",SUMIF(Z4:Z24,"<3,5",Y4:Y24),SUMIF(Z4:Z24,"<4,5",Y4:Y24)) -> 0 | Z28: =IF(Z27=0,0,SUM((Y25)-(Y28+AA28))) -> 0 | AA28: =IF('Répartition des intensités'!$AR$25="x",SUMIF(Z4:Z24,">5,5",Y4:Y24),SUMIF(Z4:Z24,">6,5",Y4:Y24)) -> 0 | AB28: =IF('Répartition des intensités'!$AR$25="x",SUMIF(AC4:AC24,"<3,5",AB4:AB24),SUMIF(AC4:AC24,"<4,5",AB4:AB24)) -> 0 | AC28: =IF(AC27=0,0,SUM((AB25)-(AB28+AD28))) -> 0 | AD28: =IF('Répartition des intensités'!$AR$25="x",SUMIF(AC4:AC24,">5,5",AB4:AB24),SUMIF(AC4:AC24,">6,5",AB4:AB24)) -> 0 | AE28: =IF('Répartition des intensités'!$AR$25="x",SUMIF(AF4:AF24,"<3,5",AE4:AE24),SUMIF(AF4:AF24,"<4,5",AE4:AE24)) -> 0 | AF28: =IF(AF27=0,0,SUM((AE25)-(AE28+AG28))) -> 0 | AG28: =IF('Répartition des intensités'!$AR$25="x",SUMIF(AF4:AF24,">5,5",AE4:AE24),SUMIF(AF4:AF24,">6,5",AE4:AE24)) -> 0
D29: Comme au repos | H29: 0 | J29: REG | K29: Est-ce que j'ai l'impression d'avoir récupéré en me levant?
D30: très facile | H30: 1
D31: facile | H31: 2 | J31: 1 | K31: … pas du tout récupéré | AI31: Entrainements | AM31: Rapport de santé
H32: 3 | J32: 2 | K32: … un peu récupéré | AI32: Jours d'entrainement | AK32: =IF(SUM(AH4:AH24)=0,"",SUM(AH4:AH24)) -> 
D33: Assez dur | H33: 4 | J33: 3 | K33: … récupéré | V33: =B4 -> Lu | W33: =AK4 -> 0 | AI33: Entrainements | AK33: =IF(AK32="","",SUM(M27:AG27)) -> 
D34: dur | H34: 5 | J34: 4 | K34: … en forme | V34: =B7 -> Ma | W34: =AK7 -> 0 | AI34: Heures d'entrainement | AK34: =IF(AK32="","",SUM(M25,P25,S25,Y25,AB25,V25,AE25)/60) ->  | AM34: =IF($AK$32="","",AK32-AM36-AM44-AM52) ->  | AN34: Aucune limitation | AR34: 0
H35: 6 | J35: 5 | K35: … très en forme | V35: =B10 -> Me | W35: =AK10 -> 0 | AI35: Charge de l'entrainement | AK35: =IF(AK32="","",SUM(AK25)) -> 
D36: très dur | H36: 7 | V36: =B13 -> Je | W36: =AK13 -> 0 | AI36: Monotonie | AK36: =IF(AK27=0,0,(AVERAGE(AK4:AK24))/AK27) -> 0 | AM36: =SUM(AM37:AM42) -> 0 | AN36: Limitation pour cause de douleurs
H37: 8 | J37: Nombre de matchs | V37: =B16 -> Ve | W37: =AK16 -> 0 | AI37: Efforts à l'entrainement | AK37: =IF(AK32="","",AK35*AK36) ->  | AM37: =COUNTIF($H$4:$H$24,$AR37) -> 0 | AN37: Doigt | AR37: 1
D38: extrèmement dur | H38: 9 | V38: =B19 -> Sa | W38: =AK19 -> 0 | AM38: 0 | AN38: Épaule | AR38: 2
D39: Comme mon entrainement le plus dur | H39: 10 | J39: 1 | K39: … 3 sets et plus | V39: =B22 -> Di | W39: =AK22 -> 0 | AI39: Compétition | AM39: 0 | AN39: Dos | AR39: 3
J40: 0.5 | K40: … moins de 3 sets | AI40: Matchs de volleyball | AK40: =IF(AK32="","",SUM(AM4:AM24)) ->  | AM40: 0 | AN40: Genou | AR40: 4
AI41: Sets de volleyball | AK41: =IF(AK32="","",SUM(AN4:AN24)) ->  | AM41: 0 | AN41: Cheville | AR41: 5
J42: Sets joués | AI42: Matchs de beach volley | AK42: =IF(AK35="","",SUM(AO4:AO24)) ->  | AM42: 0 | AN42: Autre | AR42: 6
J43: 1 | K43: … depuis le début et durant tout le set | AI43: Sets de beach volley | AK43: =IF(AK35="","",SUM(AP4:AP24)) -> 
J44: 0.5 | K44: … entré/sorti en cours, beaucoup joué | AM44: =SUM(AM45:AM50) -> 0 | AN44: Absence pour cause de blessure
J45: 0.1 | K45: … entré/sorti en cours, peu joué | AI45: Satisfaction | AM45: =COUNTIF($H$4:$H$24,$AR45) -> 0 | AN45: Doigt | AR45: 11
AI46: Satisfaction de l'entrainement/match J | AK46: =IF(AK32="","",SUM(AQ4:AQ24)/AK32) ->  | AM46: 0 | AN46: Épaule | AR46: 12
J47: J | K47: Es-tu content de la qualité de ton | AM47: 0 | AN47: Dos | AR47: 13
K48: entrainement/compétition? | AI48: Santé | AM48: 0 | AN48: Genou | AR48: 14
J49: 1 | K49: … pas content | AI49: Limitation pour cause de douleurs | AK49: =AM36 -> 0 | AM49: 0 | AN49: Cheville | AR49: 15
J50: 2 | K50: … plutôt pas content | AI50: Absence pour cause de blessure | AK50: =AM44 -> 0 | AM50: 0 | AN50: Autre | AR50: 16
J51: 3 | K51: … moyen | AI51: Absence pour cause de maladie | AK51: =AM52 -> 0
J52: 4 | K52: … content | AM52: =SUM(AM53:AM59) -> 0 | AN52: Absence pour cause de maladie
J53: 5 | K53: … très content! | AM53: =COUNTIF($H$4:$H$24,$AR53) -> 0 | AN53: Maladie | AR53: 21
Y134: =Z134-1 -> 32 | Z134: 33 | AA134: 34 | AB134: 35 | AC134: 36 | AD134: 37 | AE134: =AF134-1 -> 38 | AF134: =D1 -> 39
AG155: =AF134+1 -> 40

Sheet 40
C1: Woche | D1: =INT(MOD(INT((F1-2)/7)+0.6,52+5/28))+1 -> 40 | E1: =D1+1000 -> 1040 | F1: ='39'!F1+7 -> 2018-10-01 | H1: - | J1: =F1+6 -> 2018-10-07 | AG1: ='Aperçu de la charge'!D2 -> Prénom Nom | AI1: ='Aperçu de la charge'!N2 -> 2018/2019
B2: Jour | D2: Poids | E2: REG | F2: qualité sommeil | G2: durée sommeil | H2: Santé | J2: Description de l'entrainement | M2: Club - VB | P2: TS/ Nati - VB | S2: Club - BVB | V2: TS/ Nati - BVB | Y2: Force - fitness | AB2: Compet. - VB | AE2: Compet. - BVB | AI2: Réflexion | AK2: Charge/ jour | AM2: matchs VB | AN2: Sets VB | AO2: Matchs BVB | AP2: Sets BVB | AQ2: J | AR2: Autre (Rég, mentale) | AS2: Mental- oder Sonstiges Training
D3: [kg] | E3: [1 - 5] | F3: [1-5] | G3: [Std] | H3: Nr. | M3: Durée | N3: RPE | O3: Charge | P3: Durée | Q3: RPE | R3: Charge | S3: Durée | T3: RPE | U3: Charge | V3: Durée | W3: RPE | X3: Charge | Y3: Durée | Z3: RPE | AA3: Charge | AB3: Durée | AC3: RPE | AD3: Charge | AE3: Durée | AF3: RPE | AG3: Charge | AQ3: [1-5]
B4: Lu | D4: 0 | E4: 0 | F4: 0 | G4: 0 | H4: 0 | O4: =M4*N4 -> 0 | R4: =P4*Q4 -> 0 | U4: =S4*T4 -> 0 | X4: =V4*W4 -> 0 | AA4: =Y4*Z4 -> 0 | AD4: =AB4*AC4 -> 0 | AG4: =AE4*AF4 -> 0 | AH4: =IF(SUM(M4:AG6)>0,1,0) -> 00:00:00 | AK4: =SUM(O4:O6,R4:R6,U4:U6,X4:X6,AA4:AA6,AD4:AD6,AG4:AG6) -> 0
O5: =M5*N5 -> 0 | R5: =P5*Q5 -> 0 | U5: =S5*T5 -> 0 | X5: =V5*W5 -> 0 | AA5: =Y5*Z5 -> 0 | AD5: =AB5*AC5 -> 0 | AG5: =AE5*AF5 -> 0
O6: 0 | R6: 0 | U6: 0 | X6: 0 | AA6: 0 | AD6: 0 | AG6: 0
B7: Ma | D7: 0 | E7: 0 | F7: 0 | G7: 0 | H7: 0 | O7: 0 | R7: =P7*Q7 -> 0 | U7: 0 | X7: 0 | AA7: 0 | AD7: 0 | AG7: 0 | AH7: =IF(SUM(M7:AG9)>0,1,0) -> 00:00:00 | AK7: =SUM(O7:O9,R7:R9,U7:U9,X7:X9,AA7:AA9,AD7:AD9,AG7:AG9) -> 0
O8: 0 | R8: 0 | U8: 0 | X8: 0 | AA8: 0 | AD8: 0 | AG8: 0
O9: 0 | R9: 0 | U9: 0 | X9: 0 | AA9: 0 | AD9: 0 | AG9: 0
B10: Me | D10: 0 | E10: 0 | F10: 0 | G10: 0 | H10: 0 | O10: 0 | R10: =P10*Q10 -> 0 | U10: 0 | X10: 0 | AA10: 0 | AD10: 0 | AG10: 0 | AH10: =IF(SUM(M10:AG12)>0,1,0) -> 00:00:00 | AK10: =SUM(O10:O12,R10:R12,U10:U12,X10:X12,AA10:AA12,AD10:AD12,AG10:AG12) -> 0
O11: 0 | R11: 0 | U11: 0 | X11: 0 | AA11: 0 | AD11: 0 | AG11: 0
O12: 0 | R12: 0 | U12: 0 | X12: 0 | AA12: 0 | AD12: 0 | AG12: 0
B13: Je | D13: 0 | E13: 0 | F13: 0 | G13: 0 | H13: 0 | O13: 0 | R13: =P13*Q13 -> 0 | U13: 0 | X13: 0 | AA13: 0 | AD13: 0 | AG13: 0 | AH13: =IF(SUM(M13:AG15)>0,1,0) -> 00:00:00 | AK13: =SUM(O13:O15,R13:R15,U13:U15,X13:X15,AA13:AA15,AD13:AD15,AG13:AG15) -> 0
O14: 0 | R14: 0 | U14: 0 | X14: 0 | AA14: 0 | AD14: 0 | AG14: 0
O15: 0 | R15: 0 | U15: 0 | X15: 0 | AA15: 0 | AD15: 0 | AG15: 0
B16: Ve | D16: 0 | E16: 0 | F16: 0 | G16: 0 | H16: 0 | O16: 0 | R16: =P16*Q16 -> 0 | U16: 0 | X16: 0 | AA16: 0 | AD16: 0 | AG16: 0 | AH16: =IF(SUM(M16:AG18)>0,1,0) -> 00:00:00 | AK16: =SUM(O16:O18,R16:R18,U16:U18,X16:X18,AA16:AA18,AD16:AD18,AG16:AG18) -> 0
O17: 0 | R17: 0 | U17: 0 | X17: 0 | AA17: 0 | AD17: 0 | AG17: 0
O18: 0 | R18: 0 | U18: 0 | X18: 0 | AA18: 0 | AD18: 0 | AG18: 0
B19: Sa | D19: 0 | E19: 0 | F19: 0 | G19: 0 | H19: 0 | O19: =M19*N19 -> 0 | R19: =P19*Q19 -> 0 | U19: =S19*T19 -> 0 | X19: =V19*W19 -> 0 | AA19: =Y19*Z19 -> 0 | AD19: =AB19*AC19 -> 0 | AG19: =AE19*AF19 -> 0 | AH19: =IF(SUM(M19:AG21)>0,1,0) -> 00:00:00 | AK19: =SUM(O19:O21,R19:R21,U19:U21,X19:X21,AA19:AA21,AD19:AD21,AG19:AG21) -> 0
O20: =M20*N20 -> 0 | R20: 0 | U20: =S20*T20 -> 0 | X20: =V20*W20 -> 0 | AA20: =Y20*Z20 -> 0 | AD20: =AB20*AC20 -> 0 | AG20: =AE20*AF20 -> 0
O21: 0 | R21: 0 | U21: 0 | X21: 0 | AA21: 0 | AD21: 0 | AG21: 0
B22: Di | D22: 0 | E22: 0 | F22: 0 | G22: 0 | H22: 0 | O22: 0 | R22: =P22*Q22 -> 0 | U22: 0 | X22: 0 | AA22: 0 | AD22: 0 | AG22: 0 | AH22: =IF(SUM(M22:AG24)>0,1,0) -> 00:00:00 | AK22: =SUM(O22:O24,R22:R24,U22:U24,X22:X24,AA22:AA24,AD22:AD24,AG22:AG24) -> 0
O23: 0 | R23: 0 | U23: 0 | X23: 0 | AA23: 0 | AD23: 0 | AG23: 0
O24: 0 | R24: 0 | U24: 0 | X24: 0 | AA24: 0 | AD24: 0 | AG24: 0
K25: Total | M25: =SUM(M4:M24) -> 0 | O25: =SUM(O4:O24) -> 0 | P25: =SUM(P4:P24) -> 0 | R25: =SUM(R4:R24) -> 0 | S25: =SUM(S4:S24) -> 0 | U25: =SUM(U4:U24) -> 0 | V25: =SUM(V4:V24) -> 0 | X25: =SUM(X4:X24) -> 0 | Y25: =SUM(Y4:Y24) -> 0 | AA25: =SUM(AA4:AA24) -> 0 | AB25: =SUM(AB4:AB24) -> 0 | AD25: =SUM(AD4:AD24) -> 0 | AE25: =SUM(AE4:AE24) -> 0 | AG25: =SUM(AG4:AG24) -> 0 | AI25: Charge totale | AK25: =SUM(AK4:AK24) -> 0
B26: avg. | D26: =IF(COUNTA(D4:D24)=0,"",AVERAGE(D4:D24)) -> 0 | E26: =IF(COUNTA(E4:E24)=0,"",AVERAGE(E4:E24)) -> 0 | F26: =IF(COUNTA(F4:F24)=0,"",AVERAGE(F4:F24)) -> 0 | G26: =IF(COUNTA(G4:G24)=0,"",AVERAGE(G4:G24)) -> 0 | H26: =IF(COUNTA(H4:H24)=0,"",COUNTIF(H4:H24,"x")) -> 0 | K26: Zone | M26: 1 | N26: 2 | O26: 3 | P26: 1 | Q26: 2 | R26: 3 | S26: 1 | T26: 2 | U26: 3 | V26: 1 | W26: 2 | X26: 3 | Y26: 1 | Z26: 2 | AA26: 3 | AB26: 1 | AC26: 2 | AD26: 3 | AE26: 1 | AF26: 2 | AG26: 3 | AI26: Moyenne | AK26: =AVERAGE(AK4:AK24) -> 0
F27: =IF(COUNTA(F4:F24)=0,"",VAR(F4:F24)) -> 0 | G27: =IF(COUNTA(G4:G24)=0,"",STDEV(G4:G24)) -> 0 | H27: Divergence - durée du sommeil | K27: Unité par zone (RPE) | M27: =IF('Répartition des intensités'!$AR$25="x",COUNTIF(N4:N24,"<3,5"),COUNTIF(N4:N24,"<4,5")) -> 0 | N27: =COUNT(N4:N24)-(M27+O27) -> 0 | O27: =IF('Répartition des intensités'!$AR$25="x",COUNTIF(N4:N24,">5,5"),COUNTIF(N4:N24,">6,5")) -> 0 | P27: =IF('Répartition des intensités'!$AR$25="x",COUNTIF(Q4:Q24,"<3,5"),COUNTIF(Q4:Q24,"<4,5")) -> 0 | Q27: =COUNT(Q4:Q24)-(P27+R27) -> 0 | R27: =IF('Répartition des intensités'!$AR$25="x",COUNTIF(Q4:Q24,">5,5"),COUNTIF(Q4:Q24,">6,5")) -> 0 | S27: =IF('Répartition des intensités'!$AR$25="x",COUNTIF(T4:T24,"<3,5"),COUNTIF(T4:T24,"<4,5")) -> 0 | T27: =COUNT(T4:T24)-(S27+U27) -> 0 | U27: =IF('Répartition des intensités'!$AR$25="x",COUNTIF(T4:T24,">5,5"),COUNTIF(T4:T24,">6,5")) -> 0 | V27: =IF('Répartition des intensités'!$AR$25="x",COUNTIF(W4:W24,"<3,5"),COUNTIF(W4:W24,"<4,5")) -> 0 | W27: =COUNT(W4:W24)-(V27+X27) -> 0 | X27: =IF('Répartition des intensités'!$AR$25="x",COUNTIF(W4:W24,">5,5"),COUNTIF(W4:W24,">6,5")) -> 0 | Y27: =IF('Répartition des intensités'!$AR$25="x",COUNTIF(Z4:Z24,"<3,5"),COUNTIF(Z4:Z24,"<4,5")) -> 0 | Z27: =COUNT(Z4:Z24)-(Y27+AA27) -> 0 | AA27: =IF('Répartition des intensités'!$AR$25="x",COUNTIF(Z4:Z24,">5,5"),COUNTIF(Z4:Z24,">6,5")) -> 0 | AB27: =IF('Répartition des intensités'!$AR$25="x",COUNTIF(AC4:AC24,"<3,5"),COUNTIF(AC4:AC24,"<4,5")) -> 0 | AC27: =COUNT(AC4:AC24)-(AB27+AD27) -> 0 | AD27: =IF('Répartition des intensités'!$AR$25="x",COUNTIF(AC4:AC24,">5,5"),COUNTIF(AC4:AC24,">6,5")) -> 0 | AE27: =IF('Répartition des intensités'!$AR$25="x",COUNTIF(AF4:AF24,"<3,5"),COUNTIF(AF4:AF24,"<4,5")) -> 0 | AF27: =COUNT(AF4:AF24)-(AE27+AG27) -> 0 | AG27: =IF('Répartition des intensités'!$AR$25="x",COUNTIF(AF4:AF24,">5,5"),COUNTIF(AF4:AF24,">6,5")) -> 0 | AI27: Divergence | AK27: =STDEVP(AK4:AK24) -> 0
D28: échelle de Foster | H28: RPE | K28: Temps par zone (RPE) | M28: =IF('Répartition des intensités'!$AR$25="x",SUMIF(N4:N24,"<3,5",M4:M24),SUMIF(N4:N24,"<4,5",M4:M24)) -> 0 | N28: =IF(N27=0,0,SUM((M25)-(M28+O28))) -> 0 | O28: =IF('Répartition des intensités'!$AR$25="x",SUMIF(N4:N24,">5,5",M4:M24),SUMIF(N4:N24,">6,5",M4:M24)) -> 0 | P28: =IF('Répartition des intensités'!$AR$25="x",SUMIF(Q4:Q24,"<3,5",P4:P24),SUMIF(Q4:Q24,"<4,5",P4:P24)) -> 0 | Q28: =IF(Q27=0,0,SUM((P25)-(P28+R28))) -> 0 | R28: =IF('Répartition des intensités'!$AR$25="x",SUMIF(Q4:Q24,">5,5",P4:P24),SUMIF(Q4:Q24,">6,5",P4:P24)) -> 0 | S28: =IF('Répartition des intensités'!$AR$25="x",SUMIF(T4:T24,"<3,5",S4:S24),SUMIF(T4:T24,"<4,5",S4:S24)) -> 0 | T28: =IF(T27=0,0,SUM((S25)-(S28+U28))) -> 0 | U28: =IF('Répartition des intensités'!$AR$25="x",SUMIF(T4:T24,">5,5",S4:S24),SUMIF(T4:T24,">6,5",S4:S24)) -> 0 | V28: =IF('Répartition des intensités'!$AR$25="x",SUMIF(W4:W24,"<3,5",V4:V24),SUMIF(W4:W24,"<4,5",V4:V24)) -> 0 | W28: =IF(W27=0,0,SUM((V25)-(V28+X28))) -> 0 | X28: =IF('Répartition des intensités'!$AR$25="x",SUMIF(W4:W24,">5,5",V4:V24),SUMIF(W4:W24,">6,5",V4:V24)) -> 0 | Y28: =IF('Répartition des intensités'!$AR$25="x",SUMIF(Z4:Z24,"<3,5",Y4:Y24),SUMIF(Z4:Z24,"<4,5",Y4:Y24)) -> 0 | Z28: =IF(Z27=0,0,SUM((Y25)-(Y28+AA28))) -> 0 | AA28: =IF('Répartition des intensités'!$AR$25="x",SUMIF(Z4:Z24,">5,5",Y4:Y24),SUMIF(Z4:Z24,">6,5",Y4:Y24)) -> 0 | AB28: =IF('Répartition des intensités'!$AR$25="x",SUMIF(AC4:AC24,"<3,5",AB4:AB24),SUMIF(AC4:AC24,"<4,5",AB4:AB24)) -> 0 | AC28: =IF(AC27=0,0,SUM((AB25)-(AB28+AD28))) -> 0 | AD28: =IF('Répartition des intensités'!$AR$25="x",SUMIF(AC4:AC24,">5,5",AB4:AB24),SUMIF(AC4:AC24,">6,5",AB4:AB24)) -> 0 | AE28: =IF('Répartition des intensités'!$AR$25="x",SUMIF(AF4:AF24,"<3,5",AE4:AE24),SUMIF(AF4:AF24,"<4,5",AE4:AE24)) -> 0 | AF28: =IF(AF27=0,0,SUM((AE25)-(AE28+AG28))) -> 0 | AG28: =IF('Répartition des intensités'!$AR$25="x",SUMIF(AF4:AF24,">5,5",AE4:AE24),SUMIF(AF4:AF24,">6,5",AE4:AE24)) -> 0
D29: Comme au repos | H29: 0 | J29: REG | K29: Est-ce que j'ai l'impression d'avoir récupéré en me levant?
D30: très facile | H30: 1
D31: facile | H31: 2 | J31: 1 | K31: … pas du tout récupéré | AI31: Entrainements | AM31: Rapport de santé
H32: 3 | J32: 2 | K32: … un peu récupéré | AI32: Jours d'entrainement | AK32: =IF(SUM(AH4:AH24)=0,"",SUM(AH4:AH24)) -> 
D33: Assez dur | H33: 4 | J33: 3 | K33: … récupéré | V33: =B4 -> Lu | W33: =AK4 -> 0 | AI33: Entrainements | AK33: =IF(AK32="","",SUM(M27:AG27)) -> 
D34: dur | H34: 5 | J34: 4 | K34: … en forme | V34: =B7 -> Ma | W34: =AK7 -> 0 | AI34: Heures d'entrainement | AK34: =IF(AK32="","",SUM(M25,P25,S25,Y25,AB25,V25,AE25)/60) ->  | AM34: =IF($AK$32="","",AK32-AM36-AM44-AM52) ->  | AN34: Aucune limitation | AR34: 0
H35: 6 | J35: 5 | K35: … très en forme | V35: =B10 -> Me | W35: =AK10 -> 0 | AI35: Charge de l'entrainement | AK35: =IF(AK32="","",SUM(AK25)) -> 
D36: très dur | H36: 7 | V36: =B13 -> Je | W36: =AK13 -> 0 | AI36: Monotonie | AK36: =IF(AK27=0,0,(AVERAGE(AK4:AK24))/AK27) -> 0 | AM36: =SUM(AM37:AM42) -> 0 | AN36: Limitation pour cause de douleurs
H37: 8 | J37: Nombre de matchs | V37: =B16 -> Ve | W37: =AK16 -> 0 | AI37: Efforts à l'entrainement | AK37: =IF(AK32="","",AK35*AK36) ->  | AM37: =COUNTIF($H$4:$H$24,$AR37) -> 0 | AN37: Doigt | AR37: 1
D38: extrèmement dur | H38: 9 | V38: =B19 -> Sa | W38: =AK19 -> 0 | AM38: 0 | AN38: Épaule | AR38: 2
D39: Comme mon entrainement le plus dur | H39: 10 | J39: 1 | K39: … 3 sets et plus | V39: =B22 -> Di | W39: =AK22 -> 0 | AI39: Compétition | AM39: 0 | AN39: Dos | AR39: 3
J40: 0.5 | K40: … moins de 3 sets | AI40: Matchs de volleyball | AK40: =IF(AK32="","",SUM(AM4:AM24)) ->  | AM40: 0 | AN40: Genou | AR40: 4
AI41: Sets de volleyball | AK41: =IF(AK32="","",SUM(AN4:AN24)) ->  | AM41: 0 | AN41: Cheville | AR41: 5
J42: Sets joués | AI42: Matchs de beach volley | AK42: =IF(AK35="","",SUM(AO4:AO24)) ->  | AM42: 0 | AN42: Autre | AR42: 6
J43: 1 | K43: … depuis le début et durant tout le set | AI43: Sets de beach volley | AK43: =IF(AK35="","",SUM(AP4:AP24)) -> 
J44: 0.5 | K44: … entré/sorti en cours, beaucoup joué | AM44: =SUM(AM45:AM50) -> 0 | AN44: Absence pour cause de blessure
J45: 0.1 | K45: … entré/sorti en cours, peu joué | AI45: Satisfaction | AM45: =COUNTIF($H$4:$H$24,$AR45) -> 0 | AN45: Doigt | AR45: 11
AI46: Satisfaction de l'entrainement/match J | AK46: =IF(AK32="","",SUM(AQ4:AQ24)/AK32) ->  | AM46: 0 | AN46: Épaule | AR46: 12
J47: J | K47: Es-tu content de la qualité de ton | AM47: 0 | AN47: Dos | AR47: 13
K48: entrainement/compétition? | AI48: Santé | AM48: 0 | AN48: Genou | AR48: 14
J49: 1 | K49: … pas content | AI49: Limitation pour cause de douleurs | AK49: =AM36 -> 0 | AM49: 0 | AN49: Cheville | AR49: 15
J50: 2 | K50: … plutôt pas content | AI50: Absence pour cause de blessure | AK50: =AM44 -> 0 | AM50: 0 | AN50: Autre | AR50: 16
J51: 3 | K51: … moyen | AI51: Absence pour cause de maladie | AK51: =AM52 -> 0
J52: 4 | K52: … content | AM52: =SUM(AM53:AM59) -> 0 | AN52: Absence pour cause de maladie
J53: 5 | K53: … très content! | AM53: =COUNTIF($H$4:$H$24,$AR53) -> 0 | AN53: Maladie | AR53: 21
Y134: =Z134-1 -> 33 | Z134: 34 | AA134: 35 | AB134: 36 | AC134: 37 | AD134: 38 | AE134: 39 | AF134: =D1 -> 40
AG155: =AF134+1 -> 41

Sheet 41
C1: Woche | D1: =INT(MOD(INT((F1-2)/7)+0.6,52+5/28))+1 -> 41 | E1: =D1+1000 -> 1041 | F1: ='40'!F1+7 -> 2018-10-08 | H1: - | J1: =F1+6 -> 2018-10-14 | AG1: ='Aperçu de la charge'!D2 -> Prénom Nom | AI1: ='Aperçu de la charge'!N2 -> 2018/2019
B2: Jour | D2: Poids | E2: REG | F2: qualité sommeil | G2: durée sommeil | H2: Santé | J2: Description de l'entrainement | M2: Club - VB | P2: TS/ Nati - VB | S2: Club - BVB | V2: TS/ Nati - BVB | Y2: Force - fitness | AB2: Compet. - VB | AE2: Compet. - BVB | AI2: Réflexion | AK2: Charge/ jour | AM2: matchs VB | AN2: Sets VB | AO2: Matchs BVB | AP2: Sets BVB | AQ2: J | AR2: Autre (Rég, mentale) | AS2: Mental- oder Sonstiges Training
D3: [kg] | E3: [1 - 5] | F3: [1-5] | G3: [Std] | H3: Nr. | M3: Durée | N3: RPE | O3: Charge | P3: Durée | Q3: RPE | R3: Charge | S3: Durée | T3: RPE | U3: Charge | V3: Durée | W3: RPE | X3: Charge | Y3: Durée | Z3: RPE | AA3: Charge | AB3: Durée | AC3: RPE | AD3: Charge | AE3: Durée | AF3: RPE | AG3: Charge | AQ3: [1-5]
B4: Lu | D4: 0 | E4: 0 | F4: 0 | G4: 0 | H4: 0 | O4: =M4*N4 -> 0 | R4: =P4*Q4 -> 0 | U4: =S4*T4 -> 0 | X4: =V4*W4 -> 0 | AA4: =Y4*Z4 -> 0 | AD4: =AB4*AC4 -> 0 | AG4: =AE4*AF4 -> 0 | AH4: =IF(SUM(M4:AG6)>0,1,0) -> 00:00:00 | AK4: =SUM(O4:O6,R4:R6,U4:U6,X4:X6,AA4:AA6,AD4:AD6,AG4:AG6) -> 0
O5: =M5*N5 -> 0 | R5: =P5*Q5 -> 0 | U5: =S5*T5 -> 0 | X5: =V5*W5 -> 0 | AA5: =Y5*Z5 -> 0 | AD5: =AB5*AC5 -> 0 | AG5: =AE5*AF5 -> 0
O6: 0 | R6: 0 | U6: 0 | X6: 0 | AA6: 0 | AD6: 0 | AG6: 0
B7: Ma | D7: 0 | E7: 0 | F7: 0 | G7: 0 | H7: 0 | O7: 0 | R7: =P7*Q7 -> 0 | U7: 0 | X7: 0 | AA7: 0 | AD7: 0 | AG7: 0 | AH7: =IF(SUM(M7:AG9)>0,1,0) -> 00:00:00 | AK7: =SUM(O7:O9,R7:R9,U7:U9,X7:X9,AA7:AA9,AD7:AD9,AG7:AG9) -> 0
O8: 0 | R8: 0 | U8: 0 | X8: 0 | AA8: 0 | AD8: 0 | AG8: 0
O9: 0 | R9: 0 | U9: 0 | X9: 0 | AA9: 0 | AD9: 0 | AG9: 0
B10: Me | D10: 0 | E10: 0 | F10: 0 | G10: 0 | H10: 0 | O10: 0 | R10: =P10*Q10 -> 0 | U10: 0 | X10: 0 | AA10: 0 | AD10: 0 | AG10: 0 | AH10: =IF(SUM(M10:AG12)>0,1,0) -> 00:00:00 | AK10: =SUM(O10:O12,R10:R12,U10:U12,X10:X12,AA10:AA12,AD10:AD12,AG10:AG12) -> 0
O11: 0 | R11: 0 | U11: 0 | X11: 0 | AA11: 0 | AD11: 0 | AG11: 0
O12: 0 | R12: 0 | U12: 0 | X12: 0 | AA12: 0 | AD12: 0 | AG12: 0
B13: Je | D13: 0 | E13: 0 | F13: 0 | G13: 0 | H13: 0 | O13: 0 | R13: =P13*Q13 -> 0 | U13: 0 | X13: 0 | AA13: 0 | AD13: 0 | AG13: 0 | AH13: =IF(SUM(M13:AG15)>0,1,0) -> 00:00:00 | AK13: =SUM(O13:O15,R13:R15,U13:U15,X13:X15,AA13:AA15,AD13:AD15,AG13:AG15) -> 0
O14: 0 | R14: 0 | U14: 0 | X14: 0 | AA14: 0 | AD14: 0 | AG14: 0
O15: 0 | R15: 0 | U15: 0 | X15: 0 | AA15: 0 | AD15: 0 | AG15: 0
B16: Ve | D16: 0 | E16: 0 | F16: 0 | G16: 0 | H16: 0 | O16: 0 | R16: =P16*Q16 -> 0 | U16: 0 | X16: 0 | AA16: 0 | AD16: 0 | AG16: 0 | AH16: =IF(SUM(M16:AG18)>0,1,0) -> 00:00:00 | AK16: =SUM(O16:O18,R16:R18,U16:U18,X16:X18,AA16:AA18,AD16:AD18,AG16:AG18) -> 0
O17: 0 | R17: 0 | U17: 0 | X17: 0 | AA17: 0 | AD17: 0 | AG17: 0
O18: 0 | R18: 0 | U18: 0 | X18: 0 | AA18: 0 | AD18: 0 | AG18: 0
B19: Sa | D19: 0 | E19: 0 | F19: 0 | G19: 0 | H19: 0 | O19: =M19*N19 -> 0 | R19: =P19*Q19 -> 0 | U19: =S19*T19 -> 0 | X19: =V19*W19 -> 0 | AA19: =Y19*Z19 -> 0 | AD19: =AB19*AC19 -> 0 | AG19: =AE19*AF19 -> 0 | AH19: =IF(SUM(M19:AG21)>0,1,0) -> 00:00:00 | AK19: =SUM(O19:O21,R19:R21,U19:U21,X19:X21,AA19:AA21,AD19:AD21,AG19:AG21) -> 0
O20: =M20*N20 -> 0 | R20: 0 | U20: =S20*T20 -> 0 | X20: =V20*W20 -> 0 | AA20: =Y20*Z20 -> 0 | AD20: =AB20*AC20 -> 0 | AG20: =AE20*AF20 -> 0
O21: 0 | R21: 0 | U21: 0 | X21: 0 | AA21: 0 | AD21: 0 | AG21: 0
B22: Di | D22: 0 | E22: 0 | F22: 0 | G22: 0 | H22: 0 | O22: 0 | R22: =P22*Q22 -> 0 | U22: 0 | X22: 0 | AA22: 0 | AD22: 0 | AG22: 0 | AH22: =IF(SUM(M22:AG24)>0,1,0) -> 00:00:00 | AK22: =SUM(O22:O24,R22:R24,U22:U24,X22:X24,AA22:AA24,AD22:AD24,AG22:AG24) -> 0
O23: 0 | R23: 0 | U23: 0 | X23: 0 | AA23: 0 | AD23: 0 | AG23: 0
O24: 0 | R24: 0 | U24: 0 | X24: 0 | AA24: 0 | AD24: 0 | AG24: 0
K25: Total | M25: =SUM(M4:M24) -> 0 | O25: =SUM(O4:O24) -> 0 | P25: =SUM(P4:P24) -> 0 | R25: =SUM(R4:R24) -> 0 | S25: =SUM(S4:S24) -> 0 | U25: =SUM(U4:U24) -> 0 | V25: =SUM(V4:V24) -> 0 | X25: =SUM(X4:X24) -> 0 | Y25: =SUM(Y4:Y24) -> 0 | AA25: =SUM(AA4:AA24) -> 0 | AB25: =SUM(AB4:AB24) -> 0 | AD25: =SUM(AD4:AD24) -> 0 | AE25: =SUM(AE4:AE24) -> 0 | AG25: =SUM(AG4:AG24) -> 0 | AI25: Charge totale | AK25: =SUM(AK4:AK24) -> 0
B26: avg. | D26: =IF(COUNTA(D4:D24)=0,"",AVERAGE(D4:D24)) -> 0 | E26: =IF(COUNTA(E4:E24)=0,"",AVERAGE(E4:E24)) -> 0 | F26: =IF(COUNTA(F4:F24)=0,"",AVERAGE(F4:F24)) -> 0 | G26: =IF(COUNTA(G4:G24)=0,"",AVERAGE(G4:G24)) -> 0 | H26: =IF(COUNTA(H4:H24)=0,"",COUNTIF(H4:H24,"x")) -> 0 | K26: Zone | M26: 1 | N26: 2 | O26: 3 | P26: 1 | Q26: 2 | R26: 3 | S26: 1 | T26: 2 | U26: 3 | V26: 1 | W26: 2 | X26: 3 | Y26: 1 | Z26: 2 | AA26: 3 | AB26: 1 | AC26: 2 | AD26: 3 | AE26: 1 | AF26: 2 | AG26: 3 | AI26: Moyenne | AK26: =AVERAGE(AK4:AK24) -> 0
F27: =IF(COUNTA(F4:F24)=0,"",VAR(F4:F24)) -> 0 | G27: =IF(COUNTA(G4:G24)=0,"",STDEV(G4:G24)) -> 0 | H27: Divergence - durée du sommeil | K27: Unité par zone (RPE) | M27: =IF('Répartition des intensités'!$AR$25="x",COUNTIF(N4:N24,"<3,5"),COUNTIF(N4:N24,"<4,5")) -> 0 | N27: =COUNT(N4:N24)-(M27+O27) -> 0 | O27: =IF('Répartition des intensités'!$AR$25="x",COUNTIF(N4:N24,">5,5"),COUNTIF(N4:N24,">6,5")) -> 0 | P27: =IF('Répartition des intensités'!$AR$25="x",COUNTIF(Q4:Q24,"<3,5"),COUNTIF(Q4:Q24,"<4,5")) -> 0 | Q27: =COUNT(Q4:Q24)-(P27+R27) -> 0 | R27: =IF('Répartition des intensités'!$AR$25="x",COUNTIF(Q4:Q24,">5,5"),COUNTIF(Q4:Q24,">6,5")) -> 0 | S27: =IF('Répartition des intensités'!$AR$25="x",COUNTIF(T4:T24,"<3,5"),COUNTIF(T4:T24,"<4,5")) -> 0 | T27: =COUNT(T4:T24)-(S27+U27) -> 0 | U27: =IF('Répartition des intensités'!$AR$25="x",COUNTIF(T4:T24,">5,5"),COUNTIF(T4:T24,">6,5")) -> 0 | V27: =IF('Répartition des intensités'!$AR$25="x",COUNTIF(W4:W24,"<3,5"),COUNTIF(W4:W24,"<4,5")) -> 0 | W27: =COUNT(W4:W24)-(V27+X27) -> 0 | X27: =IF('Répartition des intensités'!$AR$25="x",COUNTIF(W4:W24,">5,5"),COUNTIF(W4:W24,">6,5")) -> 0 | Y27: =IF('Répartition des intensités'!$AR$25="x",COUNTIF(Z4:Z24,"<3,5"),COUNTIF(Z4:Z24,"<4,5")) -> 0 | Z27: =COUNT(Z4:Z24)-(Y27+AA27) -> 0 | AA27: =IF('Répartition des intensités'!$AR$25="x",COUNTIF(Z4:Z24,">5,5"),COUNTIF(Z4:Z24,">6,5")) -> 0 | AB27: =IF('Répartition des intensités'!$AR$25="x",COUNTIF(AC4:AC24,"<3,5"),COUNTIF(AC4:AC24,"<4,5")) -> 0 | AC27: =COUNT(AC4:AC24)-(AB27+AD27) -> 0 | AD27: =IF('Répartition des intensités'!$AR$25="x",COUNTIF(AC4:AC24,">5,5"),COUNTIF(AC4:AC24,">6,5")) -> 0 | AE27: =IF('Répartition des intensités'!$AR$25="x",COUNTIF(AF4:AF24,"<3,5"),COUNTIF(AF4:AF24,"<4,5")) -> 0 | AF27: =COUNT(AF4:AF24)-(AE27+AG27) -> 0 | AG27: =IF('Répartition des intensités'!$AR$25="x",COUNTIF(AF4:AF24,">5,5"),COUNTIF(AF4:AF24,">6,5")) -> 0 | AI27: Divergence | AK27: =STDEVP(AK4:AK24) -> 0
D28: échelle de Foster | H28: RPE | K28: Temps par zone (RPE) | M28: =IF('Répartition des intensités'!$AR$25="x",SUMIF(N4:N24,"<3,5",M4:M24),SUMIF(N4:N24,"<4,5",M4:M24)) -> 0 | N28: =IF(N27=0,0,SUM((M25)-(M28+O28))) -> 0 | O28: =IF('Répartition des intensités'!$AR$25="x",SUMIF(N4:N24,">5,5",M4:M24),SUMIF(N4:N24,">6,5",M4:M24)) -> 0 | P28: =IF('Répartition des intensités'!$AR$25="x",SUMIF(Q4:Q24,"<3,5",P4:P24),SUMIF(Q4:Q24,"<4,5",P4:P24)) -> 0 | Q28: =IF(Q27=0,0,SUM((P25)-(P28+R28))) -> 0 | R28: =IF('Répartition des intensités'!$AR$25="x",SUMIF(Q4:Q24,">5,5",P4:P24),SUMIF(Q4:Q24,">6,5",P4:P24)) -> 0 | S28: =IF('Répartition des intensités'!$AR$25="x",SUMIF(T4:T24,"<3,5",S4:S24),SUMIF(T4:T24,"<4,5",S4:S24)) -> 0 | T28: =IF(T27=0,0,SUM((S25)-(S28+U28))) -> 0 | U28: =IF('Répartition des intensités'!$AR$25="x",SUMIF(T4:T24,">5,5",S4:S24),SUMIF(T4:T24,">6,5",S4:S24)) -> 0 | V28: =IF('Répartition des intensités'!$AR$25="x",SUMIF(W4:W24,"<3,5",V4:V24),SUMIF(W4:W24,"<4,5",V4:V24)) -> 0 | W28: =IF(W27=0,0,SUM((V25)-(V28+X28))) -> 0 | X28: =IF('Répartition des intensités'!$AR$25="x",SUMIF(W4:W24,">5,5",V4:V24),SUMIF(W4:W24,">6,5",V4:V24)) -> 0 | Y28: =IF('Répartition des intensités'!$AR$25="x",SUMIF(Z4:Z24,"<3,5",Y4:Y24),SUMIF(Z4:Z24,"<4,5",Y4:Y24)) -> 0 | Z28: =IF(Z27=0,0,SUM((Y25)-(Y28+AA28))) -> 0 | AA28: =IF('Répartition des intensités'!$AR$25="x",SUMIF(Z4:Z24,">5,5",Y4:Y24),SUMIF(Z4:Z24,">6,5",Y4:Y24)) -> 0 | AB28: =IF('Répartition des intensités'!$AR$25="x",SUMIF(AC4:AC24,"<3,5",AB4:AB24),SUMIF(AC4:AC24,"<4,5",AB4:AB24)) -> 0 | AC28: =IF(AC27=0,0,SUM((AB25)-(AB28+AD28))) -> 0 | AD28: =IF('Répartition des intensités'!$AR$25="x",SUMIF(AC4:AC24,">5,5",AB4:AB24),SUMIF(AC4:AC24,">6,5",AB4:AB24)) -> 0 | AE28: =IF('Répartition des intensités'!$AR$25="x",SUMIF(AF4:AF24,"<3,5",AE4:AE24),SUMIF(AF4:AF24,"<4,5",AE4:AE24)) -> 0 | AF28: =IF(AF27=0,0,SUM((AE25)-(AE28+AG28))) -> 0 | AG28: =IF('Répartition des intensités'!$AR$25="x",SUMIF(AF4:AF24,">5,5",AE4:AE24),SUMIF(AF4:AF24,">6,5",AE4:AE24)) -> 0
D29: Comme au repos | H29: 0 | J29: REG | K29: Est-ce que j'ai l'impression d'avoir récupéré en me levant?
D30: très facile | H30: 1
D31: facile | H31: 2 | J31: 1 | K31: … pas du tout récupéré | AI31: Entrainements | AM31: Rapport de santé
H32: 3 | J32: 2 | K32: … un peu récupéré | AI32: Jours d'entrainement | AK32: =IF(SUM(AH4:AH24)=0,"",SUM(AH4:AH24)) -> 
D33: Assez dur | H33: 4 | J33: 3 | K33: … récupéré | V33: =B4 -> Lu | W33: =AK4 -> 0 | AI33: Entrainements | AK33: =IF(AK32="","",SUM(M27:AG27)) -> 
D34: dur | H34: 5 | J34: 4 | K34: … en forme | V34: =B7 -> Ma | W34: =AK7 -> 0 | AI34: Heures d'entrainement | AK34: =IF(AK32="","",SUM(M25,P25,S25,Y25,AB25,V25,AE25)/60) ->  | AM34: =IF($AK$32="","",AK32-AM36-AM44-AM52) ->  | AN34: Aucune limitation | AR34: 0
H35: 6 | J35: 5 | K35: … très en forme | V35: =B10 -> Me | W35: =AK10 -> 0 | AI35: Charge de l'entrainement | AK35: =IF(AK32="","",SUM(AK25)) -> 
D36: très dur | H36: 7 | V36: =B13 -> Je | W36: =AK13 -> 0 | AI36: Monotonie | AK36: =IF(AK27=0,0,(AVERAGE(AK4:AK24))/AK27) -> 0 | AM36: =SUM(AM37:AM42) -> 0 | AN36: Limitation pour cause de douleurs
H37: 8 | J37: Nombre de matchs | V37: =B16 -> Ve | W37: =AK16 -> 0 | AI37: Efforts à l'entrainement | AK37: =IF(AK32="","",AK35*AK36) ->  | AM37: =COUNTIF($H$4:$H$24,$AR37) -> 0 | AN37: Doigt | AR37: 1
D38: extrèmement dur | H38: 9 | V38: =B19 -> Sa | W38: =AK19 -> 0 | AM38: 0 | AN38: Épaule | AR38: 2
D39: Comme mon entrainement le plus dur | H39: 10 | J39: 1 | K39: … 3 sets et plus | V39: =B22 -> Di | W39: =AK22 -> 0 | AI39: Compétition | AM39: 0 | AN39: Dos | AR39: 3
J40: 0.5 | K40: … moins de 3 sets | AI40: Matchs de volleyball | AK40: =IF(AK32="","",SUM(AM4:AM24)) ->  | AM40: 0 | AN40: Genou | AR40: 4
AI41: Sets de volleyball | AK41: =IF(AK32="","",SUM(AN4:AN24)) ->  | AM41: 0 | AN41: Cheville | AR41: 5
J42: Sets joués | AI42: Matchs de beach volley | AK42: =IF(AK35="","",SUM(AO4:AO24)) ->  | AM42: 0 | AN42: Autre | AR42: 6
J43: 1 | K43: … depuis le début et durant tout le set | AI43: Sets de beach volley | AK43: =IF(AK35="","",SUM(AP4:AP24)) -> 
J44: 0.5 | K44: … entré/sorti en cours, beaucoup joué | AM44: =SUM(AM45:AM50) -> 0 | AN44: Absence pour cause de blessure
J45: 0.1 | K45: … entré/sorti en cours, peu joué | AI45: Satisfaction | AM45: =COUNTIF($H$4:$H$24,$AR45) -> 0 | AN45: Doigt | AR45: 11
AI46: Satisfaction de l'entrainement/match J | AK46: =IF(AK32="","",SUM(AQ4:AQ24)/AK32) ->  | AM46: 0 | AN46: Épaule | AR46: 12
J47: J | K47: Es-tu content de la qualité de ton | AM47: 0 | AN47: Dos | AR47: 13
K48: entrainement/compétition? | AI48: Santé | AM48: 0 | AN48: Genou | AR48: 14
J49: 1 | K49: … pas content | AI49: Limitation pour cause de douleurs | AK49: =AM36 -> 0 | AM49: 0 | AN49: Cheville | AR49: 15
J50: 2 | K50: … plutôt pas content | AI50: Absence pour cause de blessure | AK50: =AM44 -> 0 | AM50: 0 | AN50: Autre | AR50: 16
J51: 3 | K51: … moyen | AI51: Absence pour cause de maladie | AK51: =AM52 -> 0
J52: 4 | K52: … content | AM52: =SUM(AM53:AM59) -> 0 | AN52: Absence pour cause de maladie
J53: 5 | K53: … très content! | AM53: =COUNTIF($H$4:$H$24,$AR53) -> 0 | AN53: Maladie | AR53: 21
Y134: =Z134-1 -> 34 | Z134: 35 | AA134: 36 | AB134: 37 | AC134: 38 | AD134: 39 | AE134: 40 | AF134: =D1 -> 41
AG155: =AF134+1 -> 42

Sheet 42
C1: Woche | D1: =INT(MOD(INT((F1-2)/7)+0.6,52+5/28))+1 -> 42 | E1: =D1+1000 -> 1042 | F1: ='41'!F1+7 -> 2018-10-15 | H1: - | J1: =F1+6 -> 2018-10-21 | AG1: ='Aperçu de la charge'!D2 -> Prénom Nom | AI1: ='Aperçu de la charge'!N2 -> 2018/2019
B2: Jour | D2: Poids | E2: REG | F2: qualité sommeil | G2: durée sommeil | H2: Santé | J2: Description de l'entrainement | M2: Club - VB | P2: TS/ Nati - VB | S2: Club - BVB | V2: TS/ Nati - BVB | Y2: Force - fitness | AB2: Compet. - VB | AE2: Compet. - BVB | AI2: Réflexion | AK2: Charge/ jour | AM2: matchs VB | AN2: Sets VB | AO2: Matchs BVB | AP2: Sets BVB | AQ2: J | AR2: Autre (Rég, mentale) | AS2: Mental- oder Sonstiges Training
D3: [kg] | E3: [1 - 5] | F3: [1-5] | G3: [Std] | H3: Nr. | M3: Durée | N3: RPE | O3: Charge | P3: Durée | Q3: RPE | R3: Charge | S3: Durée | T3: RPE | U3: Charge | V3: Durée | W3: RPE | X3: Charge | Y3: Durée | Z3: RPE | AA3: Charge | AB3: Durée | AC3: RPE | AD3: Charge | AE3: Durée | AF3: RPE | AG3: Charge | AQ3: [1-5]
B4: Lu | D4: 0 | E4: 0 | F4: 0 | G4: 0 | H4: 0 | O4: =M4*N4 -> 0 | R4: =P4*Q4 -> 0 | U4: =S4*T4 -> 0 | X4: =V4*W4 -> 0 | AA4: =Y4*Z4 -> 0 | AD4: =AB4*AC4 -> 0 | AG4: =AE4*AF4 -> 0 | AH4: =IF(SUM(M4:AG6)>0,1,0) -> 00:00:00 | AK4: =SUM(O4:O6,R4:R6,U4:U6,X4:X6,AA4:AA6,AD4:AD6,AG4:AG6) -> 0
O5: =M5*N5 -> 0 | R5: =P5*Q5 -> 0 | U5: =S5*T5 -> 0 | X5: =V5*W5 -> 0 | AA5: =Y5*Z5 -> 0 | AD5: =AB5*AC5 -> 0 | AG5: =AE5*AF5 -> 0
O6: 0 | R6: 0 | U6: 0 | X6: 0 | AA6: 0 | AD6: 0 | AG6: 0
B7: Ma | D7: 0 | E7: 0 | F7: 0 | G7: 0 | H7: 0 | O7: 0 | R7: =P7*Q7 -> 0 | U7: 0 | X7: 0 | AA7: 0 | AD7: 0 | AG7: 0 | AH7: =IF(SUM(M7:AG9)>0,1,0) -> 00:00:00 | AK7: =SUM(O7:O9,R7:R9,U7:U9,X7:X9,AA7:AA9,AD7:AD9,AG7:AG9) -> 0
O8: 0 | R8: 0 | U8: 0 | X8: 0 | AA8: 0 | AD8: 0 | AG8: 0
O9: 0 | R9: 0 | U9: 0 | X9: 0 | AA9: 0 | AD9: 0 | AG9: 0
B10: Me | D10: 0 | E10: 0 | F10: 0 | G10: 0 | H10: 0 | O10: 0 | R10: =P10*Q10 -> 0 | U10: 0 | X10: 0 | AA10: 0 | AD10: 0 | AG10: 0 | AH10: =IF(SUM(M10:AG12)>0,1,0) -> 00:00:00 | AK10: =SUM(O10:O12,R10:R12,U10:U12,X10:X12,AA10:AA12,AD10:AD12,AG10:AG12) -> 0
O11: 0 | R11: 0 | U11: 0 | X11: 0 | AA11: 0 | AD11: 0 | AG11: 0
O12: 0 | R12: 0 | U12: 0 | X12: 0 | AA12: 0 | AD12: 0 | AG12: 0
B13: Je | D13: 0 | E13: 0 | F13: 0 | G13: 0 | H13: 0 | O13: 0 | R13: =P13*Q13 -> 0 | U13: 0 | X13: 0 | AA13: 0 | AD13: 0 | AG13: 0 | AH13: =IF(SUM(M13:AG15)>0,1,0) -> 00:00:00 | AK13: =SUM(O13:O15,R13:R15,U13:U15,X13:X15,AA13:AA15,AD13:AD15,AG13:AG15) -> 0
O14: 0 | R14: 0 | U14: 0 | X14: 0 | AA14: 0 | AD14: 0 | AG14: 0
O15: 0 | R15: 0 | U15: 0 | X15: 0 | AA15: 0 | AD15: 0 | AG15: 0
B16: Ve | D16: 0 | E16: 0 | F16: 0 | G16: 0 | H16: 0 | O16: 0 | R16: =P16*Q16 -> 0 | U16: 0 | X16: 0 | AA16: 0 | AD16: 0 | AG16: 0 | AH16: =IF(SUM(M16:AG18)>0,1,0) -> 00:00:00 | AK16: =SUM(O16:O18,R16:R18,U16:U18,X16:X18,AA16:AA18,AD16:AD18,AG16:AG18) -> 0
O17: 0 | R17: 0 | U17: 0 | X17: 0 | AA17: 0 | AD17: 0 | AG17: 0
O18: 0 | R18: 0 | U18: 0 | X18: 0 | AA18: 0 | AD18: 0 | AG18: 0
B19: Sa | D19: 0 | E19: 0 | F19: 0 | G19: 0 | H19: 0 | O19: =M19*N19 -> 0 | R19: =P19*Q19 -> 0 | U19: =S19*T19 -> 0 | X19: =V19*W19 -> 0 | AA19: =Y19*Z19 -> 0 | AD19: =AB19*AC19 -> 0 | AG19: =AE19*AF19 -> 0 | AH19: =IF(SUM(M19:AG21)>0,1,0) -> 00:00:00 | AK19: =SUM(O19:O21,R19:R21,U19:U21,X19:X21,AA19:AA21,AD19:AD21,AG19:AG21) -> 0
O20: =M20*N20 -> 0 | R20: 0 | U20: =S20*T20 -> 0 | X20: =V20*W20 -> 0 | AA20: =Y20*Z20 -> 0 | AD20: =AB20*AC20 -> 0 | AG20: =AE20*AF20 -> 0
O21: 0 | R21: 0 | U21: 0 | X21: 0 | AA21: 0 | AD21: 0 | AG21: 0
B22: Di | D22: 0 | E22: 0 | F22: 0 | G22: 0 | H22: 0 | O22: 0 | R22: =P22*Q22 -> 0 | U22: 0 | X22: 0 | AA22: 0 | AD22: 0 | AG22: 0 | AH22: =IF(SUM(M22:AG24)>0,1,0) -> 00:00:00 | AK22: =SUM(O22:O24,R22:R24,U22:U24,X22:X24,AA22:AA24,AD22:AD24,AG22:AG24) -> 0
O23: 0 | R23: 0 | U23: 0 | X23: 0 | AA23: 0 | AD23: 0 | AG23: 0
O24: 0 | R24: 0 | U24: 0 | X24: 0 | AA24: 0 | AD24: 0 | AG24: 0
K25: Total | M25: =SUM(M4:M24) -> 0 | O25: =SUM(O4:O24) -> 0 | P25: =SUM(P4:P24) -> 0 | R25: =SUM(R4:R24) -> 0 | S25: =SUM(S4:S24) -> 0 | U25: =SUM(U4:U24) -> 0 | V25: =SUM(V4:V24) -> 0 | X25: =SUM(X4:X24) -> 0 | Y25: =SUM(Y4:Y24) -> 0 | AA25: =SUM(AA4:AA24) -> 0 | AB25: =SUM(AB4:AB24) -> 0 | AD25: =SUM(AD4:AD24) -> 0 | AE25: =SUM(AE4:AE24) -> 0 | AG25: =SUM(AG4:AG24) -> 0 | AI25: Charge totale | AK25: =SUM(AK4:AK24) -> 0
B26: avg. | D26: =IF(COUNTA(D4:D24)=0,"",AVERAGE(D4:D24)) -> 0 | E26: =IF(COUNTA(E4:E24)=0,"",AVERAGE(E4:E24)) -> 0 | F26: =IF(COUNTA(F4:F24)=0,"",AVERAGE(F4:F24)) -> 0 | G26: =IF(COUNTA(G4:G24)=0,"",AVERAGE(G4:G24)) -> 0 | H26: =IF(COUNTA(H4:H24)=0,"",COUNTIF(H4:H24,"x")) -> 0 | K26: Zone | M26: 1 | N26: 2 | O26: 3 | P26: 1 | Q26: 2 | R26: 3 | S26: 1 | T26: 2 | U26: 3 | V26: 1 | W26: 2 | X26: 3 | Y26: 1 | Z26: 2 | AA26: 3 | AB26: 1 | AC26: 2 | AD26: 3 | AE26: 1 | AF26: 2 | AG26: 3 | AI26: Moyenne | AK26: =AVERAGE(AK4:AK24) -> 0
F27: =IF(COUNTA(F4:F24)=0,"",VAR(F4:F24)) -> 0 | G27: =IF(COUNTA(G4:G24)=0,"",STDEV(G4:G24)) -> 0 | H27: Divergence - durée du sommeil | K27: Unité par zone (RPE) | M27: =IF('Répartition des intensités'!$AR$25="x",COUNTIF(N4:N24,"<3,5"),COUNTIF(N4:N24,"<4,5")) -> 0 | N27: =COUNT(N4:N24)-(M27+O27) -> 0 | O27: =IF('Répartition des intensités'!$AR$25="x",COUNTIF(N4:N24,">5,5"),COUNTIF(N4:N24,">6,5")) -> 0 | P27: =IF('Répartition des intensités'!$AR$25="x",COUNTIF(Q4:Q24,"<3,5"),COUNTIF(Q4:Q24,"<4,5")) -> 0 | Q27: =COUNT(Q4:Q24)-(P27+R27) -> 0 | R27: =IF('Répartition des intensités'!$AR$25="x",COUNTIF(Q4:Q24,">5,5"),COUNTIF(Q4:Q24,">6,5")) -> 0 | S27: =IF('Répartition des intensités'!$AR$25="x",COUNTIF(T4:T24,"<3,5"),COUNTIF(T4:T24,"<4,5")) -> 0 | T27: =COUNT(T4:T24)-(S27+U27) -> 0 | U27: =IF('Répartition des intensités'!$AR$25="x",COUNTIF(T4:T24,">5,5"),COUNTIF(T4:T24,">6,5")) -> 0 | V27: =IF('Répartition des intensités'!$AR$25="x",COUNTIF(W4:W24,"<3,5"),COUNTIF(W4:W24,"<4,5")) -> 0 | W27: =COUNT(W4:W24)-(V27+X27) -> 0 | X27: =IF('Répartition des intensités'!$AR$25="x",COUNTIF(W4:W24,">5,5"),COUNTIF(W4:W24,">6,5")) -> 0 | Y27: =IF('Répartition des intensités'!$AR$25="x",COUNTIF(Z4:Z24,"<3,5"),COUNTIF(Z4:Z24,"<4,5")) -> 0 | Z27: =COUNT(Z4:Z24)-(Y27+AA27) -> 0 | AA27: =IF('Répartition des intensités'!$AR$25="x",COUNTIF(Z4:Z24,">5,5"),COUNTIF(Z4:Z24,">6,5")) -> 0 | AB27: =IF('Répartition des intensités'!$AR$25="x",COUNTIF(AC4:AC24,"<3,5"),COUNTIF(AC4:AC24,"<4,5")) -> 0 | AC27: =COUNT(AC4:AC24)-(AB27+AD27) -> 0 | AD27: =IF('Répartition des intensités'!$AR$25="x",COUNTIF(AC4:AC24,">5,5"),COUNTIF(AC4:AC24,">6,5")) -> 0 | AE27: =IF('Répartition des intensités'!$AR$25="x",COUNTIF(AF4:AF24,"<3,5"),COUNTIF(AF4:AF24,"<4,5")) -> 0 | AF27: =COUNT(AF4:AF24)-(AE27+AG27) -> 0 | AG27: =IF('Répartition des intensités'!$AR$25="x",COUNTIF(AF4:AF24,">5,5"),COUNTIF(AF4:AF24,">6,5")) -> 0 | AI27: Divergence | AK27: =STDEVP(AK4:AK24) -> 0
D28: échelle de Foster | H28: RPE | K28: Temps par zone (RPE) | M28: =IF('Répartition des intensités'!$AR$25="x",SUMIF(N4:N24,"<3,5",M4:M24),SUMIF(N4:N24,"<4,5",M4:M24)) -> 0 | N28: =IF(N27=0,0,SUM((M25)-(M28+O28))) -> 0 | O28: =IF('Répartition des intensités'!$AR$25="x",SUMIF(N4:N24,">5,5",M4:M24),SUMIF(N4:N24,">6,5",M4:M24)) -> 0 | P28: =IF('Répartition des intensités'!$AR$25="x",SUMIF(Q4:Q24,"<3,5",P4:P24),SUMIF(Q4:Q24,"<4,5",P4:P24)) -> 0 | Q28: =IF(Q27=0,0,SUM((P25)-(P28+R28))) -> 0 | R28: =IF('Répartition des intensités'!$AR$25="x",SUMIF(Q4:Q24,">5,5",P4:P24),SUMIF(Q4:Q24,">6,5",P4:P24)) -> 0 | S28: =IF('Répartition des intensités'!$AR$25="x",SUMIF(T4:T24,"<3,5",S4:S24),SUMIF(T4:T24,"<4,5",S4:S24)) -> 0 | T28: =IF(T27=0,0,SUM((S25)-(S28+U28))) -> 0 | U28: =IF('Répartition des intensités'!$AR$25="x",SUMIF(T4:T24,">5,5",S4:S24),SUMIF(T4:T24,">6,5",S4:S24)) -> 0 | V28: =IF('Répartition des intensités'!$AR$25="x",SUMIF(W4:W24,"<3,5",V4:V24),SUMIF(W4:W24,"<4,5",V4:V24)) -> 0 | W28: =IF(W27=0,0,SUM((V25)-(V28+X28))) -> 0 | X28: =IF('Répartition des intensités'!$AR$25="x",SUMIF(W4:W24,">5,5",V4:V24),SUMIF(W4:W24,">6,5",V4:V24)) -> 0 | Y28: =IF('Répartition des intensités'!$AR$25="x",SUMIF(Z4:Z24,"<3,5",Y4:Y24),SUMIF(Z4:Z24,"<4,5",Y4:Y24)) -> 0 | Z28: =IF(Z27=0,0,SUM((Y25)-(Y28+AA28))) -> 0 | AA28: =IF('Répartition des intensités'!$AR$25="x",SUMIF(Z4:Z24,">5,5",Y4:Y24),SUMIF(Z4:Z24,">6,5",Y4:Y24)) -> 0 | AB28: =IF('Répartition des intensités'!$AR$25="x",SUMIF(AC4:AC24,"<3,5",AB4:AB24),SUMIF(AC4:AC24,"<4,5",AB4:AB24)) -> 0 | AC28: =IF(AC27=0,0,SUM((AB25)-(AB28+AD28))) -> 0 | AD28: =IF('Répartition des intensités'!$AR$25="x",SUMIF(AC4:AC24,">5,5",AB4:AB24),SUMIF(AC4:AC24,">6,5",AB4:AB24)) -> 0 | AE28: =IF('Répartition des intensités'!$AR$25="x",SUMIF(AF4:AF24,"<3,5",AE4:AE24),SUMIF(AF4:AF24,"<4,5",AE4:AE24)) -> 0 | AF28: =IF(AF27=0,0,SUM((AE25)-(AE28+AG28))) -> 0 | AG28: =IF('Répartition des intensités'!$AR$25="x",SUMIF(AF4:AF24,">5,5",AE4:AE24),SUMIF(AF4:AF24,">6,5",AE4:AE24)) -> 0
D29: Comme au repos | H29: 0 | J29: REG | K29: Est-ce que j'ai l'impression d'avoir récupéré en me levant?
D30: très facile | H30: 1
D31: facile | H31: 2 | J31: 1 | K31: … pas du tout récupéré | AI31: Entrainements | AM31: Rapport de santé
H32: 3 | J32: 2 | K32: … un peu récupéré | AI32: Jours d'entrainement | AK32: =IF(SUM(AH4:AH24)=0,"",SUM(AH4:AH24)) -> 
D33: Assez dur | H33: 4 | J33: 3 | K33: … récupéré | V33: =B4 -> Lu | W33: =AK4 -> 0 | AI33: Entrainements | AK33: =IF(AK32="","",SUM(M27:AG27)) -> 
D34: dur | H34: 5 | J34: 4 | K34: … en forme | V34: =B7 -> Ma | W34: =AK7 -> 0 | AI34: Heures d'entrainement | AK34: =IF(AK32="","",SUM(M25,P25,S25,Y25,AB25,V25,AE25)/60) ->  | AM34: =IF($AK$32="","",AK32-AM36-AM44-AM52) ->  | AN34: Aucune limitation | AR34: 0
H35: 6 | J35: 5 | K35: … très en forme | V35: =B10 -> Me | W35: =AK10 -> 0 | AI35: Charge de l'entrainement | AK35: =IF(AK32="","",SUM(AK25)) -> 
D36: très dur | H36: 7 | V36: =B13 -> Je | W36: =AK13 -> 0 | AI36: Monotonie | AK36: =IF(AK27=0,0,(AVERAGE(AK4:AK24))/AK27) -> 0 | AM36: =SUM(AM37:AM42) -> 0 | AN36: Limitation pour cause de douleurs
H37: 8 | J37: Nombre de matchs | V37: =B16 -> Ve | W37: =AK16 -> 0 | AI37: Efforts à l'entrainement | AK37: =IF(AK32="","",AK35*AK36) ->  | AM37: =COUNTIF($H$4:$H$24,$AR37) -> 0 | AN37: Doigt | AR37: 1
D38: extrèmement dur | H38: 9 | V38: =B19 -> Sa | W38: =AK19 -> 0 | AM38: 0 | AN38: Épaule | AR38: 2
D39: Comme mon entrainement le plus dur | H39: 10 | J39: 1 | K39: … 3 sets et plus | V39: =B22 -> Di | W39: =AK22 -> 0 | AI39: Compétition | AM39: 0 | AN39: Dos | AR39: 3
J40: 0.5 | K40: … moins de 3 sets | AI40: Matchs de volleyball | AK40: =IF(AK32="","",SUM(AM4:AM24)) ->  | AM40: 0 | AN40: Genou | AR40: 4
AI41: Sets de volleyball | AK41: =IF(AK32="","",SUM(AN4:AN24)) ->  | AM41: 0 | AN41: Cheville | AR41: 5
J42: Sets joués | AI42: Matchs de beach volley | AK42: =IF(AK35="","",SUM(AO4:AO24)) ->  | AM42: 0 | AN42: Autre | AR42: 6
J43: 1 | K43: … depuis le début et durant tout le set | AI43: Sets de beach volley | AK43: =IF(AK35="","",SUM(AP4:AP24)) -> 
J44: 0.5 | K44: … entré/sorti en cours, beaucoup joué | AM44: =SUM(AM45:AM50) -> 0 | AN44: Absence pour cause de blessure
J45: 0.1 | K45: … entré/sorti en cours, peu joué | AI45: Satisfaction | AM45: =COUNTIF($H$4:$H$24,$AR45) -> 0 | AN45: Doigt | AR45: 11
AI46: Satisfaction de l'entrainement/match J | AK46: =IF(AK32="","",SUM(AQ4:AQ24)/AK32) ->  | AM46: 0 | AN46: Épaule | AR46: 12
J47: J | K47: Es-tu content de la qualité de ton | AM47: 0 | AN47: Dos | AR47: 13
K48: entrainement/compétition? | AI48: Santé | AM48: 0 | AN48: Genou | AR48: 14
J49: 1 | K49: … pas content | AI49: Limitation pour cause de douleurs | AK49: =AM36 -> 0 | AM49: 0 | AN49: Cheville | AR49: 15
J50: 2 | K50: … plutôt pas content | AI50: Absence pour cause de blessure | AK50: =AM44 -> 0 | AM50: 0 | AN50: Autre | AR50: 16
J51: 3 | K51: … moyen | AI51: Absence pour cause de maladie | AK51: =AM52 -> 0
J52: 4 | K52: … content | AM52: =SUM(AM53:AM59) -> 0 | AN52: Absence pour cause de maladie
J53: 5 | K53: … très content! | AM53: =COUNTIF($H$4:$H$24,$AR53) -> 0 | AN53: Maladie | AR53: 21
Y134: =Z134-1 -> 35 | Z134: 36 | AA134: 37 | AB134: 38 | AC134: 39 | AD134: 40 | AE134: 41 | AF134: =D1 -> 42
AG155: =AF134+1 -> 43

Sheet 43
C1: Woche | D1: =INT(MOD(INT((F1-2)/7)+0.6,52+5/28))+1 -> 43 | E1: =D1+1000 -> 1043 | F1: ='42'!F1+7 -> 2018-10-22 | H1: - | J1: =F1+6 -> 2018-10-28 | AG1: ='Aperçu de la charge'!D2 -> Prénom Nom | AI1: ='Aperçu de la charge'!N2 -> 2018/2019
B2: Jour | D2: Poids | E2: REG | F2: qualité sommeil | G2: durée sommeil | H2: Santé | J2: Description de l'entrainement | M2: Club - VB | P2: TS/ Nati - VB | S2: Club - BVB | V2: TS/ Nati - BVB | Y2: Force - fitness | AB2: Compet. - VB | AE2: Compet. - BVB | AI2: Réflexion | AK2: Charge/ jour | AM2: matchs VB | AN2: Sets VB | AO2: Matchs BVB | AP2: Sets BVB | AQ2: J | AR2: Autre (Rég, mentale) | AS2: Mental- oder Sonstiges Training
D3: [kg] | E3: [1 - 5] | F3: [1-5] | G3: [Std] | H3: Nr. | M3: Durée | N3: RPE | O3: Charge | P3: Durée | Q3: RPE | R3: Charge | S3: Durée | T3: RPE | U3: Charge | V3: Durée | W3: RPE | X3: Charge | Y3: Durée | Z3: RPE | AA3: Charge | AB3: Durée | AC3: RPE | AD3: Charge | AE3: Durée | AF3: RPE | AG3: Charge | AQ3: [1-5]
B4: Lu | D4: 0 | E4: 0 | F4: 0 | G4: 0 | H4: 0 | O4: =M4*N4 -> 0 | R4: =P4*Q4 -> 0 | U4: =S4*T4 -> 0 | X4: =V4*W4 -> 0 | AA4: =Y4*Z4 -> 0 | AD4: =AB4*AC4 -> 0 | AG4: =AE4*AF4 -> 0 | AH4: =IF(SUM(M4:AG6)>0,1,0) -> 00:00:00 | AK4: =SUM(O4:O6,R4:R6,U4:U6,X4:X6,AA4:AA6,AD4:AD6,AG4:AG6) -> 0
O5: =M5*N5 -> 0 | R5: =P5*Q5 -> 0 | U5: =S5*T5 -> 0 | X5: =V5*W5 -> 0 | AA5: =Y5*Z5 -> 0 | AD5: =AB5*AC5 -> 0 | AG5: =AE5*AF5 -> 0
O6: 0 | R6: 0 | U6: 0 | X6: 0 | AA6: 0 | AD6: 0 | AG6: 0
B7: Ma | D7: 0 | E7: 0 | F7: 0 | G7: 0 | H7: 0 | O7: 0 | R7: =P7*Q7 -> 0 | U7: 0 | X7: 0 | AA7: 0 | AD7: 0 | AG7: 0 | AH7: =IF(SUM(M7:AG9)>0,1,0) -> 00:00:00 | AK7: =SUM(O7:O9,R7:R9,U7:U9,X7:X9,AA7:AA9,AD7:AD9,AG7:AG9) -> 0
O8: 0 | R8: 0 | U8: 0 | X8: 0 | AA8: 0 | AD8: 0 | AG8: 0
O9: 0 | R9: 0 | U9: 0 | X9: 0 | AA9: 0 | AD9: 0 | AG9: 0
B10: Me | D10: 0 | E10: 0 | F10: 0 | G10: 0 | H10: 0 | O10: 0 | R10: =P10*Q10 -> 0 | U10: 0 | X10: 0 | AA10: 0 | AD10: 0 | AG10: 0 | AH10: =IF(SUM(M10:AG12)>0,1,0) -> 00:00:00 | AK10: =SUM(O10:O12,R10:R12,U10:U12,X10:X12,AA10:AA12,AD10:AD12,AG10:AG12) -> 0
O11: 0 | R11: 0 | U11: 0 | X11: 0 | AA11: 0 | AD11: 0 | AG11: 0
O12: 0 | R12: 0 | U12: 0 | X12: 0 | AA12: 0 | AD12: 0 | AG12: 0
B13: Je | D13: 0 | E13: 0 | F13: 0 | G13: 0 | H13: 0 | O13: 0 | R13: =P13*Q13 -> 0 | U13: 0 | X13: 0 | AA13: 0 | AD13: 0 | AG13: 0 | AH13: =IF(SUM(M13:AG15)>0,1,0) -> 00:00:00 | AK13: =SUM(O13:O15,R13:R15,U13:U15,X13:X15,AA13:AA15,AD13:AD15,AG13:AG15) -> 0
O14: 0 | R14: 0 | U14: 0 | X14: 0 | AA14: 0 | AD14: 0 | AG14: 0
O15: 0 | R15: 0 | U15: 0 | X15: 0 | AA15: 0 | AD15: 0 | AG15: 0
B16: Ve | D16: 0 | E16: 0 | F16: 0 | G16: 0 | H16: 0 | O16: 0 | R16: =P16*Q16 -> 0 | U16: 0 | X16: 0 | AA16: 0 | AD16: 0 | AG16: 0 | AH16: =IF(SUM(M16:AG18)>0,1,0) -> 00:00:00 | AK16: =SUM(O16:O18,R16:R18,U16:U18,X16:X18,AA16:AA18,AD16:AD18,AG16:AG18) -> 0
O17: 0 | R17: 0 | U17: 0 | X17: 0 | AA17: 0 | AD17: 0 | AG17: 0
O18: 0 | R18: 0 | U18: 0 | X18: 0 | AA18: 0 | AD18: 0 | AG18: 0
B19: Sa | D19: 0 | E19: 0 | F19: 0 | G19: 0 | H19: 0 | O19: =M19*N19 -> 0 | R19: =P19*Q19 -> 0 | U19: =S19*T19 -> 0 | X19: =V19*W19 -> 0 | AA19: =Y19*Z19 -> 0 | AD19: =AB19*AC19 -> 0 | AG19: =AE19*AF19 -> 0 | AH19: =IF(SUM(M19:AG21)>0,1,0) -> 00:00:00 | AK19: =SUM(O19:O21,R19:R21,U19:U21,X19:X21,AA19:AA21,AD19:AD21,AG19:AG21) -> 0
O20: =M20*N20 -> 0 | R20: 0 | U20: =S20*T20 -> 0 | X20: =V20*W20 -> 0 | AA20: =Y20*Z20 -> 0 | AD20: =AB20*AC20 -> 0 | AG20: =AE20*AF20 -> 0
O21: 0 | R21: 0 | U21: 0 | X21: 0 | AA21: 0 | AD21: 0 | AG21: 0
B22: Di | D22: 0 | E22: 0 | F22: 0 | G22: 0 | H22: 0 | O22: 0 | R22: =P22*Q22 -> 0 | U22: 0 | X22: 0 | AA22: 0 | AD22: 0 | AG22: 0 | AH22: =IF(SUM(M22:AG24)>0,1,0) -> 00:00:00 | AK22: =SUM(O22:O24,R22:R24,U22:U24,X22:X24,AA22:AA24,AD22:AD24,AG22:AG24) -> 0
O23: 0 | R23: 0 | U23: 0 | X23: 0 | AA23: 0 | AD23: 0 | AG23: 0
O24: 0 | R24: 0 | U24: 0 | X24: 0 | AA24: 0 | AD24: 0 | AG24: 0
K25: Total | M25: =SUM(M4:M24) -> 0 | O25: =SUM(O4:O24) -> 0 | P25: =SUM(P4:P24) -> 0 | R25: =SUM(R4:R24) -> 0 | S25: =SUM(S4:S24) -> 0 | U25: =SUM(U4:U24) -> 0 | V25: =SUM(V4:V24) -> 0 | X25: =SUM(X4:X24) -> 0 | Y25: =SUM(Y4:Y24) -> 0 | AA25: =SUM(AA4:AA24) -> 0 | AB25: =SUM(AB4:AB24) -> 0 | AD25: =SUM(AD4:AD24) -> 0 | AE25: =SUM(AE4:AE24) -> 0 | AG25: =SUM(AG4:AG24) -> 0 | AI25: Charge totale | AK25: =SUM(AK4:AK24) -> 0
B26: avg. | D26: =IF(COUNTA(D4:D24)=0,"",AVERAGE(D4:D24)) -> 0 | E26: =IF(COUNTA(E4:E24)=0,"",AVERAGE(E4:E24)) -> 0 | F26: =IF(COUNTA(F4:F24)=0,"",AVERAGE(F4:F24)) -> 0 | G26: =IF(COUNTA(G4:G24)=0,"",AVERAGE(G4:G24)) -> 0 | H26: =IF(COUNTA(H4:H24)=0,"",COUNTIF(H4:H24,"x")) -> 0 | K26: Zone | M26: 1 | N26: 2 | O26: 3 | P26: 1 | Q26: 2 | R26: 3 | S26: 1 | T26: 2 | U26: 3 | V26: 1 | W26: 2 | X26: 3 | Y26: 1 | Z26: 2 | AA26: 3 | AB26: 1 | AC26: 2 | AD26: 3 | AE26: 1 | AF26: 2 | AG26: 3 | AI26: Moyenne | AK26: =AVERAGE(AK4:AK24) -> 0
F27: =IF(COUNTA(F4:F24)=0,"",VAR(F4:F24)) -> 0 | G27: =IF(COUNTA(G4:G24)=0,"",STDEV(G4:G24)) -> 0 | H27: Divergence - durée du sommeil | K27: Unité par zone (RPE) | M27: =IF('Répartition des intensités'!$AR$25="x",COUNTIF(N4:N24,"<3,5"),COUNTIF(N4:N24,"<4,5")) -> 0 | N27: =COUNT(N4:N24)-(M27+O27) -> 0 | O27: =IF('Répartition des intensités'!$AR$25="x",COUNTIF(N4:N24,">5,5"),COUNTIF(N4:N24,">6,5")) -> 0 | P27: =IF('Répartition des intensités'!$AR$25="x",COUNTIF(Q4:Q24,"<3,5"),COUNTIF(Q4:Q24,"<4,5")) -> 0 | Q27: =COUNT(Q4:Q24)-(P27+R27) -> 0 | R27: =IF('Répartition des intensités'!$AR$25="x",COUNTIF(Q4:Q24,">5,5"),COUNTIF(Q4:Q24,">6,5")) -> 0 | S27: =IF('Répartition des intensités'!$AR$25="x",COUNTIF(T4:T24,"<3,5"),COUNTIF(T4:T24,"<4,5")) -> 0 | T27: =COUNT(T4:T24)-(S27+U27) -> 0 | U27: =IF('Répartition des intensités'!$AR$25="x",COUNTIF(T4:T24,">5,5"),COUNTIF(T4:T24,">6,5")) -> 0 | V27: =IF('Répartition des intensités'!$AR$25="x",COUNTIF(W4:W24,"<3,5"),COUNTIF(W4:W24,"<4,5")) -> 0 | W27: =COUNT(W4:W24)-(V27+X27) -> 0 | X27: =IF('Répartition des intensités'!$AR$25="x",COUNTIF(W4:W24,">5,5"),COUNTIF(W4:W24,">6,5")) -> 0 | Y27: =IF('Répartition des intensités'!$AR$25="x",COUNTIF(Z4:Z24,"<3,5"),COUNTIF(Z4:Z24,"<4,5")) -> 0 | Z27: =COUNT(Z4:Z24)-(Y27+AA27) -> 0 | AA27: =IF('Répartition des intensités'!$AR$25="x",COUNTIF(Z4:Z24,">5,5"),COUNTIF(Z4:Z24,">6,5")) -> 0 | AB27: =IF('Répartition des intensités'!$AR$25="x",COUNTIF(AC4:AC24,"<3,5"),COUNTIF(AC4:AC24,"<4,5")) -> 0 | AC27: =COUNT(AC4:AC24)-(AB27+AD27) -> 0 | AD27: =IF('Répartition des intensités'!$AR$25="x",COUNTIF(AC4:AC24,">5,5"),COUNTIF(AC4:AC24,">6,5")) -> 0 | AE27: =IF('Répartition des intensités'!$AR$25="x",COUNTIF(AF4:AF24,"<3,5"),COUNTIF(AF4:AF24,"<4,5")) -> 0 | AF27: =COUNT(AF4:AF24)-(AE27+AG27) -> 0 | AG27: =IF('Répartition des intensités'!$AR$25="x",COUNTIF(AF4:AF24,">5,5"),COUNTIF(AF4:AF24,">6,5")) -> 0 | AI27: Divergence | AK27: =STDEVP(AK4:AK24) -> 0
D28: échelle de Foster | H28: RPE | K28: Temps par zone (RPE) | M28: =IF('Répartition des intensités'!$AR$25="x",SUMIF(N4:N24,"<3,5",M4:M24),SUMIF(N4:N24,"<4,5",M4:M24)) -> 0 | N28: =IF(N27=0,0,SUM((M25)-(M28+O28))) -> 0 | O28: =IF('Répartition des intensités'!$AR$25="x",SUMIF(N4:N24,">5,5",M4:M24),SUMIF(N4:N24,">6,5",M4:M24)) -> 0 | P28: =IF('Répartition des intensités'!$AR$25="x",SUMIF(Q4:Q24,"<3,5",P4:P24),SUMIF(Q4:Q24,"<4,5",P4:P24)) -> 0 | Q28: =IF(Q27=0,0,SUM((P25)-(P28+R28))) -> 0 | R28: =IF('Répartition des intensités'!$AR$25="x",SUMIF(Q4:Q24,">5,5",P4:P24),SUMIF(Q4:Q24,">6,5",P4:P24)) -> 0 | S28: =IF('Répartition des intensités'!$AR$25="x",SUMIF(T4:T24,"<3,5",S4:S24),SUMIF(T4:T24,"<4,5",S4:S24)) -> 0 | T28: =IF(T27=0,0,SUM((S25)-(S28+U28))) -> 0 | U28: =IF('Répartition des intensités'!$AR$25="x",SUMIF(T4:T24,">5,5",S4:S24),SUMIF(T4:T24,">6,5",S4:S24)) -> 0 | V28: =IF('Répartition des intensités'!$AR$25="x",SUMIF(W4:W24,"<3,5",V4:V24),SUMIF(W4:W24,"<4,5",V4:V24)) -> 0 | W28: =IF(W27=0,0,SUM((V25)-(V28+X28))) -> 0 | X28: =IF('Répartition des intensités'!$AR$25="x",SUMIF(W4:W24,">5,5",V4:V24),SUMIF(W4:W24,">6,5",V4:V24)) -> 0 | Y28: =IF('Répartition des intensités'!$AR$25="x",SUMIF(Z4:Z24,"<3,5",Y4:Y24),SUMIF(Z4:Z24,"<4,5",Y4:Y24)) -> 0 | Z28: =IF(Z27=0,0,SUM((Y25)-(Y28+AA28))) -> 0 | AA28: =IF('Répartition des intensités'!$AR$25="x",SUMIF(Z4:Z24,">5,5",Y4:Y24),SUMIF(Z4:Z24,">6,5",Y4:Y24)) -> 0 | AB28: =IF('Répartition des intensités'!$AR$25="x",SUMIF(AC4:AC24,"<3,5",AB4:AB24),SUMIF(AC4:AC24,"<4,5",AB4:AB24)) -> 0 | AC28: =IF(AC27=0,0,SUM((AB25)-(AB28+AD28))) -> 0 | AD28: =IF('Répartition des intensités'!$AR$25="x",SUMIF(AC4:AC24,">5,5",AB4:AB24),SUMIF(AC4:AC24,">6,5",AB4:AB24)) -> 0 | AE28: =IF('Répartition des intensités'!$AR$25="x",SUMIF(AF4:AF24,"<3,5",AE4:AE24),SUMIF(AF4:AF24,"<4,5",AE4:AE24)) -> 0 | AF28: =IF(AF27=0,0,SUM((AE25)-(AE28+AG28))) -> 0 | AG28: =IF('Répartition des intensités'!$AR$25="x",SUMIF(AF4:AF24,">5,5",AE4:AE24),SUMIF(AF4:AF24,">6,5",AE4:AE24)) -> 0
D29: Comme au repos | H29: 0 | J29: REG | K29: Est-ce que j'ai l'impression d'avoir récupéré en me levant?
D30: très facile | H30: 1
D31: facile | H31: 2 | J31: 1 | K31: … pas du tout récupéré | AI31: Entrainements | AM31: Rapport de santé
H32: 3 | J32: 2 | K32: … un peu récupéré | AI32: Jours d'entrainement | AK32: =IF(SUM(AH4:AH24)=0,"",SUM(AH4:AH24)) -> 
D33: Assez dur | H33: 4 | J33: 3 | K33: … récupéré | V33: =B4 -> Lu | W33: =AK4 -> 0 | AI33: Entrainements | AK33: =IF(AK32="","",SUM(M27:AG27)) -> 
D34: dur | H34: 5 | J34: 4 | K34: … en forme | V34: =B7 -> Ma | W34: =AK7 -> 0 | AI34: Heures d'entrainement | AK34: =IF(AK32="","",SUM(M25,P25,S25,Y25,AB25,V25,AE25)/60) ->  | AM34: =IF($AK$32="","",AK32-AM36-AM44-AM52) ->  | AN34: Aucune limitation | AR34: 0
H35: 6 | J35: 5 | K35: … très en forme | V35: =B10 -> Me | W35: =AK10 -> 0 | AI35: Charge de l'entrainement | AK35: =IF(AK32="","",SUM(AK25)) -> 
D36: très dur | H36: 7 | V36: =B13 -> Je | W36: =AK13 -> 0 | AI36: Monotonie | AK36: =IF(AK27=0,0,(AVERAGE(AK4:AK24))/AK27) -> 0 | AM36: =SUM(AM37:AM42) -> 0 | AN36: Limitation pour cause de douleurs
H37: 8 | J37: Nombre de matchs | V37: =B16 -> Ve | W37: =AK16 -> 0 | AI37: Efforts à l'entrainement | AK37: =IF(AK32="","",AK35*AK36) ->  | AM37: =COUNTIF($H$4:$H$24,$AR37) -> 0 | AN37: Doigt | AR37: 1
D38: extrèmement dur | H38: 9 | V38: =B19 -> Sa | W38: =AK19 -> 0 | AM38: 0 | AN38: Épaule | AR38: 2
D39: Comme mon entrainement le plus dur | H39: 10 | J39: 1 | K39: … 3 sets et plus | V39: =B22 -> Di | W39: =AK22 -> 0 | AI39: Compétition | AM39: 0 | AN39: Dos | AR39: 3
J40: 0.5 | K40: … moins de 3 sets | AI40: Matchs de volleyball | AK40: =IF(AK32="","",SUM(AM4:AM24)) ->  | AM40: 0 | AN40: Genou | AR40: 4
AI41: Sets de volleyball | AK41: =IF(AK32="","",SUM(AN4:AN24)) ->  | AM41: 0 | AN41: Cheville | AR41: 5
J42: Sets joués | AI42: Matchs de beach volley | AK42: =IF(AK35="","",SUM(AO4:AO24)) ->  | AM42: 0 | AN42: Autre | AR42: 6
J43: 1 | K43: … depuis le début et durant tout le set | AI43: Sets de beach volley | AK43: =IF(AK35="","",SUM(AP4:AP24)) -> 
J44: 0.5 | K44: … entré/sorti en cours, beaucoup joué | AM44: =SUM(AM45:AM50) -> 0 | AN44: Absence pour cause de blessure
J45: 0.1 | K45: … entré/sorti en cours, peu joué | AI45: Satisfaction | AM45: =COUNTIF($H$4:$H$24,$AR45) -> 0 | AN45: Doigt | AR45: 11
AI46: Satisfaction de l'entrainement/match J | AK46: =IF(AK32="","",SUM(AQ4:AQ24)/AK32) ->  | AM46: 0 | AN46: Épaule | AR46: 12
J47: J | K47: Es-tu content de la qualité de ton | AM47: 0 | AN47: Dos | AR47: 13
K48: entrainement/compétition? | AI48: Santé | AM48: 0 | AN48: Genou | AR48: 14
J49: 1 | K49: … pas content | AI49: Limitation pour cause de douleurs | AK49: =AM36 -> 0 | AM49: 0 | AN49: Cheville | AR49: 15
J50: 2 | K50: … plutôt pas content | AI50: Absence pour cause de blessure | AK50: =AM44 -> 0 | AM50: 0 | AN50: Autre | AR50: 16
J51: 3 | K51: … moyen | AI51: Absence pour cause de maladie | AK51: =AM52 -> 0
J52: 4 | K52: … content | AM52: =SUM(AM53:AM59) -> 0 | AN52: Absence pour cause de maladie
J53: 5 | K53: … très content! | AM53: =COUNTIF($H$4:$H$24,$AR53) -> 0 | AN53: Maladie | AR53: 21
Y134: =Z134-1 -> 36 | Z134: 37 | AA134: 38 | AB134: 39 | AC134: 40 | AD134: 41 | AE134: 42 | AF134: =D1 -> 43
AG155: =AF134+1 -> 44

Sheet 44
C1: Woche | D1: =INT(MOD(INT((F1-2)/7)+0.6,52+5/28))+1 -> 44 | E1: =D1+1000 -> 1044 | F1: ='43'!F1+7 -> 2018-10-29 | H1: - | J1: =F1+6 -> 2018-11-04 | AG1: ='Aperçu de la charge'!D2 -> Prénom Nom | AI1: ='Aperçu de la charge'!N2 -> 2018/2019
B2: Jour | D2: Poids | E2: REG | F2: qualité sommeil | G2: durée sommeil | H2: Santé | J2: Description de l'entrainement | M2: Club - VB | P2: TS/ Nati - VB | S2: Club - BVB | V2: TS/ Nati - BVB | Y2: Force - fitness | AB2: Compet. - VB | AE2: Compet. - BVB | AI2: Réflexion | AK2: Charge/ jour | AM2: matchs VB | AN2: Sets VB | AO2: Matchs BVB | AP2: Sets BVB | AQ2: J | AR2: Autre (Rég, mentale) | AS2: Mental- oder Sonstiges Training
D3: [kg] | E3: [1 - 5] | F3: [1-5] | G3: [Std] | H3: Nr. | M3: Durée | N3: RPE | O3: Charge | P3: Durée | Q3: RPE | R3: Charge | S3: Durée | T3: RPE | U3: Charge | V3: Durée | W3: RPE | X3: Charge | Y3: Durée | Z3: RPE | AA3: Charge | AB3: Durée | AC3: RPE | AD3: Charge | AE3: Durée | AF3: RPE | AG3: Charge | AQ3: [1-5]
B4: Lu | D4: 0 | E4: 0 | F4: 0 | G4: 0 | H4: 0 | O4: =M4*N4 -> 0 | R4: =P4*Q4 -> 0 | U4: =S4*T4 -> 0 | X4: =V4*W4 -> 0 | AA4: =Y4*Z4 -> 0 | AD4: =AB4*AC4 -> 0 | AG4: =AE4*AF4 -> 0 | AH4: =IF(SUM(M4:AG6)>0,1,0) -> 00:00:00 | AK4: =SUM(O4:O6,R4:R6,U4:U6,X4:X6,AA4:AA6,AD4:AD6,AG4:AG6) -> 0
O5: =M5*N5 -> 0 | R5: =P5*Q5 -> 0 | U5: =S5*T5 -> 0 | X5: =V5*W5 -> 0 | AA5: =Y5*Z5 -> 0 | AD5: =AB5*AC5 -> 0 | AG5: =AE5*AF5 -> 0
O6: 0 | R6: 0 | U6: 0 | X6: 0 | AA6: 0 | AD6: 0 | AG6: 0
B7: Ma | D7: 0 | E7: 0 | F7: 0 | G7: 0 | H7: 0 | O7: 0 | R7: =P7*Q7 -> 0 | U7: 0 | X7: 0 | AA7: 0 | AD7: 0 | AG7: 0 | AH7: =IF(SUM(M7:AG9)>0,1,0) -> 00:00:00 | AK7: =SUM(O7:O9,R7:R9,U7:U9,X7:X9,AA7:AA9,AD7:AD9,AG7:AG9) -> 0
O8: 0 | R8: 0 | U8: 0 | X8: 0 | AA8: 0 | AD8: 0 | AG8: 0
O9: 0 | R9: 0 | U9: 0 | X9: 0 | AA9: 0 | AD9: 0 | AG9: 0
B10: Me | D10: 0 | E10: 0 | F10: 0 | G10: 0 | H10: 0 | O10: 0 | R10: =P10*Q10 -> 0 | U10: 0 | X10: 0 | AA10: 0 | AD10: 0 | AG10: 0 | AH10: =IF(SUM(M10:AG12)>0,1,0) -> 00:00:00 | AK10: =SUM(O10:O12,R10:R12,U10:U12,X10:X12,AA10:AA12,AD10:AD12,AG10:AG12) -> 0
O11: 0 | R11: 0 | U11: 0 | X11: 0 | AA11: 0 | AD11: 0 | AG11: 0
O12: 0 | R12: 0 | U12: 0 | X12: 0 | AA12: 0 | AD12: 0 | AG12: 0
B13: Je | D13: 0 | E13: 0 | F13: 0 | G13: 0 | H13: 0 | O13: 0 | R13: =P13*Q13 -> 0 | U13: 0 | X13: 0 | AA13: 0 | AD13: 0 | AG13: 0 | AH13: =IF(SUM(M13:AG15)>0,1,0) -> 00:00:00 | AK13: =SUM(O13:O15,R13:R15,U13:U15,X13:X15,AA13:AA15,AD13:AD15,AG13:AG15) -> 0
O14: 0 | R14: 0 | U14: 0 | X14: 0 | AA14: 0 | AD14: 0 | AG14: 0
O15: 0 | R15: 0 | U15: 0 | X15: 0 | AA15: 0 | AD15: 0 | AG15: 0
B16: Ve | D16: 0 | E16: 0 | F16: 0 | G16: 0 | H16: 0 | O16: 0 | R16: =P16*Q16 -> 0 | U16: 0 | X16: 0 | AA16: 0 | AD16: 0 | AG16: 0 | AH16: =IF(SUM(M16:AG18)>0,1,0) -> 00:00:00 | AK16: =SUM(O16:O18,R16:R18,U16:U18,X16:X18,AA16:AA18,AD16:AD18,AG16:AG18) -> 0
O17: 0 | R17: 0 | U17: 0 | X17: 0 | AA17: 0 | AD17: 0 | AG17: 0
O18: 0 | R18: 0 | U18: 0 | X18: 0 | AA18: 0 | AD18: 0 | AG18: 0
B19: Sa | D19: 0 | E19: 0 | F19: 0 | G19: 0 | H19: 0 | O19: =M19*N19 -> 0 | R19: =P19*Q19 -> 0 | U19: =S19*T19 -> 0 | X19: =V19*W19 -> 0 | AA19: =Y19*Z19 -> 0 | AD19: =AB19*AC19 -> 0 | AG19: =AE19*AF19 -> 0 | AH19: =IF(SUM(M19:AG21)>0,1,0) -> 00:00:00 | AK19: =SUM(O19:O21,R19:R21,U19:U21,X19:X21,AA19:AA21,AD19:AD21,AG19:AG21) -> 0
O20: =M20*N20 -> 0 | R20: 0 | U20: =S20*T20 -> 0 | X20: =V20*W20 -> 0 | AA20: =Y20*Z20 -> 0 | AD20: =AB20*AC20 -> 0 | AG20: =AE20*AF20 -> 0
O21: 0 | R21: 0 | U21: 0 | X21: 0 | AA21: 0 | AD21: 0 | AG21: 0
B22: Di | D22: 0 | E22: 0 | F22: 0 | G22: 0 | H22: 0 | O22: 0 | R22: =P22*Q22 -> 0 | U22: 0 | X22: 0 | AA22: 0 | AD22: 0 | AG22: 0 | AH22: =IF(SUM(M22:AG24)>0,1,0) -> 00:00:00 | AK22: =SUM(O22:O24,R22:R24,U22:U24,X22:X24,AA22:AA24,AD22:AD24,AG22:AG24) -> 0
O23: 0 | R23: 0 | U23: 0 | X23: 0 | AA23: 0 | AD23: 0 | AG23: 0
O24: 0 | R24: 0 | U24: 0 | X24: 0 | AA24: 0 | AD24: 0 | AG24: 0
K25: Total | M25: =SUM(M4:M24) -> 0 | O25: =SUM(O4:O24) -> 0 | P25: =SUM(P4:P24) -> 0 | R25: =SUM(R4:R24) -> 0 | S25: =SUM(S4:S24) -> 0 | U25: =SUM(U4:U24) -> 0 | V25: =SUM(V4:V24) -> 0 | X25: =SUM(X4:X24) -> 0 | Y25: =SUM(Y4:Y24) -> 0 | AA25: =SUM(AA4:AA24) -> 0 | AB25: =SUM(AB4:AB24) -> 0 | AD25: =SUM(AD4:AD24) -> 0 | AE25: =SUM(AE4:AE24) -> 0 | AG25: =SUM(AG4:AG24) -> 0 | AI25: Charge totale | AK25: =SUM(AK4:AK24) -> 0
B26: avg. | D26: =IF(COUNTA(D4:D24)=0,"",AVERAGE(D4:D24)) -> 0 | E26: =IF(COUNTA(E4:E24)=0,"",AVERAGE(E4:E24)) -> 0 | F26: =IF(COUNTA(F4:F24)=0,"",AVERAGE(F4:F24)) -> 0 | G26: =IF(COUNTA(G4:G24)=0,"",AVERAGE(G4:G24)) -> 0 | H26: =IF(COUNTA(H4:H24)=0,"",COUNTIF(H4:H24,"x")) -> 0 | K26: Zone | M26: 1 | N26: 2 | O26: 3 | P26: 1 | Q26: 2 | R26: 3 | S26: 1 | T26: 2 | U26: 3 | V26: 1 | W26: 2 | X26: 3 | Y26: 1 | Z26: 2 | AA26: 3 | AB26: 1 | AC26: 2 | AD26: 3 | AE26: 1 | AF26: 2 | AG26: 3 | AI26: Moyenne | AK26: =AVERAGE(AK4:AK24) -> 0
F27: =IF(COUNTA(F4:F24)=0,"",VAR(F4:F24)) -> 0 | G27: =IF(COUNTA(G4:G24)=0,"",STDEV(G4:G24)) -> 0 | H27: Divergence - durée du sommeil | K27: Unité par zone (RPE) | M27: =IF('Répartition des intensités'!$AR$25="x",COUNTIF(N4:N24,"<3,5"),COUNTIF(N4:N24,"<4,5")) -> 0 | N27: =COUNT(N4:N24)-(M27+O27) -> 0 | O27: =IF('Répartition des intensités'!$AR$25="x",COUNTIF(N4:N24,">5,5"),COUNTIF(N4:N24,">6,5")) -> 0 | P27: =IF('Répartition des intensités'!$AR$25="x",COUNTIF(Q4:Q24,"<3,5"),COUNTIF(Q4:Q24,"<4,5")) -> 0 | Q27: =COUNT(Q4:Q24)-(P27+R27) -> 0 | R27: =IF('Répartition des intensités'!$AR$25="x",COUNTIF(Q4:Q24,">5,5"),COUNTIF(Q4:Q24,">6,5")) -> 0 | S27: =IF('Répartition des intensités'!$AR$25="x",COUNTIF(T4:T24,"<3,5"),COUNTIF(T4:T24,"<4,5")) -> 0 | T27: =COUNT(T4:T24)-(S27+U27) -> 0 | U27: =IF('Répartition des intensités'!$AR$25="x",COUNTIF(T4:T24,">5,5"),COUNTIF(T4:T24,">6,5")) -> 0 | V27: =IF('Répartition des intensités'!$AR$25="x",COUNTIF(W4:W24,"<3,5"),COUNTIF(W4:W24,"<4,5")) -> 0 | W27: =COUNT(W4:W24)-(V27+X27) -> 0 | X27: =IF('Répartition des intensités'!$AR$25="x",COUNTIF(W4:W24,">5,5"),COUNTIF(W4:W24,">6,5")) -> 0 | Y27: =IF('Répartition des intensités'!$AR$25="x",COUNTIF(Z4:Z24,"<3,5"),COUNTIF(Z4:Z24,"<4,5")) -> 0 | Z27: =COUNT(Z4:Z24)-(Y27+AA27) -> 0 | AA27: =IF('Répartition des intensités'!$AR$25="x",COUNTIF(Z4:Z24,">5,5"),COUNTIF(Z4:Z24,">6,5")) -> 0 | AB27: =IF('Répartition des intensités'!$AR$25="x",COUNTIF(AC4:AC24,"<3,5"),COUNTIF(AC4:AC24,"<4,5")) -> 0 | AC27: =COUNT(AC4:AC24)-(AB27+AD27) -> 0 | AD27: =IF('Répartition des intensités'!$AR$25="x",COUNTIF(AC4:AC24,">5,5"),COUNTIF(AC4:AC24,">6,5")) -> 0 | AE27: =IF('Répartition des intensités'!$AR$25="x",COUNTIF(AF4:AF24,"<3,5"),COUNTIF(AF4:AF24,"<4,5")) -> 0 | AF27: =COUNT(AF4:AF24)-(AE27+AG27) -> 0 | AG27: =IF('Répartition des intensités'!$AR$25="x",COUNTIF(AF4:AF24,">5,5"),COUNTIF(AF4:AF24,">6,5")) -> 0 | AI27: Divergence | AK27: =STDEVP(AK4:AK24) -> 0
D28: échelle de Foster | H28: RPE | K28: Temps par zone (RPE) | M28: =IF('Répartition des intensités'!$AR$25="x",SUMIF(N4:N24,"<3,5",M4:M24),SUMIF(N4:N24,"<4,5",M4:M24)) -> 0 | N28: =IF(N27=0,0,SUM((M25)-(M28+O28))) -> 0 | O28: =IF('Répartition des intensités'!$AR$25="x",SUMIF(N4:N24,">5,5",M4:M24),SUMIF(N4:N24,">6,5",M4:M24)) -> 0 | P28: =IF('Répartition des intensités'!$AR$25="x",SUMIF(Q4:Q24,"<3,5",P4:P24),SUMIF(Q4:Q24,"<4,5",P4:P24)) -> 0 | Q28: =IF(Q27=0,0,SUM((P25)-(P28+R28))) -> 0 | R28: =IF('Répartition des intensités'!$AR$25="x",SUMIF(Q4:Q24,">5,5",P4:P24),SUMIF(Q4:Q24,">6,5",P4:P24)) -> 0 | S28: =IF('Répartition des intensités'!$AR$25="x",SUMIF(T4:T24,"<3,5",S4:S24),SUMIF(T4:T24,"<4,5",S4:S24)) -> 0 | T28: =IF(T27=0,0,SUM((S25)-(S28+U28))) -> 0 | U28: =IF('Répartition des intensités'!$AR$25="x",SUMIF(T4:T24,">5,5",S4:S24),SUMIF(T4:T24,">6,5",S4:S24)) -> 0 | V28: =IF('Répartition des intensités'!$AR$25="x",SUMIF(W4:W24,"<3,5",V4:V24),SUMIF(W4:W24,"<4,5",V4:V24)) -> 0 | W28: =IF(W27=0,0,SUM((V25)-(V28+X28))) -> 0 | X28: =IF('Répartition des intensités'!$AR$25="x",SUMIF(W4:W24,">5,5",V4:V24),SUMIF(W4:W24,">6,5",V4:V24)) -> 0 | Y28: =IF('Répartition des intensités'!$AR$25="x",SUMIF(Z4:Z24,"<3,5",Y4:Y24),SUMIF(Z4:Z24,"<4,5",Y4:Y24)) -> 0 | Z28: =IF(Z27=0,0,SUM((Y25)-(Y28+AA28))) -> 0 | AA28: =IF('Répartition des intensités'!$AR$25="x",SUMIF(Z4:Z24,">5,5",Y4:Y24),SUMIF(Z4:Z24,">6,5",Y4:Y24)) -> 0 | AB28: =IF('Répartition des intensités'!$AR$25="x",SUMIF(AC4:AC24,"<3,5",AB4:AB24),SUMIF(AC4:AC24,"<4,5",AB4:AB24)) -> 0 | AC28: =IF(AC27=0,0,SUM((AB25)-(AB28+AD28))) -> 0 | AD28: =IF('Répartition des intensités'!$AR$25="x",SUMIF(AC4:AC24,">5,5",AB4:AB24),SUMIF(AC4:AC24,">6,5",AB4:AB24)) -> 0 | AE28: =IF('Répartition des intensités'!$AR$25="x",SUMIF(AF4:AF24,"<3,5",AE4:AE24),SUMIF(AF4:AF24,"<4,5",AE4:AE24)) -> 0 | AF28: =IF(AF27=0,0,SUM((AE25)-(AE28+AG28))) -> 0 | AG28: =IF('Répartition des intensités'!$AR$25="x",SUMIF(AF4:AF24,">5,5",AE4:AE24),SUMIF(AF4:AF24,">6,5",AE4:AE24)) -> 0
D29: Comme au repos | H29: 0 | J29: REG | K29: Est-ce que j'ai l'impression d'avoir récupéré en me levant?
D30: très facile | H30: 1
D31: facile | H31: 2 | J31: 1 | K31: … pas du tout récupéré | AI31: Entrainements | AM31: Rapport de santé
H32: 3 | J32: 2 | K32: … un peu récupéré | AI32: Jours d'entrainement | AK32: =IF(SUM(AH4:AH24)=0,"",SUM(AH4:AH24)) -> 
D33: Assez dur | H33: 4 | J33: 3 | K33: … récupéré | V33: =B4 -> Lu | W33: =AK4 -> 0 | AI33: Entrainements | AK33: =IF(AK32="","",SUM(M27:AG27)) -> 
D34: dur | H34: 5 | J34: 4 | K34: … en forme | V34: =B7 -> Ma | W34: =AK7 -> 0 | AI34: Heures d'entrainement | AK34: =IF(AK32="","",SUM(M25,P25,S25,Y25,AB25,V25,AE25)/60) ->  | AM34: =IF($AK$32="","",AK32-AM36-AM44-AM52) ->  | AN34: Aucune limitation | AR34: 0
H35: 6 | J35: 5 | K35: … très en forme | V35: =B10 -> Me | W35: =AK10 -> 0 | AI35: Charge de l'entrainement | AK35: =IF(AK32="","",SUM(AK25)) -> 
D36: très dur | H36: 7 | V36: =B13 -> Je | W36: =AK13 -> 0 | AI36: Monotonie | AK36: =IF(AK27=0,0,(AVERAGE(AK4:AK24))/AK27) -> 0 | AM36: =SUM(AM37:AM42) -> 0 | AN36: Limitation pour cause de douleurs
H37: 8 | J37: Nombre de matchs | V37: =B16 -> Ve | W37: =AK16 -> 0 | AI37: Efforts à l'entrainement | AK37: =IF(AK32="","",AK35*AK36) ->  | AM37: =COUNTIF($H$4:$H$24,$AR37) -> 0 | AN37: Doigt | AR37: 1
D38: extrèmement dur | H38: 9 | V38: =B19 -> Sa | W38: =AK19 -> 0 | AM38: 0 | AN38: Épaule | AR38: 2
D39: Comme mon entrainement le plus dur | H39: 10 | J39: 1 | K39: … 3 sets et plus | V39: =B22 -> Di | W39: =AK22 -> 0 | AI39: Compétition | AM39: 0 | AN39: Dos | AR39: 3
J40: 0.5 | K40: … moins de 3 sets | AI40: Matchs de volleyball | AK40: =IF(AK32="","",SUM(AM4:AM24)) ->  | AM40: 0 | AN40: Genou | AR40: 4
AI41: Sets de volleyball | AK41: =IF(AK32="","",SUM(AN4:AN24)) ->  | AM41: 0 | AN41: Cheville | AR41: 5
J42: Sets joués | AI42: Matchs de beach volley | AK42: =IF(AK35="","",SUM(AO4:AO24)) ->  | AM42: 0 | AN42: Autre | AR42: 6
J43: 1 | K43: … depuis le début et durant tout le set | AI43: Sets de beach volley | AK43: =IF(AK35="","",SUM(AP4:AP24)) -> 
J44: 0.5 | K44: … entré/sorti en cours, beaucoup joué | AM44: =SUM(AM45:AM50) -> 0 | AN44: Absence pour cause de blessure
J45: 0.1 | K45: … entré/sorti en cours, peu joué | AI45: Satisfaction | AM45: =COUNTIF($H$4:$H$24,$AR45) -> 0 | AN45: Doigt | AR45: 11
AI46: Satisfaction de l'entrainement/match J | AK46: =IF(AK32="","",SUM(AQ4:AQ24)/AK32) ->  | AM46: 0 | AN46: Épaule | AR46: 12
J47: J | K47: Es-tu content de la qualité de ton | AM47: 0 | AN47: Dos | AR47: 13
K48: entrainement/compétition? | AI48: Santé | AM48: 0 | AN48: Genou | AR48: 14
J49: 1 | K49: … pas content | AI49: Limitation pour cause de douleurs | AK49: =AM36 -> 0 | AM49: 0 | AN49: Cheville | AR49: 15
J50: 2 | K50: … plutôt pas content | AI50: Absence pour cause de blessure | AK50: =AM44 -> 0 | AM50: 0 | AN50: Autre | AR50: 16
J51: 3 | K51: … moyen | AI51: Absence pour cause de maladie | AK51: =AM52 -> 0
J52: 4 | K52: … content | AM52: =SUM(AM53:AM59) -> 0 | AN52: Absence pour cause de maladie
J53: 5 | K53: … très content! | AM53: =COUNTIF($H$4:$H$24,$AR53) -> 0 | AN53: Maladie | AR53: 21
Y134: =Z134-1 -> 37 | Z134: 38 | AA134: 39 | AB134: 40 | AC134: 41 | AD134: 42 | AE134: 43 | AF134: =D1 -> 44
AG155: =AF134+1 -> 45

Sheet 45
C1: Woche | D1: =INT(MOD(INT((F1-2)/7)+0.6,52+5/28))+1 -> 45 | E1: =D1+1000 -> 1045 | F1: ='44'!F1+7 -> 2018-11-05 | H1: - | J1: =F1+6 -> 2018-11-11 | AG1: ='Aperçu de la charge'!D2 -> Prénom Nom | AI1: ='Aperçu de la charge'!N2 -> 2018/2019
B2: Jour | D2: Poids | E2: REG | F2: qualité sommeil | G2: durée sommeil | H2: Santé | J2: Description de l'entrainement | M2: Club - VB | P2: TS/ Nati - VB | S2: Club - BVB | V2: TS/ Nati - BVB | Y2: Force - fitness | AB2: Compet. - VB | AE2: Compet. - BVB | AI2: Réflexion | AK2: Charge/ jour | AM2: matchs VB | AN2: Sets VB | AO2: Matchs BVB | AP2: Sets BVB | AQ2: J | AR2: Autre (Rég, mentale) | AS2: Mental- oder Sonstiges Training
D3: [kg] | E3: [1 - 5] | F3: [1-5] | G3: [Std] | H3: Nr. | M3: Durée | N3: RPE | O3: Charge | P3: Durée | Q3: RPE | R3: Charge | S3: Durée | T3: RPE | U3: Charge | V3: Durée | W3: RPE | X3: Charge | Y3: Durée | Z3: RPE | AA3: Charge | AB3: Durée | AC3: RPE | AD3: Charge | AE3: Durée | AF3: RPE | AG3: Charge | AQ3: [1-5]
B4: Lu | D4: 0 | E4: 0 | F4: 0 | G4: 0 | H4: 0 | O4: =M4*N4 -> 0 | R4: =P4*Q4 -> 0 | U4: =S4*T4 -> 0 | X4: =V4*W4 -> 0 | AA4: =Y4*Z4 -> 0 | AD4: =AB4*AC4 -> 0 | AG4: =AE4*AF4 -> 0 | AH4: =IF(SUM(M4:AG6)>0,1,0) -> 00:00:00 | AK4: =SUM(O4:O6,R4:R6,U4:U6,X4:X6,AA4:AA6,AD4:AD6,AG4:AG6) -> 0
O5: =M5*N5 -> 0 | R5: =P5*Q5 -> 0 | U5: =S5*T5 -> 0 | X5: =V5*W5 -> 0 | AA5: =Y5*Z5 -> 0 | AD5: =AB5*AC5 -> 0 | AG5: =AE5*AF5 -> 0
O6: 0 | R6: 0 | U6: 0 | X6: 0 | AA6: 0 | AD6: 0 | AG6: 0
B7: Ma | D7: 0 | E7: 0 | F7: 0 | G7: 0 | H7: 0 | O7: 0 | R7: =P7*Q7 -> 0 | U7: 0 | X7: 0 | AA7: 0 | AD7: 0 | AG7: 0 | AH7: =IF(SUM(M7:AG9)>0,1,0) -> 00:00:00 | AK7: =SUM(O7:O9,R7:R9,U7:U9,X7:X9,AA7:AA9,AD7:AD9,AG7:AG9) -> 0
O8: 0 | R8: 0 | U8: 0 | X8: 0 | AA8: 0 | AD8: 0 | AG8: 0
O9: 0 | R9: 0 | U9: 0 | X9: 0 | AA9: 0 | AD9: 0 | AG9: 0
B10: Me | D10: 0 | E10: 0 | F10: 0 | G10: 0 | H10: 0 | O10: 0 | R10: =P10*Q10 -> 0 | U10: 0 | X10: 0 | AA10: 0 | AD10: 0 | AG10: 0 | AH10: =IF(SUM(M10:AG12)>0,1,0) -> 00:00:00 | AK10: =SUM(O10:O12,R10:R12,U10:U12,X10:X12,AA10:AA12,AD10:AD12,AG10:AG12) -> 0
O11: 0 | R11: 0 | U11: 0 | X11: 0 | AA11: 0 | AD11: 0 | AG11: 0
O12: 0 | R12: 0 | U12: 0 | X12: 0 | AA12: 0 | AD12: 0 | AG12: 0
B13: Je | D13: 0 | E13: 0 | F13: 0 | G13: 0 | H13: 0 | O13: 0 | R13: =P13*Q13 -> 0 | U13: 0 | X13: 0 | AA13: 0 | AD13: 0 | AG13: 0 | AH13: =IF(SUM(M13:AG15)>0,1,0) -> 00:00:00 | AK13: =SUM(O13:O15,R13:R15,U13:U15,X13:X15,AA13:AA15,AD13:AD15,AG13:AG15) -> 0
O14: 0 | R14: 0 | U14: 0 | X14: 0 | AA14: 0 | AD14: 0 | AG14: 0
O15: 0 | R15: 0 | U15: 0 | X15: 0 | AA15: 0 | AD15: 0 | AG15: 0
B16: Ve | D16: 0 | E16: 0 | F16: 0 | G16: 0 | H16: 0 | O16: 0 | R16: =P16*Q16 -> 0 | U16: 0 | X16: 0 | AA16: 0 | AD16: 0 | AG16: 0 | AH16: =IF(SUM(M16:AG18)>0,1,0) -> 00:00:00 | AK16: =SUM(O16:O18,R16:R18,U16:U18,X16:X18,AA16:AA18,AD16:AD18,AG16:AG18) -> 0
O17: 0 | R17: 0 | U17: 0 | X17: 0 | AA17: 0 | AD17: 0 | AG17: 0
O18: 0 | R18: 0 | U18: 0 | X18: 0 | AA18: 0 | AD18: 0 | AG18: 0
B19: Sa | D19: 0 | E19: 0 | F19: 0 | G19: 0 | H19: 0 | O19: =M19*N19 -> 0 | R19: =P19*Q19 -> 0 | U19: =S19*T19 -> 0 | X19: =V19*W19 -> 0 | AA19: =Y19*Z19 -> 0 | AD19: =AB19*AC19 -> 0 | AG19: =AE19*AF19 -> 0 | AH19: =IF(SUM(M19:AG21)>0,1,0) -> 00:00:00 | AK19: =SUM(O19:O21,R19:R21,U19:U21,X19:X21,AA19:AA21,AD19:AD21,AG19:AG21) -> 0
O20: =M20*N20 -> 0 | R20: 0 | U20: =S20*T20 -> 0 | X20: =V20*W20 -> 0 | AA20: =Y20*Z20 -> 0 | AD20: =AB20*AC20 -> 0 | AG20: =AE20*AF20 -> 0
O21: 0 | R21: 0 | U21: 0 | X21: 0 | AA21: 0 | AD21: 0 | AG21: 0
B22: Di | D22: 0 | E22: 0 | F22: 0 | G22: 0 | H22: 0 | O22: 0 | R22: =P22*Q22 -> 0 | U22: 0 | X22: 0 | AA22: 0 | AD22: 0 | AG22: 0 | AH22: =IF(SUM(M22:AG24)>0,1,0) -> 00:00:00 | AK22: =SUM(O22:O24,R22:R24,U22:U24,X22:X24,AA22:AA24,AD22:AD24,AG22:AG24) -> 0
O23: 0 | R23: 0 | U23: 0 | X23: 0 | AA23: 0 | AD23: 0 | AG23: 0
O24: 0 | R24: 0 | U24: 0 | X24: 0 | AA24: 0 | AD24: 0 | AG24: 0
K25: Total | M25: =SUM(M4:M24) -> 0 | O25: =SUM(O4:O24) -> 0 | P25: =SUM(P4:P24) -> 0 | R25: =SUM(R4:R24) -> 0 | S25: =SUM(S4:S24) -> 0 | U25: =SUM(U4:U24) -> 0 | V25: =SUM(V4:V24) -> 0 | X25: =SUM(X4:X24) -> 0 | Y25: =SUM(Y4:Y24) -> 0 | AA25: =SUM(AA4:AA24) -> 0 | AB25: =SUM(AB4:AB24) -> 0 | AD25: =SUM(AD4:AD24) -> 0 | AE25: =SUM(AE4:AE24) -> 0 | AG25: =SUM(AG4:AG24) -> 0 | AI25: Charge totale | AK25: =SUM(AK4:AK24) -> 0
B26: avg. | D26: =IF(COUNTA(D4:D24)=0,"",AVERAGE(D4:D24)) -> 0 | E26: =IF(COUNTA(E4:E24)=0,"",AVERAGE(E4:E24)) -> 0 | F26: =IF(COUNTA(F4:F24)=0,"",AVERAGE(F4:F24)) -> 0 | G26: =IF(COUNTA(G4:G24)=0,"",AVERAGE(G4:G24)) -> 0 | H26: =IF(COUNTA(H4:H24)=0,"",COUNTIF(H4:H24,"x")) -> 0 | K26: Zone | M26: 1 | N26: 2 | O26: 3 | P26: 1 | Q26: 2 | R26: 3 | S26: 1 | T26: 2 | U26: 3 | V26: 1 | W26: 2 | X26: 3 | Y26: 1 | Z26: 2 | AA26: 3 | AB26: 1 | AC26: 2 | AD26: 3 | AE26: 1 | AF26: 2 | AG26: 3 | AI26: Moyenne | AK26: =AVERAGE(AK4:AK24) -> 0
F27: =IF(COUNTA(F4:F24)=0,"",VAR(F4:F24)) -> 0 | G27: =IF(COUNTA(G4:G24)=0,"",STDEV(G4:G24)) -> 0 | H27: Divergence - durée du sommeil | K27: Unité par zone (RPE) | M27: =IF('Répartition des intensités'!$AR$25="x",COUNTIF(N4:N24,"<3,5"),COUNTIF(N4:N24,"<4,5")) -> 0 | N27: =COUNT(N4:N24)-(M27+O27) -> 0 | O27: =IF('Répartition des intensités'!$AR$25="x",COUNTIF(N4:N24,">5,5"),COUNTIF(N4:N24,">6,5")) -> 0 | P27: =IF('Répartition des intensités'!$AR$25="x",COUNTIF(Q4:Q24,"<3,5"),COUNTIF(Q4:Q24,"<4,5")) -> 0 | Q27: =COUNT(Q4:Q24)-(P27+R27) -> 0 | R27: =IF('Répartition des intensités'!$AR$25="x",COUNTIF(Q4:Q24,">5,5"),COUNTIF(Q4:Q24,">6,5")) -> 0 | S27: =IF('Répartition des intensités'!$AR$25="x",COUNTIF(T4:T24,"<3,5"),COUNTIF(T4:T24,"<4,5")) -> 0 | T27: =COUNT(T4:T24)-(S27+U27) -> 0 | U27: =IF('Répartition des intensités'!$AR$25="x",COUNTIF(T4:T24,">5,5"),COUNTIF(T4:T24,">6,5")) -> 0 | V27: =IF('Répartition des intensités'!$AR$25="x",COUNTIF(W4:W24,"<3,5"),COUNTIF(W4:W24,"<4,5")) -> 0 | W27: =COUNT(W4:W24)-(V27+X27) -> 0 | X27: =IF('Répartition des intensités'!$AR$25="x",COUNTIF(W4:W24,">5,5"),COUNTIF(W4:W24,">6,5")) -> 0 | Y27: =IF('Répartition des intensités'!$AR$25="x",COUNTIF(Z4:Z24,"<3,5"),COUNTIF(Z4:Z24,"<4,5")) -> 0 | Z27: =COUNT(Z4:Z24)-(Y27+AA27) -> 0 | AA27: =IF('Répartition des intensités'!$AR$25="x",COUNTIF(Z4:Z24,">5,5"),COUNTIF(Z4:Z24,">6,5")) -> 0 | AB27: =IF('Répartition des intensités'!$AR$25="x",COUNTIF(AC4:AC24,"<3,5"),COUNTIF(AC4:AC24,"<4,5")) -> 0 | AC27: =COUNT(AC4:AC24)-(AB27+AD27) -> 0 | AD27: =IF('Répartition des intensités'!$AR$25="x",COUNTIF(AC4:AC24,">5,5"),COUNTIF(AC4:AC24,">6,5")) -> 0 | AE27: =IF('Répartition des intensités'!$AR$25="x",COUNTIF(AF4:AF24,"<3,5"),COUNTIF(AF4:AF24,"<4,5")) -> 0 | AF27: =COUNT(AF4:AF24)-(AE27+AG27) -> 0 | AG27: =IF('Répartition des intensités'!$AR$25="x",COUNTIF(AF4:AF24,">5,5"),COUNTIF(AF4:AF24,">6,5")) -> 0 | AI27: Divergence | AK27: =STDEVP(AK4:AK24) -> 0
